Workbook

Sheet Design Regulator
A1: LM(2)5148/-Q1 Synchronous Buck Controller Design Tool
N2: http://www.ti.com/product/lm5175
A3: About | C3: xx | F3: = Input Box | N3: TERMS OF USE
A5: Step 1: Operating Specifications
D6: Input Voltage – Min, VIN(min) | E6: 24 | F6: V
D7: Input Voltage – Nom, VIN(nom) | E7: 24 | F7: V
D8: Input Voltage – Max, VIN(max) | E8: 24 | F8: V
D9: Output Voltage, VOUT | E9: 19 | F9: V
D10: Full Load Output Current, IOUT | E10: 13 | F10: A
D11: Switching Frequency, FSW | E11: 425 | F11: kHz
D12: Frequency Set Resistor, RT | E12: ='Variable Management'!C443 -> 51.1 | F12: kΩ
D13: Ambient Temperature, TA | E13: 30 | F13: °C
A15: Step 2: Current Sense Resistor
D16: Required IOCP Setpoint at VIN(nom) | E16: 18.2 | F16: A
D17: Recommended Shunt Resistance | E17: =Rs_ideal*1000 -> 3.125852381 | F17: mΩ
D18: Shunt Resistance, RS | E18: 3 | F18: mΩ
D19: Min Inductor Sat Current, ILO(SAT) | E19: ='Variable Management'!B95 -> 20 | F19: A
D20: Max Power Loss in Shunt | E20: ='Variable Management'!B105 -> 1.084586497 | F20: W
D21: VIN(min) | E21: ='Variable Management'!B97 -> 19.0052356 | F21: A
C22: IOUT(typ) at OCP Inception: | D22: VIN(nom) | E22: ='Variable Management'!B98 -> 19.0052356 | F22: A
D23: VIN(max) | E23: ='Variable Management'!B99 -> 19.0052356 | F23: A
A25: Step 3: Buck Inductance
D26: Inductance for Ideal Slope Comp | E26: =Lopt*1000000 -> 5.903065452 | F26: µH
D27: Inductance, LO | E27: 4.7 | F27: µH
D28: Inductor DCR | E28: 5.2 | F28: mΩ
D29: DIL as a % at VIN(nom) | E29: ='Variable Management'!B68*100 -> 15.3040677 | F29: %
D30: Estimate Core Loss at VIN(nom) | E30: 0.2 | F30: W
A32: Step 4: Output Capacitors
D33: Output Voltage Ripple Spec | E33: 140 | F33: mVPK=PK
D34: Minimum Output Capacitance | E34: ='Variable Management'!B121 -> 4.179682356 | F34: µF
D35: Output Capacitance (derated), COUT | E35: 60 | F35: µF | K35: =CHOOSE(SCH_MODE, "", "** For Single-Output Operation in 2-Phase Mode, tie MODE to VDDA and use FB1 to set VOUT **", "** For Single-Output Operation in 3-Phase Mode, tie both MODE pins to VDDA. Use FB1 of master IC to set VOUT. Connect FB2 of master IC to AGND. Connect FB2 of slave IC to VDDA to configure it as a slave **", "** For Single-Output Operation in 4-Phase Mode, tie both MODE pins to VDDA. Use FB1 of master IC to set VOUT. Connect FB2 of master IC to AGND. Connect FB2 of slave IC to VDDA to configure it as a slave **") -> 
D36: Maximum Permitted ESR | E36: ='Variable Management'!B125 -> 70.19747456 | F36: mΩ
D37: Output Capacitor ESR | E37: 66.3 | F37: mΩ | K37: =CHOOSE(SCH_MODE, "", "** Tie VCCX to GND if not used **", "** Slave controller (CNTRL2) not shown **","** Slave controller (CNTRL2) not shown **") ->  | P37: =IF(SCH_MODE=1, "** Tie VCCX to GND if not used **", "") -> ** Tie VCCX to GND if not used **
D38: Resulting Output Voltage Ripple (max) | E38: ='Variable Management'!B127*1000 -> 132.2658023 | F38: mVPK-PK | K38: =IF(OR(SCH_MODE=3, SCH_MODE=4),"** Tie VCCX to GND if not used **", "") -> 
D39: Output Capacitor RMS Current (max) | E39: ='Variable Management'!B114 -> 0.5743274945 | F39: ARMS
A41: Step 5: Input Capacitors
D42: Input Voltage Ripple Spec | E42: 900 | F42: mVPK-PK
D43: Minimum Input Capacitance | E43: ='Variable Management'!B148 -> 8.496732026 | F43: µF
D44: Input Capacitance (derated), CIN | E44: 120 | F44: µF
D45: Maximum Permitted ESR | E45: ='Variable Management'!B155 -> 59.75624068 | F45: mΩ
D46: Input Capacitor ESR | E46: 133 | F46: mΩ
D47: Resulting Input Voltage Ripple (max) | E47: ='Variable Management'!B162*1000 -> 1925.029155 | F47: mVPK-PK
D48: Input Capacitor RMS Current (max) | E48: ='Variable Management'!B138 -> 6.5 | F48: ARMS
D49: AEF Filter Inductor | E49: 0.68 | F49: µH
A50: Step 6: Precision Enable, DRSS, FPWM / PFM
D53: Input Voltage UVLO Turn On | E53: 12 | F53: V
D54: Input Voltage UVLO Turn Off | E54: 11 | F54: V
D55: Upper Enable Resistor, RUV1 | E55: =IF(UVLO_TYPE=1,'Variable Management'!B188,0) -> 100 | F55: kΩ
D56: Lower Enable Resistor, RUV2 | E56: =IF(UVLO_TYPE=1,'Variable Management'!B189,"DNP") -> 9.09 | F56: kΩ
D57: Configuration Resistor, RCNFG | E57: =IF(DITHER=1,"41.2","29.4") -> 41.2 | F57: kΩ
D58: =IF(DEMB=1, "* Tie PFM to GND", "* Tie PFM to VDDA") -> * Tie PFM to GND
A60: Step 7: Compensation Design
D61: Load Pole Frequency | E61: =Fp_dominant -> 2248.067181 | F61: Hz
D62: ESR Zero Frequency | E62: =Fesr/1000 -> 40.00878413 | F62: kHz
D63: Desired Crossover Frequency | E63: 65 | F63: =" kHz " -> kHz
D64: Error Amp Pole Frequency | E64: =Fp1_u -> 3.031285538 | F64: Hz
D65: =CHOOSE(VOUT_setting, "Upper Feedback Resistor","","","") -> Upper Feedback Resistor | E65: 287 | F65: kΩ
D66: =CHOOSE(VOUT_setting, "Lower Feedback Resistor", "* Connect "&'Variable Management'!D419&" from FB to VDDA","* Tie FB to VDDA","* Connect "&'Variable Management'!D419&" from FB to VDDA") -> Lower Feedback Resistor | E66: =IF(Vout=Vref,"OPEN",Rfb2_u/1000) -> 12.7 | F66: =IF(Vout=Vref,"","kΩ") -> kΩ
D67: =CHOOSE(VOUT_setting, "Actual Output Voltage Setpoint","","","") -> Actual Output Voltage Setpoint | E67: =0.8/E66*(E65+E66) -> 18.87874016 | F67: V
A69: Compensation Components
B70: Calculated / | C70: Std Values | D70: =C70 -> Std Values | F70: Actual P/Z Frequencies
A71: RC1 | B71: =Rcea1/1000 -> 14.54950096 | C71: ='Standard Value Calculator'!S32 -> 14.7 | D71: 29.4 | E71: kΩ | F71: =Fp1_u -> 3.031285538 | G71: Hz (FPEA)
A72: CC1 | B72: =Cc1ea*1000000000 -> 1.682901424 | C72: ='Standard Value Calculator'!S33 -> 1.8 | D72: 0.82 | E72: nF | F72: =Fz1_u/1000 -> 6.601748103 | G72: kHz (FZCOMP)
A73: CC2 | B73: =IF(Cc2ea<0, "N/A", Cc2ea*1000000000000) -> 241.5804507 | C73: ='Standard Value Calculator'!S34 -> 220 | D73: 18 | E73: pF | F73: =Fp2_u/1000 -> 108.6358828 | G73: kHz (FPCOMP)
A76: Efficiency / Power Loss Analyzer
A78: Step 8: Efficiency
F79: Power MOSFETs | G79: (Q1, Q2)
E80: '852, '824
E81: High-side | F81: Low-side
D82: On-State Resistance, RDS(on) | E82: 12 | F82: 4.1 | G82: mΩ
D83: Total Gate Charge, QG | E83: 8 | F83: 25 | G83: nC
D84: Gate-Drain Charge, QGD | E84: 2.9 | F84: 9 | G84: nC
D85: Gate-Source Charge, QGS | E85: 3.1 | F85: 8.7 | G85: nC
D86: Output Charge, QOSS | F86: 30 | G86: nC
D87: Output Capacitance, COSS | E87: 116 | F87: 366 | G87: pF
D88: Gate Resistance, RG | E88: 1.2 | F88: 1.2 | G88: Ω
D89: Transconductance, gFS | E89: 55 | F89: 178 | G89: S
D90: Gate-Source Threshold Voltage, VTH | E90: 3.1 | F90: 3 | G90: V
D91: Body Diode Forward Voltage, VBD | E91: 0.7 | F91: 0.7 | G91: V
D92: Body Diode Rev Recovery Charge, QRR | F92: 59 | G92: nC
D93: Thermal Resistance, θJA | E93: 42 | F93: 40.7 | G93: °C/W
A95: External Schottky Diode (if applicable)
D96: Schottky Fwd Voltage, VFWDsch | F96: 0 | G96: V
D97: Schottky Rev Recovery Charge, QRRsch | F97: 0 | G97: nC
A101: Step 9: IC Power Loss
D102: IC Power Dissipation | E102: ='Variable Management'!B362 -> 0.070125 | F102: W
D103: IC Junction Temperature (estimate) | E103: ='Variable Management'!B364 -> 32.3912625 | F103: °C
E104: =CHOOSE(Ext_VCC, "", "* Tie VCCX to PGND") -> 

Sheet Input Filters (hidden)
A1: LM(2)5149-Q1 Synchronous Buck Controller Design Tool
O2: http://www.ti.com/product/lm5175
A3: About | C3: xx | F3: = Input Box | O3: TERMS OF USE
E7: AEF | M7: Passive
B9: Design tab - LAEF | C9: ='Design Regulator'!E49 & " µH" -> 0,68 µH | F9: LAEF | G9: 1 | H9: µH | J9: Suggested LIN Inductor | K9: 0.1-10 | L9: µH | N9: Chosen LIN | O9: 0.68 | P9: µH
B10: Design tab - CINJ | C10: ='Design Regulator'!#REF! & " µF" ->  | F10: CINJ | G10: 1 | H10: µF | J10: Suggested CF | K10: 0.1-10 | L10: µF | N10: Chosen CF | O10: 0.47 | P10: µF
B11: Design tab - CDAMP | C11: ='Design Regulator'!#REF! & " µF" ->  | F11: CDAMP | G11: 1 | H11: µF | J11: Suggested CDAMP | K11: 1-10 | L11: µF | N11: Chosen CDAMP | O11: 1 | P11: µF
B12: Design tab - RDAMP | C12: ='Design Regulator'!#REF! & " Ω" ->  | F12: RDAMP | G12: 10 | H12: Ω | J12: Suggested RDAMP | K12: =Rdamp_PassiveStd ->  | L12: Ω | N12: Chosen RDAMP | O12: 0.35 | P12: Ω
C14: VIN Ripple at Fsw | F14: =VinRipple_dBuV -> 125.6887462 | G14: dBµV | H14: VIN Ripple | I14: =VinRipple_dBuV -> 125.6887462 | J14: dBµV
D16: AEF Attenuation at Fsw | E16: =-'Input Filter Calculations'!AM97 ->  | F16: dB | L16: Passive Attenuation at Fsw | M16: =-'Input Filter Calculations'!AA97 -> 13.18189275 | N16: dB
D17: AEF EMI at Fsw | E17: =VinRipple_dBuV-E16 ->  | F17: dB-µV | L17: Passive EMI at Fsw | M17: =VinRipple_dBuV-M16 -> 112.5068535 | N17: dB-µV

Sheet Design Input Filter (hidden)
A1: LM5149-Q1 Synchronous Buck Controller Design Tool
O2: http://www.ti.com/product/lm5175
A3: About | C3: xx | F3: = Input Box | O3: TERMS OF USE
B7: Choose Filter
B8: Suggested Inductor | C8: =CHOOSE(INFILTER_TYPE,"","0.01-1","0.1-10") ->  | D8: µH | F8: Chosen Inductor | G8: 1 | H8: µH
B9: =CHOOSE(INFILTER_TYPE,"","Suggested Cinj","Suggested Cf") ->  | C9: =CHOOSE(INFILTER_TYPE,"",'Standard Value Calculator'!S24,'Standard Value Calculator'!S23) ->  | D9: µF | F9: =CHOOSE(INFILTER_TYPE,"","Chosen Cinj","Chosen Cf") ->  | G9: 0.068 | H9: µF
B10: Suggested Cdamp | C10: =CHOOSE(INFILTER_TYPE,"",CHOOSE(OSC,"DNP",'Standard Value Calculator'!S25),'Standard Value Calculator'!S28) ->  | D10: µF | F10: Chosen Cdamp | G10: 0.033 | H10: µF
B11: Suggested Rdamp | C11: =CHOOSE(INFILTER_TYPE,"",'Standard Value Calculator'!S26,Rdamp_PassiveStd) ->  | D11: Ω | F11: Chosen Rdamp | G11: 43.2 | H11: Ω
F12: Filter Attenuation | G12: =-'Variable Management'!B303 -> 0 | H12: dB
F13: VIN Ripple | G13: =VinRipple_dBuV -> 125.6887462 | H13: dB-µV
F14: Fsw Conducted EMC | G14: ='Variable Management'!B304 -> 125.6887462 | H14: dB-µV

Sheet BOM & Schematic
I33: =IF(OR(SCH_MODE=3, SCH_MODE=4),"** Tie VCCX to GND if not used **", "") -> 
A34: ** Tie PFM to VDDA for PFM, AGND for FPWM **
A35: ** Tie VCCX to GND if not used **
A36: ="Vin = "&VIN_min&"V to "&VIN_max&"V, Vout = "& Vout &"V, Iout = " &Iout & "A, Fsw = " & Fsw/1000 &"kHz, Current Limit = "&ROUNDUP(Ilimit_DC,0)&"A" -> Vin = 24V to 24V, Vout = 19V, Iout = 13A, Fsw = 425kHz, Current Limit = 19A
A37: High-Efficiency Synchronous Buck Regulator BOM
A38: Count | B38: Ref Des | C38: Value | D38: Description | H38: Size | I38: Part Number | J38: MFR
A39: 1 | B39: CBOOT | C39: 0.1 | D39: =C39 -> 0.1 | H39: 0603 | I39: Std | J39: Std
A40: 1 | B40: CCOMP | C40: ='Design Regulator'!D72 -> 0.82 | D40: 0.82 | H40: 0603 | I40: Std | J40: Std
A41: 1 | B41: CHF | C41: ='Design Regulator'!D73 -> 18 | D41: 18 | H41: 0603 | I41: Std | J41: Std
A42: =ROUNDUP('Design Regulator'!E44/10,0) -> 12 | B42: CIN | C42: 10 | D42: =C42 -> 10 | H42: 1210 | I42: Std | J42: Std
A43: =ROUNDUP('Design Regulator'!E35/47,0) -> 2 | B43: COUT | C43: 47 | D43: =C43 -> 47 | H43: 1210 | I43: Std | J43: Std
A44: 2 | B44: CVCC, CVCCX | C44: 2.2 | D44: 2.2 | H44: 0603 | I44: Std | J44: Std
A45: 1 | B45: CVDDA | C45: 0.47 | D45: 0.47 | H45: 0603 | I45: Std | J45: Std
A46: 1 | B46: LO | C46: ='Design Regulator'!E27 -> 4.7 | D46: ="Inductor, "&Lf*1000000&"µH, "&Rdcr*1000&"mΩ, >"&ROUNDUP(Ilimit_DC*1.1,0)&"A" -> Inductor, 4,7µH, 5,2mΩ, >21A | H46: - | I46: - | J46: Various
A47: 2 | B47: Q1, Q2 | C47: See description | D47: ='Design Regulator'!E82 -> 12 | H47: Std | I47: ='Design Regulator'!E80 -> '852, '824 | J47: -
A48: 1 | B48: RCOMP | C48: ='Design Regulator'!D71 -> 29.4 | D48: =C48 -> 29.4 | H48: 0603 | I48: Std | J48: Std
A49: 1 | B49: RS | C49: =Rs*1000 -> 3 | D49: 3 | H49: 0508 | I49: Std | J49: Std
A50: 1 | B50: RT | C50: ='Design Regulator'!E12 -> 51.1 | D50: 51.1 | H50: 0603 | I50: Std | J50: Std
A51: 1 | B51: RFB1 | C51: ='Design Regulator'!E65 -> 287 | D51: =C51 -> 287 | H51: 0603 | I51: Std | J51: Std
A52: 1 | B52: RFB2 | C52: ='Design Regulator'!E66 -> 12.7 | D52: =C52 -> 12.7 | H52: 0603 | I52: Std | J52: Std
A53: 1 | B53: RPG | C53: 100 | D53: 100 | H53: 0603 | I53: Std | J53: Std
A54: 1 | B54: RCS | C54: 100 | D54: 100 | H54: 0603 | I54: Std | J54: Std
A55: 1 | B55: RVIN | C55: 2.2 | D55: 2.2 | H55: 0603 | I55: Std | J55: Std
A56: 1 | B56: U1 | C56: ='Variable Management'!P29 -> LM5148 | D56: =CHOOSE(VARIANT, "IC, LM5148, Synchronous Buck PWM Controller, 3.5V–80V Input", "IC, LM5148-Q1, Synchronous Buck PWM Controller, 3.5V–80V Input", "IC, LM25148, Synchronous Buck PWM Controller, 3.5V–42V Input", "IC, LM25148-Q1, Synchronous Buck PWM Controller, 3.5V–42V Input") -> IC, LM5148, Synchronous Buck PWM Controller, 3.5V–80V Input | H56: VQFN-24 | I56: =CHOOSE(VARIANT, "LM5148RGYR", "LM5148QRGYRQ1", "LM25148RGYR", "LM25148QRGYRQ1") -> LM5148RGYR | J56: TI
A59: NOTES:
A60: ** Inductor saturation current should be higher than the peak inductor current at the OCP setpoint for all input voltages and operating temperatures **
A61: ** Effective input and output capacitances should be appropriately derated for applied voltage and temperature, particularly with ceramics **

Sheet EVM
A1: LM25149-Q1 Quickstart Design Tool
B6: LM25149-Q1EVM-2100 PCB Layout

Sheet Variable Management (hidden)
A1: EXCEL Variables Names/Calculations
B2: Input from user =
B3: Output =
B4: Constant
A5: Variable Name | B5: Value | C5: STD Units | E5: Notes | I5: Iteration
A6: Step 1: Operational Specs
A7: VIN_min | B7: ='Design Regulator'!E6 -> 24 | C7: V | D7: Minimum input voltage | I7: 1
A8: VIN_nom | B8: ='Design Regulator'!E7 -> 24 | C8: V | D8: Nominal input voltage | K8: =CHOOSE(SCH_MODE, "Efficiency vs. IOUT (Ch1)", "Efficiency vs. IOUT - 2 Ph", "Efficiency vs. IOUT - 3 Ph", "Efficiency vs. IOUT - 4 Ph") -> Efficiency vs. IOUT (Ch1) | L8: 1 | N8: DRSS Enabled | O8: 1 | T8: Dual Outputs | U8: 1 | W8: FPWM | X8: 1 | Z8: =CHOOSE(SCH_MODE, "Bode Plot (Ch1)", "Bode Plot - 2 Ph", "Bode Plot - 3 Ph", "Bode Plot - 4 Ph") -> Bode Plot (Ch1) | AA8: 1
A9: VIN_max | B9: ='Design Regulator'!E8 -> 24 | C9: V | D9: Maximum input voltage | K9: =IF(MODE=1, "Efficiency vs. IOUT (Ch2)", "N/A - Do Not Use") -> Efficiency vs. IOUT (Ch2) | L9: 2 | N9: DRSS Disabled | O9: 2 | T9: Single Output – 2 Phases | U9: 2 | W9: PFM | X9: 2 | Z9: =IF(MODE=1, "AEF Gain", "N/A - Do Not Use") -> AEF Gain | AA9: 2
K10: PLOT_TYPE | L10: 1 | N10: DRSS Yes/No | O10: 1 | P10: 1 = Yes, 2 = No | T10: Single Output – 3 Phases | U10: 3 | W10: FPWM/PFM | X10: 1 | Z10: BODE_PLOT_TYPE | AA10: 1
A11: Vout | B11: ='Design Regulator'!E9 -> 19 | C11: V | D11: Output voltage - channel 1 | T11: Single Output – 4 Phases | U11: 4
A12: Iout | B12: ='Design Regulator'!E10 -> 13 | C12: A | D12: Output current - channel 1 | I12: 1 | T12: Single/Dual Yes/No | U12: 1
I13: 1 | K13: Adjustable | L13: 1 | N13: 3.3V | O13: 1 | T13: MODE (Single/Dual), DUAL = 1, SINGLE = 2 | U13: =IF(U12=1, 1, 2) -> 1 | W13: VCCX Connected | X13: 1
A14: Rout | B14: =Vout/Iout -> 1.461538462 | C14: W | D14: Load resistance - Channel 1 | K14: 5V | L14: 2 | N14: 5V | O14: 2 | T14: SINGLE OUTPUT (1 = YES) | U14: =IF(U12=1, 2, 1) -> 2 | W14: No External VCC | X14: 2
K15: 3.3V | L15: 3 | N15: Adjustable | O15: 3 | T15: Number of Phases | U15: =SCH_MODE -> 1 | W15: Ext_VCC | X15: 1
A16: Pout | B16: =Vout*Iout -> 247 | C16: W | D16: Output power | K16: 12V | L16: 4 | N16: Output Setting | O16: =IF(Vout2=3.3, 1, IF(Vout2=5, 2, 3)) -> 3
K17: Output Voltage Setting | L17: =IF(Vout=3.3, 3, IF(Vout=5, 2, IF(Vout=12,4,1))) -> 1
A18: Efficiency | B18: 0.9 | D18: Estimate of efficiency
A19: Pin | B19: =Pout/Efficiency -> 274.4444444 | C19: W | D19: Calculate input power assuming finite efficiency | Z19: Internal Compensation | AA19: 1
Z20: External Compensation | AA20: 2
A21: Iin_Vinmin | B21: =Pin/VIN_min -> 11.43518519 | C21: A | L21: =Vout -> 19 | Z21: COMP_TYPE | AA21: 2
A22: Iin_Vinnom | B22: =Pin/VIN_nom -> 11.43518519 | C22: A | D22: Input currents at min, nom, max Vin | H22: =AND(OSC=1, OR(Fsw/1000>2530, Fsw/1000<1800)) -> FALSE
A23: Iin_Vinmax | B23: =Pin/VIN_max -> 11.43518519 | C23: A | H23: =AND(OSC=2, OR(Fsw/1000>500, Fsw/1000<300)) -> FALSE
H24: =OR(H22,H23) -> FALSE
A25: OSC setting | B25: =CHOOSE(OSC, 2200, 440) ->  | C25: kHz | K25: SetVout_IntComp_nAEF | L25: 1 | P25: LM5148 | Q25: 1 | W25: No Input Filter | X25: 1 | Z25: UVLO Divider | AA25: 1
A26: Fsw | B26: ='Design Regulator'!E11*1000 -> 425000 | C26: Hz | D26: Nominal switching frequency - determines RT resistor (SYNCIN must be 80-120% of this) | K26: SetVout_IntComp_AEF | L26: 2 | P26: LM5148-Q1 | Q26: 2 | W26: AEF Input Filter | X26: 2 | Z26: No UVLO Divider | AA26: 2
A27: RT resistor to AGND | B27: =((1000000000/Fsw)-53)/45+0.1 -> 51.20980392 | C27: kΩ | K27: SetVout_ExtComp_nAEF | L27: 3 | P27: LM25148 | Q27: 3 | W27: Passive LC Filter | X27: 3 | Z27: UVLO_TYPE | AA27: 1
C28: kΩ | I28: 1 | K28: SetVout_ExtComp_AEF | L28: 4 | P28: LM25148-Q1 | Q28: 4 | W28: INFILTER_TYPE | X28: 1
A29: Tsw | B29: =1/Fsw -> 2.352941176e-06 | C29: sec | D29: Switching period | K29: AdjVout_IntComp_nAEF | L29: 5 | O29: VARIANT | P29: =CHOOSE(VARIANT, "LM5148", "LM5148-Q1", "LM25148", "LM25148-Q1") -> LM5148 | Q29: 1
A30: Vref | B30: 0.8 | C30: V | D30: Reference voltage | K30: AdjVout_IntComp_AEF | L30: 6 | O30: VIN-MAX | P30: =CHOOSE(VARIANT, 80, 80, 42, 42) -> 80 | Q30: V
A31: Rt | B31: ='Standard Value Calculator'!S12/1000 -> 51.1 | C31: kΩ | D31: Frequency set resistor | F31: =IF(OR((Fsw=440000),(Fsw=2200000)),"N/A",Rfadj/1000) -> 0.0511 | K31: AdjVout_ExtComp_nAEF | L31: 7 | O31: VOUT-MAX | P31: =CHOOSE(VARIANT, 60, 60, 36, 36) -> 60 | Q31: V
K32: AdjVout_ExtComp_AEF | L32: 8
A33: Step 2: Buck Inductor | B33: Channel 1 | K33: Schematic setting | L33: =(IF(OR(Vout=3.3,Vout=5,Vout=12),CHOOSE(COMP_TYPE,IF(INFILTER_TYPE=1,1,2),IF(INFILTER_TYPE=1,3,4)),CHOOSE(COMP_TYPE,IF(INFILTER_TYPE=1,5,6),IF(INFILTER_TYPE=1,7,8)))) -> 7
A34: Don1 | B34: =Vout/VIN_nom -> 0.7916666667 | F34: Ideal Duty Cycle at VIN(nom)
A35: Doff1 | B35: =1-34:34 -> 0.2083333333 | F35: Ideal 1- Duty Cycle at VIN(nom)
A37: D_Vinmin | B37: =Vout/VIN_min -> 0.7916666667
A38: D_Vinnom | B38: =Vout/VIN_nom -> 0.7916666667
A39: D_Vinmax | B39: =Vout/VIN_max -> 0.7916666667
A41: L_Vinnom | B41: =(VIN_nom-Vout)*D1_Vinnom/(Fsw*(Iout/Number_of_Phases)*0.3) -> 2.388134741e-06 | C41: H | F41: Calculated inductance for 35% ripple at VIN(nom)
A42: L_slopecomp | B42: =1000*Vout*Rs/22.72/Fsw -> 5.903065452e-06 | C42: H | F42: Calculated inductance based on one times inductor downslope
A44: Lopt | B44: =B42 -> 5.903065452e-06 | C44: H | F44: Slope comp
A46: Lo | B46: ='Design Regulator'!E27/1000000 -> 4.7e-06 | C46: H | F46: Chosen inductance
A47: Rdcr | B47: ='Design Regulator'!E28/1000 -> 0.0052 | C47: W | F47: Chosen inductor DCR
A49: Don2 | B49: =(Vout+Iout*(Rdcr+Rs))/(Vin+Iout*Rs) -> 0.7948167561
A50: Doff2 | B50: =1-_Don2 -> 0.2051832439
A52: D_Vinmin_2 | B52: =CHOOSE(MODE, (Vout+Iout*(Rdcr+Rs))/(VIN_min+Iout*Rs), (Vout+Iout/Number_of_Phases*(Rdcr+Rs))/(VIN_min+Iout/Number_of_Phases*Rs)) -> 0.7948167561 | F52: Duty cycles adjusted for DCR/shunt voltage drops
A53: D_Vinnom_2 | B53: =CHOOSE(MODE, (Vout+Iout*(Rdcr+Rs))/(VIN_nom+Iout*Rs), (Vout+Iout/Number_of_Phases*(Rdcr+Rs))/(VIN_nom+Iout/Number_of_Phases*Rs)) -> 0.7948167561 | F53: need to include RDS(on) later
A54: D_Vinmax_2 | B54: =CHOOSE(MODE, (Vout+Iout*(Rdcr+Rs))/(VIN_max+Iout*Rs), (Vout+Iout/Number_of_Phases*(Rdcr+Rs))/(VIN_max+Iout/Number_of_Phases*Rs)) -> 0.7948167561
A56: Iripple_Vinmin | B56: =(VIN_min-Vout)*D1_Vinmin_2/(Fsw*Lf) -> 1.989528801 | C56: A
A57: Iripple_Vinnom | B57: =(VIN_nom-Vout)*D1_Vinnom_2/(Fsw*Lf) -> 1.989528801 | C57: A
A58: Iripple_Vinmax | B58: =(VIN_max-Vout)*D1_Vinmax_2/(Fsw*Lf) -> 1.989528801 | C58: A
A60: Ishunt_rms_Vinmin | B60: =SQRT((Iout/Number_of_Phases)^2+(Iripple_Vinmin^2)/12) -> 13.01268043 | C60: A
A61: Ishunt_rms_Vinnom | B61: =SQRT((Iout/Number_of_Phases)^2+(Iripple_Vinnom^2)/12) -> 13.01268043 | C61: A
A62: Ishunt_rms_Vinmax | B62: =SQRT((Iout/Number_of_Phases)^2+(Iripple_Vinmax^2)/12) -> 13.01268043 | C62: A
A63: Max shunt power loss at full load | B63: =B61^2*Rs -> 0.5079895562 | C63: W | F63: Note this is power loss at full load - not loss near OCP!
A65: Max inductor ripple current | B65: =MAX(B56:B58) -> 1.989528801 | C65: A | F65: Ripple current at Vin(max)
B67: =B56/(Iout/Number_of_Phases) -> 0.153040677
A68: % ripple current | B68: =B57/(Iout/Number_of_Phases) -> 0.153040677
B69: =B58/(Iout/Number_of_Phases) -> 0.153040677
A71: Inductor copper temerature | B71: 100 | C71: °C
A72: DCR at hot | B72: =Rdcr*(1+0.0039*(B71-25)) -> 0.006721 | C72: W
A73: Core loss | B73: ='Design Regulator'!E30 -> 0.2 | C73: W
A75: Step 3: Sense Resistors, Slope Comp, Current Limit
A77: Ilimit_DC | B77: ='Design Regulator'!E16 -> 18.2 | C77: A | F77: Chosen OCP level - based on output current
A79: Ilimit_inductor_Vinmin | B79: =CHOOSE(MODE, Ilimit_DC+Iripple_Vinmin/2, Ilimit_DC/Number_of_Phases+Iripple_Vinmin/2) -> 19.1947644 | C79: A | F79: Peak inductor current at current limit inception
A80: Ilimit_inductor_Vinnom | B80: =CHOOSE(MODE, Ilimit_DC+Iripple_Vinnom/2, Ilimit_DC/Number_of_Phases+Iripple_Vinnom/2) -> 19.1947644 | C80: A
A81: Ilimit_inductor_Vinmax | B81: =CHOOSE(MODE, Ilimit_DC+Iripple_Vinmax/2, Ilimit_DC/Number_of_Phases+Iripple_Vinmax/2) -> 19.1947644 | C81: A
A84: CS threshold_min | B84: 0.052 | C84: V
A85: CS threshold | B85: 0.06 | C85: V
A86: CS threshold_max | B86: 0.068 | C86: V
A88: Shunt required to get OCP at VIN(min) | B88: =Buck_CS_threshold/B79 -> 0.003125852381 | C88: W
A89: Shunt required to get OCP at VIN(nom) | B89: =Buck_CS_threshold/B80 -> 0.003125852381 | C89: W
A90: Shunt required to get OCP at VIN(max) | B90: =Buck_CS_threshold/B81 -> 0.003125852381 | C90: W
A92: Rs_ideal | B92: =B89 -> 0.003125852381 | C92: W | F92: Ideal Rs for the required OCP -- based on 73mV CL threshold
A93: Rs | B93: ='Design Regulator'!E18/1000 -> 0.003 | C93: W | F93: Selected (starndard value) current limit sense resistor
A95: Current limit - peak | B95: =Buck_CS_threshold/Rs -> 20 | C95: A | F95: Peak inductor current limit = min sat current
A97: Iout_OCP_Vinmin | B97: =Number_of_Phases*(Buck_CS_threshold/Rs-Iripple_Vinmin/2) -> 19.0052356 | C97: A | F97: Current limit setpoints (i.e. IOUT) after standard components are selected
A98: Iout_OCP_Vinnom | B98: =Number_of_Phases*(Buck_CS_threshold/Rs-Iripple_Vinnom/2) -> 19.0052356 | C98: A
A99: Iout_OCP_Vinmax | B99: =Number_of_Phases*(Buck_CS_threshold/Rs-Iripple_Vinmax/2) -> 19.0052356 | C99: A
A101: Irms_OCP_Vinmin | B101: =SQRT((Iout_OCP_Vinmin/Number_of_Phases)^2+(Iripple_Vinmin^2)/12) -> 19.01391155 | C101: A
A102: Irms_OCP_Vinnom | B102: =SQRT((Iout_OCP_Vinnom/Number_of_Phases)^2+(Iripple_Vinnom^2)/12) -> 19.01391155 | C102: A
A103: Irms_OCP_Vinmax | B103: =SQRT((Iout_OCP_Vinmax/Number_of_Phases)^2+(Iripple_Vinmax^2)/12) -> 19.01391155 | C103: A
A105: Pshunt_Vinmin | B105: =B101^2*Rs -> 1.084586497 | C105: W | F105: Max power dissipations in shunt
A106: Pshunt_Vinnom | B106: =B102^2*Rs -> 1.084586497 | C106: W
A107: Pshunt_Vinmax | B107: =B103^2*Rs -> 1.084586497 | C107: W
A110: Step 4: Output Capacitor
A111: Icoutrms_VINmin | B111: =Iripple_Vinmin/SQRT(12) -> 0.5743274945 | C111: A | F111: Output Cap RMS current
A112: Icoutrms_VINnom | B112: =Iripple_Vinnom/SQRT(12) -> 0.5743274945 | C112: A
A113: Icoutrms_VINmax | B113: =Iripple_Vinmax/SQRT(12) -> 0.5743274945 | C113: A
A114: Max Cout rms current | B114: =MAX(B111:B113) -> 0.5743274945 | C114: A
A116: Vripple1 | B116: ='Design Regulator'!E33/1000 -> 0.14 | C116: V | F116: Output voltage ripple spec(pk-pk)
A118: Output Ripple Spec (pk-pk) | B118: =Vo1_ripple*1000 -> 140 | C118: mV | F118: Vout ripple spec at Vin(nom)
A120: Coutmin | B120: =Iripple_Vinnom/(Fsw*8*Vo1_ripple) -> 4.179682356e-06 | C120: F | F120: Minimum output capacitnace | H120: =Vo2_ripple -> 0 | I120: 1
A121: Reported Coutmin | B121: =IF(Cout_min*1000000<2, 2.2,Cout_min*1000000) -> 4.179682356 | C121: uF
A122: Cout | B122: ='Design Regulator'!E35/1000000 -> 6e-05 | C122: F | F122: Chosen output capacitance | I122: 1
A123: Resrmax | B123: =SQRT((Vo1_ripple/Iripple_Vinnom)^2-(1/(Fsw*Cout*8))^2) -> 0.07019747456 | C123: W | F123: Max ESR before ripple exceeds Vripple1 | I123: 1
A125: Reported Cout ESR max | B125: =IF(OR(CoutEsrMax>0.3, CoutEsrMax<0, (ISERROR(CoutEsrMax))), "N/A", CoutEsrMax*1000) -> 70.19747456 | C125: mΩ
A126: CoutEsr | B126: ='Design Regulator'!E37/1000 -> 0.0663 | C126: W | F126: Chosen ESR | I126: 1 | K126: =ISERROR(CoutEsrMax) -> FALSE | L126: =ISERROR(B125) -> FALSE
A127: Vripple | B127: =Iripple_Vinnom*SQRT(Cout_ESR^2+(1/(8*Fsw*Cout))^2) -> 0.1322658023 | C127: Vp-p | L127: =OR(CoutEsrMax>0.3,CoutEsrMax<0) -> FALSE
K128: =OR(TRUE, FALSE, TRUE) -> TRUE
A129: Step 5: Input Capacitor
K130: Two channels operating at full load
A131: Icinrms_VINmin | B131: =SQRT(D1_Vinmin_2*(Iout^2*(1-D1_Vinmin_2)+Iripple_Vinmin^2/12)) -> 5.274771325 | C131: A | D131: =D1_Vinmax -> 0.7916666667 | F131: Calculate input cap rms current with one output unloaded | K131: =SQRT(Iout^2*D1_Vinmin*(1-D1_Vinmin)+Iout2^2*D2_Vinmin*(1-D2_Vinmin)-2*Iout*Iout2*D1_Vinmin*D2_Vinmin) ->  | L131: A | M131: =SQRT(Iout^2*D1_Vinmin*(1-D1_Vinmin)+Iout2^2*D2_Vinmin*(1-D2_Vinmin)-2*Iout*Iout2*(0.5-D2_Vinmin*(1-D1_Vinmin))) ->  | N131: A
A132: Icinrms_VINnom | B132: =SQRT(D1_Vinnom_2*(Iout^2*(1-D1_Vinnom_2)+Iripple_Vinnom^2/12)) -> 5.274771325 | C132: A | D132: =D1_Vinmin -> 0.7916666667 | K132: =SQRT(Iout^2*D1_Vinnom*(1-D1_Vinnom)+Iout2^2*D2_Vinnom*(1-D2_Vinnom)-2*Iout*Iout2*D1_Vinnom*D2_Vinnom) ->  | L132: A
A133: Icinrms_VINmax | B133: =SQRT(D1_Vinmax_2*(Iout^2*(1-D1_Vinmax_2)+Iripple_Vinmax^2/12)) -> 5.274771325 | C133: A | K133: =SQRT(Iout^2*D1_Vinmax*(1-D1_Vinmax)+Iout2^2*D2_Vinmax*(1-D2_Vinmax)-2*Iout*Iout2*D1_Vinmax*D2_Vinmax) ->  | L133: A
A134: Icinrms - multiphase | B134: =Iout*SQRT((D1_Vinmin-F136/Number_of_Phases)*((F136+1)/Number_of_Phases-D1_Vinmin)) -> 5.279513603 | C134: A | K134: =MAX(K131:K133) ->  | L134: A
A135: Max Cin rms current | B135: =MAX(B131:B133) -> 5.274771325 | C135: A | F135: =Number_of_Phases*D1_Vinnom -> 0.7916666667 | G135: N*D
F136: =FLOOR(Number_of_Phases*D1_Vinnom,1) -> 0 | G136: floor(N*D)
A137: Icinrms - multiphase - max | B137: =Iout/2/Number_of_Phases -> 6.5 | C137: A
A138: Final result | B138: =IF(D1_Vinmin<0.5, B135, B137) -> 6.5 | C138: A | D138: …report this
A140: Vinripple1 | B140: ='Design Regulator'!E42/1000 -> 0.9 | C140: Vp-p | F140: Input voltage ripple spec (pk-pk)
A142: Cinmin_Vinmin | B142: =Iout/Number_of_Phases*D1_Vinmin*(1-D1_Vinmin)/(Vinripple1*Fsw) -> 5.605482934e-06 | C142: F
A143: Cinmin_Vinnom | B143: =Iout/Number_of_Phases*D1_Vinnom*(1-D1_Vinnom)/(Vinripple1*Fsw) -> 5.605482934e-06 | C143: F
A144: Cinmin_Vinmax | B144: =Iout/Number_of_Phases*D1_Vinmax*(1-D1_Vinmax)/(Vinripple1*Fsw) -> 5.605482934e-06 | C144: F | F144: Calculate cap at Vinmax and 50% duty cycle (Vin = 2*Vout)
A146: Cinmin_50%D | B146: =Iout*0.5*(1-0.5)/(Vinripple1*Fsw) -> 8.496732026e-06 | C146: F | F146: Buck 50% typically worst case
A147: Cinmin | B147: =IF(VIN_min>2*Vout, B142,B146) -> 8.496732026e-06 | C147: F | D147: =(VIN_min+VIN_max)/2 -> 24
A148: Reported Cinmin | B148: =IF(Cinmin*1000000<2.2, 2.2,Cinmin*1000000) -> 8.496732026 | C148: uF | D148: =2*Vout -> 38 | F148: …report this
A150: Cin | B150: ='Design Regulator'!E44/1000000 -> 0.00012 | C150: F | F150: Input capacitance
A151: CinEsrMax_Vinmin | B151: =-(Iout/Number_of_Phases*D1_Vinmin*(1-D1_Vinmin)/(Cin*Fsw)-Vinripple1)/(Iout/Number_of_Phases+Iripple_Vinmin/2) -> 0.06130570358 | C151: W
A152: CinEsrMax_Vinmax | B152: =-(Iout/Number_of_Phases*D1_Vinmax*(1-D1_Vinmax)/(Cin*Fsw)-Vinripple1)/(Iout/Number_of_Phases+Iripple_Vinmax/2) -> 0.06130570358 | C152: W
A153: CinEsrMax_50%D | B153: =-(Iout/Number_of_Phases*0.5*(1-0.5)/(Cin*Fsw)-Vinripple1)/(Iout/Number_of_Phases+Iripple_Vinmax/2) -> 0.05975624068 | C153: W | F153: Calculate ESR at Vinmax and 50% duty cycle (Vin = 2*Vout)
A154: CinEsrMax | B154: =IF(VIN_min>2*Vout, B151,B153) -> 0.05975624068 | C154: W
A155: Reported Cin ESR max | B155: =IF(OR(CinEsrMax>0.3, CinEsrMax<0), "N/A",CinEsrMax*1000) -> 59.75624068 | C155: mΩ | F155: …report this
A156: RCinEsr | B156: ='Design Regulator'!E46/1000 -> 0.133 | C156: W | F156: Input capacitance series resistance (ESR)
A158: Vinripple2_Vinmin | B158: =Iout/Number_of_Phases*D1_Vinmin_2*(1-D1_Vinmin_2)/(Cin*Fsw)+(Iout/Number_of_Phases +Iripple_Vinmin/2)*RCinEsr -> 1.902873862 | C158: Vp-p
A159: Vinripple2_Vinnom | B159: =Iout/Number_of_Phases*D1_Vinnom_2*(1-D1_Vinnom_2)/(Cin*Fsw)+(Iout/Number_of_Phases +Iripple_Vinnom/2)*RCinEsr -> 1.902873862 | C159: Vp-p
A160: Vinripple2_Vinmax | B160: =Iout/Number_of_Phases*D1_Vinmax_2*(1-D1_Vinmax_2)/(Cin*Fsw)+(Iout/Number_of_Phases +Iripple_Vinmax/2)*RCinEsr -> 1.902873862 | C160: Vp-p
A161: Vinripple2_50%D | B161: =Iout/Number_of_Phases*0.5*(1-0.5)/(Cin*Fsw)+(Iout/Number_of_Phases +Iripple_Vinmax/2)*RCinEsr -> 1.925029155 | C161: Vp-p | F161: Calculate ripple at Vinmax and 50% duty cycle (Vin = 2*Vout)
A162: Vinripple2 | B162: =IF(D1_Vinmin<0.5, B158,B161) -> 1.925029155 | C162: Vp-p | F162: …report highest of these
B164: =Iout*D1_Vinmin_2*(1-D1_Vinmin_2)/(Cin*Fsw) -> 0.04157019694 | C164: Vp-p
A166: Step 6a: Soft Start
A167: Tss | B167: ='Design Regulator'!E51/1000 -> 0 | C167: s | D167: Soft-start time
A168: Iss | B168: =Cout*Vout/Tss ->  | C168: A | D168: Load cap current during soft start
A169: Css | B169: =0.000022*Tss/1.2 -> 0 | C169: F
A170: Css_u | B170: ='Standard Value Calculator'!B4 -> 0 | C170: F
A172: Step 6b: Other Components - Dither, Hiccup, DEMB, MODE
A173: Tres | B173: ='Design Regulator'!E54/1000 -> 0.011 | C173: s | D173: Hiccup time
A174: Cres | B174: =0.00002*Tres/1.2 -> 1.833333333e-07 | C174: F
A175: Cres_u | B175: ='Standard Value Calculator'!G4 -> 1.8e-07 | C175: F
A177: RPG1/2 | B177: 100 | C177: kΩ
A178: RFB1/2 | C178: W | E178: Tie to VDDA or AGND for 3.3V/5V output, respectively.
A179: R_MODE | C179: W | E179: Tie to VDDA or AGND for Single/Dual operation, respectively.
A180: R_DEMB | C180: W | E180: Tie to VDDA or AGND for FPWM/DEM, respectively.
A182: Enable Hysteresis Current | B182: 1e-05 | C182: A | E182: 10 µA Hysteresis Current
A183: Turn ON Voltage | B183: ='Design Regulator'!E53 -> 12
A184: Hysteresis Voltage | B184: ='Design Regulator'!E53-'Design Regulator'!E54 -> 1
A186: Upper FB resistor | B186: =B184/B182 -> 100000 | C186: W
A187: Lower FB resister | B187: =B186/(B183-1) -> 9090.909091 | C187: W
A188: Standard upper FB resistor | B188: ='Standard Value Calculator'!S40 -> 100 | C188: kΩ
A189: Standard lower FB resistor | B189: ='Standard Value Calculator'!S41 -> 9.09 | C189: kΩ
A191: Dither Modulation Frequency | B191: ='Design Regulator'!E57*1000 ->  | C191: Hz
A192: Cdither_calculated | B192: =10*10^-6/Fdither/0.12 ->  | C192: F
A193: Cdither_stdvalue | B193: ='Standard Value Calculator'!S21 ->  | C193: F
A196: Step 7: Compensation
A197: Pi | B197: 3.14159265 | D197: p
A198: CS Amp Gain | B198: 10
A199: Ri | B199: =Rs*CSAmp_gain -> 0.03 | C199: W | F199: Current Sense effective resistance = shunt resistor Rs * CS amp gain
A200: gm | B200: =IF(COMP_TYPE=1,0.00003,0.0012) -> 0.0012 | C200: S | F200: Error Amp Transconductance
A202: Se_ext | B202: =B206/Ri*1000 -> 3219696.97 | C202: A/s | F202: Slope Comp Slope - referred to inductor current
A203: Sn | B203: =(Vin-Vout)/Lf -> 1063829.787 | C203: A/s | F203: On-time Slope
A204: Sf | B204: =Vout/Lf -> 4042553.191 | C204: A/s | F204: Off-time Slope
A206: Se_int | B206: =Fsw*0.001*(5/22) -> 96.59090909 | C206: mV/μs | F206: Slope Comp Slope - referred to IC
A207: Sn_int | B207: =Sn*Ri/1000 -> 31.91489362 | C207: mV/μs | F207: etc
A208: Sf_int | B208: =Sf*Ri/1000 -> 121.2765957 | C208: mV/μs | F208: etc
A210: mc_buck | B210: =1+Se_ext/Sn -> 4.026515152 | F210: mc = 1 + Se/Sn for peak current-mode buck
A211: k_buck | B211: =mc_buck*(1-D1_Vinnom_2) -> 0.8261734404 | F211: mc*(1-d)
A213: mc | B213: =1+Se_ext/Sn -> 4.026515152
A214: k | B214: =mc_buck*(1-D1_Vinnom_2) -> 0.8261734404
A215: Q | B215: =1/Pi/(k-0.5) -> 0.9758914956 | F215: 1/(Pi*(k-0.5)) | H215: Q = 2/Pi = 0.636 gives ideal one-cycle damping
A217: Error Amp (EA)
A218: GBW | B218: 6 | C218: MHz | F218: EA gain-bandwidth product
A219: Cbw | B219: =gm/(2*Pi*GBW*1000000) -> 3.183098865e-11 | C219: F | F219: EA effective bandwidth limiting capacitance = gm/(2*Pi*GBW)
A220: RoEA | B220: 64000000 | C220: W | F220: EA output resistance
A221: AEA | B221: =gm*RoEA -> 76800 | C221: V/V | F221: EA DC gain = gm*RoEA
A222: Afb | B222: =IF(VOUT_setting=1,Vref/Vout,SQRT((1+(Fcross*zterm1)^2)/((1+Afbr-pterm4*(Fcross)^2)^2+(Fcross*pterm3)^2))) -> 0.04210526316 | C222: V/V | F222: Feedback gain from Vout to FB
A223: Acs | B223: =1/Ri -> 33.33333333 | F223: Acs = 1/Ri
A224: Am_buck | B224: =(Ro/Number_of_Phases)/Ri/((1+Ro/Number_of_Phases*(k-0.5)/(Fsw*Lf))) -> 39.33130365
A225: Am | B225: =(Ro*Number_of_Phases)/Ri/((1+Ro*Number_of_Phases*(k-0.5)/(Fsw*Lf))) -> 39.33130365 | F225: Buck modulator gain
A227: Scaling factor to calculate Rcomp - buck | B227: =2*Pi*Ri/gm -> 157.0796325 | F227: 2*Pi*Ri/gm -- scaling factor to calculate Rcomp given desired buck crossover frequency
A228: DC Gain is Adc = AEA*Afb*Am
A230: Ro | B230: =Rout -> 1.461538462 | C230: W | F230: Output Resistance
A232: Fp_load_buck | B232: =1/(2*Pi*Ro*Cout)+(k-0.5)/(2*Pi*Fsw*Lf*Cout/Number_of_Phases) -> 2248.067181 | C232: Hz | F232: Buck dominant pole frequency -- note slope comp influence
A233: Fp_dominant | B233: =Fload_u -> 2248.067181 | C233: Hz
B234: =Cbw -> 3.183098865e-11
A235: Fp_EA | B235: =1/(2*Pi*(RoEA+Rcea1_u)*Cc1ea_u) -> 3.031285538 | C235: Hz | F235: Error Amp LF pole -- related to amplifier ouptut resistance and comp cap
A236: Fp_HF | B236: =1/(2*Pi*Rcea1_u*(Cc2ea_u+Cbw)) -> 108635.8828 | C236: Hz | F236: Error Amp HF pole cancels zero related to Output Cap ESR
A237: Fesr | B237: =1/(2*Pi*Cout*Cout_ESR) -> 40008.78413 | C237: Hz | F237: Cout ESR zero frequency
A238: F_mod | B238: =Fsw/2 -> 212500 | C238: Hz | F238: Zero-order sample-and-hold effects of current-mode control modeled as pole at Fsw/2
D239: Internal Comp Crossover
A240: Desired Crossover Frequency | B240: =CHOOSE(COMP_TYPE,Fcross_Ch2,'Design Regulator'!E63*1000) -> 65000 | C240: Hz | D240: =Fsw/50 -> 8500
A241: Rcea1 | B241: =Fcross*Cout/Number_of_Phases*2*Pi*Ri/(gm*Afb) -> 14549.50096 | C241: W | F241: This component will largely determine the crossover frequency | K241: =Fcross/Fp_dominant/(gm*Afb*Am) -> 14549.50096
A242: Cc1ea, Cc3ea | B242: =10/(Rcea1*Fcross*2*Pi) -> 1.682901424e-09 | C242: F | F242: This along with Rcea1 will set a zero at Fcrossover/5 to optimize phase margin
A243: Cc2ea, Cc4ea | B243: =MAX(1/(Rcea1*2*Pi*Fesr)-Cbw, 1/(Rcea1*2*Pi*(Fsw/2))-Cbw) -> 2.415804507e-10 | C243: F | F243: This along with Rcea1 places a pole at the output cap ESR zero
A245: =CHOOSE(COMP_TYPE,"Internal Compensation","External Compensation") -> External Compensation
A246: Chosen Compensation Components from the standard value sheet | D246: Internal Values
A247: Rcea1_u | B247: =CHOOSE(COMP_TYPE,D247,'Design Regulator'!D71*1000) -> 29400 | C247: W | D247: 400000 | G247: =1/(Rcea1*2*Pi*(Fsw/2))-Cbw -> 1.964599609e-11
A248: Cc1ea_u | B248: =CHOOSE(COMP_TYPE,Cc3ea_u,'Design Regulator'!D72*0.000000001) -> 8.2e-10 | C248: F | D248: =50*0.000000000001 -> 5e-11
A249: Cc2ea_u | B249: =CHOOSE(COMP_TYPE,Cc4ea_u,'Design Regulator'!D73*0.000000000001) -> 1.8e-11 | C249: F | D249: =0.000000000001 -> 1e-12
A251: Resulting Pole/Zero Locations | F251: =Cout -> 6e-05 | G251: =Cout_ESR -> 0.0663
A252: Fz1 | B252: =1/(2*Pi*Rcea1_u*Cc1ea_u) -> 6601.748103 | C252: Hz | F252: This zero is set at or close to the dominant load pole
... 155 more rows

Sheet Schematic Management (hidden)
N1: 3.3V or 5V fixed (FB1/2)
A2: =IF(MODE=1, CHOOSE(SCH_SETTING, "SCH_SetVout_IntComp_nAEF","SCH_SetVout_IntComp_AEF","SCH_SetVout_ExtComp_nAEF","SCH_SetVout_ExtComp_AEF","SCH_AdjVout_IntComp_nAEF","SCH_AdjVout_IntComp_AEF","SCH_AdjVout_ExtComp_nAEF","SCH_AdjVout_ExtComp_AEF")) -> SCH_AdjVout_ExtComp_nAEF | N2: With/without VOUT connected to VCCX

Sheet Stability Calculations (hidden)
A2: Divider Network & EA Poles/Zeros | E2: Modulator | J2: Power Stage Poles/Zeros | M2: Complex Pole Pair | P2: Feedback natural frequencies | T2: Total System
B3: Afb1 | C3: =Afb -> 0.04210526316 | D3: V/V | E3: Acs | F3: =Acs -> 33.33333333 | G3: A/V | H3: gm | I3: =gm -> 0.0012 | J3: z_ESR | K3: =Fesr -> 40008.78413 | L3: Hz | M3: p3 | N3: =Fsw/2 -> 212500 | O3: Hz | P3: zterm1 | Q3: =((1/wffHz)+(1/wfftHz)) -> 7.079202046e-07 | T3: Adc | U3: =IF(VOUT_setting=1,Am*Afb*AEA,Am*AEA) -> 127185.0156 | V3: V/V
B4: EA zero, z1 | C4: =Fz1_u -> 6601.748103 | D4: Hz | E4: Am | F4: =Am -> 39.33130365 | G4: V/V | J4: p_dom | K4: =Fp_dominant -> 2248.067181 | L4: Hz | M4: pterm1 | N4: =Q*pole3 -> 207376.9428 | P4: pterm3 | Q4: =((1/wfbtHz)+(1/wffHz)+(1/wfftHz)+(Afbr/wffHz)) -> 5.717330686e-06 | T4: Crossover | U4: =AI7 -> 251.19 | V4: kHz
B5: EA pole, p1 | C5: =Fp1_u -> 3.031285538 | D5: Hz | E5: Q | F5: =Q -> 0.9758914956 | M5: pterm2 | N5: =pole3^2 -> 45156250000 | P5: pterm4 | Q5: =1/(wffHz*wfbtHz) -> 1.829617785e-13 | T5: Phase Margin | U5: =AI9 -> -4.813377516 | V5: °
B6: Aea | C6: =AEA -> 76800 | D6: V/V | E6: mc | F6: =mc -> 4.026515152 | P6: Afbr | Q6: =Rfb1_/Rfb2_u -> 22.5984252 | T6: radconv | U6: =180/Pi -> 57.29577958 | AH6: XOVER SEARCH
B7: EA pole, p2 | C7: =Fp2_u -> 108635.8828 | D7: Hz | E7: k | F7: =k -> 0.8261734404 | AH7: xover | AI7: =SUM(AH12:AH613)/1000 -> 251.19
AH9: phase margin | AI9: =SUM(AI13:AI613) -> -4.813377516
A10: Freq (Hz) | C10: Power Stage | I10: Error Amplifier | O10: Feedback Gain | S10: Sampling Double Pole | U10: System Response | AB10: ERROR AMP Response | AE10: PLANT Response
C11: p_dom | E11: z_ESR | G11: z_RHP | I11: p1 | K11: z1 | M11: p2 | O11: z1 | Q11: p1p2 | S11: p3
C12: Gain(V/V) | D12: Phase(rad) | E12: Gain(V/V) | F12: Phase(rad) | G12: Gain(V/V) | H12: Phase(rad) | I12: Gain(V/V) | J12: Phase(rad) | K12: Gain(V/V) | L12: Phase(rad) | M12: Gain(V/V) | N12: Phase(rad) | O12: Gain(V/V) | P12: Phase(rad) | Q12: Gain(V/V) | R12: Phase(rad) | S12: Gain(V/V) | T12: Phase(rad) | U12: Gain (dB) | V12: Phase (°) | W12: Phase Margin (°) | Z12: Fsquare | AB12: Gain(dB) | AC12: Phase(Deg) | AE12: Gain(dB) | AF12: Phase(Deg)
A13: 1 | B13: =A13/1000 -> 0.001 | C13: =SQRT(1+(A13/pole1)^2) -> 1.000000099 | D13: =ATAN(A13/pole1) -> 0.0004448265347 | E13: =SQRT(1+(A13/Zero1)^2) -> 1 | F13: =ATAN(A13/Zero1) -> 2.499451112e-05 | G13: =IF(VIN_nom>Vout, 1, SQRT(1+(A13/z_RHP)^2)) -> 1 | H13: =IF(VIN_nom>Vout, 0, -ATAN(A13/z_RHP)) -> 0 | I13: =SQRT(1+(A13/Pole2)^2) -> 1.053009695 | J13: =ATAN(A13/Pole2) -> 0.318651101 | K13: =SQRT(1+(A13/Zero2)^2) -> 1.000000011 | L13: =ATAN(A13/Zero2) -> 0.0001514750301 | M13: =SQRT(1+(A13/pole4)^2) -> 1 | N13: =ATAN(A13/pole4) -> 9.205061661e-06 | O13: =IF(VOUT_setting=1,1,SQRT(1+(A13*zterm1)^2)) -> 1 | P13: =IF(VOUT_setting=1,0,ATAN(((A13*zterm1)))) -> 0 | Q13: =IF(VOUT_setting=1,1,SQRT((1+Afbr-pterm4*(A13)^2)^2+(A13*$Q$4)^2)) -> 1 | R13: =IF(VOUT_setting=1,0,ATAN(A13*$Q$4/(1+Afbr-$Q$5*(A13)^2))) -> 0 | S13: =SQRT((1-(Z13/pterm2))^2+(A13/pterm1)^2) -> 1 | T13: =IF((ATAN((A13/pterm1)/(1-A13^2/pterm2))>0),ATAN((A13/pterm1)/(1-A13^2/pterm2)),PI()+ATAN((A13/pterm1)/(1-A13^2/pterm2))) -> 4.822136861e-06 | U13: =20*LOG10(((E13*K13*G13*O13)/(C13*I13*S13*M13*Q13))*Adc) -> 101.6400708 | V13: =((F13+L13+H13+P13)-(D13+J13+T13+N13+R13))*radconv -> -18.27354267 | W13: =IF(V13>0,V13,V13+180) -> 161.7264573 | Y13: =IF(U13<0,A13,1000000000) -> 1000000000 | Z13: =A13^2 -> 1 | AB13: =20*LOG10((K13/(I13*M13))*AEA) -> 97.25857711 | AC13: =(L13-(J13+N13))*radconv -> -18.24921178 | AE13: =20*LOG10((E13*G13/(C13*S13))*Acs*Am) -> 62.35234088 | AF13: =(F13+H13-(D13+T13))*radconv -> -0.02433089117 | AH13: =SUM((U14<0)*(U13>0))*A13 -> 0 | AI13: =IF(AH13>0,W11,0) -> 0
A14: 1.0965 | B14: =A14/1000 -> 0.0010965 | C14: 1.000000119 | D14: 0.0004877522888 | E14: 1 | F14: 2.740648144e-05 | G14: 1 | H14: 0 | I14: 1.063412875 | J14: 0.347084233 | K14: 1.000000014 | L14: 0.0001660923702 | M14: 1 | N14: 1.009335011e-05 | O14: 1 | P14: 0 | Q14: =IF(VOUT_setting=1,1,SQRT((1+Afbr-pterm4*(A14)^2)^2+(A14*$Q$4)^2)) -> 1 | R14: 0 | S14: 1 | T14: 5.287473068e-06 | U14: 101.5546798 | V14: -19.90420244 | W14: 160.0957976 | Y14: 1000000000 | Z14: 1.20231225 | AB14: 97.17318624 | AC14: -19.87752362 | AE14: 62.3523407 | AF14: -0.0266788218 | AH14: 0 | AI14: 0
A15: 1.2023 | B15: 0.0012023 | C15: 1.000000143 | D15: 0.0005348149269 | E15: 1 | F15: 3.005090071e-05 | G15: 1 | H15: 0 | I15: 1.075786073 | J15: 0.3775981799 | K15: 1.000000017 | L15: 0.000182118428 | M15: 1 | N15: 1.106724563e-05 | O15: 1 | P15: 0 | Q15: =IF(VOUT_setting=1,1,SQRT((1+Afbr-$Q$5*(A15)^2)^2+(A15*$Q$4)^2)) -> 1 | R15: 0 | S15: 1 | T15: 5.797655148e-06 | U15: 101.4541995 | V15: -21.6542346 | W15: 158.3457654 | Y15: 1000000000 | Z15: 1.44552529 | AB15: 97.07270619 | AC15: -21.62498157 | AE15: 62.3523405 | AF15: -0.02925302956 | AH15: 0 | AI15: 0
A16: 1.3183 | B16: 0.0013183 | C16: 1.000000172 | D16: 0.0005864147921 | E16: 1.000000001 | F16: 3.2950264e-05 | G16: 1 | H16: 0 | I16: 1.090475247 | J16: 0.4102243776 | K16: 1.00000002 | L16: 0.000199689531 | M16: 1 | N16: 1.213503279e-05 | O16: 1 | P16: 0 | Q16: 1 | R16: 0 | S16: 1 | T16: 6.357023024e-06 | U16: 101.3364014 | V16: -23.52545485 | W16: 156.4745452 | Y16: 1000000000 | Z16: 1.73791489 | AB16: 96.95490833 | AC16: -23.49337943 | AE16: 62.35234025 | AF16: -0.0320754122 | AH16: 0 | AI16: 0
A17: 1.4454 | B17: 0.0014454 | C17: 1.000000207 | D17: 0.0006429522271 | E17: 1.000000001 | F17: 3.612706636e-05 | G17: 1 | H17: 0 | I17: 1.107864779 | J17: 0.444938274 | K17: 1.000000024 | L17: 0.0002189420066 | M17: 1 | N17: 1.330499612e-05 | O17: 1 | P17: 0 | Q17: 1 | R17: 0 | S17: 1 | T17: 6.969916619e-06 | U17: 101.1989823 | V17: -25.51647101 | W17: 154.483529 | Y17: 1000000000 | Z17: 2.08918116 | AB17: 96.8174895 | AC17: -25.48130314 | AE17: 62.35233995 | AF17: -0.03516786746 | AH17: 0 | AI17: 0
A18: 1.5849 | B18: 0.0015849 | C18: 1.000000249 | D18: 0.0007050055045 | E18: 1.000000001 | F18: 3.961380066e-05 | G18: 1 | H18: 0 | I18: 1.128436744 | J18: 0.4817580819 | K18: 1.000000029 | L18: 0.0002400727724 | M18: 1 | N18: 1.458910223e-05 | O18: 1 | P18: 0 | Q18: 1 | R18: 0 | S18: 1 | T18: 7.642604711e-06 | U18: 101.0391727 | V18: -27.62834763 | W18: 152.3716524 | Y18: 1000000000 | Z18: 2.51190801 | AB18: 96.65768027 | AC18: -27.58978561 | AE18: 62.35233958 | AF18: -0.03856202539 | AH18: 0 | AI18: 0
A19: 1.7378 | B19: 0.0017378 | C19: 1.000000299 | D19: 0.000773019449 | E19: 1.000000001 | F19: 4.34354614e-05 | G19: 1 | H19: 0 | I19: 1.152674834 | J19: 0.520546808 | K19: 1.000000035 | L19: 0.0002632333032 | M19: 1 | N19: 1.599655615e-05 | O19: 1 | P19: 0 | Q19: 1 | R19: 0 | S19: 1 | T19: 8.379909437e-06 | U19: 100.8545804 | V19: -29.85325177 | W19: 150.1467482 | Y19: 1000000000 | Z19: 3.01994884 | AB19: 96.47308847 | AC19: -29.81096955 | AE19: 62.35233915 | AF19: -0.04228221678 | AH19: 0 | AI19: 0
A20: 1.9055 | B20: 0.0019055 | C20: 1.000000359 | D20: 0.0008476168148 | E20: 1.000000001 | F20: 4.762704091e-05 | G20: 1 | H20: 0 | I20: 1.181165536 | J20: 0.5611919103 | K20: 1.000000042 | L20: 0.000288635664 | M20: 1 | N20: 1.754024499e-05 | O20: 1 | P20: 0 | Q20: 1 | R20: 0 | S20: 1 | T20: 9.188581789e-06 | U20: 100.6425009 | V20: -32.18475787 | W20: 147.8152421 | Y20: 1000000000 | Z20: 3.63093025 | AB20: 96.26100943 | AC20: -32.13839537 | AE20: 62.35233862 | AF20: -0.0463625047 | AH20: 0 | AI20: 0
A21: 2.0893 | B21: 0.0020893 | C21: 1.000000432 | D21: 0.0009293758726 | E21: 1.000000001 | F21: 5.222103204e-05 | G21: 1 | H21: 0 | I21: 1.214520233 | J21: 0.6034716724 | K21: 1.00000005 | L21: 0.0003164767721 | M21: 1 | N21: 1.923213533e-05 | O21: 1 | P21: 0 | Q21: 1 | R21: 0 | S21: 1 | T21: 1.007489054e-05 | U21: 100.4006206 | V21: -34.61018358 | W21: 145.3898164 | Y21: 1000000000 | Z21: 4.36517449 | AB21: 96.01912975 | AC21: -34.55934906 | AE21: 62.352338 | AF21: -0.05083451911 | AH21: 0 | AI21: 0
A22: 2.2909 | B22: 0.0022909 | C22: 1.000000519 | D22: 0.001019052823 | E22: 1.000000002 | F22: 5.725992547e-05 | G22: 1 | H22: 0 | I22: 1.253459625 | J22: 0.6471722137 | K22: 1.00000006 | L22: 0.0003470141351 | M22: 1 | N22: 2.108787576e-05 | O22: 1 | P22: 0 | Q22: 1 | R22: 0 | S22: 0.9999999999 | T22: 1.104703334e-05 | U22: 100.126508 | V22: -37.11730193 | W22: 142.8826981 | Y22: 1000000000 | Z22: 5.24822281 | AB22: 95.74501793 | AC22: -37.06156231 | AE22: 62.35233724 | AF22: -0.05573962223 | AH22: 0 | AI22: 0
A23: 2.5119 | B23: 0.0025119 | C23: 1.000000624 | D23: 0.001117359381 | E23: 1.000000002 | F23: 6.278371241e-05 | G23: 1 | H23: 0 | I23: 1.298720378 | J23: 0.6919729045 | K23: 1.000000072 | L23: 0.0003804901125 | M23: 1 | N23: 2.312219438e-05 | O23: 1 | P23: 0 | Q23: 1 | R23: 0 | S23: 0.9999999999 | T23: 1.211272558e-05 | U23: 99.81840107 | V23: -39.68776808 | W23: 140.3122319 | Y23: 1000000000 | Z23: 6.30964161 | AB23: 95.43691192 | AC23: -39.62665134 | AE23: 62.35233633 | AF23: -0.06111674312 | AH23: 0 | AI23: 0
A24: 2.7542 | B24: 0.0027542 | C24: 1.00000075 | D24: 0.00122514071 | E24: 1.000000002 | F24: 6.883988243e-05 | G24: 1 | H24: 0 | I24: 1.351124846 | J24: 0.7375415105 | K24: 1.000000087 | L24: 0.0004171925068 | M24: 1 | N24: 2.535258082e-05 | O24: 1 | P24: 0 | Q24: 1 | R24: 0 | S24: 0.9999999999 | T24: 1.328112934e-05 | U24: 99.4748036 | V24: -42.30257715 | W24: 137.6974228 | Y24: 1000000000 | Z24: 7.58561764 | AB24: 95.09331555 | AC24: -42.23556504 | AE24: 62.35233524 | AF24: -0.06701210998 | AH24: 0 | AI24: 0
A25: 3.02 | B25: 0.00302 | C25: 1.000000902 | D25: 0.001343375415 | E25: 1.000000003 | F25: 7.548342345e-05 | G25: 1 | H25: 0 | I25: 1.411583444 | J25: 0.7835331836 | K25: 1.000000105 | L25: 0.0004574545624 | M25: 1 | N25: 2.779928621e-05 | O25: 1 | P25: 0 | Q25: 1 | R25: 0 | S25: 0.9999999999 | T25: 1.456285332e-05 | U25: 99.09458092 | V25: -44.9420064 | W25: 135.0579936 | Y25: 1000000000 | Z25: 9.1204 | AB25: 94.71309418 | AC25: -44.86852715 | AE25: 62.35233392 | AF25: -0.07347925013 | AH25: 0 | AI25: 0
A26: 3.3113 | B26: 0.0033113 | C26: 1.000001085 | D26: 0.001472953136 | E26: 1.000000003 | F26: 8.276432449e-05 | G26: 1 | H26: 0 | I26: 1.480973582 | J26: 0.8295178287 | K26: 1.000000126 | L26: 0.0005015792288 | M26: 1 | N26: 3.048072067e-05 | O26: 1 | P26: 0 | Q26: 1 | R26: 0 | S26: 0.9999999999 | T26: 1.596754179e-05 | U26: 98.67776441 | V26: -47.58144554 | W26: 132.4185545 | Y26: 1000000000 | Z26: 10.96470769 | AB26: 94.29627926 | AC26: -47.50087872 | AE26: 62.35233234 | AF26: -0.08056682448 | AH26: 0 | AI26: 0
A27: 3.6308 | B27: 0.0036308 | C27: 1.000001304 | D27: 0.001615074884 | E27: 1.000000004 | F27: 9.075007074e-05 | G27: 1 | H27: 0 | I27: 1.56034179 | J27: 0.8751454329 | K27: 1.000000151 | L27: 0.0005499754879 | M27: 1.000000001 | N27: 3.342173787e-05 | O27: 1 | P27: 0 | Q27: 1 | R27: 0 | S27: 0.9999999999 | T27: 1.750821452e-05 | U27: 98.22431416 | V27: -50.200884 | W27: 129.799116 | Y27: 1000000000 | Z27: 13.18270864 | AB27: 93.8428309 | AC27: -50.11254347 | AE27: 62.35233044 | AF27: -0.08834052533 | AH27: 0 | AI27: 0
A28: 3.9811 | B28: 0.0039811 | C28: 1.000001568 | D28: 0.001770897183 | E28: 1.000000005 | F28: 9.95056479e-05 | G28: 1 | H28: 0 | I28: 1.650713345 | J28: 0.9200269677 | K28: 1.000000182 | L28: 0.0006030371737 | M28: 1.000000001 | N28: 3.664627096e-05 | O28: 1 | P28: 0 | Q28: 1 | R28: 0 | S28: 0.9999999998 | T28: 1.919740906e-05 | U28: 97.7352737 | V28: -52.77807415 | W28: 127.2219258 | Y28: 1000000000 | Z28: 15.84915721 | AB28: 93.35379273 | AC28: -52.68121054 | AE28: 62.35232816 | AF28: -0.09686361149 | AH28: 0 | AI28: 0
A29: 4.3652 | B29: 0.0043652 | C29: 1.000001885 | D29: 0.001941754477 | E29: 1.000000006 | F29: 0.0001091060395 | G29: 1 | H29: 0 | I29: 1.753208887 | J29: 0.9638246359 | K29: 1.000000219 | L29: 0.0006612187099 | M29: 1.000000001 | N29: 4.018193514e-05 | O29: 1 | P29: 0 | Q29: 1 | R29: 0 | S29: 0.9999999998 | T29: 2.104959183e-05 | U29: 97.21203125 | V29: -55.29371018 | W29: 124.7062898 | Y29: 1000000000 | Z29: 19.05497104 | AB29: 92.83055303 | AC29: -55.18750111 | AE29: 62.35232541 | AF29: -0.1062090737 | AH29: 0 | AI29: 0
A30: 4.7863 | B30: 0.0047863 | C30: 1.000002266 | D30: 0.002129070166 | E30: 1.000000007 | F30: 0.000119631228 | G30: 1 | H30: 0 | I30: 1.868993569 | J30: 1.006232569 | K30: 1.000000263 | L30: 0.0007250048149 | M30: 1.000000001 | N30: 4.40581866e-05 | O30: 1 | P30: 0 | Q30: 1 | R30: 0 | S30: 0.9999999998 | T30: 2.308019366e-05 | U30: 96.65654546 | V30: -57.73031888 | W30: 122.2696811 | Y30: 1000000000 | Z30: 22.90866769 | AB30: 92.27507053 | AC30: -57.61386411 | AE30: 62.35232211 | AF30: -0.1164547682 | AH30: 0 | AI30: 0
A31: 5.2481 | B31: 0.0052481 | C31: 1.000002725 | D31: 0.00233449005 | E31: 1.000000009 | F31: 0.0001311736931 | G31: 1 | H31: 0 | I31: 1.999359914 | J31: 1.047012705 | K31: 1.000000316 | L31: 0.0007949559438 | M31: 1.000000001 | N31: 4.830908406e-05 | O31: 1 | P31: 0 | Q31: 1 | R31: 0 | S31: 0.9999999997 | T31: 2.530705647e-05 | U31: 96.07087848 | V31: -60.07432019 | W31: 119.9256798 | Y31: 1000000000 | Z31: 27.54255361 | AB31: 91.68940752 | AC31: -59.94662947 | AE31: 62.35231814 | AF31: -0.1276907158 | AH31: 0 | AI31: 0
A32: 5.7544 | B32: 0.0057544 | C32: 1.000003276 | D32: 0.00255970439 | E32: 1.00000001 | F32: 0.0001438284138 | G32: 1 | H32: 0 | I32: 2.14561914 | J32: 1.085957306 | K32: 1.00000038 | L32: 0.0008716476989 | M32: 1.000000001 | N32: 5.296960677e-05 | O32: 1 | P32: 0 | Q32: 1 | R32: 0 | S32: 0.9999999997 | T32: 2.774850437e-05 | U32: 95.45764118 | V32: -62.31387299 | W32: 117.686127 | Y32: 1000000000 | Z32: 33.11311936 | AB32: 91.076175 | AC32: -62.17386362 | AE32: 62.35231337 | AF32: -0.1400093696 | AH32: 0 | AI32: 0
A33: 6.3096 | B33: 0.0063096 | C33: 1.000003939 | D33: 0.002806670319 | E33: 1.000000012 | F33: 0.0001577053661 | G33: 1 | H33: 0 | I33: 2.309245249 | J33: 1.122931513 | K33: 1.000000457 | L33: 0.0009557465659 | M33: 1.000000002 | N33: 5.808025699e-05 | O33: 1 | P33: 0 | Q33: 1 | R33: 0 | S33: 0.9999999996 | T33: 3.042575475e-05 | U33: 94.81928763 | V33: -64.44132175 | W33: 115.5586782 | Y33: 1000000000 | Z33: 39.81105216 | AB33: 90.43782718 | AC33: -64.28780397 | AE33: 62.35230764 | AF33: -0.1535177794 | AH33: 0 | AI33: 0
A34: 6.9183 | B34: 0.0069183 | C34: 1.000004735 | D34: 0.003077433903 | E34: 1.000000015 | F34: 0.0001729195246 | G34: 1 | H34: 0 | I34: 2.491764194 | J34: 1.157836514 | K34: 1.000000549 | L34: 0.001047949325 | M34: 1.000000002 | N34: 6.3683378e-05 | O34: 1 | P34: 0 | Q34: 1 | R34: 0 | S34: 0.9999999995 | T34: 3.336098947e-05 | U34: 94.15854389 | V34: -66.45107924 | W34: 113.5489208 | Y34: 1000000000 | Z34: 47.86287489 | AB34: 89.77709034 | AC34: -66.28275138 | AE34: 62.35230074 | AF34: -0.1683278595 | AH34: 0 | AI34: 0
A35: 7.5858 | B35: 0.0075858 | C35: 1.000005693 | D35: 0.003374352542 | E35: 1.000000018 | F35: 0.0001896033602 | G35: 1 | H35: 0 | I35: 2.694906188 | J35: 1.190634841 | K35: 1.00000066 | L35: 0.001149058786 | M35: 1.000000002 | N35: 6.982775663e-05 | O35: 1 | P35: 0 | Q35: 1 | R35: 0 | S35: 0.9999999994 | T35: 3.657976583e-05 | U35: 93.47780234 | V35: -68.34108458 | W35: 111.6589154 | Y35: 1000000000 | Z35: 57.54436164 | AB35: 89.09635708 | AC35: -68.15651602 | AE35: 62.35229245 | AF35: -0.1845685533 | AH35: 0 | AI35: 0
A36: 8.3176 | B36: 0.0083176 | C36: 1.000006845 | D36: 0.003699872546 | E36: 1.000000022 | F36: 0.0002078943427 | G36: 1 | H36: 0 | I36: 2.920460219 | J36: 1.221313667 | K36: 1.000000794 | L36: 0.001259908053 | M36: 1.000000003 | N36: 7.656402072e-05 | O36: 1 | P36: 0 | Q36: 1 | R36: 0 | S36: 0.9999999993 | T36: 4.010860559e-05 | U36: 92.77964067 | V36: -70.11069172 | W36: 109.8893083 | Y36: 1000000000 | Z36: 69.18246976 | AB36: 88.39820537 | AC36: -69.90831805 | AE36: 62.35228248 | AF36: -0.2023736673 | AH36: 0 | AI36: 0
A37: 9.1201 | B37: 0.0091201 | C37: 1.000008229 | D37: 0.004056840491 | E37: 1.000000026 | F37: 0.0002279524369 | G37: 1 | H37: 0 | I37: 3.170492078 | J37: 1.24990928 | K37: 1.000000954 | L37: 0.001381466553 | M37: 1.000000004 | N37: 8.395108266e-05 | O37: 1 | P37: 0 | Q37: 1 | R37: 0 | S37: 0.9999999991 | T37: 4.397837044e-05 | U37: 92.06612252 | V37: -71.76208337 | W37: 108.2379166 | Y37: 1000000000 | Z37: 83.17622401 | AB37: 87.68469921 | AC37: -71.54018447 | AE37: 62.35227049 | AF37: -0.221898901 | AH37: 0 | AI37: 0
A38: 10 | B38: 0.01 | C38: 1.000009893 | D38: 0.004448236301 | E38: 1.000000031 | F38: 0.000249945106 | G38: 1 | H38: 0 | I38: 3.447164307 | J38: 1.276471777 | K38: 1.000001147 | L38: 0.001514749154 | M38: 1.000000004 | N38: 9.205061635e-05 | O38: 1 | P38: 0 | Q38: 1 | R38: 0 | S38: 0.9999999989 | T38: 4.822136868e-05 | U38: 91.33940354 | V38: -73.29823818 | W38: 106.7017618 | Y38: 1000000000 | Z38: 100 | AB38: 86.95799464 | AC38: -73.05493093 | AE38: 62.35225608 | AF38: -0.2433072478 | AH38: 0 | AI38: 0
A39: 10.965 | B39: 0.010965 | C39: 1.000011895 | D39: 0.004877484596 | E39: 1.000000038 | F39: 0.0002740648076 | G39: 1 | H39: 0 | I39: 3.752958059 | J39: 1.301081606 | K39: 1.000001379 | L39: 0.00166092219 | M39: 1.000000005 | N39: 0.0001009335008 | O39: 1 | P39: 0 | Q39: 1 | R39: 0 | S39: 0.9999999987 | T39: 5.287473077e-05 | U39: 90.60115369 | V39: -74.72389019 | W39: 105.2761098 | Y39: 1000000000 | Z39: 120.231225 | AB39: 86.21976212 | AC39: -74.45710417 | AE39: 62.35223875 | AF39: -0.2667860244 | AH39: 0 | AI39: 0
A40: 12.023 | B40: 0.012023 | C40: 1.000014301 | D40: 0.00534809879 | E40: 1.000000045 | F40: 0.0003005089982 | G40: 1 | H40: 0 | I40: 4.090423882 | J40: 1.323819709 | K40: 1.000001658 | L40: 0.001821182287 | M40: 1.000000006 | N40: 0.0001106724559 | O40: 1 | P40: 0 | Q40: 1 | R40: 0 | S40: 0.9999999985 | T40: 5.79765516e-05 | U40: 89.85324318 | V40: -76.04380465 | W40: 103.9561954 | Y40: 1000000000 | Z40: 144.552529 | AB40: 85.47187244 | AC40: -75.75127724 | AE40: 62.35221792 | AF40: -0.2925274038 | AH40: 0 | AI40: 0
A41: 13.183 | B41: 0.013183 | C41: 1.000017194 | D41: 0.005864081376 | E41: 1.000000054 | F41: 0.0003295026282 | G41: 1 | H41: 0 | I41: 4.462468658 | J41: 1.344785896 | K41: 1.000001994 | L41: 0.001996892682 | M41: 1.000000007 | N41: 0.0001213503273 | O41: 1 | P41: 0 | Q41: 1 | R41: 0 | S41: 0.9999999982 | T41: 6.35702304e-05 | U41: 89.09708377 | V41: -77.26384595 | W41: 102.7361541 | Y41: 1000000000 | Z41: 173.791489 | AB41: 84.71573808 | AC41: -76.94309564 | AE41: 62.35219288 | AF41: -0.3207503099 | AH41: 0 | AI41: 0
A42: 14.454 | B42: 0.014454 | C42: 1.000020669 | D42: 0.006429434562 | E42: 1.000000065 | F42: 0.0003612706481 | G42: 1 | H42: 0 | I42: 4.872005427 | J42: 1.364072808 | K42: 1.000002397 | L42: 0.002189416603 | M42: 1.000000009 | N42: 0.0001330499605 | O42: 1 | P42: 0 | Q42: 1 | R42: 0 | S42: 0.9999999978 | T42: 6.96991664e-05 | U42: 88.33440548 | V42: -78.38946744 | W42: 101.6105326 | Y42: 1000000000 | Z42: 208.918116 | AB42: 83.95308987 | AC42: -78.03779379 | AE42: 62.35216279 | AF42: -0.3516736502 | AH42: 0 | AI42: 0
A43: 15.849 | B43: 0.015849 | C43: 1.000024851 | D43: 0.007049939413 | E43: 1.000000078 | F43: 0.0003961379861 | G43: 1 | H43: 0 | I43: 5.323246056 | J43: 1.38181821 | K43: 1.000002882 | L43: 0.002400723158 | M43: 1.000000011 | N43: 0.0001458910212 | O43: 1 | P43: 0 | Q43: 1 | R43: 0 | S43: 0.9999999974 | T43: 7.642604738e-05 | U43: 87.56499792 | V43: -79.42877285 | W43: 100.5712272 | Y43: 1000000000 | Z43: 251.190801 | AB43: 83.18371852 | AC43: -79.04315922 | AE43: 62.35212659 | AF43: -0.3856136299 | AH43: 0 | AI43: 0
A44: 17.378 | B44: 0.017378 | C44: 1.000029878 | D44: 0.00773004206 | E44: 1.000000094 | F44: 0.000434354587 | G44: 1 | H44: 0 | I44: 5.819443902 | J44: 1.398101487 | K44: 1.000003465 | L44: 0.002632327012 | M44: 1.000000013 | N44: 0.0001599655602 | O44: 1 | P44: 0 | Q44: 1 | R44: 0 | S44: 0.9999999968 | T44: 8.379909473e-05 | U44: 86.79086055 | V44: -80.38647217 | W44: 99.61352783 | Y44: 1000000000 | Z44: 301.994884 | AB44: 82.40962466 | AC44: -79.96365874 | AE44: 62.35208307 | AF44: -0.4228134358 | AH44: 0 | AI44: 0
A45: 19.055 | B45: 0.019055 | C45: 1.000035922 | D45: 0.008475967195 | E45: 1.000000113 | F45: 0.0004762703734 | G45: 1 | H45: 0 | I45: 6.365155334 | J45: 1.413037403 | K45: 1.000004166 | L45: 0.002886348704 | M45: 1.000000015 | N45: 0.0001754024481 | O45: 1 | P45: 0 | Q45: 1 | R45: 0 | S45: 0.9999999962 | T45: 9.188581836e-05 | U45: 86.01226388 | V45: -81.26936733 | W45: 98.73063267 | Y45: 1000000000 | Z45: 363.093025 | AB45: 81.63108032 | AC45: -80.8057538 | AE45: 62.35203074 | AF45: -0.4636135354 | AH45: 0 | AI45: =IF(AH45>0,W43,0) -> 0
A46: 20.893 | B46: 0.020893 | C46: 1.000043186 | D46: 0.009293493836 | E46: 1.000000136 | F46: 0.0005222102734 | G46: 1 | H46: 0 | I46: 6.964620573 | J46: 1.426715502 | K46: 1.000005008 | L46: 0.003164757261 | M46: 1.000000018 | N46: 0.0001923213509 | O46: 1 | P46: 0 | Q46: 1 | R46: 0 | S46: 0.9999999954 | T46: 0.0001007489061 | U46: 85.23043918 | V46: -82.08279889 | W46: 97.91720111 | Y46: 1000000000 | Z46: 436.517449 | AB46: 80.84931851 | AC46: -81.57446887 | AE46: 62.35196786 | AF46: -0.5083300168 | AH46: 0 | AI46: 0
A47: 22.909 | B47: 0.022909 | C47: 1.000051922 | D47: 0.01019017903 | E47: 1.000000164 | F47: 0.0005725991927 | G47: 1 | H47: 0 | I47: 7.623391841 | J47: 1.43924199 | K47: 1.000006021 | L47: 0.003470127561 | M47: 1.000000022 | N47: 0.0002108787545 | O47: 1 | P47: 0 | Q47: 1 | R47: 0 | S47: 0.9999999945 | T47: 0.0001104703342 | U47: 84.44535669 | V47: -82.83312683 | W47: 97.16687317 | Y47: 1000000000 | Z47: 524.822281 | AB47: 80.06431164 | AC47: -82.27575061 | AE47: 62.35189223 | AF47: -0.5573762181 | AH47: 0 | AI47: 0
A48: 25.119 | B48: 0.025119 | C48: 1.000062423 | D48: 0.01117313349 | E48: 1.000000197 | F48: 0.0006278370424 | G48: 1 | H48: 0 | I48: 8.346703669 | J48: 1.450700066 | K48: 1.000007239 | L48: 0.003804882948 | M48: 1.000000027 | N48: 0.0002312219397 | O48: 1 | P48: 0 | Q48: 1 | R48: 0 | S48: 0.9999999934 | T48: 0.0001211272569 | U48: 83.65794128 | V48: -83.52537657 | W48: 96.47462343 | Y48: 1000000000 | Z48: 630.964161 | AB48: 79.27698714 | AC48: -82.91423551 | AE48: 62.35180132 | AF48: -0.6111410615 | AH48: 0 | AI48: 0
A49: 27.542 | B49: 0.027542 | C49: 1.000075046 | D49: 0.01225080031 | E49: 1.000000237 | F49: 0.0006883987166 | G49: 1 | H49: 0 | I49: 9.140778685 | J49: 1.461177051 | K49: 1.000008702 | L49: 0.004171901106 | M49: 1.000000032 | N49: 0.0002535258028 | O49: 1 | P49: 0 | Q49: 1 | R49: 0 | S49: 0.999999992 | T49: 0.0001328112949 | U49: 82.86848069 | V49: -84.1648582 | W49: 95.8351418 | Y49: 1000000000 | Z49: 758.561764 | AB49: 78.48763583 | AC49: -83.49477186 | AE49: 62.35169205 | AF49: -0.67008634 | AH49: 0 | AI49: 0
A50: 30.2 | B50: 0.0302 | C50: 1.000090229 | D50: 0.01343295421 | E50: 1.000000285 | F50: 0.0007548340926 | G50: 1 | H50: 0 | I50: 10.01283087 | J50: 1.470757695 | K50: 1.000010463 | L50: 0.004574514033 | M50: 1.000000039 | N50: 0.000277992855 | O50: 1 | P50: 0 | Q50: 1 | R50: 0 | S50: 0.9999999904 | T50: 0.0001456285351 | U50: 82.07689076 | V50: -84.75678283 | W50: 95.24321717 | Y50: 1000000000 | Z50: 912.04 | AB50: 77.69617734 | AC50: -84.02203615 | AE50: 62.35156061 | AF50: -0.7347466761 | AH50: 0 | AI50: 0
A51: 33.113 | B51: 0.033113 | C51: 1.000108474 | D51: 0.01472847692 | E51: 1.000000342 | F51: 0.0008276430579 | G51: 1 | H51: 0 | I51: 10.96942456 | J51: 1.479507098 | K51: 1.000012579 | L51: 0.005015750646 | M51: 1.000000046 | N51: 0.0003048071973 | O51: 1 | P51: 0 | Q51: 1 | R51: 0 | S51: 0.9999999885 | T51: 0.0001596754204 | U51: 81.28421183 | V51: -85.30520325 | W51: 94.69479675 | Y51: 1000000000 | Z51: 1096.470769 | AB51: 76.90365634 | AC51: -84.49959541 | AE51: 62.35140267 | AF51: -0.8056078404 | AH51: 0 | AI51: 0
A52: 36.308 | B52: 0.036308 | C52: 1.000130415 | D52: 0.01614935881 | E52: 1.000000412 | F52: 0.0009075004607 | G52: 1 | H52: 0 | I52: 12.01942804 | J52: 1.487501408 | K52: 1.000015124 | L52: 0.005499699983 | M52: 1.000000056 | N52: 0.0003342173663 | O52: 1 | P52: 0 | Q52: 1 | R52: 0 | S52: 0.9999999861 | T52: 0.0001750821485 | U52: 80.49004479 | V52: -85.81491809 | W52: 94.18508191 | Y52: 1000000000 | Z52: 1318.270864 | AB52: 76.10967924 | AC52: -84.93159247 | AE52: 62.35121273 | AF52: -0.8833256247 | AH52: 0 | AI52: 0
A53: 39.811 | B53: 0.039811 | C53: 1.000156792 | D53: 0.01770713946 | E53: 1.000000495 | F53: 0.0009950561539 | G53: 1 | H53: 0 | I53: 13.17138773 | J53: 1.494801055 | K53: 1.000018183 | L53: 0.00603029937 | M53: 1.000000067 | N53: 0.0003664626934 | O53: 1 | P53: 0 | Q53: 1 | R53: 0 | S53: 0.9999999833 | T53: 0.0001919740949 | U53: 79.69488828 | V53: -86.28980895 | W53: 93.71019105 | Y53: 1000000000 | Z53: 1584.915721 | AB53: 75.31475106 | AC53: -85.3212778 | AE53: 62.35098441 | AF53: -0.9685311468 | AH53: 0 | AI53: 0
A54: 43.652 | B54: 0.043652 | C54: 1.000188503 | D54: 0.01941512931 | E54: 1.000000595 | F54: 0.001091059967 | G54: 1 | H54: 0 | I54: 14.43517024 | J54: 1.501465549 | K54: 1.00002186 | L54: 0.006612091701 | M54: 1.000000081 | N54: 0.00040181933 | O54: 1 | P54: 0 | Q54: 1 | R54: 0 | S54: 0.99999998 | T54: 0.000210495924 | U54: 78.8988381 | V54: -86.73376913 | W54: 93.26623087 | Y54: 1000000000 | Z54: 1905.497104 | AB54: 74.51897537 | AC54: -85.67181676 | AE54: 62.35070991 | AF54: -1.061952366 | AH54: 0 | AI54: 0
A55: 47.863 | B55: 0.047863 | C55: 1.000226622 | D55: 0.02128751771 | E55: 1.000000716 | F55: 0.001196311715 | G55: 1 | H55: 0 | I55: 15.82130514 | J55: 1.507548256 | K55: 1.000026281 | L55: 0.007249922394 | M55: 1.000000097 | N55: 0.0004405818378 | O55: 1 | P55: 0 | Q55: 1 | R55: 0 | S55: 0.9999999759 | T55: 0.0002308019442 | U55: 78.10213848 | V55: -87.15037138 | W55: 92.84962862 | Y55: 1000000000 | Z55: 2290.866769 | AB55: 73.7226057 | AC55: -85.98600609 | AE55: 62.35037997 | AF55: -1.164365288 | AH55: 0 | AI55: 0
A56: 52.481 | B56: 0.052481 | C56: 1.000272456 | D56: 0.0233407034 | E56: 1.00000086 | F56: 0.001311736186 | G56: 1 | H56: 0 | I56: 17.3419724 | J56: 1.513100755 | K56: 1.000031597 | L56: 0.007949393661 | M56: 1.000000117 | N56: 0.0004830908034 | O56: 1 | P56: 0 | Q56: 1 | R56: 0 | S56: 0.999999971 | T56: 0.0002530705746 | U56: 77.30466409 | V56: -87.54316643 | W56: 92.45683357 | Y56: 1000000000 | Z56: 2754.255361 | AB56: 72.92552802 | AC56: -86.2664997 | AE56: 62.34998326 | AF56: -1.276666726 | AH56: 0 | AI56: 0
A57: 57.544 | B57: 0.057544 | C57: 1.000327552 | D57: 0.02559151149 | E57: 1.000001034 | F57: 0.001438283156 | G57: 1 | H57: 0 | I57: 19.00968567 | J57: 1.518167272 | K57: 1.000037988 | L57: 0.008716258455 | M57: 1.00000014 | N57: 0.0005296960187 | O57: 1 | P57: 0 | Q57: 1 | R57: 0 | S57: 0.9999999652 | T57: 0.0002774850567 | U57: 76.50671364 | V57: -87.91529868 | W57: 92.08470132 | Y57: 1000000000 | Z57: 3311.311936 | AB57: 72.12805442 | AC57: -86.51552191 | AE57: 62.34950641 | AF57: -1.399776769 | AH57: 0 | AI57: 0
A58: 63.096 | B58: 0.063096 | C58: 1.000393794 | D58: 0.02805941055 | E58: 1.000001244 | F58: 0.001577052366 | G58: 1 | H58: 0 | I58: 20.8389386 | J58: 1.522790802 | K58: 1.000045672 | L58: 0.009557177576 | M58: 1.000000169 | N58: 0.0005808025052 | O58: 1 | P58: 0 | Q58: 1 | R58: 0 | S58: 0.9999999581 | T58: 0.0003042575648 | U58: 75.70819366 | V58: -88.26993774 | W58: 91.73006226 | Y58: 1000000000 | Z58: 3981.105216 | AB58: 71.33010772 | AC58: -86.73517771 | AE58: 62.34893312 | AF58: -1.534760032 | AH58: 0 | AI58: 0
A59: 69.183 | B59: 0.069183 | C59: 1.000473421 | D59: 0.03076472656 | E59: 1.000001495 | F59: 0.00172919354 | G59: 1 | H59: 0 | I59: 22.84488739 | J59: 1.527008865 | K59: 1.000054908 | L59: 0.01047911349 | M59: 1.000000203 | N59: 0.0006368336948 | O59: 1 | P59: 0 | Q59: 1 | R59: 0 | S59: 0.9999999497 | T59: 0.0003336099174 | U59: 74.90931599 | V59: -88.6099702 | W59: 91.3900298 | Y59: 1000000000 | Z59: 4786.287489 | AB59: 70.53191912 | AC59: -86.92724226 | AE59: 62.34824405 | AF59: -1.68272794 | AH59: 0 | AI59: 0
A60: 75.858 | B60: 0.075858 | C60: 1.000569155 | D60: 0.03373085501 | E60: 1.000001797 | F60: 0.001896031353 | G60: 1 | H60: 0 | I60: 25.04499823 | J60: 1.530857578 | K60: 1.000066015 | L60: 0.01149008724 | M60: 1.000000244 | N60: 0.000698277454 | O60: 1 | P60: 0 | Q60: 1 | R60: 0 | S60: 0.9999999395 | T60: 0.0003657976883 | U60: 74.10994403 | V60: -88.93831289 | W60: 91.06168711 | Y60: 1000000000 | Z60: 5754.436164 | AB60: 69.73337556 | AC60: -87.09335318 | AE60: 62.34741566 | AF60: -1.844959703 | AH60: 0 | AI60: 0
A61: 83.176 | B61: 0.083176 | C61: 1.000684225 | D61: 0.03698202532 | E61: 1.000002161 | F61: 0.002078940462 | G61: 1 | H61: 0 | I61: 27.45739953 | J61: 1.534368216 | K61: 1.000079365 | L61: 0.01259842061 | M61: 1.000000293 | N61: 0.0007656400591 | O61: 1 | P61: 0 | Q61: 1 | R61: 0 | S61: 0.9999999272 | T61: 0.0004010860955 | U61: 73.31029601 | V61: -89.25763469 | W61: 90.74236531 | Y61: 1000000000 | Z61: 6918.246976 | AB61: 68.93472312 | AC61: -87.23485469 | AE61: 62.34642007 | AF61: -2.022779997 | AH61: 0 | AI61: 0
A62: 91.201 | B62: 0.091201 | C62: 1.000822568 | D62: 0.04054639329 | E62: 1.000002598 | F62: 0.002279520461 | G62: 1 | H62: 0 | I62: 30.10318922 | J62: 1.537571143 | K62: 1.000095418 | L62: 0.0138137956 | M62: 1.000000352 | N62: 0.0008395106313 | O62: 1 | P62: 0 | Q62: 1 | R62: 0 | S62: 0.9999999125 | T62: 0.0004397837565 | U62: 72.510176 | V62: -89.57069356 | W62: 90.42930644 | Y62: 1000000000 | Z62: 8317.622401 | AB62: 68.13579992 | AC62: -87.3529655 | AE62: 62.34522326 | AF62: -2.217728064 | AH62: 0 | AI62: 0
A63: 100 | B63: 0.1 | C63: 1.000988864 | D63: 0.04445335181 | E63: 1.000003124 | F63: 0.002499445907 | G63: 1 | H63: 0 | I63: 33.00445691 | J63: 1.540492751 | K63: 1.000114717 | L63: 0.01514634477 | M63: 1.000000424 | N63: 0.0009205059061 | O63: 1 | P63: 0 | Q63: 1 | R63: 0 | S63: 0.9999998948 | T63: 0.0004822137555 | U63: 71.70970294 | V63: -89.88006312 | W63: 90.11993688 | Y63: 1000000000 | Z63: 10000 | AB63: 67.33676527 | AC63: -87.44865257 | AE63: 62.34378486 | AF63: -2.431410558 | AH63: 0 | AI63: 0
A64: 109.65 | B64: 0.10965 | C64: 1.001188805 | D64: 0.04873660872 | E64: 1.000003756 | F64: 0.002740641283 | G64: 1 | H64: 0 | I64: 36.1865917 | J64: 1.543158263 | K64: 1.000137924 | L64: 0.01660771011 | M64: 1.000000509 | N64: 0.001009334668 | O64: 1 | P64: 0 | Q64: 1 | R64: 0 | S64: 0.9999998735 | T64: 0.0005287473983 | U64: 70.90867285 | V64: -90.18840443 | W64: 89.81159557 | Y64: 1000000000 | Z64: 12023.1225 | AB64: 66.53746428 | AC64: -87.52273462 | AE64: 62.34205576 | AF64: -2.665669806 | AH64: 0 | AI64: 0
A65: 120.23 | B65: 0.12023 | C65: 1.001429114 | D65: 0.0534305946 | E65: 1.000004515 | F65: 0.003005081027 | G65: 1 | H65: 0 | I65: 39.67564434 | J65: 1.545589278 | K65: 1.000165822 | L65: 0.01820982996 | M65: 1.000000612 | N65: 0.001106724112 | O65: 1 | P65: 0 | Q65: 1 | R65: 0 | S65: 0.9999998479 | T65: 0.0005797656354 | U65: 70.10731033 | V65: -90.49819404 | W65: 89.50180596 | Y65: 1000000000 | Z65: 14455.2529 | AB65: 65.7381795 | AC65: -87.5758068 | AE65: 62.33997801 | AF65: -2.922387235 | AH65: 0 | AI65: 0
A66: 131.83 | B66: 0.13183 | C66: 1.001717936 | D66: 0.05857440504 | E66: 1.000005429 | F66: 0.003295014477 | G66: 1 | H66: 0 | I66: 43.50129484 | J66: 1.54780648 | K66: 1.00019936 | L66: 0.01996629973 | M66: 1.000000736 | N66: 0.001213502683 | O66: 1 | P66: 0 | Q66: 1 | R66: 0 | S66: 0.9999998172 | T66: 0.0006357024614 | U66: 69.30554005 | V66: -90.81202164 | W66: 89.18797836 | Y66: 1000000000 | Z66: 17379.1489 | AB66: 64.93890577 | AC66: -87.60832279 | AE66: 62.33748147 | AF66: -3.203698845 | AH66: 0 | AI66: 0
A67: 144.54 | B67: 0.14454 | C67: 1.002064807 | D67: 0.06420685448 | E67: 1.000006526 | F67: 0.003612690921 | G67: 1 | H67: 0 | I67: 47.69322476 | J67: 1.549827451 | K67: 1.000239649 | L67: 0.02189070364 | M67: 1.000000885 | N67: 0.001330498827 | O67: 1 | P67: 0 | Q67: 1 | R67: 0 | S67: 0.9999997802 | T67: 0.0006969918715 | U67: 68.50380122 | V67: -91.13228361 | W67: 88.86771639 | Y67: 1000000000 | Z67: 20891.8116 | AB67: 64.14016427 | AC67: -87.62055908 | AE67: 62.33448413 | AF67: -3.511724531 | AH67: 0 | AI67: 0
A68: 158.49 | B68: 0.15849 | C68: 1.002482084 | D68: 0.07038410556 | E68: 1.000007846 | F68: 0.003961359347 | G68: 1 | H68: 0 | I68: 52.29430999 | J68: 1.551672622 | K68: 1.000288133 | L68: 0.0240026671 | M68: 1.000001064 | N68: 0.001458909188 | O68: 1 | P68: 0 | Q68: 1 | R68: 0 | S68: 0.9999997358 | T68: 0.0007642607474 | U68: 67.70066135 | V68: -91.46216228 | W68: 88.53783772 | Y68: 1000000000 | Z68: 25119.0801 | AB68: 63.34062875 | AC68: -87.61263033 | AE68: 62.33087978 | AF68: -3.849531942 | AH68: 0 | AI68: 0
A69: 173.78 | B69: 0.17378 | C69: 1.002983346 | D69: 0.07714853499 | E69: 1.000009433 | F69: 0.004343518828 | G69: 1 | H69: 0 | I69: 57.33753337 | J69: 1.55335486 | K69: 1.000346399 | L69: 0.02631725348 | M69: 1.000001279 | N69: 0.001599654251 | O69: 1 | P69: 0 | Q69: 1 | R69: 0 | S69: 0.9999996823 | T69: 0.000837991308 | U69: 66.89714623 | V69: -91.80389705 | W69: 88.19610295 | Y69: 1000000000 | Z69: 30199.4884 | AB69: 62.54144143 | AC69: -87.58446353 | AE69: 62.32655199 | AF69: -4.219433523 | AH69: 0 | AI69: 0
A70: 190.55 | B70: 0.19055 | C70: 1.003585844 | D70: 0.0845595809 | E70: 1.000011342 | F70: 0.004762668084 | G70: 1 | H70: 0 | I70: 62.86907223 | J70: 1.554889584 | K70: 1.000416466 | L70: 0.02885555574 | M70: 1.000001538 | N70: 0.001754022701 | O70: 1 | P70: 0 | Q70: 1 | R70: 0 | S70: 0.9999996181 | T70: 0.0009188586591 | U70: 66.09259248 | V70: -92.16048045 | W70: 87.83951955 | Y70: 1000000000 | Z70: 36309.3025 | AB70: 61.74208664 | AC70: -87.5358074 | AE70: 62.32135303 | AF70: -4.624673051 | AH70: 0 | AI70: 0
A71: 208.93 | B71: 0.20893 | C71: 1.004309415 | D71: 0.09267141245 | E71: 1.000013635 | F71: 0.00522205574 | G71: 1 | H71: 0 | I71: 68.93180669 | J71: 1.556288727 | K71: 1.000500662 | L71: 0.03163711877 | M71: 1.000001849 | N71: 0.001923211162 | O71: 1 | P71: 0 | Q71: 1 | R71: 0 | S71: 0.9999995408 | T71: 0.001007489687 | U71: 65.28742901 | V71: -92.53449832 | W71: 87.46550168 | Y71: 1000000000 | Z71: 43651.7449 | AB71: 60.94316272 | AC71: -87.46629435 | AE71: 62.31511348 | AF71: -5.068203974 | AH71: 0 | AI71: 0
A72: 229.09 | B72: 0.22909 | C72: 1.005178936 | D72: 0.1015547475 | E72: 1.000016393 | F72: 0.005725929975 | G72: 1 | H72: 0 | I72: 75.58181207 | J72: 1.557565244 | K72: 1.000601913 | L72: 0.03468749594 | M72: 1.000002223 | N72: 0.00210878445 | O72: 1 | P72: 0 | Q72: 1 | R72: 0 | S72: 0.9999994479 | T72: 0.001104704168 | U72: 64.48085982 | V72: -92.92917395 | W72: 87.07082605 | Y72: 1000000000 | Z72: 52482.2281 | AB72: 60.14408567 | AC72: -87.37529225 | AE72: 62.30762133 | AF72: -5.553881691 | AH72: 0 | AI72: 0
A73: 251.19 | B73: 0.25119 | C73: 1.006223102 | D73: 0.1112744319 | E73: 1.000019709 | F73: 0.006278288758 | G73: 1 | H73: 0 | I73: 82.87186624 | J73: 1.558729213 | K73: 1.000723602 | L73: 0.03803066749 | M73: 1.000002673 | N73: 0.002312215318 | O73: 1 | P73: 0 | Q73: 1 | R73: 0 | S73: 0.9999993363 | T73: 0.001211273658 | U73: 63.67312748 | V73: -93.34732557 | W73: 86.65267443 | Y73: 1000000000 | Z73: 63096.4161 | AB73: 59.34534165 | AC73: -87.26208883 | AE73: 62.29863301 | AF73: -6.085236741 | AH73: 0 | AI73: 0
A74: 275.42 | B74: 0.27542 | C74: 1.007476904 | D74: 0.1219066267 | E74: 1.000023694 | F74: 0.006883879514 | G74: 1 | H74: 0 | I74: 90.86464382 | J74: 1.559790724 | K74: 1.00086987 | L74: 0.04169507428 | M74: 1.000003214 | N74: 0.002535252651 | O74: 1 | P74: 0 | Q74: 1 | R74: 0 | S74: 0.9999992021 | T74: 0.001328114384 | U74: 62.86385553 | V74: -93.79214632 | W74: 86.20785368 | Y74: 1000000000 | Z74: 75856.1764 | AB74: 58.54685022 | AC74: -87.125733 | AE74: 62.28785249 | AF74: -6.66641332 | AH74: 0 | AI74: 0
A75: 302 | B75: 0.302 | C75: 1.008982952 | D75: 0.133538149 | E75: 1.000028488 | F75: 0.007548199002 | G75: 1 | H75: 0 | I75: 99.63271651 | J75: 1.560759295 | K75: 1.001045777 | L75: 0.04571358973 | M75: 1.000003864 | N75: 0.00277992146 | O75: 1 | P75: 0 | Q75: 1 | R75: 0 | S75: 0.9999990406 | T75: 0.001456287244 | U75: 62.05230392 | V75: -94.26713404 | W75: 85.73286596 | Y75: 1000000000 | Z75: 91204 | AB75: 57.74823016 | AC75: -86.96500252 | AE75: 62.27492095 | AF75: -7.302131518 | AH75: 0 | AI75: 0
A76: 331.13 | B76: 0.33113 | C76: 1.010789761 | D76: 0.146243838 | E76: 1.000034249 | F76: 0.008276243499 | G76: 1 | H76: 0 | I76: 109.2420593 | J76: 1.561642216 | K76: 1.001257119 | L76: 0.05011592773 | M76: 1.000004645 | N76: 0.003048062628 | O76: 1 | P76: 0 | Q76: 1 | R76: 0 | S76: 0.9999988466 | T76: 0.001596756699 | U76: 61.23888419 | V76: -94.77516644 | W76: 85.22483356 | Y76: 1000000000 | Z76: 109647.0769 | AB76: 56.95029882 | AC76: -86.77871814 | AE76: 62.25943255 | AF76: -7.996448306 | AH76: 0 | AI76: 0
A77: 363.08 | B77: 0.36308 | C77: =SQRT(1+(A77/pole1)^2) -> 1.012958397 | D77: =ATAN(A77/pole1) -> 0.1601249124 | E77: =SQRT(1+(A77/Zero1)^2) -> 1.000041177 | F77: =ATAN(A77/Zero1) -> 0.009074757985 | G77: =IF(VIN_nom>Vout, 1, SQRT(1+(A77/z_RHP)^2)) -> 1 | H77: =IF(VIN_nom>Vout, 0, -ATAN(A77/z_RHP)) -> 0 | I77: =SQRT(1+(A77/Pole2)^2) -> 119.7817391 | J77: =ATAN(A77/Pole2) -> 1.562447712 | K77: =SQRT(1+(A77/Zero2)^2) -> 1.001511224 | L77: =ATAN(A77/Zero2) -> 0.05494220381 | M77: =SQRT(1+(A77/pole4)^2) -> 1.000005585 | N77: =ATAN(A77/pole4) -> 0.003342161344 | O77: =IF(VOUT_setting=1,1,SQRT(1+(A77*zterm1)^2)) -> 1 | P77: =IF(VOUT_setting=1,0,ATAN(((A77*zterm1)))) -> 0 | Q77: 1 | R77: =IF(VOUT_setting=1,0,ATAN(A77*$Q$4/(1+Afbr-$Q$5*(A77)^2))) -> 0 | S77: =SQRT((1-(Z77/pterm2))^2+(A77/pterm1)^2) -> 0.9999986133 | T77: =IF((ATAN((A77/pterm1)/(1-A77^2/pterm2))>0),ATAN((A77/pterm1)/(1-A77^2/pterm2)),PI()+ATAN((A77/pterm1)/(1-A77^2/pterm2))) -> 0.001750824774 | U77: =20*LOG10(((E77*K77*G77*O77)/(C77*I77*S77*M77*Q77))*Adc) -> 60.42251208 | V77: =((F77+L77+H77+P77)-(D77+J77+T77+N77+R77))*radconv -> -95.32004627 | W77: =IF(V77>0,V77,V77+180) -> 84.67995373 | Y77: =IF(U77<0,A77,1000000000) -> 1000000000 | Z77: =A77^2 -> 131827.0864 | AB77: =20*LOG10((K77/(I77*M77))*AEA) -> 56.15248001 | AC77: =(L77-(J77+N77))*radconv -> -86.56519504 | AE77: =20*LOG10((E77*G77/(C77*S77))*Acs*Am) -> 62.24087925 | AF77: =(F77+H77-(D77+T77))*radconv -> -8.754851224 | AH77: =SUM((U78<0)*(U77>0))*A77 -> 0 | AI77: =IF(AH77>0,W75,0) -> 0
A78: 398.11 | B78: =A78/1000 -> 0.39811 | C78: 1.01555937 | D78: 0.1752727463 | E78: 1.000049506 | F78: 0.009950236429 | G78: 1 | H78: 0 | I78: 131.337525 | J78: 1.563182283 | K78: 1.00181662 | L78: 0.06023078481 | M78: 1.000006715 | N78: 0.003664610693 | O78: 1 | P78: 0 | Q78: 1 | R78: 0 | S78: 0.9999983329 | T78: 0.001919745285 | U78: 59.60298683 | V78: -95.90501987 | W78: 84.09498013 | Y78: 1000000000 | Z78: 158491.5721 | AB78: 55.35515416 | AC78: -86.32274449 | AE78: 62.21867986 | AF78: -9.582275388 | AH78: 0 | AI78: 0
A79: 436.52 | B79: 0.43652 | C79: 1.018677672 | D79: 0.1917890425 | E79: 1.000059519 | F79: 0.01091017109 | G79: 1 | H79: 0 | I79: 144.0083817 | J79: 1.563852231 | K79: 1.002183667 | L79: 0.06602576873 | M79: 1.000008073 | N79: 0.004018171891 | O79: 1 | P79: 0 | Q79: =IF(VOUT_setting=1,1,SQRT((1+Afbr-$Q$5*(A79)^2)^2+(A79*$Q$4)^2)) -> 1 | R79: 0 | S79: 0.9999979956 | T79: 0.002104964956 | U79: 58.77963847 | V79: -96.53356066 | W79: 83.46643934 | Y79: 1000000000 | Z79: 190549.7104 | AB79: 54.5583453 | AC79: -86.0493591 | AE79: 62.19214036 | AF79: -10.48420155 | AH79: 0 | AI79: 0
A80: 478.63 | B80: 0.47863 | C80: 1.022413583 | D80: 0.2097750998 | E80: 1.000071556 | F80: 0.0119625522 | G80: 1 | H80: 0 | I80: 157.8998721 | J80: 1.564463157 | K80: 1.002624716 | L80: 0.07237386467 | M80: 1.000009706 | N80: 0.004405790156 | O80: 1 | P80: 0 | Q80: 1 | R80: 0 | S80: 0.9999975903 | T80: 0.002308026977 | U80: 57.95187743 | V80: -97.20891672 | W80: 82.79108328 | Y80: 1000000000 | Z80: 229086.6769 | AB80: 53.76227266 | AC80: -85.74285239 | AE80: 62.16045196 | AF80: -11.46606433 | AH80: 0 | AI80: 0
A81: 524.81 | B81: 0.52481 | C81: 1.02688784 | D81: 0.2293420318 | E81: 1.000086029 | F81: 0.01311661711 | G81: 1 | H81: 0 | I81: 173.1340541 | J81: 1.565020423 | K81: 1.0031548 | L81: 0.07932878435 | M81: 1.000011669 | N81: 0.00483087083 | O81: 1 | P81: 0 | Q81: 1 | R81: 0 | S81: 0.9999971029 | T81: 0.002530715679 | U81: 57.11863888 | V81: -97.93445221 | W81: 82.06554779 | Y81: 1000000000 | Z81: 275425.5361 | AB81: 52.96683219 | AC81: -85.40064919 | AE81: 62.12265388 | AF81: -12.53380303 | AH81: 0 | AI81: 0
A82: 575.44 | B82: 0.57544 | C82: 1.03224084 | D82: 0.2505904827 | E82: 1.000103428 | F82: 0.01438184983 | G82: 1 | H82: 0 | I82: 189.8362846 | J82: 1.565528606 | K82: 1.003791662 | L82: 0.08694504218 | M82: 1.000014029 | N82: 0.005296911143 | O82: 1 | P82: 0 | Q82: 1 | R82: 0 | S82: 0.9999965169 | T82: 0.002774863661 | U82: 56.27919209 | V82: -98.71283433 | W82: 81.28716567 | Y82: 1000000000 | Z82: 331131.1936 | AB82: 52.17238972 | AC82: -85.02008859 | AE82: 62.07764955 | AF82: -13.69274574 | AH82: 0 | AI82: 0
A83: 630.96 | B83: 0.63096 | C83: 1.038640648 | D83: 0.2736278175 | E83: 1.000124347 | F83: 0.0157692295 | G83: 1 | H83: 0 | I83: 208.1517144 | J83: 1.56599212 | K83: 1.004556878 | L83: 0.09528526066 | M83: 1.000016866 | N83: 0.005807960399 | O83: 1 | P83: 0 | Q83: 1 | R83: 0 | S83: 0.9999958124 | T83: 0.003042592909 | U83: 55.43227331 | V83: -99.54660422 | W83: 80.45339578 | Y83: 1000000000 | Z83: 398110.5216 | AB83: 51.37896869 | AC83: -84.59806767 | AE83: 62.0241518 | AF83: -14.94853655 | AH83: 0 | AI83: 0
A84: 691.83 | B84: 0.69183 | C84: 1.046282272 | D84: 0.298546483 | E84: 1.000149495 | F84: 0.01729022944 | G84: 1 | H84: 0 | I84: 228.2320923 | J84: 1.566414808 | K84: 1.005476 | L84: 0.10441386 | M84: 1.000020278 | N84: 0.00636825172 | O84: 1 | P84: 0 | Q84: 1 | R84: 0 | S84: 0.9999949654 | T84: 0.003336121929 | U84: 54.57680755 | V84: -100.4373 | W84: 79.56269997 | Y84: 1000000000 | Z84: 478628.7489 | AB84: 50.58694821 | AC84: -84.13135801 | AE84: 61.96070653 | AF84: -16.30594202 | AH84: 0 | AI84: 0
A85: 758.58 | B85: 0.75858 | C85: 1.055397278 | D85: 0.3254388789 | E85: 1.000179731 | F85: 0.01895806469 | G85: 1 | H85: 0 | I85: 250.25226 | J85: 1.566800348 | K85: 1.006580038 | L85: 0.1144041828 | M85: 1.000024379 | N85: 0.006982662187 | O85: 1 | P85: 0 | Q85: 1 | R85: 0 | S85: 0.9999939471 | T85: 0.003658006879 | U85: 53.71120746 | V85: -101.3858932 | W85: 78.61410684 | Y85: 1000000000 | Z85: 575443.6164 | AB85: 49.79641875 | AC85: -83.61624763 | AE85: 61.8856359 | AF85: -17.76964553 | AH85: 0 | AI85: 0
A86: 831.76 | B86: 0.83176 | C86: 1.066251292 | D86: 0.3543701934 | E86: 1.000216077 | F86: 0.02078644028 | G86: 1 | H86: 0 | I86: 274.3936568 | J86: 1.56715192 | K86: 1.007905601 | L86: 0.125330503 | M86: 1.00002931 | N86: 0.007656252485 | O86: 1 | P86: 0 | Q86: 1 | R86: 0 | S86: 0.9999927229 | T86: 0.004010900497 | U86: 52.83412861 | V86: -102.3917019 | W86: 77.60829811 | Y86: 1000000000 | Z86: 691824.6976 | AB86: 49.00788564 | AC86: -83.04895303 | AE86: 61.79709015 | AF86: -19.34274886 | AH86: 0 | AI86: 0
A87: 912.01 | B87: 0.91201 | C87: 1.079157706 | D87: 0.3853987061 | E87: 1.000259778 | F87: 0.02279129701 | G87: 1 | H87: 0 | I87: 300.8674129 | J87: 1.567472597 | K87: 1.009497163 | L87: 0.1372778496 | M87: 1.000035238 | N87: 0.008394911071 | O87: 1 | P87: 0 | Q87: 1 | R87: 0 | S87: 0.999991251 | T87: 0.004397889693 | U87: 51.94364569 | V87: -103.4529707 | W87: 76.54702929 | Y87: 1000000000 | Z87: 831762.2401 | AB87: 48.22151736 | AC87: -82.425116 | AE87: 61.69297552 | AF87: -21.0278547 | AH87: 0 | AI87: 0
A88: 1000 | B88: 1 | C88: 1.094472783 | D88: 0.4185433739 | E88: 1.000312314 | F88: 0.02498930817 | G88: 1 | H88: 0 | I88: 329.8945552 | J88: 1.567765051 | K88: 1.01140728 | L88: 0.1503322078 | M88: 1.000042366 | N88: 0.009204801683 | O88: 1 | P88: 0 | Q88: 1 | R88: 0 | S88: 0.9999894814 | T88: 0.004822206273 | U88: 51.03807387 | V88: -104.5655951 | W88: 75.43440492 | Y88: 1000000000 | Z88: 1000000 | AB88: 47.43787497 | AC88: -81.74031601 | AE88: 61.57104608 | AF88: -22.82527907 | AH88: 0 | AI88: 0
A89: 1096.5 | B89: 1.0965 | C89: 1.112610594 | D89: 0.4538015511 | E89: 1.000375487 | F89: 0.02739962273 | G89: 1 | H89: 0 | I89: 361.7291001 | J89: 1.568031824 | K89: 1.0136995 | L89: 0.164589852 | M89: 1.000050937 | N89: 0.01009300738 | O89: 1 | P89: 0 | Q89: 1 | R89: 0 | S89: 0.9999873534 | T89: 0.005287564576 | U89: 50.11529908 | V89: -105.7235746 | W89: 74.27642539 | Y89: 1000000000 | Z89: 1202312.25 | AB89: 46.65729767 | AC89: -80.98958858 | AE89: 61.4288486 | AF89: -24.73398603 | AH89: 0 | AI89: 0
A90: 1202.3 | B90: 1.2023 | C90: 1.134031331 | D90: 0.491110146 | E90: 1.000451426 | F90: 0.03004185973 | G90: 1 | H90: 0 | I90: 396.6316621 | J90: 1.568275093 | K90: 1.016448288 | L90: 0.1801441247 | M90: 1.00006124 | N90: 0.01106679381 | O90: 1 | P90: 0 | Q90: 1 | R90: 0 | S90: 0.9999847952 | T90: 0.005797775783 | U90: 49.17369637 | V90: -106.9175816 | W90: 73.08241844 | Y90: 1000000000 | Z90: 1445525.29 | AB90: 45.88065067 | AC90: -80.16812658 | AE90: 61.26389289 | AF90: -26.74945499 | AH90: 0 | AI90: =IF(AH90>0,W90,0) -> 0
A91: 1318.3 | B91: 1.3183 | C91: 1.159259413 | D91: 0.5303705346 | E91: 1.000542713 | F91: 0.03293834686 | G91: 1 | H91: 0 | I91: 434.8991438 | J91: 1.568496941 | K91: 1.019743061 | L91: 0.1970970167 | M91: 1.000073627 | N91: 0.01213443718 | O91: 1 | P91: 0 | Q91: 1 | R91: 0 | S91: 0.9999817197 | T91: 0.006357182053 | U91: 48.2113824 | V91: -108.1356845 | W91: 71.8643155 | Y91: 1000000000 | Z91: 1737914.89 | AB91: 45.10862903 | AC91: -79.27067982 | AE91: 61.07360056 | AF91: -28.86500469 | AH91: 0 | AI91: 0
A92: 1445.4 | B92: 1.4454 | C92: 1.188859824 | D92: 0.5714048194 | E92: 1.00065237 | F92: 0.03611136141 | G92: 1 | H92: 0 | I92: 476.828448 | J92: 1.568699135 | K92: 1.023687259 | L92: 0.2155409341 | M92: 1.000088508 | N92: 0.01330421111 | O92: 1 | P92: 0 | Q92: 1 | R92: 0 | S92: 0.9999780251 | T92: 0.006970126223 | U92: 47.22729544 | V92: -109.361944 | W92: 70.63805605 | Y92: 1000000000 | Z92: 2089181.16 | AB92: 44.34255847 | AC92: -78.29252916 | AE92: 60.85558416 | AF92: -31.06941479 | AH92: 0 | AI92: 0
A93: 1584.9 | B93: 1.5849 | C93: 1.223532969 | D93: 0.6140775475 | E93: 1.000784319 | F93: 0.03959309881 | G93: 1 | H93: 0 | I93: 522.8484347 | J93: 1.568883725 | K93: 1.028413797 | L93: 0.2356137929 | M93: 1.000106415 | N93: 0.0145880673 | O93: 1 | P93: 0 | Q93: 1 | R93: 0 | S93: 0.9999735789 | T93: 0.00764288105 | U93: 46.21836214 | V93: -110.580014 | W93: 69.41998596 | Y93: 1000000000 | Z93: 2511908.01 | AB93: 43.58214178 | AC93: -77.22657486 | AE93: 60.60706754 | AF93: -33.35343917 | AH93: 0 | AI93: 0
A94: 1737.8 | B94: 1.7378 | C94: 1.263945927 | D94: 0.6580716166 | E94: 1.000942875 | F94: 0.04340817663 | G94: 1 | H94: 0 | I94: 573.2889963 | J94: 1.569052005 | K94: 1.034065653 | L94: 0.2573942438 | M94: 1.000127937 | N94: 0.01599519191 | O94: 1 | P94: 0 | Q94: 1 | R94: 0 | S94: 0.9999682354 | T94: 0.008380273719 | U94: 45.18498978 | V94: -111.7666862 | W94: 68.23331376 | Y94: 1000000000 | Z94: 3019948.84 | AB94: 42.82960337 | AC94: -76.06891096 | AE94: 60.3262336 | AF94: -35.69777529 | AH94: 0 | AI94: 0
A95: 1905.5 | B95: 1.9055 | C95: 1.310898398 | D95: 0.7031089924 | E95: 1.001133525 | F95: 0.04759107852 | G95: 1 | H95: 0 | I95: 628.6119823 | J95: 1.56920552 | K95: 1.040822055 | L95: 0.2809984741 | M95: 1.000153818 | N95: 0.01753844651 | O95: 1 | P95: 0 | Q95: 1 | R95: 0 | S95: 0.9999618094 | T95: 0.009189062038 | U95: 44.12605081 | V95: -112.8986103 | W95: 67.10138972 | Y95: 1000000000 | Z95: 3630930.25 | AB95: 42.08576508 | AC95: -74.8137059 | AE95: 60.01113291 | AF95: -38.08490438 | AH95: 0 | AI95: 0
A96: 2089.3 | B96: 2.0893 | C96: 1.365188635 | D96: 0.7488099933 | E96: 1.00136259 | F96: 0.05217364006 | G96: 1 | H96: 0 | I96: 689.246253 | J96: 1.569345466 | K96: 1.048883956 | L96: 0.3065037318 | M96: 1.00018492 | N96: 0.01922976469 | O96: 1 | P96: 0 | Q96: 1 | R96: 0 | S96: 0.9999540871 | T96: 0.0100755236 | U96: 43.04254624 | V96: -113.9488939 | W96: 66.05110607 | Y96: 1000000000 | Z96: 4365174.49 | AB96: 41.35267893 | AC96: -73.45728601 | AE96: 59.6607145 | AF96: -40.49160792 | AH96: 0 | AI96: 0
A97: 2290.9 | B97: 2.2909 | C97: 1.427749759 | D97: 0.7948345716 | E97: 1.001638008 | F97: 0.057197469 | G97: 1 | H97: 0 | I97: 755.752626 | J97: 1.569473142 | K97: 1.05849838 | L97: 0.334012346 | M97: 1.000222325 | N97: 0.02108475068 | O97: 1 | P97: 0 | Q97: 1 | R97: 0 | S97: 0.9999448001 | T97: 0.0110478679 | U97: 41.93465221 | V97: -114.8912457 | W97: 65.10875428 | Y97: 1000000000 | Z97: 5248222.81 | AB97: 40.63150418 | AC97: -71.99475668 | AE97: 59.27399521 | AF97: -42.89648905 | AH97: 0 | AI97: 0
A98: 2511.9 | B98: 2.5119 | C98: 1.499497591 | D98: 0.8407689513 | E98: 1.001968959 | F98: 0.06270141355 | G98: 1 | H98: 0 | I98: 828.6589295 | J98: 1.569589557 | K98: 1.069940531 | L98: 0.3635752266 | M98: 1.000267282 | N98: 0.02311807506 | O98: 1 | P98: 0 | Q98: 1 | R98: 0 | S98: 0.9999336375 | T98: 0.01211382574 | U98: 40.80482051 | V98: -115.6981566 | W98: 64.30184337 | Y98: 1000000000 | Z98: 6309641.61 | AB98: 39.92457963 | AC98: -70.4240994 | AE98: 58.85108807 | AF98: -45.27405723 | AH98: 0 | AI98: 0
A99: 2754.2 | B99: 2.7542 | C99: 1.58144594 | D99: 0.8862356735 | E99: 1.002366664 | F99: 0.06873144824 | G99: 1 | H99: 0 | I99: 908.5919599 | J99: 1.569695723 | K99: 1.083535698 | L99: 0.3952391098 | M99: 1.000321325 | N99: 0.0253471511 | O99: 1 | P99: 0 | Q99: 1 | R99: 0 | S99: 0.9999202191 | T99: 0.01328257957 | U99: 39.65555338 | V99: -116.3442696 | W99: 63.65573036 | Y99: 1000000000 | Z99: 7585617.64 | AB99: 39.23392054 | AC99: -68.74369199 | AE99: 58.39248002 | AF99: -47.60057765 | AH99: 0 | AI99: 0
A100: 3020 | B100: 3.02 | C100: 1.674711819 | D100: 0.930893298 | E100: 1.002844827 | F100: 0.07534054989 | G100: 1 | H100: 0 | I100: 996.2774814 | J100: 1.56979259 | K100: 1.099665725 | L100: 0.4290358485 | M100: 1.000386326 | N100: 0.02779212844 | O100: 1 | P100: 0 | Q100: 1 | R100: 0 | S100: 0.9999040799 | T100: 0.01456476526 | U100: 38.48967777 | V100: -116.8069797 | W100: 63.19302026 | Y100: 1000000000 | Z100: 9120400 | AB100: 38.56147696 | AC100: -66.95291849 | AE100: 57.89904799 | AF100: -49.85406125 | AH100: 0 | AI100: 0
A101: 3311.3 | B101: 3.3113 | C101: 1.780335384 | D101: 0.9743669473 | E101: 1.003419122 | F101: 0.08257612088 | G101: 1 | H101: 0 | I101: 1092.37528 | J101: 1.56988089 | K101: 1.118741152 | L101: 0.4649102274 | M101: 1.000464429 | N101: 0.03047128632 | O101: 1 | P101: 0 | Q101: 1 | R101: 0 | S101: 0.999884687 | T101: 0.0159700621 | U101: 37.31245355 | V101: -117.0668994 | W101: 62.93310057 | Y101: 1000000000 | Z101: 10964707.69 | AB101: 37.91034635 | AC101: -65.05603165 | AE101: 57.37295438 | AF101: -52.01086778 | AH101: 0 | AI101: 0
A102: 3630.8 | B102: 3.6308 | C102: 1.899597699 | D102: 1.016403397 | E102: 1.004109344 | F102: 0.09050216846 | G102: 1 | H102: 0 | I102: 1197.776066 | J102: 1.569961446 | K102: 1.141259435 | L102: 0.502824434 | M102: 1.00055835 | N102: 0.03340930204 | O102: 1 | P102: 0 | Q102: 1 | R102: 0 | S102: 0.9998613664 | T102: 0.01751153706 | U102: 36.12763726 | V102: -117.1102289 | W102: 62.88977109 | Y102: 1000000000 | Z102: 13182708.64 | AB102: 37.28255099 | AC102: -63.05665903 | AE102: 56.81593345 | AF102: -54.05356988 | AH102: 0 | AI102: 0
A103: 3981.1 | B103: 3.9811 | C103: 2.033736313 | D103: 1.056748646 | E103: 1.004938493 | F103: 0.09917917138 | G103: 1 | H103: 0 | I103: 1313.337561 | J103: 1.570034908 | K103: 1.167755934 | L103: 0.5426497778 | M103: 1.000671249 | N103: 0.03662987949 | O103: 1 | P103: 0 | Q103: 1 | R103: 0 | S103: 0.9998333332 | T103: 0.01920178912 | U103: 34.94074941 | V103: -116.9284405 | W103: 63.07155951 | Y103: 1000000000 | Z103: 15849157.21 | AB103: 36.68091032 | AC103: -60.96356946 | AE103: 56.23068627 | AF103: -55.96487103 | AH103: 0 | AI103: 0
A104: 4365.2 | B104: 4.3652 | C104: 2.1841291 | D104: 1.095222813 | E104: 1.005934455 | F104: 0.1086761687 | G104: 1 | H104: 0 | I104: 1440.049444 | J104: 1.570101906 | K104: 1.198837066 | L104: 0.5842215187 | M104: 1.000806968 | N104: 0.04016033033 | O104: 1 | P104: 0 | Q104: 1 | R104: 0 | S104: 0.999799633 | T104: 0.02105536602 | U104: 33.75693582 | V104: -116.5191455 | W104: 63.48085452 | Y104: 1000000000 | Z104: 19054971.04 | AB104: 36.10787315 | AC104: -58.7878028 | AE104: 55.61990985 | AF104: -57.73134268 | AH104: 0 | AI104: 0
A105: 4786.3 | B105: 4.7863 | C105: 2.352223091 | D105: 1.131691104 | E105: 1.007130394 | F105: 0.1190653737 | G105: 1 | H105: 0 | I105: 1578.967372 | J105: 1.570163001 | K105: 1.235164833 | L105: 0.6273114315 | M105: 1.000970091 | N105: 0.04402971232 | O105: 1 | P105: 0 | Q105: 1 | R105: 0 | S105: 0.9997591274 | T105: 0.02308780548 | U105: 32.5815685 | V105: -115.8861469 | W105: 64.11385314 | Y105: 1000000000 | Z105: 22908667.69 | AB105: 35.56583763 | AC105: -56.54413242 | AE105: 54.98657805 | AF105: -59.34201444 | AH105: 0 | AI105: 0
A106: 5248.1 | B106: 5.2481 | C106: 2.539658165 | D106: 1.166084613 | E106: 1.008566576 | F106: 0.1304290184 | G106: 1 | H106: 0 | I106: 1731.31195 | J106: 1.57021873 | K106: 1.277480027 | L106: 0.6716578243 | M106: 1.001166204 | N106: 0.04827155591 | O106: 1 | P106: 0 | Q106: 1 | R106: 0 | S106: 0.9997104287 | T106: 0.02531709121 | U106: 31.41927286 | V106: -115.0387612 | W106: 64.96123881 | Y106: 1000000000 | Z106: 27542553.61 | AB106: 35.05667663 | AC106: -54.24950403 | AE106: 54.33344341 | AF106: -60.78925716 | AH106: 0 | AI106: 0
A107: 5370.3 | B107: 5.3703 | C107: 2.589713177 | D107: 1.174349558 | E107: 1.008968365 | F107: 0.133430491 | G107: 1 | H107: 0 | I107: 1771.624873 | J107: 1.570231873 | K107: 1.289080106 | L107: 0.6828983695 | M107: 1.001221112 | N107: 0.04939373409 | O107: 1 | P107: 0 | Q107: 1 | R107: 0 | S107: 0.9996967937 | T107: 0.02590707383 | U107: 31.1314334 | V107: -114.7951527 | W107: 65.20484726 | Y107: 1000000000 | Z107: 28840122.09 | AB107: 34.93478717 | AC107: -53.67051734 | AE107: 54.16749341 | AF107: -61.1246354 | AH107: 0 | AI107: 0
A108: 5432.85 | B108: 5.43285 | C108: 2.615401094 | D108: 1.178457547 | E108: 1.009177543 | F108: 0.1349659104 | G108: 1 | H108: 0 | I108: 1792.259679 | J108: 1.570238372 | K108: 1.295079956 | L108: 0.6885737399 | M108: 1.001249705 | N108: 0.04996809072 | O108: 1 | P108: 0 | Q108: 1 | R108: 0 | S108: 0.9996896933 | T108: 0.02620907864 | U108: 30.98706511 | V108: -114.6679595 | W108: 65.33204048 | Y108: 1000000000 | Z108: 29515859.12 | AB108: 34.87428932 | AC108: -53.37862313 | AE108: 54.08362297 | AF108: -61.28933639 | AH108: 0 | AI108: 0
A109: 5495.4 | B109: 5.4954 | C109: 2.641132288 | D109: 1.182485559 | E109: 1.009389098 | F109: 0.1365006897 | G109: 1 | H109: 0 | I109: 1812.894485 | J109: 1.570244723 | K109: 1.301121135 | L109: 0.6941965878 | M109: 1.001278629 | N109: 0.05054241436 | O109: 1 | P109: 0 | Q109: 1 | R109: 0 | S109: 0.9996825108 | T109: 0.0265110923 | U109: 30.84465131 | V109: -114.5392201 | W109: 65.46077993 | Y109: 1000000000 | Z109: 30199421.16 | AB109: 34.81502954 | AC109: -53.08972787 | AE109: 54.00046896 | AF109: -61.4494922 | AH109: 0 | AI109: 0
A110: 5559.4 | B110: 5.5594 | C110: 2.667503456 | D110: 1.186526446 | E110: 1.009608017 | F110: 0.1380703779 | G110: 1 | H110: 0 | I110: 1834.007637 | J110: 1.570251073 | K110: 1.307344537 | L110: 0.69989581 | M110: 1.001308565 | N110: 0.05113001712 | O110: 1 | P110: 0 | Q110: 1 | R110: 0 | S110: 0.9996750768 | T110: 0.02682011635 | U110: 30.70091737 | V110: -114.4060047 | W110: 65.59399527 | Y110: 1000000000 | Z110: 30906928.36 | AB110: 34.75564412 | AC110: -52.79721748 | AE110: 53.91612044 | AF110: -61.60878724 | AH110: 0 | AI110: 0
A111: 5623.4 | B111: 5.6234 | C111: 2.693917328 | D111: 1.190488155 | E111: 1.009829423 | F111: 0.1396393817 | G111: 1 | H111: 0 | I111: 1855.120788 | J111: 1.570257278 | K111: 1.31361 | L111: 0.7055408475 | M111: 1.001338846 | N111: 0.05171758454 | O111: 1 | P111: 0 | Q111: 1 | R111: 0 | S111: 0.999667557 | T111: 0.02712914989 | U111: 30.55914591 | V111: -114.2713868 | W111: 65.72861318 | Y111: 1000000000 | Z111: 31622627.56 | AB111: 34.69748818 | AC111: -52.50780134 | AE111: 53.83250492 | AF111: -61.76358547 | AH111: 0 | AI111: 0
A112: 5688.9 | B112: 5.6889 | C112: 2.720993194 | D112: 1.194463011 | E112: 1.010058592 | F112: 0.1412444427 | G112: 1 | H112: 0 | I112: 1876.728779 | J112: 1.570263485 | K112: 1.320065235 | L112: 0.7112625185 | M112: 1.001370196 | N112: 0.05231888606 | O112: 1 | P112: 0 | Q112: 1 | R112: 0 | S112: 0.999659772 | T112: 0.02744543635 | U112: 30.41604125 | V112: -114.132268 | W112: 65.86773199 | Y112: 1000000000 | Z112: 32363583.21 | AB112: 34.63920878 | AC112: -52.21478138 | AE112: 53.74767965 | AF112: -61.91748662 | AH112: 0 | AI112: 0
A113: 5754.4 | B113: 5.7544 | C113: 2.748111203 | D113: 1.198359481 | E113: 1.010290361 | F113: 0.1428487714 | G113: 1 | H113: 0 | I113: 1898.33677 | J113: 1.57026955 | K113: 1.326563265 | L113: 0.7169283194 | M113: 1.001401907 | N113: 0.05292014971 | O113: 1 | P113: 0 | Q113: 1 | R113: 0 | S113: 0.9996518971 | T113: 0.02776173297 | U113: 30.27490705 | V113: -113.9918914 | W113: 66.00810861 | Y113: 1000000000 | Z113: 33113119.36 | AB113: 34.58215025 | AC113: -51.92495228 | AE113: 53.66360398 | AF113: -62.06693912 | AH113: 0 | AI113: 0
A114: 5821.4 | B114: 5.8214 | C114: 2.775892548 | D114: 1.202266358 | E114: 1.010530127 | F114: 0.1444890748 | G114: 1 | H114: 0 | I114: 1920.439601 | J114: 1.570275613 | K114: 1.333253728 | L114: 0.722666543 | M114: 1.001434719 | N114: 0.05353514314 | O114: 1 | P114: 0 | Q114: 1 | R114: 0 | S114: 0.9996437488 | T114: 0.02808528368 | U114: 30.13253634 | V114: -113.8471025 | W114: 66.15289754 | Y114: 1000000000 | Z114: 33888697.96 | AB114: 34.5250146 | AC114: -51.63176019 | AE114: 53.57836893 | AF114: -62.21534227 | AH114: 0 | AI114: 0
A115: 5888.4 | B115: 5.8884 | C115: 2.803715425 | D115: 1.206095751 | E115: 1.01077261 | F115: 0.1461285955 | G115: 1 | H115: 0 | I115: 1942.542432 | J115: 1.570281538 | K115: 1.339987652 | L115: 0.7283472787 | M115: 1.00146791 | N115: 0.05415009603 | O115: 1 | P115: 0 | Q115: 1 | R115: 0 | S115: 0.9996355064 | T115: 0.02840884527 | U115: 29.99214105 | V115: -113.7012031 | W115: 66.29879687 | Y115: 1000000000 | Z115: 34673254.56 | AB115: 34.46908929 | AC115: -51.34185168 | AE115: 53.49389894 | AF115: -62.35935146 | AH115: 0 | AI115: 0
A116: 5957 | B116: 5.957 | C116: 2.832244479 | D116: 1.209938582 | E116: 1.011023698 | F116: 0.1478064495 | G116: 1 | H116: 0 | I116: 1965.173091 | J116: 1.570287466 | K116: 1.346926735 | L116: 0.7341046309 | M116: 1.001502286 | N116: 0.05477969189 | O116: 1 | P116: 0 | Q116: 1 | R116: 0 | S116: 0.9996269697 | T116: 0.02874014513 | U116: 29.85039598 | V116: -113.5507701 | W116: 66.4492299 | Y116: 1000000000 | Z116: 35485849 | AB116: 34.4130488 | AC116: -51.04839255 | AE116: 53.40819437 | AF116: -62.50237756 | AH116: 0 | AI116: 0
A117: 6025.6 | B117: 6.0256 | C117: 2.860814524 | D117: 1.213704713 | E117: 1.011277631 | F117: 0.1494834656 | G117: 1 | H117: 0 | I117: 1987.803751 | J117: 1.570293259 | K117: 1.353910007 | L117: 0.7398027791 | M117: 1.001537058 | N117: 0.05540924429 | O117: 1 | P117: 0 | Q117: 1 | R117: 0 | S117: 0.9996183344 | T117: 0.02907145666 | U117: 29.71063404 | V117: -113.3993731 | W117: 66.6006269 | Y117: 1000000000 | Z117: 36307855.36 | AB117: 34.35820978 | AC117: -50.75831532 | AE117: 53.32327145 | AF117: -62.64105777 | AH117: 0 | AI117: 0
A118: 6095.8 | B118: 6.0958 | C118: 2.890092093 | D118: 1.217481543 | E118: 1.011540429 | F118: 0.1511987191 | G118: 1 | H118: 0 | I118: 2010.962239 | J118: 1.570299052 | K118: 1.361101191 | L118: 0.7455731053 | M118: 1.001573053 | N118: 0.0560534346 | O118: 1 | P118: 0 | Q118: 1 | R118: 0 | S118: 0.9996093955 | T118: 0.02941050782 | U118: 29.56962096 | V118: -113.2435449 | W118: 66.75645507 | Y118: 1000000000 | Z118: 37158777.64 | AB118: 34.30330173 | AC118: -50.46494131 | AE118: 53.23716641 | AF118: -62.77860362 | AH118: 0 | AI118: 0
A119: 6166 | B119: 6.166 | C119: 2.91941006 | D119: 1.221182568 | E119: 1.011806202 | F119: 0.1529130766 | G119: 1 | H119: 0 | I119: 2034.120728 | J119: 1.570304714 | K119: 1.368337217 | L119: 0.7512825907 | M119: 1.001609463 | N119: 0.05669757834 | O119: 1 | P119: 0 | Q119: 1 | R119: 0 | S119: 0.9996003535 | T119: 0.02974957149 | U119: 29.43059556 | V119: -113.0869012 | W119: 66.9130988 | Y119: 1000000000 | Z119: 38019556 | AB119: 34.2495843 | AC119: -50.17504299 | AE119: 53.15185845 | AF119: -62.91185821 | AH119: 0 | AI119: 0
A120: 6237.8 | B120: 6.2378 | C120: 2.949436777 | D120: 1.224891783 | E120: 1.012081106 | F120: 0.1546655711 | G120: 1 | H120: 0 | I120: 2057.807045 | J120: 1.570310373 | K120: 1.375783817 | L120: 0.7570598861 | M120: 1.001647133 | N120: 0.0573563547 | O120: 1 | P120: 0 | Q120: 1 | R120: 0 | S120: 0.9995909985 | T120: 0.03009637622 | U120: 29.29041263 | V120: -112.9259381 | W120: 67.07406187 | Y120: 1000000000 | Z120: 38910148.84 | AB120: 34.19584029 | AC120: -49.88209767 | AE120: 53.06541953 | AF120: -63.04384047 | AH120: 0 | AI120: 0
A121: 6309.6 | B121: 6.3096 | C121: 2.979503255 | D121: 1.228526186 | E121: 1.012359118 | F121: 0.1564171084 | G121: 1 | H121: 0 | I121: 2081.493363 | J121: 1.570315902 | K121: 1.383275842 | L121: 0.7627747892 | M121: 1.001685238 | N121: 0.05801508123 | O121: 1 | P121: 0 | Q121: 1 | R121: 0 | S121: 0.9995815355 | T121: 0.03044319435 | U121: 29.1522189 | V121: -112.7643089 | W121: 67.23569109 | Y121: 1000000000 | Z121: 39811052.16 | AB121: 34.14327417 | AC121: -49.59271693 | AE121: 52.97979192 | AF121: -63.17159197 | AH121: 0 | AI121: 0
A122: 6383.05 | B122: 6.38305 | C122: 3.010300576 | D122: 1.23216894 | E122: 1.01264673 | F122: 0.1582078962 | G122: 1 | H122: 0 | I122: 2105.724004 | J122: 1.570321431 | K122: 1.390986274 | L122: 0.7685571293 | M122: 1.001724668 | N122: 0.05868889346 | O122: 1 | P122: 0 | Q122: 1 | R122: 0 | S122: 0.9995717433 | T122: 0.03079799656 | U122: 29.01286215 | V122: -112.598367 | W122: 67.40163296 | Y122: 1000000000 | Z122: 40743327.3 | AB122: 34.09068496 | AC122: -49.30033659 | AE122: 52.89302438 | AF122: -63.29803045 | AH122: 0 | AI122: 0
A123: 6456.5 | B123: 6.4565 | C123: 3.041137033 | D123: 1.235737866 | E123: 1.012937587 | F123: 0.1599976612 | G123: 1 | H123: 0 | I123: 2129.954645 | J123: 1.570326833 | K123: 1.398742701 | L123: 0.7742755295 | M123: 1.001764553 | N123: 0.05936265235 | O123: 1 | P123: 0 | Q123: 1 | R123: 0 | S123: 0.9995618382 | T123: 0.03115281312 | U123: 28.8754959 | V123: -112.4319078 | W123: 67.56809215 | Y123: 1000000000 | Z123: 41686392.25 | AB123: 34.03926074 | AC123: -49.01160948 | AE123: 52.80708234 | AF123: -63.42029837 | AH123: 0 | AI123: 0
A124: 6531.7 | B124: 6.5317 | C124: 3.072747506 | D124: 1.239317566 | E124: 1.013238735 | F124: 0.1618289982 | G124: 1 | H124: 0 | I124: 2154.762599 | J124: 1.570332239 | K124: 1.406730787 | L124: 0.7800646487 | M124: 1.001805859 | N124: 0.06005240813 | O124: 1 | P124: 0 | Q124: 1 | R124: 0 | S124: 0.99955158 | T124: 0.03151609849 | U124: 28.73687285 | V124: -112.2610341 | W124: 67.73896592 | Y124: 1000000000 | Z124: 42663104.89 | AB124: 33.98778432 | AC124: -48.71974718 | AE124: 52.71993571 | AF124: -63.54128691 | AH124: 0 | AI124: 0
A125: 6606.9 | B125: 6.6069 | C125: 3.104396553 | D125: 1.242824321 | E125: 1.013543278 | F125: 0.1636592407 | G125: 1 | H125: 0 | I125: 2179.570553 | J125: 1.570337521 | K125: 1.414765485 | L125: 0.785788203 | M125: 1.001847642 | N125: 0.06074210671 | O125: 1 | P125: 0 | Q125: 1 | R125: 0 | S125: 0.9995412033 | T125: 0.03187939925 | U125: 28.6002439 | V125: -112.0897907 | W125: 67.91020929 | Y125: 1000000000 | Z125: 43651127.61 | AB125: 33.93746128 | AC125: -48.43163114 | AE125: 52.63362981 | AF125: -63.65815957 | AH125: 0 | AI125: 0
A126: 6683.85 | B126: 6.68385 | C126: 3.136820825 | D126: 1.246339385 | E126: 1.013858421 | F126: 0.1655309307 | G126: 1 | H126: 0 | I126: 2204.955819 | J126: 1.570342803 | K126: 1.423034588 | L126: 0.7915778514 | M126: 1.001890891 | N126: 0.06144779555 | O126: 1 | P126: 0 | Q126: 1 | R126: 0 | S126: 0.9995304626 | T126: 0.03225117062 | U126: 28.46245299 | V126: -111.9142633 | W126: 68.0857367 | Y126: 1000000000 | Z126: 44673850.82 | AB126: 33.88712713 | AC126: -48.14064436 | AE126: 52.54617305 | AF126: -63.77361894 | AH126: 0 | AI126: 0
A127: 6760.8 | B127: 6.7608 | C127: 3.169283061 | D127: 1.249782484 | E127: 1.014177113 | F127: 0.1674014509 | G127: 1 | H127: 0 | I127: 2230.341086 | J127: 1.570347965 | K127: 1.431350839 | L127: 0.7973004132 | M127: 1.001934638 | N127: 0.06215342313 | O127: 1 | P127: 0 | Q127: 1 | R127: 0 | S127: 0.999519598 | T127: 0.03262295847 | U127: 28.32665663 | V127: -111.7385139 | W127: 68.26148613 | Y127: 1000000000 | Z127: 45708416.64 | AB127: 33.83793283 | AC127: -47.85349095 | AE127: 52.45957098 | AF127: -63.88502292 | AH127: 0 | AI127: 0
A128: 6839.55 | B128: 6.83955 | C128: 3.20254275 | D128: 1.253233811 | E128: 1.014506932 | F128: 0.1693145024 | G128: 1 | H128: 0 | I128: 2256.32016 | J128: 1.570353127 | K128: 1.439909586 | L128: 0.8030882026 | M128: 1.001979925 | N128: 0.06287549244 | O128: 1 | P128: 0 | Q128: 1 | R128: 0 | S128: 0.9995083509 | T128: 0.0330034604 | U128: 28.18970165 | V128: -111.5585032 | W128: 68.44149684 | Y128: 1000000000 | Z128: 46779444.2 | AB128: 33.78873397 | AC128: -47.56354236 | AE128: 52.37181486 | AF128: -63.9949608 | AH128: 0 | AI128: 0
A129: 6918.3 | B129: 6.9183 | C129: 3.235839802 | D129: 1.25661415 | E129: 1.014840462 | F129: 0.1712263034 | G129: 1 | H129: 0 | I129: 2282.299235 | J129: 1.570358172 | K129: 1.448515996 | L129: 0.808807405 | M129: 1.002025735 | N129: 0.06359749612 | O129: 1 | P129: 0 | Q129: 1 | R129: 0 | S129: 0.9994969739 | T129: 0.03338398001 | U129: 28.05474122 | V129: -111.378417 | W129: 68.62158303 | Y129: 1000000000 | Z129: 47862874.89 | AB129: 33.74066111 | AC129: -47.27751301 | AE129: 52.28492729 | AF129: -64.10090395 | AH129: 0 | AI129: 0
A130: 6998.9 | B130: 6.9989 | C130: 3.269956569 | D130: 1.260002572 | E130: 1.015185665 | F130: 0.1731817083 | G130: 1 | H130: 0 | I130: 2308.888611 | J130: 1.570363218 | K130: 1.457373064 | L130: 0.8145908216 | M130: 1.002073161 | N130: 0.06433639239 | O130: 1 | P130: 0 | Q130: 1 | R130: 0 | S130: 0.9994851953 | T130: 0.03377345733 | U130: 27.91862801 | V130: -111.1940976 | W130: 68.80590238 | Y130: 1000000000 | Z130: 48984601.21 | AB130: 33.69259093 | AC130: -46.98877239 | AE130: 52.19688426 | AF130: -64.20532523 | AH130: 0 | AI130: 0
A131: 7079.5 | B131: 7.0795 | C131: 3.304110104 | D131: 1.263320982 | E131: 1.015534747 | F131: 0.1751357765 | G131: 1 | H131: 0 | I131: 2335.477988 | J131: 1.570368149 | K131: 1.466278289 | L131: 0.8203041779 | M131: 1.002121135 | N131: 0.06507521833 | O131: 1 | P131: 0 | Q131: 1 | R131: 0 | S131: 0.9994732808 | T131: 0.03416295361 | U131: 27.78450879 | V131: -111.0098481 | W131: 68.99015192 | Y131: 1000000000 | Z131: 50119320.25 | AB131: 33.64563248 | AC131: -46.70403532 | AE131: 52.10972349 | AF131: -64.30581276 | AH131: 0 | AI131: 0
A132: 7161.95 | B132: 7.16195 | C132: 3.339084428 | D132: 1.266645283 | E132: 1.015895851 | F132: 0.1771332987 | G132: 1 | H132: 0 | I132: 2362.677666 | J132: 1.570373078 | K132: 1.475436831 | L132: 0.8260771187 | M132: 1.002170775 | N132: 0.06583092881 | O132: 1 | P132: 0 | Q132: 1 | R132: 0 | S132: 0.9994609521 | T132: 0.03456140977 | U132: 27.64932626 | V132: -110.821513 | W132: 69.17848697 | Y132: 1000000000 | Z132: 51293527.8 | AB132: 33.59871261 | AC132: -46.41685162 | AE132: 52.02146083 | AF132: -64.40466141 | AH132: 0 | AI132: 0
A133: 7244.4 | B133: 7.2444 | C133: 3.374094887 | D133: 1.269900631 | E133: 1.016261005 | F133: 0.1791293934 | G133: 1 | H133: 0 | I133: 2389.877345 | J133: 1.570377895 | K133: 1.484643937 | L133: 0.831778645 | M133: 1.002220988 | N133: 0.066586564 | O133: 1 | P133: 0 | Q133: 1 | R133: 0 | S133: 0.9994484813 | T133: 0.03495988624 | U133: 27.51613417 | V133: -110.6333913 | W133: 69.36660873 | Y133: 1000000000 | Z133: 52481331.36 | AB133: 33.55288847 | AC133: -46.13374893 | AE133: 51.93409288 | AF133: -64.49964234 | AH133: 0 | AI133: 0
A134: 7328.75 | B134: 7.32875 | C134: 3.409948369 | D134: 1.273161786 | E134: 1.016638762 | F134: 0.1811699945 | G134: 1 | H134: 0 | I134: 2417.703821 | J134: 1.570382711 | K134: 1.494112534 | L134: 0.8375386508 | M134: 1.00227295 | N134: 0.06735953345 | O134: 1 | P134: 0 | Q134: 1 | R134: 0 | S134: 0.9994355758 | T134: 0.03536756655 | U134: 27.38188413 | V134: -110.441222 | W134: 69.55877797 | Y134: 1000000000 | Z134: 53710576.56 | AB134: 33.50710845 | AC134: -45.84828873 | AE134: 51.84562286 | AF134: -64.5929333 | AH134: 0 | AI134: 0
A135: 7413.1 | B135: 7.4131 | C135: 3.445837362 | D135: 1.276355044 | E135: 1.017020748 | F135: 0.1832090712 | G135: 1 | H135: 0 | I135: 2445.530296 | J135: 1.570387418 | K135: 1.503630077 | L135: 0.843225925 | M135: 1.002325511 | N135: 0.0681324223 | O135: 1 | P135: 0 | Q135: 1 | R135: 0 | S135: 0.9994225216 | T135: 0.03577526859 | U135: 27.24962052 | V135: -110.2494075 | W135: 69.75059255 | Y135: 1000000000 | Z135: 54954051.61 | AB135: 33.46240785 | AC135: -45.56698484 | AE135: 51.75805985 | AF135: -64.68242261 | AH135: 0 | AI135: 0
A136: 7499.45 | B136: 7.49945 | C136: 3.482612946 | D136: 1.279555809 | E136: 1.017416169 | F136: 0.1852949009 | G136: 1 | H136: 0 | I136: 2474.016558 | J136: 1.570392126 | K136: 1.513423024 | L136: 0.848973762 | M136: 1.002379939 | N136: 0.06892355245 | O136: 1 | P136: 0 | Q136: 1 | R136: 0 | S136: 0.9994090038 | T136: 0.03619266033 | U136: 27.11622967 | V136: -110.0534747 | W136: 69.94652529 | Y136: 1000000000 | Z136: 56241750.3 | AB136: 33.41773177 | AC136: -45.28325623 | AE136: 51.66934508 | AF136: -64.77021849 | AH136: 0 | AI136: 0
A137: 7585.8 | B137: 7.5858 | C137: 3.519423463 | D137: 1.282689651 | E137: 1.017816012 | F137: 0.1873791009 | G137: 1 | H137: 0 | I137: 2502.502819 | J137: 1.570396727 | K137: 1.523265327 | L137: 0.8546475072 | M137: 1.002434993 | N137: 0.0697145962 | O137: 1 | P137: 0 | Q137: 1 | R137: 0 | S137: 0.99939533 | T137: 0.03661007539 | U137: 26.98482296 | V137: -109.8580363 | W137: 70.1419637 | Y137: 1000000000 | Z137: 57544361.64 | AB137: 33.37411965 | AC137: -45.00376166 | AE137: 51.5815505 | AF137: -64.85427464 | AH137: 0 | AI137: 0
A138: 7674.15 | B138: 7.67415 | C138: 3.557121594 | D138: 1.285828914 | E138: 1.018229689 | F138: 0.1895098705 | G138: 1 | H138: 0 | I138: 2531.648867 | J138: 1.570401327 | K138: 1.533385686 | L138: 0.8603770902 | M138: 1.002491972 | N138: 0.07052387131 | O138: 1 | P138: 0 | Q138: 1 | R138: 0 | S138: 0.9993811782 | T138: 0.03703718283 | U138: 26.85237716 | V138: -109.6586409 | W138: 70.34135911 | Y138: 1000000000 | Z138: 58892578.22 | AB138: 33.33056502 | AC138: -44.72211237 | AE138: 51.49265932 | AF138: -64.93652853 | AH138: 0 | AI138: 0
A139: 7762.5 | B139: 7.7625 | C139: 3.594854044 | D139: 1.288902306 | E139: 1.018647986 | F139: 0.1916388998 | G139: 1 | H139: 0 | I139: 2560.794915 | J139: 1.570405823 | K139: 1.543555722 | L139: 0.8660313558 | M139: 1.002549608 | N139: 0.07133305389 | O139: 1 | P139: 0 | Q139: 1 | R139: 0 | S139: 0.9993668632 | T139: 0.03746431525 | U139: 26.72191026 | V139: -109.4598766 | W139: 70.54012343 | Y139: 1000000000 | Z139: 60256406.25 | AB139: 33.28805724 | AC139: -44.44476715 | AE139: 51.4047002 | AF139: -65.01510942 | AH139: 0 | AI139: 0
A140: 7852.9 | B140: 7.8529 | C140: 3.633496416 | D140: 1.29198091 | E140: 1.019080763 | F140: 0.1938155101 | G140: 1 | H140: 0 | I140: 2590.617243 | J140: 1.570410318 | K140: 1.554012137 | L140: 0.8717400282 | M140: 1.00260926 | N140: 0.07216091523 | O140: 1 | P140: 0 | Q140: 1 | R140: 0 | S140: 0.9993520472 | T140: 0.03790138465 | U140: 26.59041503 | V140: -109.2572069 | W140: 70.74279308 | Y140: 1000000000 | Z140: 61668038.41 | AB140: 33.24561326 | AC140: -44.16537484 | AE140: 51.31564895 | AF140: -65.09183208 | AH140: 0 | AI140: 0
A141: 7943.3 | B141: 7.9433 | C141: =SQRT(1+(A141/pole1)^2) -> 3.6721725 | D141: =ATAN(A141/pole1) -> 1.294994693 | E141: =SQRT(1+(A141/Zero1)^2) -> 1.019518364 | F141: =ATAN(A141/Zero1) -> 0.1959902623 | G141: =IF(VIN_nom>Vout, 1, SQRT(1+(A141/z_RHP)^2)) -> 1 | H141: =IF(VIN_nom>Vout, 0, -ATAN(A141/z_RHP)) -> 0 | I141: =SQRT(1+(A141/Pole2)^2) -> 2620.439572 | J141: =ATAN(A141/Pole2) -> 1.570414711 | K141: =SQRT(1+(A141/Zero2)^2) -> 1.564518517 | L141: =ATAN(A141/Zero2) -> 0.87737221 | M141: =SQRT(1+(A141/pole4)^2) -> 1.002669599 | N141: =ATAN(A141/pole4) -> 0.07298867749 | O141: =IF(VOUT_setting=1,1,SQRT(1+(A141*zterm1)^2)) -> 1 | P141: =IF(VOUT_setting=1,0,ATAN(((A141*zterm1)))) -> 0 | Q141: 1 | R141: =IF(VOUT_setting=1,0,ATAN(A141*$Q$4/(1+Afbr-$Q$5*(A141)^2))) -> 0 | S141: =SQRT((1-(Z141/pterm2))^2+(A141/pterm1)^2) -> 0.9993370604 | T141: =IF((ATAN((A141/pterm1)/(1-A141^2/pterm2))>0),ATAN((A141/pterm1)/(1-A141^2/pterm2)),PI()+ATAN((A141/pterm1)/(1-A141^2/pterm2))) -> 0.03833848081 | U141: =20*LOG10(((E141*K141*G141*O141)/(C141*I141*S141*M141*Q141))*Adc) -> 26.46089288 | V141: =((F141+L141+H141+P141)-(D141+J141+T141+N141+R141))*radconv -> -109.0553024 | W141: =IF(V141>0,V141,V141+180) -> 70.94469764 | Y141: =IF(U141<0,A141,1000000000) -> 1000000000 | Z141: =A141^2 -> 63096014.89 | AB141: =20*LOG10((K141/(I141*M141))*AEA) -> 33.20419863 | AC141: =(L141-(J141+N141))*radconv -> -43.89035358 | AE141: =20*LOG10((E141*G141/(C141*S141))*Acs*Am) -> 51.22754144 | AF141: =(F141+H141-(D141+T141))*radconv -> -65.16494878 | AH141: =SUM((U142<0)*(U141>0))*A141 -> 0 | AI141: 0
A142: 8035.8 | B142: =A142/1000 -> 8.0358 | C142: 3.71178083 | D142: 1.298013447 | E142: 1.019971118 | F142: 0.1982135917 | G142: 1 | H142: 0 | I142: 2650.954676 | J142: 1.570419104 | K142: 1.57531964 | L142: 0.8830572788 | M142: 1.002732051 | N142: 0.07383556503 | O142: 1 | P142: 0 | Q142: 1 | R142: 0 | S142: 0.9993215487 | T142: 0.03878575877 | U142: 26.33035466 | V142: -108.8495483 | W142: 71.15045172 | Y142: 1000000000 | Z142: 64574081.64 | AB142: 33.16285416 | AC142: -43.6133979 | AE142: 51.13834768 | AF142: -65.23615039 | AH142: 0 | AI142: 0
A143: 8128.3 | B143: 8.1283 | C143: 3.751422271 | D143: 1.300968429 | E143: 1.020428909 | F143: 0.2004349371 | G143: 1 | H143: 0 | I143: 2681.46978 | J143: 1.570423397 | K143: 1.586170982 | L143: 0.8886647412 | M143: 1.002795222 | N143: 0.07468234648 | O143: 1 | P143: 0 | Q143: =IF(VOUT_setting=1,1,SQRT((1+Afbr-$Q$5*(A143)^2)^2+(A143*$Q$4)^2)) -> 1 | R143: 0 | S143: 0.9993058583 | T143: 0.0392330654 | U143: 26.20178306 | V143: -108.6446904 | W143: 71.35530964 | Y143: 1000000000 | Z143: 66069260.89 | AB143: 33.12252115 | AC143: -43.34087693 | AE143: 51.05010909 | AF143: -65.30381343 | AH143: 0 | AI143: 0
A144: 8222.95 | B144: 8.22295 | C144: 3.792018298 | D144: 1.303928115 | E144: 1.020902548 | F144: 0.2027058402 | G144: 1 | H144: 0 | I144: 2712.694154 | J144: 1.57042769 | K144: 1.597325462 | L144: 0.8943234921 | M144: 1.002860606 | N144: 0.07554869881 | O144: 1 | P144: 0 | Q144: 1 | R144: 0 | S144: 0.9992896183 | T144: 0.03969079891 | U144: 26.07220893 | V144: -108.4360426 | W144: 71.56395737 | Y144: 1000000000 | Z144: 67616906.7 | AB144: 33.08226463 | AC144: -43.06653867 | AE144: 50.96079149 | AF144: -65.36950396 | AH144: 0 | AI144: 0
A145: 8270.275 | B145: 8.270275 | C145: 3.812328569 | D145: 1.305384314 | E145: 1.02114134 | F145: 0.2038404988 | G145: 1 | H145: 0 | I145: 2728.306341 | J145: 1.570429799 | K145: 1.602921682 | L145: 0.8971232889 | M145: 1.00289358 | N145: 0.07598183245 | O145: 1 | P145: 0 | Q145: 1 | R145: 0 | S145: 0.999281428 | T145: 0.03991967716 | U145: 26.00815973 | V145: -108.3321003 | W145: 71.66789965 | Y145: 1000000000 | Z145: 68397448.58 | AB145: 33.0625108 | AC145: -42.93105972 | AE145: 50.91649611 | AF145: -65.40104063 | AH145: 0 | AI145: 0
A146: 8317.6 | B146: 8.3176 | C146: 3.832646838 | D146: 1.306825076 | E146: 1.021381446 | F146: 0.2049746254 | G146: 1 | H146: 0 | I146: 2743.918528 | J146: 1.570431884 | K146: 1.608530379 | L146: 0.8999035825 | M146: 1.002926742 | N146: 0.07641493752 | O146: 1 | P146: 0 | Q146: 1 | R146: 0 | S146: 0.9992731911 | T146: 0.04014856314 | U146: 25.94459434 | V146: -108.228419 | W146: 71.77158103 | Y146: 1000000000 | Z146: 69182469.76 | AB146: 33.04300128 | AC146: -42.79669521 | AE146: 50.87244025 | AF146: -65.43172377 | AH146: 0 | AI146: 0
A147: 8366.05 | B147: 8.36605 | C147: 3.853456263 | D147: 1.308284345 | E147: 1.021628621 | F147: 0.2061351585 | G147: 1 | H147: 0 | I147: 2759.901845 | J147: 1.570433995 | K147: 1.614285196 | L147: 0.9027299321 | M147: 1.002960887 | N147: 0.07685830853 | O147: 1 | P147: 0 | Q147: 1 | R147: 0 | S147: 0.9992647099 | T147: 0.04038289819 | U147: 25.8800129 | V147: -108.122548 | W147: 71.87745198 | Y147: 1000000000 | Z147: 69990792.6 | AB147: 33.02327701 | AC147: -42.66028152 | AE147: 50.82758307 | AF147: -65.4622665 | AH147: 0 | AI147: 0
A148: 8414.5 | B148: 8.4145 | C148: 3.874273805 | D148: 1.309727935 | E148: 1.021877171 | F148: 0.2072951285 | G148: 1 | H148: 0 | I148: 2775.885162 | J148: 1.570436081 | K148: =SQRT(1+(A148/Zero2)^2) -> 1.620052817 | L148: =ATAN(A148/Zero2) -> 0.9055361796 | M148: 1.00299523 | N148: 0.07730164926 | O148: 1 | P148: 0 | Q148: 1 | R148: 0 | S148: 0.9992561796 | T148: 0.04061724144 | U148: 25.81592604 | V148: -108.0169601 | W148: 71.98303992 | Y148: 1000000000 | Z148: 70803810.25 | AB148: 33.00380061 | AC148: -42.52501647 | AE148: 50.78297261 | AF148: -65.49194361 | AH148: 0 | AI148: 0
A149: 8462.95 | B149: 8.46295 | C149: 3.895099335 | D149: 1.311156092 | E149: 1.022127095 | F149: 0.2084545329 | G149: 1 | H149: 0 | I149: 2791.868478 | J149: 1.570438144 | K149: 1.625833104 | L149: 0.9083224949 | M149: 1.003029769 | N149: 0.07774495955 | O149: 1 | P149: 0 | Q149: 1 | R149: 0 | S149: 0.9992476004 | T149: 0.04085159292 | U149: 25.75232761 | V149: -107.9116597 | W149: 72.08834034 | Y149: 1000000000 | Z149: 71621522.7 | AB149: 32.98456808 | AC149: -42.39089034 | AE149: 50.73860671 | AF149: -65.52076932 | AH149: 0 | AI149: 0
A150: 8511.4 | B150: 8.5114 | C150: 3.915932725 | D150: 1.312569055 | E150: 1.022378392 | F150: 0.2096133688 | G150: 1 | H150: 0 | I150: 2807.851795 | J150: 1.570440183 | K150: 1.631625925 | L150: 0.9110890468 | M150: 1.003064506 | N150: 0.07818823922 | O150: 1 | P150: 0 | Q150: 1 | R150: 0 | S150: 0.9992389721 | T150: 0.04108595269 | U150: 25.68921154 | V150: -107.806651 | W150: 72.19334896 | Y150: 1000000000 | Z150: 72443929.96 | AB150: 32.96557547 | AC150: -42.25789346 | AE150: 50.69448326 | AF150: -65.54875757 | AH150: 0 | AI150: 0
A151: 8560.95 | B151: 8.56095 | C151: 3.937247112 | D151: 1.313998629 | E151: 1.022636814 | F151: 0.2107979241 | G151: 1 | H151: 0 | I151: 2824.197994 | J151: 1.570442244 | K151: 1.637563089 | L151: 0.9138981432 | M151: 1.003100235 | N151: 0.07864155118 | O151: 1 | P151: 0 | Q151: 1 | R151: 0 | S151: 0.9992300973 | T151: 0.04132564194 | U151: 25.62515518 | V151: -107.6995644 | W151: 72.30043564 | Y151: 1000000000 | Z151: 73289864.9 | AB151: 32.94639576 | AC151: -42.12303506 | AE151: 50.6496066 | AF151: -65.57652929 | AH151: 0 | AI151: 0
A152: 8610.5 | B152: 8.6105 | C152: 3.958569459 | D152: 1.315412805 | E152: 1.022896671 | F152: 0.2119818792 | G152: 1 | H152: 0 | I152: 2840.544193 | J152: 1.570444282 | K152: 1.643513081 | L152: 0.916686922 | M152: 1.003136171 | N152: 0.07909483076 | O152: 1 | P152: 0 | Q152: 1 | R152: 0 | S152: 0.9992211713 | T152: 0.04156533995 | U152: 25.5615908 | V152: -107.5927912 | W152: 72.40720875 | Y152: 1000000000 | Z152: 74140710.25 | AB152: 32.92745889 | AC152: -41.98933756 | AE152: 50.6049791 | AF152: -65.60345369 | AH152: 0 | AI152: 0
A153: 8660.05 | B153: 8.66005 | C153: 3.979899638 | D153: 1.316811826 | E153: 1.02315796 | F153: 0.2131652312 | G153: 1 | H153: 0 | I153: 2856.890392 | J153: 1.570446296 | K153: 1.649475764 | L153: 0.9194555599 | M153: 1.003172312 | N153: 0.07954807777 | O153: 1 | P153: 0 | Q153: 1 | R153: 0 | S153: 0.999212194 | T153: 0.04180504678 | U153: 25.49851224 | V153: -107.4863356 | W153: 72.51366438 | Y153: 1000000000 | Z153: 74996466 | AB153: 32.90876086 | AC153: -41.85679084 | AE153: 50.56059856 | AF153: -65.62954478 | AH153: 0 | AI153: 0
A154: 8709.6 | B154: 8.7096 | C154: 4.001237524 | D154: 1.318195928 | E154: 1.023420682 | F154: 0.2143479773 | G154: 1 | H154: 0 | I154: 2873.236592 | J154: 1.570448287 | K154: 1.655450999 | L154: 0.9222042323 | M154: 1.00320866 | N154: 0.08000129203 | O154: 1 | P154: 0 | Q154: 1 | R154: 0 | S154: 0.9992031655 | T154: 0.04204476248 | U154: 25.43591343 | V154: -107.3802012 | W154: 72.61979881 | Y154: 1000000000 | Z154: 75857132.16 | AB154: 32.89029778 | AC154: -41.72538488 | AE154: 50.51646283 | AF154: -65.65481631 | AH154: 0 | AI154: =IF(AH154>0,W154,0) -> 0
A155: 8760.325 | B155: 8.760325 | C155: 4.023089258 | D155: 1.31959764 | E155: 1.023691115 | F155: 0.2155581398 | G155: 1 | H155: 0 | I155: 2889.970415 | J155: 1.570450302 | K155: 1.661580788 | L155: 0.9249975857 | M155: 1.003246082 | N155: 0.08046521943 | O155: 1 | P155: 0 | Q155: 1 | R155: 0 | S155: 0.9991938698 | T155: 0.0422901719 | U155: 25.3723209 | V155: -107.2718863 | W155: 72.7281137 | Y155: 1000000000 | Z155: 76743294.11 | AB155: 32.87163625 | AC155: -41.59203407 | AE155: 50.47153183 | AF155: -65.67985224 | AH155: 0 | AI155: 0
A156: 8811.05 | B156: 8.81105 | C156: 4.044948812 | D156: 1.320984205 | E156: 1.023963047 | F156: 0.2167676613 | G156: 1 | H156: 0 | I156: 2906.704238 | J156: 1.570452295 | K156: 1.667723447 | L156: 0.9277703833 | M156: 1.003283721 | N156: 0.08092911213 | O156: 1 | P156: 0 | Q156: 1 | R156: 0 | S156: 0.9991845205 | T156: 0.04253559071 | U156: 25.30921859 | V156: -107.1639152 | W156: 72.83608476 | Y156: 1000000000 | Z156: 77634602.1 | AB156: 32.85321291 | AC156: -41.4598577 | AE156: 50.42685287 | AF156: -65.70405754 | AH156: 0 | AI156: 0
A157: 8861.775 | B157: 8.861775 | C157: 4.066816059 | D157: 1.322355862 | E157: 1.024236477 | F157: 0.2179765387 | G157: 1 | H157: 0 | I157: 2923.438062 | J157: 1.570454264 | K157: 1.673878834 | L157: 0.930522809 | M157: 1.003321576 | N157: 0.08139296992 | O157: 1 | P157: 0 | Q157: 1 | R157: 0 | S157: 0.9991751174 | T157: 0.04278101899 | U157: 25.24660031 | V157: -107.0562913 | W157: 72.94370866 | Y157: 1000000000 | Z157: 78531056.15 | AB157: 32.83502379 | AC157: -41.32884524 | AE157: 50.3824237 | AF157: -65.72744609 | AH157: 0 | AI157: 0
A158: 8912.5 | B158: 8.9125 | C158: 4.088690876 | D158: 1.323712844 | E158: 1.024511402 | F158: 0.2191847692 | G158: 1 | H158: 0 | I158: 2940.171885 | J158: 1.570456211 | K158: =SQRT(1+(A158/Zero2)^2) -> 1.68004681 | L158: =ATAN(A158/Zero2) -> 0.9332550452 | M158: 1.003359646 | N158: 0.08185679261 | O158: 1 | P158: 0 | Q158: 1 | R158: 0 | S158: 0.9991656607 | T158: 0.04302645677 | U158: 25.18445996 | V158: -106.9490177 | W158: 73.05098225 | Y158: 1000000000 | Z158: 79432656.25 | AB158: 32.81706503 | AC158: -41.19898627 | AE158: 50.33824212 | AF158: -65.75003148 | AH158: 0 | AI158: 0
A159: 8964.4 | B159: 8.9644 | C159: 4.111080112 | D159: 1.32508631 | E159: 1.024794243 | F159: 0.2204203144 | G159: 1 | H159: 0 | I159: 2957.293333 | J159: 1.57045818 | K159: 1.686370545 | L159: 0.9360298637 | M159: 1.003398822 | N159: 0.08233132282 | O159: 1 | P159: 0 | Q159: 1 | R159: 0 | S159: 0.9991559294 | T159: 0.04327758981 | U159: 25.12136863 | V159: -106.8396249 | W159: 73.16037508 | Y159: 1000000000 | Z159: 80360467.36 | AB159: 32.79892474 | AC159: -41.06730228 | AE159: 50.29329108 | AF159: -65.77232264 | AH159: 0 | AI159: 0
A160: 9016.3 | B160: 9.0163 | C160: 4.133477019 | D160: 1.326444895 | E160: 1.025078647 | F160: 0.2216551759 | G160: 1 | H160: 0 | I160: 2974.414781 | J160: 1.570460126 | K160: 1.692707169 | L160: 0.9387839282 | M160: 1.003438224 | N160: 0.08280581586 | O160: 1 | P160: 0 | Q160: 1 | R160: 0 | S160: 0.999146142 | T160: 0.04352873291 | U160: 25.05876507 | V160: -106.7306049 | W160: 73.26939513 | Y160: 1000000000 | Z160: 81293665.69 | AB160: 32.78101765 | AC160: -40.93680398 | AE160: 50.24859461 | AF160: -65.7938009 | AH160: 0 | AI160: 0
A161: 9068.2 | B161: 9.0682 | C161: 4.155881473 | D161: 1.327788834 | E161: 1.025364614 | F161: 0.2228893505 | G161: 1 | H161: 0 | I161: 2991.536229 | J161: 1.57046205 | K161: 1.699056535 | L161: 0.9415174295 | M161: 1.003477852 | N161: 0.08328027153 | O161: 1 | P161: 0 | Q161: 1 | R161: 0 | S161: 0.9991362983 | T161: 0.04377988615 | U161: 24.9966431 | V161: -106.6219604 | W161: 73.37803961 | Y161: 1000000000 | Z161: 82232251.24 | AB161: 32.76333984 | AC161: -40.80748044 | AE161: 50.20415045 | AF161: -65.81447995 | AH161: 0 | AI161: 0
A162: 9120.1 | B162: 9.1201 | C162: 4.178293353 | D162: 1.329118357 | E162: 1.025652141 | F162: 0.224122835 | G162: 1 | H162: 0 | I162: 3008.657676 | J162: 1.570463953 | K162: 1.705418502 | L162: 0.9442305566 | M162: 1.003517705 | N162: 0.08375468963 | O162: 1 | P162: 0 | Q162: 1 | R162: 0 | S162: 0.9991263985 | T162: 0.04403104958 | U162: 24.93499662 | V162: -106.5136941 | W162: 73.48630594 | Y162: 1000000000 | Z162: 83176224.01 | AB162: 32.74588749 | AC162: -40.67932086 | AE162: 50.15995632 | AF162: -65.8343732 | AH162: 0 | AI162: 0
A163: 9173.2 | B163: 9.1732 | C163: 4.201230988 | D163: 1.330463939 | E163: 1.025947931 | F163: 0.2253841219 | G163: 1 | H163: 0 | I163: 3026.174996 | J163: 1.570465877 | K163: 1.711940461 | L163: 0.9469855242 | M163: 1.003558714 | N163: 0.08424003782 | O163: 1 | P163: 0 | Q163: 1 | R163: 0 | S163: 0.9991162117 | T163: 0.04428803086 | U163: 24.87241066 | V163: -106.4033183 | W163: 73.59668167 | Y163: 1000000000 | Z163: 84147598.24 | AB163: 32.72826103 | AC163: -40.54939148 | AE163: 50.11499681 | AF163: -65.85392685 | AH163: 0 | AI163: 0
A164: 9226.3 | B164: 9.2263 | C164: 4.224176147 | D164: 1.331794904 | E164: 1.026245352 | F164: 0.2266446796 | G164: 1 | H164: 0 | I164: 3043.692315 | J164: 1.570467778 | K164: 1.718475315 | L164: 0.9497195598 | M164: 1.003599959 | N164: 0.08472534623 | O164: 1 | P164: 0 | Q164: 1 | R164: 0 | S164: 0.9991059661 | T164: 0.04454502293 | U164: 24.81030988 | V164: -106.2933433 | W164: 73.70665666 | Y164: 1000000000 | Z164: 85124611.69 | AB164: 32.71086271 | AC164: -40.42065787 | AE164: 50.07029435 | AF164: -65.87268547 | AH164: 0 | AI164: 0
A165: 9279.4 | B165: 9.2794 | C165: 4.247128709 | D165: 1.333111486 | E165: 1.026544403 | F165: 0.227904505 | G165: 1 | H165: 0 | I165: 3061.209635 | J165: 1.570469659 | K165: 1.725022917 | L165: 0.9524328606 | M165: 1.00364144 | N165: 0.08521061464 | O165: 1 | P165: 0 | Q165: 1 | R165: 0 | S165: 0.9990956618 | T165: 0.04480202585 | U165: 24.74868808 | V165: -106.1837713 | W165: 73.81622869 | Y165: 1000000000 | Z165: 86107264.36 | AB165: 32.69368865 | AC165: -40.29310874 | AE165: 50.02584661 | AF165: -65.89066257 | AH165: 0 | AI165: 0
A166: 9332.5 | B166: 9.3325 | C166: 4.270088553 | D166: 1.334413912 | E166: 1.026845082 | F166: 0.2291635945 | G166: 1 | H166: 0 | I166: 3078.726954 | J166: 1.570471517 | K166: 1.731583122 | L166: 0.955125622 | M166: 1.003683158 | N166: 0.08569584282 | O166: 1 | P166: 0 | Q166: 1 | R166: 0 | S166: 0.9990852986 | T166: 0.04505903968 | U166: 24.68753917 | V166: -106.0746043 | W166: 73.92539573 | Y166: 1000000000 | Z166: 87095556.25 | AB166: 32.67673507 | AC166: -40.1667329 | AE166: 49.98165128 | AF166: -65.90787137 | AH166: 0 | AI166: 0
A167: 9386.85 | B167: 9.38685 | C167: 4.293596303 | D167: 1.33573257 | E167: 1.027154524 | F167: 0.2304515582 | G167: 1 | H167: 0 | I167: 3096.65664 | J167: 1.570473398 | K167: 1.738310662 | L167: 0.9578607043 | M167: 1.003726103 | N167: 0.08619245163 | O167: 1 | P167: 0 | Q167: 1 | R167: 0 | S167: 0.9990746307 | T167: 0.04532211512 | U167: 24.62543427 | V167: -105.9632887 | W167: 74.03671127 | Y167: 1000000000 | Z167: 88112952.92 | AB167: 32.65960685 | AC167: -40.03858556 | AE167: 49.93667461 | AF167: -65.92470317 | AH167: 0 | AI167: 0
A168: 9441.2 | B168: 9.4412 | C168: 4.317111438 | D168: 1.337036866 | E168: 1.027465669 | F168: 0.2317387439 | G168: 1 | H168: 0 | I168: 3114.586326 | J168: 1.570475257 | K168: 1.745051104 | L168: 0.9605746778 | M168: 1.003769295 | N168: 0.08668901781 | O168: 1 | P168: 0 | Q168: 1 | R168: 0 | S168: 0.9990639013 | T168: 0.04558520212 | U168: 24.56381223 | V168: -105.8524012 | W168: 74.14759875 | Y168: 1000000000 | Z168: 89136257.44 | AB168: 32.64270182 | AC168: -39.911644 | AE168: 49.8919576 | AF168: -65.94075725 | AH168: 0 | AI168: 0
A169: 9495.55 | B169: 9.49555 | C169: 4.340633837 | D169: 1.338327027 | E169: 1.027778515 | F169: 0.2330251481 | G169: 1 | H169: 0 | I169: 3132.516012 | J169: 1.570477095 | K169: 1.751804301 | L169: 0.9632677462 | M169: 1.003812734 | N169: 0.08718554114 | O169: 1 | P169: 0 | Q169: 1 | R169: 0 | S169: 0.9990531102 | T169: 0.04584830076 | U169: 24.50266685 | V169: -105.7419435 | W169: 74.25805652 | Y169: 1000000000 | Z169: 90165469.8 | AB169: 32.62601616 | AC169: -39.78589653 | AE169: 49.84749788 | AF169: -65.95604694 | AH169: 0 | AI169: 0
A170: 9549.9 | B170: 9.5499 | C170: 4.364163384 | D170: 1.339603278 | E170: 1.028093061 | F170: 0.2343107673 | G170: 1 | H170: 0 | I170: 3150.445697 | J170: 1.570478911 | K170: 1.758570106 | L170: 0.9659401116 | M170: 1.003856421 | N170: 0.08768202138 | O170: 1 | P170: 0 | Q170: 1 | R170: 0 | S170: 0.9990422577 | T170: 0.0461114111 | U170: 24.44199205 | V170: -105.6319169 | W170: 74.36808309 | Y170: 1000000000 | Z170: 91200590.01 | AB170: 32.60954613 | AC170: -39.66133159 | AE170: 49.8032931 | AF170: -65.97058532 | AH170: 0 | AI170: 0
A171: 9605.525 | B171: 9.605525 | C171: 4.388252192 | D171: 1.340895295 | E171: 1.028416744 | F171: 0.2356257294 | G171: 1 | H171: 0 | I171: 3168.795997 | J171: 1.57048075 | K171: 1.765507533 | L171: 0.9686539397 | M171: 1.003901389 | N171: 0.08819010371 | O171: 1 | P171: 0 | Q171: 1 | R171: 0 | S171: 0.9990310868 | T171: 0.04638070594 | U171: 24.3803749 | V171: -105.5197571 | W171: 74.48024289 | Y171: 1000000000 | Z171: 92266110.53 | AB171: 32.59290918 | AC171: -39.53505698 | AE171: 49.7583129 | AF171: -65.98470013 | AH171: 0 | AI171: 0
A172: 9661.15 | B172: 9.66115 | C172: 4.412348245 | D172: 1.342173203 | E172: 1.028742205 | F172: 0.2369398617 | G172: 1 | H172: 0 | I172: 3187.146296 | J172: 1.570482566 | K172: 1.772457861 | L172: 0.9713465042 | M172: 1.003946616 | N172: 0.08869814039 | O172: 1 | P172: 0 | Q172: 1 | R172: 0 | S172: 0.9990198515 | T172: 0.04665001319 | U172: 24.31923809 | V172: -105.4080516 | W172: 74.59194835 | Y172: 1000000000 | Z172: 93337819.32 | AB172: 32.5764904 | AC172: -39.40999686 | AE172: 49.71359488 | AF172: -65.99805478 | AH172: 0 | AI172: 0
A173: 9716.775 | B173: 9.716775 | C173: 4.436451426 | D173: 1.343437227 | E173: 1.029069441 | F173: 0.2382531606 | G173: 1 | H173: 0 | I173: 3205.496596 | J173: 1.570484363 | K173: 1.779420939 | L173: 0.9740180152 | M173: 1.003992103 | N173: 0.08920613117 | O173: 1 | P173: 0 | Q173: 1 | R173: 0 | S173: 0.9990085518 | T173: 0.04691933291 | U173: 24.25857545 | V173: -105.2968016 | W173: 74.70319837 | Y173: 1000000000 | Z173: 94415716.4 | AB173: 32.560286 | AC173: -39.2861392 | AE173: 49.66913663 | AF173: -66.01066243 | AH173: 0 | AI173: 0
A174: 9772.4 | B174: 9.7724 | C174: 4.460561619 | D174: 1.344687589 | E174: 1.02939845 | F174: 0.2395656221 | G174: 1 | H174: 0 | I174: 3223.846895 | J174: 1.570486138 | K174: 1.786396618 | L174: 0.9766686812 | M174: 1.004037848 | N174: 0.08971407578 | O174: 1 | P174: 0 | Q174: 1 | R174: 0 | S174: 0.9989971877 | T174: 0.04718866518 | U174: 24.19838088 | V174: -105.186008 | W174: 74.813992 | Y174: 1000000000 | Z174: 95499801.76 | AB174: 32.54429231 | AC174: -39.16347205 | AE174: 49.62493576 | AF174: -66.02253596 | AH174: 0 | AI174: 0
A175: 9829.3 | B175: 9.8293 | C175: 4.485231587 | D175: 1.3459527 | E175: 1.029736835 | F175: 0.240907297 | G175: 1 | H175: 0 | I175: 3242.617808 | J175: 1.570487934 | K175: 1.793545072 | L175: 0.9793587517 | M175: 1.00408491 | N175: 0.09023361515 | O175: 1 | P175: 0 | Q175: 1 | R175: 0 | S175: 0.9989854964 | T175: 0.04746418395 | U175: 24.13728464 | V175: -105.0731479 | W175: 74.9268521 | Y175: 1000000000 | Z175: 96615138.49 | AB175: 32.52814623 | AC175: -39.03921266 | AE175: 49.5799856 | AF175: -66.03393524 | AH175: 0 | AI175: 0
A176: 9886.2 | B176: 9.8862 | C176: 4.509908654 | D176: 1.347203968 | E176: 1.030077072 | F176: 0.242248088 | G176: 1 | H176: 0 | I176: 3261.388721 | J176: 1.570489709 | K176: 1.800706403 | L176: 0.9820274447 | M176: 1.004132243 | N176: 0.09075310568 | O176: 1 | P176: 0 | Q176: 1 | R176: 0 | S176: 0.9989737377 | T176: 0.04773971601 | U176: 24.07666565 | V176: -104.9607669 | W176: 75.03923308 | Y176: 1000000000 | Z176: 97736950.44 | AB176: 32.51221303 | AC176: -38.91617412 | AE176: 49.53529981 | AF176: -66.0445928 | AH176: 0 | AI176: 0
A177: 9943.1 | B177: 9.9431 | C177: 4.534592706 | D177: 1.348441616 | E177: 1.030419159 | F177: 0.2435879911 | G177: 1 | H177: 0 | I177: 3280.159634 | J177: 1.570491464 | K177: 1.807880456 | L177: 0.9846749767 | M177: 1.004179846 | N177: 0.0912725471 | O177: 1 | P177: 0 | Q177: 1 | R177: 0 | S177: 0.9989619116 | T177: 0.04801526142 | U177: 24.01651774 | V177: -104.8488656 | W177: 75.15113436 | Y177: 1000000000 | Z177: 98865237.61 | AB177: 32.49648898 | AC177: -38.79434405 | AE177: 49.49087594 | AF177: -66.05452159 | AH177: 0 | AI177: 0
A178: 10000 | B178: 10 | C178: 4.559283629 | D178: 1.349665861 | E178: 1.030763095 | F178: 0.2449270024 | G178: 1 | H178: 0 | I178: 3298.930547 | J178: 1.570493198 | K178: 1.815067081 | L178: 0.9873015615 | M178: 1.004227721 | N178: 0.09179193913 | O178: 1 | P178: 0 | Q178: 1 | R178: 0 | S178: 0.9989500182 | T178: 0.04829082026 | U178: 23.95683483 | V178: -104.7374445 | W178: 75.26255552 | Y178: 1000000000 | Z178: 100000000 | AB178: 32.48097044 | AC178: -38.67371019 | AE178: 49.44671157 | AF178: -66.0637343 | AH178: 0 | AI178: 0
A179: 10058.25 | B179: 10.05825 | C179: 4.584567365 | D179: 1.35090549 | E179: 1.031117105 | F179: 0.2462968551 | G179: 1 | H179: 0 | I179: 3318.146816 | J179: 1.570494954 | K179: 1.822437082 | L179: 0.9899689868 | M179: 1.004277012 | N179: 0.09232360273 | O179: 1 | P179: 0 | Q179: 1 | R179: 0 | S179: 0.9989377727 | T179: 0.04857293096 | U179: 23.89621137 | V179: -104.6238774 | W179: 75.37612257 | Y179: 1000000000 | Z179: 101168393.1 | AB179: 32.46529287 | AC179: -38.55144063 | AE179: 49.40176568 | AF179: -66.07243679 | AH179: 0 | AI179: 0
A180: 10116.5 | B180: 10.1165 | C180: 4.60985807 | D180: 1.352131519 | E180: 1.031473048 | F180: 0.2476657649 | G180: 1 | H180: 0 | I180: 3337.363085 | J180: 1.570496689 | K180: 1.829819946 | L180: 0.992614906 | M180: 1.004326587 | N180: 0.09285521399 | O180: 1 | P180: 0 | Q180: 1 | R180: 0 | S180: 0.9989254567 | T180: 0.0488550559 | U180: 23.83606273 | V180: -104.510814 | W180: 75.48918596 | Y180: 1000000000 | Z180: 102343572.2 | AB180: 32.44982319 | AC180: -38.43039913 | AE180: 49.35708672 | AF180: -66.08041491 | AH180: 0 | AI180: 0
A181: 10174.75 | B181: 10.17475 | C181: 4.635155628 | D181: 1.353344167 | E181: 1.031830922 | F181: 0.2490337277 | G181: 1 | H181: 0 | I181: 3356.579353 | J181: 1.570498404 | K181: 1.837215517 | L181: 0.9952395416 | M181: 1.004376446 | N181: 0.09338677262 | O181: 1 | P181: 0 | Q181: 1 | R181: 0 | S181: 0.9989130701 | T181: 0.04913719516 | U181: 23.77638274 | V181: -104.3982544 | W181: 75.60174562 | Y181: 1000000000 | Z181: 103525537.6 | AB181: 32.43455773 | AC181: -38.31057294 | AE181: 49.31267219 | AF181: -66.08768144 | AH181: 0 | AI181: 0
A182: 10233 | B182: 10.233 | C182: 4.660459928 | D182: 1.354543649 | E182: 1.032190726 | F182: 0.2504007394 | G182: 1 | H182: 0 | I182: 3375.795622 | J182: 1.5705001 | K182: 1.844623643 | L182: 0.9978431137 | M182: 1.004426589 | N182: 0.09391827832 | O182: 1 | P182: 0 | Q182: 1 | R182: 0 | S182: 0.9989006129 | T182: 0.04941934884 | U182: 23.71716534 | V182: -104.2861983 | W182: 75.71380165 | Y182: 1000000000 | Z182: 104714289 | AB182: 32.41949289 | AC182: -38.19194945 | AE182: 49.26851964 | AF182: -66.09424889 | AH182: 0 | AI182: 0
A183: 10292.5 | B183: 10.2925 | C183: 4.686314086 | D183: 1.355755496 | E183: 1.032560242 | F183: 0.2517960998 | G183: 1 | H183: 0 | I183: 3395.424257 | J183: 1.570501813 | K183: 1.852203546 | L183: 1.000481036 | M183: 1.004478101 | N183: 0.09446113479 | O183: 1 | P183: 0 | Q183: 1 | R183: 0 | S183: 0.9988878156 | T183: 0.04970757227 | U183: 23.65714859 | V183: -104.1722574 | W183: 75.82774257 | Y183: 1000000000 | Z183: 105935556.2 | AB183: 32.40430823 | AC183: -38.07200913 | AE183: 49.22368755 | AF183: -66.10024831 | AH183: 0 | AI183: 0
A184: 10352 | B184: 10.352 | C184: 4.71217505 | D184: 1.356954042 | E184: 1.032931766 | F184: 0.2531904592 | G184: 1 | H184: 0 | I184: 3415.052892 | J184: 1.570503506 | K184: 1.859796233 | L184: 1.003097438 | M184: 1.004529908 | N184: 0.09500393542 | O184: 1 | P184: 0 | Q184: 1 | R184: 0 | S184: 0.9988749446 | T184: 0.04999581091 | U184: 23.59760207 | V184: -104.0588414 | W184: 75.94115855 | Y184: 1000000000 | Z184: 107163904 | AB184: 32.38932556 | AC184: -37.95329752 | AE184: 49.1791237 | AF184: -66.10554393 | AH184: 0 | AI184: 0
A185: 10411.5 | B185: 10.4115 | C185: 4.73804271 | D185: 1.358139504 | E185: 1.033305297 | F185: 0.2545838132 | G185: 1 | H185: 0 | I185: 3434.681527 | J185: 1.570505179 | K185: 1.867401548 | L185: 1.005692546 | M185: 1.004582012 | N185: 0.09554667991 | O185: 1 | P185: 0 | Q185: 1 | R185: 0 | S185: 0.998862 | T185: 0.05028406484 | U185: 23.53851967 | V185: -103.9459499 | W185: 76.05405007 | Y185: 1000000000 | Z185: 108399332.2 | AB185: 32.37454126 | AC185: -37.83580164 | AE185: 49.13482559 | AF185: -66.11014829 | AH185: 0 | AI185: 0
A186: 10471 | B186: 10.471 | C186: 4.763916956 | D186: 1.359312089 | E186: 1.033680832 | F186: 0.2559761575 | G186: 1 | H186: 0 | I186: 3454.310162 | J186: 1.570506833 | K186: 1.875019337 | L186: 1.008266584 | M186: 1.004634411 | N186: 0.09608936794 | O186: 1 | P186: 0 | Q186: 1 | R186: 0 | S186: 0.9988489818 | T186: 0.05057233415 | U186: 23.47989536 | V186: -103.8335823 | W186: 76.16641771 | Y186: 1000000000 | Z186: 109641841 | AB186: 32.35995182 | AC186: -37.71950862 | AE186: 49.09079073 | AF186: -66.11407367 | AH186: 0 | AI186: 0
A187: 10532 | B187: 10.532 | C187: 4.79045022 | D187: 1.360501085 | E187: 1.034067914 | F187: 0.2574025501 | G187: 1 | H187: 0 | I187: 3474.433637 | J187: 1.57050851 | K187: 1.882841962 | L187: 1.010883874 | M187: 1.004688438 | N187: 0.09664567824 | O187: 1 | P187: 0 | Q187: 1 | R187: 0 | S187: 0.998835559 | T187: 0.05086788682 | U187: 23.42026254 | V187: -103.718925 | W187: 76.28107499 | Y187: 1000000000 | Z187: 110923024 | AB187: 32.34519326 | AC187: -37.60151928 | AE187: 49.04591646 | AF187: -66.11740572 | AH187: 0 | AI187: 0
A188: 10593 | B188: 10.593 | C188: 4.816990181 | D188: 1.36167698 | E188: 1.034457098 | F188: 0.2588278724 | G188: 1 | H188: 0 | I188: 3494.557111 | J188: 1.570510167 | K188: 1.890677378 | L188: 1.013479488 | M188: 1.004742777 | N188: 0.09720192855 | O188: 1 | P188: 0 | Q188: 1 | R188: 0 | S188: 0.9988220589 | T188: 0.05116345585 | U188: 23.36109876 | V188: -103.6048168 | W188: 76.39518323 | Y188: 1000000000 | Z188: 112211649 | AB188: 32.33063226 | AC188: -37.48476732 | AE188: 49.00131369 | AF188: -66.12004945 | AH188: 0 | AI188: 0
A189: 10654 | B189: 10.654 | C189: 4.843536729 | D189: 1.362839987 | E189: 1.034848382 | F189: 0.2602521198 | G189: 1 | H189: 0 | I189: 3514.680586 | J189: 1.570511806 | K189: 1.898525427 | L189: 1.016053659 | M189: 1.004797426 | N189: 0.09775811852 | O189: 1 | P189: 0 | Q189: 1 | R189: 0 | S189: 0.9988084814 | T189: 0.05145904133 | U189: 23.30239791 | V189: -103.4912566 | W189: 76.50874337 | Y189: 1000000000 | Z189: 113507716 | AB189: 32.31626523 | AC189: -37.36923936 | AE189: 48.95697986 | AF189: -66.12201728 | AH189: 0 | AI189: 0
A190: 10715 | B190: 10.715 | C190: 4.870089758 | D190: 1.363990313 | E190: 1.035241764 | F190: 0.2616752876 | G190: 1 | H190: 0 | I190: 3534.80406 | J190: 1.570513426 | K190: 1.906385953 | L190: 1.01860662 | M190: 1.004852386 | N190: 0.09831424782 | O190: 1 | P190: 0 | Q190: 1 | R190: 0 | S190: 0.9987948266 | T190: 0.05175464335 | U190: 23.24415396 | V190: -103.3782435 | W190: 76.62175648 | Y190: 1000000000 | Z190: 114811225 | AB190: 32.30208872 | AC190: -37.25492216 | AE190: 48.91291242 | AF190: -66.12332136 | AH190: 0 | AI190: 0
A191: 10777.5 | B191: 10.7775 | C191: 4.897302341 | D191: 1.365155987 | E191: 1.035646992 | F191: 0.263132327 | G191: 1 | H191: 0 | I191: 3555.422375 | J191: 1.570515066 | K191: 1.91445255 | L191: 1.021200597 | M191: 1.00490902 | N191: 0.09888398916 | O191: 1 | P191: 0 | Q191: 1 | R191: 0 | S191: 0.9987807559 | T191: 0.05205753154 | U191: 23.18494549 | V191: -103.2630175 | W191: 76.73698246 | Y191: 1000000000 | Z191: 116154506.2 | AB191: 32.28775762 | AC191: -37.139036 | AE191: 48.86803505 | AF191: -66.12398155 | AH191: 0 | AI191: 0
A192: 10840 | B192: 10.84 | C192: 4.924521504 | D192: 1.366308776 | E192: 1.036054417 | F192: 0.2645882235 | G192: 1 | H192: 0 | I192: 3576.040689 | J192: 1.570516688 | K192: 1.922531921 | L192: 1.023772789 | M192: 1.00496598 | N192: 0.09945366609 | O192: 1 | P192: 0 | Q192: 1 | R192: 0 | S192: 0.998766604 | T192: 0.0523604373 | U192: 23.12620422 | V192: -103.1483632 | W192: 76.85163676 | Y192: 1000000000 | Z192: 117505600 | AB192: 32.27361935 | AC192: -37.02439325 | AE192: 48.82343205 | AF192: -66.12396999 | AH192: 0 | AI192: 0
A193: 10902.5 | B193: 10.9025 | C193: 4.95174714 | D193: 1.36744889 | E193: 1.036464036 | F193: 0.2660429723 | G193: 1 | H193: 0 | I193: 3596.659003 | J193: 1.570518291 | K193: 1.930623905 | L193: 1.026323436 | M193: 1.005023266 | N193: 0.1000232783 | O193: 1 | P193: 0 | Q193: 1 | R193: 0 | S193: 0.998752371 | T193: 0.05266336074 | U193: 23.06792402 | V193: -103.0342792 | W193: 76.96572083 | Y193: 1000000000 | Z193: 118864506.2 | AB193: 32.25967038 | AC193: -36.91098018 | AE193: 48.77910083 | AF193: -66.12329899 | AH193: 0 | AI193: 0
A194: 10965 | B194: 10.965 | C194: 4.978979142 | D194: 1.368576534 | E194: 1.036875847 | F194: 0.2674965687 | G194: 1 | H194: 0 | I194: 3617.277317 | J194: 1.570519876 | K194: 1.938728345 | L194: 1.028852774 | M194: 1.005080878 | N194: 0.1005928253 | O194: 1 | P194: 0 | Q194: 1 | R194: 0 | S194: 0.9987380569 | T194: 0.05296630195 | U194: 23.01009888 | V194: -102.9207638 | W194: 77.07923622 | Y194: 1000000000 | Z194: 120231225 | AB194: 32.24590729 | AC194: -36.79878323 | AE194: 48.73503878 | AF194: -66.12198055 | AH194: 0 | AI194: 0
A195: 11028.75 | B195: 11.02875 | C195: 5.006762234 | D195: 1.369714092 | E195: 1.03729815 | F195: 0.2689780447 | G195: 1 | H195: 0 | I195: 3638.307998 | J195: 1.570521474 | K195: 1.947007543 | L195: 1.031410989 | M195: 1.005139978 | N195: 0.1011736959 | O195: 1 | P195: 0 | Q195: 1 | R195: 0 | S195: 0.998723373 | T195: 0.05327532041 | U195: 22.95157991 | V195: -102.8055622 | W195: 77.19443775 | Y195: 1000000000 | Z195: 121633326.6 | AB195: 32.23205692 | AC195: -36.68558127 | AE195: 48.69037017 | AF195: -66.11998098 | AH195: 0 | AI195: 0
A196: 11092.5 | B196: 11.0925 | C196: 5.034551735 | D196: 1.370839094 | E196: 1.037722727 | F196: 0.2704583117 | G196: 1 | H196: 0 | I196: 3659.338678 | J196: 1.570523053 | K196: 1.955299376 | L196: 1.033947524 | M196: 1.005199418 | N196: 0.1017544979 | O196: 1 | P196: 0 | Q196: 1 | R196: 0 | S196: 0.9987086047 | T196: 0.05358435757 | U196: 22.89352207 | V196: -102.6909489 | W196: 77.30905115 | Y196: 1000000000 | Z196: 123043556.2 | AB196: 32.21839295 | AC196: -36.57361655 | AE196: 48.64597631 | AF196: -66.11733231 | AH196: 0 | AI196: 0
A197: 11156.25 | B197: 11.15625 | C197: 5.062347537 | D197: 1.371951743 | E197: 1.038149576 | F197: 0.2719373647 | G197: 1 | H197: 0 | I197: 3680.369359 | J197: 1.570524615 | K197: 1.963603683 | L197: 1.03646262 | M197: 1.005259196 | N197: 0.1023352311 | O197: 1 | P197: 0 | Q197: 1 | R197: 0 | S197: 0.998693752 | T197: 0.05389341356 | U197: 22.83591932 | V197: -102.5769217 | W197: 77.4230783 | Y197: 1000000000 | Z197: 124461914.1 | AB197: 32.20491194 | AC197: -36.46287518 | AE197: 48.60185456 | AF197: -66.11404652 | AH197: 0 | AI197: 0
A198: 11220 | B198: 11.22 | C198: 5.090149537 | D198: 1.373052239 | E198: 1.038578694 | F198: 0.2734151987 | G198: 1 | H198: 0 | I198: 3701.400039 | J198: 1.570526159 | K198: 1.971920306 | L198: 1.038956517 | M198: 1.005319313 | N198: 0.102915895 | O198: 1 | P198: 0 | Q198: 1 | R198: 0 | S198: 0.998678815 | T198: 0.05420248847 | U198: 22.77876573 | V198: -102.4634788 | W198: 77.53652121 | Y198: 1000000000 | Z198: 125888400 | AB198: 32.19161056 | AC198: -36.35334346 | AE198: 48.55800235 | AF198: -66.11013533 | AH198: 0 | AI198: 0
A199: 11285.5 | B199: 11.2855 | C199: 5.11872108 | D199: 1.374170493 | E199: 1.039021953 | F199: 0.2749323259 | G199: 1 | H199: 0 | I199: 3723.008032 | J199: 1.570527727 | K199: 1.980477894 | L199: 1.041497042 | M199: 1.005381434 | N199: 0.1035124262 | O199: 1 | P199: 0 | Q199: 1 | R199: 0 | S199: 0.9986633801 | T199: 0.05452006762 | U199: 22.72050491 | V199: -102.3475281 | W199: 77.65247186 | Y199: 1000000000 | Z199: 127362510.2 | AB199: 32.1781277 | AC199: -36.24205066 | AE199: 48.5132244 | AF199: -66.10547748 | AH199: 0 | AI199: 0
A200: 11351 | B200: 11.351 | C200: 5.147298953 | D200: 1.37527633 | E200: 1.039467601 | F200: 0.2764481556 | G200: 1 | H200: 0 | I200: 3744.616026 | J200: 1.570529277 | K200: 1.989048155 | L200: 1.04401569 | M200: 1.005443912 | N200: 0.1041088834 | O200: 1 | P200: 0 | Q200: 1 | R200: 0 | S200: 0.9986478562 | T200: 0.05483766699 | U200: 22.6627059 | V200: -102.2321898 | W200: 77.76781022 | Y200: 1000000000 | Z200: 128845201 | AB200: 32.16482754 | AC200: -36.13200604 | AE200: 48.46872555 | AF200: -66.10018374 | AH200: 0 | AI200: 0
A201: 11416.5 | B201: 11.4165 | C201: 5.175883051 | D201: 1.376369954 | E201: 1.039915636 | F201: 0.2779626827 | G201: 1 | H201: 0 | I201: 3766.224019 | J201: 1.570530809 | K201: 1.997630924 | L201: 1.046512711 | M201: 1.005506748 | N201: 0.1047052663 | O201: 1 | P201: 0 | Q201: 1 | R201: 0 | S201: 0.9986322433 | T201: 0.05515528669 | U201: 22.60536261 | V201: -102.1174613 | W201: 77.88253866 | Y201: 1000000000 | Z201: 130336472.2 | AB201: 32.15170668 | AC201: -36.02319526 | AE201: 48.42450311 | AF201: -66.09426607 | AH201: 0 | AI201: 0
A202: 11482 | B202: 11.482 | C202: 5.204473271 | D202: 1.377451565 | E202: 1.040366053 | F202: 0.2794759019 | G202: 1 | H202: 0 | I202: 3787.832012 | J202: 1.570532324 | K202: 2.006226043 | L202: 1.048988353 | M202: 1.005569942 | N202: 0.1053015745 | O202: 1 | P202: 0 | Q202: 1 | R202: 0 | S202: 0.9986165415 | T202: 0.05547292683 | U202: 22.54846906 | V202: -102.0033404 | W202: 77.99665964 | Y202: 1000000000 | Z202: 131836324 | AB202: 32.13876181 | AC202: -35.9156042 | AE202: 48.38055443 | AF202: -66.08773615 | AH202: 0 | AI202: 0
... 433 more rows

Sheet Bode Plot Management (hidden)
J1: Single or dual output (MODE) | N1: 3.3V or 5V fixed (FB1/2)
A2: =CHOOSE(BODE_PLOT_TYPE, "BODE_PLOT_Ch1", "BODE_PLOT_Ch2") -> BODE_PLOT_Ch1 | J2: With/without dither (DITH) | N2: With/without VOUT connected to VCCX
J3: FPWM or DEM (DEMB)
J4: Shunt or inductor DCR current sensing
F6: =INDIRECT(A2) -> 0

Sheet Efficiency Calculations (hidden)
A1: BUCK CONTROLLER POWER DESIGN TOOL
H2: =AV19 -> 0.9691437611 | I2: 10% load
H3: =AV59 -> 0.9759123483 | I3: 50% load | AP3: =IF(MODE=1, (Qg_Q1+Qg_Q2)*Fsw*Vin, (Qg_Q1+Qg_Q2+Qg_Q3+Qg_Q4)*Fsw*Vin) -> 0.3366
H4: =AV109 -> 0.9620382299 | I4: 100% load | AO4: I_VCC | AP4: =(Qg_Q1+Qg_Q2)*Fsw*1000 -> 14.025 | AQ4: mA | AR4: =AP4*5/1000 -> 0.070125
A6: Enter the values of your design and MOSFET datasheet specifications below. Note that thermal resistance (θJA) will change when components are placed on the PCB
G7: Operating Point Condtions | R7: Filter Inductor | V7: Cout | Y7: Cin | AB7: High-side BUCK "Control" MOSFET Losses | AH7: Low-side BUCK "Sync" MOSFET Losses | AL7: External Diode | AM7: Diode/FET | AN7: Sense Rs | AO7: Controller IC Losses | AT7: RESULTS | AZ7: Consolidated Buck/Boost Efficiency & Losses
A8: Input Parameters | G8: Step | H8: Vin | I8: Mode | J8: Iout | K8: Iout/ phase | L8: Iin | M8: Duty Cycle BUCK Leg | N8: Ripple Current pk-pk | O8: Peak Inductor Current | P8: Valley Inductor Current | Q8: SW node voltage at Q1 turn-on | R8: Irms Lf | S8: DCR Loss | T8: Core Loss | U8: Total Inductor Loss | V8: Irms Cout | W8: Cout ESR Loss | X8: Total Cout Loss | Y8: Irms Cin | Z8: Cin ESR Loss | AA8: Total Cin Loss | AB8: Irms | AC8: RDS(on) Loss | AD8: Transition Loss (not including capacitive loss) | AE8: MOSFET Output Capacitance Loss | AF8: Dead Time Loss | AG8: Total Control MOSFET Loss | AH8: Irms | AI8: RDS(on) Loss | AJ8: Deadtime Loss | AK8: Total Sync MOSFET Loss | AL8: Deadtime Loss | AM8: Reverse Recovery Loss | AN8: Isense Shunt Loss | AO8: IQ Loss | AP8: Switching Current Loss | AQ8: Switching Current Diss | AR8: LDO Loss Saved from Gate Drive Current (ext VCC) | AS8: Total IC Loss | AT8: Total Loss | AU8: Pout | AV8: EFF, h | AW8: =IF(Vin>Vout, "Buck ''CONTROL'' MOSFET Temp Rise", "Boost ''CONTROL'' MOSFET Temp Rise") -> Buck ''CONTROL'' MOSFET Temp Rise | AX8: =IF(Vin>Vout, "Buck ''SYNC'' MOSFET Temp Rise", "Boost ''SYNC'' MOSFET Temp Rise") -> Buck ''SYNC'' MOSFET Temp Rise | AZ8: h | BA8: Inductor Cu & Core Loss | BB8: Total MOSFET Loss | BC8: Control MOSFET Loss | BD8: SYNC MOSFET Loss | BE8: Shunt Loss
A9: Design | B9: Input Value | C9: Units | D9: Description | G9: 0 | H9: =Vin -> 24 | I9: =MODE -> 1 | J9: 0 | K9: =Iout*G9/100/Number_of_Phases -> 0 | L9: =Vout*K9/(Vin*Efficiency) -> 0 | M9: =(Vout+(Rdson2+Rs+Rdcr)*K9)/(Vin+(Rs+Rdson2-Rdson1)*K9) -> 0.7916666667 | N9: =(Vin-(Rdson1+Rdcr)*K9-Vout)*M9/(Fsw*Lf) -> 1.981643721 | O9: =K9+N9/2 -> 0.9908218607 | P9: =K9-N9/2 -> -0.9908218607 | Q9: =IF(MIN(Vin, -P9/(Coss_Q1+Coss_Q2)*0.00000002)<0, 0, MIN(Vin, -P9/(Coss_Q1+Coss_Q2)*0.00000002)) -> 24 | R9: =SQRT(K9^2+(N9^2)/12) -> 0.572051268 | S9: =R9^2*Rdcr -> 0.001701661797 | T9: =Core_Loss_Ch1 -> 0.2 | U9: =(T9+S9*(1+Ltc*(Ta-25)))/(1-S9*Ltc*ThetaCa) -> 0.2017631616 | V9: =N9/SQRT(12) -> 0.572051268 | W9: =RCoutEsr*V9^2 -> 0.02169618791 | X9: =W9 -> 0.02169618791 | Y9: =SQRT(M9*(1-M9))*SQRT(K9^2+(N9^2)/12) -> 0.2323194193 | Z9: =RCinEsr*Y9^2 -> 0.007178317575 | AA9: =Z9 -> 0.007178317575 | AB9: =SQRT(M9)*SQRT(K9^2+(N9^2)/12) -> 0.508986346 | AC9: =Rdson1*AB9^2 -> 0.003108805205 | AD9: =(Vin*K9/2)*Fsw*(Tr_buck+Tf_buck) -> 0 | AE9: =(0.5*Coss_Q1*(Vin-Q9)^2-0.5*Coss_Q2*(Vin-Q9)^2+(Qoss_Q2*(Vin-Q9)/Vin)*Vin)*Fsw -> 0 | AF9: =IF(K9>N9/2,0,ABS(K9-N9/2)*Vsd_Q1*Deadtime*Fsw) -> 0.00412677305 | AG9: =(AF9+AE9+AD9+AC9*(1+RdsonTopTc*Ta-RdsonTopTc*25))/(1-AC9*RdsonTopTc*ThetaJA_Q1) -> 0.007301567817 | AH9: =SQRT((1-M9))*SQRT(K9^2+(N9^2)/12) -> 0.2611044863 | AI9: =Rdson2*AH9^2 -> 0.0002795197663 | AJ9: =IF(K9<N9/2,Deadtime*Fsw*IF(VfdSky_Q2>0,0,Vsd_Q2)*(K9+N9/2),2*Deadtime*Fsw*IF(VfdSky_Q2>0,0,Vsd_Q2)*K9) -> 0.00412677305 | AK9: =(AJ9+AI9*(1+RdsonBotTc*Ta-RdsonBotTc*25))/(1-AI9*RdsonBotTc*ThetaJA_Q2) -> 0.004412083987 | AL9: =2*Deadtime*Fsw*IF(VfdSky_Q2>0,VfdSky_Q2,Vsd_Q2)*K9 -> 0 | AM9: =IF(QrrSky_Q2>0,QrrSky_Q2,Qrr_Q2*K9/(Iout/Number_of_Phases))*Fsw*Vin -> 0 | AN9: =Rs*R9^2 -> 0.0009817279596 | AO9: =Iq*Vin -> 5.28e-05 | AP9: =IF(Ext_VCC=1, (Qg_Q1+Qg_Q2)*Fsw*VCC, (Qg_Q1+Qg_Q2)*Fsw*Vin) -> 0.070125 | AQ9: =(Vin-VCC)*Fsw*(Qg_Q1+Qg_Q2)+(RdsonDRT+RdsonDRT2)*Fsw*Qg_Q1*VCC/(RdsonDRT+2*Rgate1+RdsonDRT2)+(RdsonDRB+RdsonDRB2)*Fsw*Qg_Q2*VCC/(RdsonDRB+2*Rgate2+RdsonDRB2) -> 0.2934461538 | AR9: =(Qg_Q1+Qg_Q2)*Fsw*(Vin-VCC) -> 0.266475 | AS9: =SUM(AO9:AP9) -> 0.0701778 | AT9: =SUM(U9,X9,AA9,AG9,AK9,AL9,AM9,AS9,AN9) -> 0.3135108469 | AU9: =Vout*K9 -> 0 | AV9: =AU9/(AU9+AT9) -> 0 | AW9: =ThetaJA_Q1*BC9 -> 0.3066658483 | AX9: =ThetaJA_Q2*BD9 -> 0.1795718183 | AZ9: =AV9*100 -> 0 | BA9: =U9 -> 0.2017631616 | BB9: =AG9+AK9+AM9 -> 0.0117136518 | BC9: =AG9+AM9*0.66 -> 0.007301567817 | BD9: =AK9+AM9*0.33 -> 0.004412083987 | BE9: =AN9 -> 0.0009817279596
G10: 1 | H10: 24 | I10: 1 | J10: =Iout*G10/100 -> 0.13 | K10: 0.13 | L10: 0.1143518519 | M10: 0.7917543061 | N10: 1.980976805 | O10: =K10+N10/2 -> 1.120488403 | P10: =K10-N10/2 -> -0.8604884025 | Q10: 24 | R10: =SQRT(K10^2+(N10^2)/12) -> 0.5864489962 | S10: 0.001788396611 | T10: 0.2 | U10: 0.201853044 | V10: =N10/SQRT(12) -> 0.5718587458 | W10: 0.02168158679 | X10: =W10 -> 0.02168158679 | Y10: =SQRT(M10*(1-M10))*SQRT(K10^2+(N10^2)/12) -> 0.238129653 | Z10: 0.00754186231 | AA10: =Z10 -> 0.00754186231 | AB10: =SQRT(M10)*SQRT(K10^2+(N10^2)/12) -> 0.5218256999 | AC10: 0.003267624733 | AD10: 0.005404867591 | AE10: 0 | AF10: 0.003583934197 | AG10: 0.01232854691 | AH10: 0.2676198125 | AI10: 0.0002936434927 | AJ10: 0.004666834197 | AK10: 0.004966587988 | AL10: 0.0010829 | AM10: 0.006018 | AN10: 0.001031767276 | AO10: 5.28e-05 | AP10: 0.070125 | AQ10: 0.2934461538 | AR10: 0.266475 | AS10: 0.0701778 | AT10: 0.3266820953 | AU10: 2.47 | AV10: =AU10/(AU10+AT10) -> 0.8831894065 | AW10: 0.6846179301 | AX10: 0.2829678891 | AZ10: =AV10*100 -> 88.31894065 | BA10: 0.201853044 | BB10: 0.02331313489 | BC10: 0.01630042691 | BD10: 0.006952527988 | BE10: 0.001031767276
A11: Vin | B11: =Vin -> 24 | C11: V | D11: Vin | G11: 2 | H11: 24 | I11: 1 | J11: 0.26 | K11: 0.26 | L11: 0.2287037037 | M11: 0.7918419503 | N11: 1.980309704 | O11: 1.250154852 | P11: -0.7301548521 | Q11: 24 | R11: 0.6280144985 | S11: 0.002050891494 | T11: 0.2 | U11: 0.2021250723 | V11: 0.5716661704 | W11: 0.02166698655 | X11: 0.02166698655 | Y11: 0.2549679125 | Z11: 0.008646148643 | AA11: 0.008646148643 | AB11: 0.5588418519 | AC11: 0.003747650586 | AD11: 0.01080973518 | AE11: 0 | AF11: 0.003041094959 | AG11: 0.01768456804 | AH11: 0.2865274767 | AI11: 0.0003366017792 | AJ11: 0.005206894959 | AK11: 0.005550532936 | AL11: 0.0021658 | AM11: 0.012036 | AN11: 0.001183206631 | AO11: 5.28e-05 | AP11: 0.070125 | AQ11: 0.2934461538 | AR11: 0.266475 | AS11: 0.0701778 | AT11: 0.341236115 | AU11: 4.94 | AV11: 0.9353870746 | AW11: 1.076389777 | AX11: 0.3875622065 | AZ11: 93.53870746 | BA11: 0.2021250723 | BB11: 0.03527110097 | BC11: 0.02562832804 | BD11: 0.009522412936 | BE11: 0.001183206631
A12: Vout | B12: =Vout -> 19 | C12: V | D12: Vout | G12: 3 | H12: 24 | I12: 1 | J12: 0.39 | K12: 0.39 | L12: 0.3430555556 | M12: 0.7919295991 | N12: 1.979642419 | O12: 1.379821209 | P12: -0.5998212094 | Q12: 24 | R12: 0.691868491 | S12: 0.002489146446 | T12: 0.2 | U12: 0.2025792693 | V12: 0.5714735417 | W12: 0.02165238719 | X12: 0.02165238719 | Y12: 0.2808484247 | Z12: 0.01049048641 | AA12: 0.01049048641 | AB12: 0.6156967203 | AC12: 0.004548989416 | AD12: 0.01621460277 | AE12: 0 | AF12: 0.002498255337 | AG12: 0.0233706879 | AH12: 0.3155939757 | AI12: 0.0004083581858 | AJ12: 0.005746955337 | AK12: 0.006163890466 | AL12: 0.0032487 | AM12: 0.018054 | AN12: 0.001436046027 | AO12: 5.28e-05 | AP12: 0.070125 | AQ12: 0.2934461538 | AR12: 0.266475 | AS12: 0.0701778 | AT12: 0.3571732673 | AU12: 7.41 | AV12: 0.9540150252 | AW12: 1.482025772 | AX12: 0.493353616 | AZ12: 95.40150252 | BA12: 0.2025792693 | BB12: 0.04758857837 | BC12: 0.0352863279 | BD12: 0.01212171047 | BE12: 0.001436046027
A13: Fsw | B13: =Fsw/1000 -> 425 | C13: kHz | D13: Switching Frequency | G13: 4 | H13: 24 | I13: 1 | J13: 0.52 | K13: 0.52 | L13: 0.4574074074 | M13: 0.7920172525 | N13: 1.978974949 | O13: 1.509487474 | P13: -0.4694874744 | Q13: 19.48080807 | R13: 0.7725036056 | S13: 0.003103161467 | T13: 0.2 | U13: 0.2032156736 | V13: 0.5712808597 | W13: 0.02163778871 | X13: 0.02163778871 | Y13: 0.3135317248 | Z13: 0.01307418495 | AA13: 0.01307418495 | AB13: 0.6874922964 | AC13: 0.005671747891 | AD13: 0.02161947036 | AE13: 0.0565347202 | AF13: 0.001955415331 | AG13: 0.08597671196 | AH13: 0.3523012391 | AI13: 0.0005088762686 | AJ13: 0.006287015331 | AK13: 0.006806633021 | AL13: 0.0043316 | AM13: 0.024072 | AN13: 0.001790285462 | AO13: 5.28e-05 | AP13: 0.070125 | AQ13: 0.2934461538 | AR13: 0.266475 | AS13: 0.0701778 | AT13: 0.4310826777 | AU13: 9.88 | AV13: 0.9581922974 | AW13: 4.278297742 | AX13: 0.6003409959 | AZ13: 95.81922974 | BA13: 0.2032156736 | BB13: 0.116855345 | BC13: 0.101864232 | BD13: 0.01475039302 | BE13: 0.001790285462
A14: Iout | B14: =Iout -> 13 | C14: A | D14: Max Output Current | G14: 5 | H14: 24 | I14: 1 | J14: 0.65 | K14: 0.65 | L14: 0.5717592593 | M14: 0.7921049106 | N14: 1.978307294 | O14: 1.639153647 | P14: -0.3391536471 | Q14: 14.07276544 | R14: 0.8652408022 | S14: 0.003892936558 | T14: 0.2 | U14: 0.2040343387 | V14: 0.5710881244 | W14: 0.02162319112 | X14: 0.02162319112 | Y14: 0.3511158702 | Z14: 0.01639655312 | AA14: 0.01639655312 | AB14: 0.770066701 | AC14: 0.007116032687 | AD14: 0.02702433795 | AE14: 0.1213367726 | AF14: 0.00141257494 | AG14: 0.1572199944 | AH14: 0.3945109908 | AI14: 0.0006381195798 | AJ14: 0.00682707494 | AK14: 0.007478733846 | AL14: 0.0054145 | AM14: 0.03009 | AN14: 0.002245924938 | AO14: 5.28e-05 | AP14: 0.070125 | AQ14: 0.2934461538 | AR14: 0.266475 | AS14: 0.0701778 | AT14: 0.5146810361 | AU14: 12.35 | AV14: 0.9599927091 | AW14: 7.437334563 | AX14: 0.7085232575 | AZ14: 95.99927091 | BA14: 0.2040343387 | BB14: 0.1947887282 | BC14: 0.1770793944 | BD14: 0.01740843385 | BE14: 0.002245924938
A15: Ta | B15: =Ta -> 30 | C15: °C | D15: Ambient Temperature | G15: 6 | H15: 24 | I15: 1 | J15: 0.78 | K15: 0.78 | L15: 0.6861111111 | M15: 0.7921925733 | N15: 1.977639455 | O15: 1.768819727 | P15: -0.2088197274 | Q15: 8.664718981 | R15: 0.9666030646 | S15: 0.004858471719 | T15: 0.2 | U15: 0.2050353338 | V15: 0.5708953358 | W15: 0.02160859442 | X15: 0.02160859442 | Y15: 0.3921878032 | Z15: 0.02045689931 | AA15: 0.02045689931 | AB15: 0.8603269966 | AC15: 0.008881950493 | AD15: 0.03242920554 | AE15: 0.1830313819 | AF15: 0.0008697341648 | AG15: 0.2257267333 | AH15: 0.4406347051 | AI15: 0.0007960516678 | AJ15: 0.007367134165 | AK15: 0.008180166993 | AL15: 0.0064974 | AM15: 0.036108 | AN15: 0.002802964453 | AO15: 5.28e-05 | AP15: 0.070125 | AQ15: 0.2934461538 | AR15: 0.266475 | AS15: 0.0701778 | AT15: 0.5965938923 | AU15: 14.82 | AV15: 0.9613018351 | AW15: 10.48143656 | AX15: 0.8178993446 | AZ15: 96.13018351 | BA15: 0.2050353338 | BB15: 0.2700149003 | BC15: 0.2495580133 | BD15: 0.02009580699 | BE15: 0.002802964453
A16: Vcc | B16: =VCC -> 5 | C16: V | D16: Subregulated VCC Voltage | G16: 7 | H16: 24 | I16: 1 | J16: 0.91 | K16: 0.91 | L16: 0.800462963 | M16: 0.7922802407 | N16: 1.976971431 | O16: 1.898485715 | P16: -0.07848571548 | Q16: 3.256668692 | R16: 1.07415145 | S16: 0.00599976695 | T16: 0.2 | U16: 0.2062187434 | V16: 0.5707024939 | W16: 0.02159399861 | X16: 0.02159399861 | Y16: 0.4357564624 | Z16: 0.02525453138 | AA16: 0.02525453138 | AB16: 0.9561035512 | AC16: 0.01096960801 | AD16: 0.03783407313 | AE16: 0.2416185414 | AF16: 0.000326893005 | AG16: 0.2915057219 | AH16: 0.4895583069 | AI16: 0.0009826360771 | AJ16: 0.007907193005 | AK16: 0.00891090731 | AL16: 0.0075803 | AM16: 0.042126 | AN16: 0.00346140401 | AO16: 5.28e-05 | AP16: 0.070125 | AQ16: 0.2934461538 | AR16: 0.266475 | AS16: 0.0701778 | AT16: 0.6768294066 | AU16: 17.29 | AV16: 0.9623289457 | AW16: 13.41097304 | AX16: 0.9284682335 | AZ16: 96.23289457 | BA16: 0.2062187434 | BB16: 0.3425426292 | BC16: 0.3193088819 | BD16: 0.02281248731 | BE16: 0.00346140401
A17: Components | B17: Input Value | C17: Units | D17: Description | G17: 8 | H17: 24 | I17: 1 | J17: 1.04 | K17: 1.04 | L17: 0.9148148148 | M17: 0.7923679128 | N17: 1.976303222 | O17: 2.028151611 | P17: 0.05184838881 | Q17: 0 | R17: 1.186204536 | S17: 0.007316822252 | T17: 0.2 | U17: 0.2075846675 | V17: 0.5705095987 | W17: 0.02157940371 | X17: 0.02157940371 | Y17: 0.4811386614 | Z17: 0.03078875673 | AA17: 0.03078875673 | AB17: 1.055900561 | AC17: 0.01337911194 | AD17: 0.04323894072 | AE17: 0.2754 | AF17: 0 | AG17: 0.3330341928 | AH17: 0.540513836 | AI17: 0.001197836348 | AJ17: 0.0086632 | AK17: 0.009886921102 | AL17: 0.0086632 | AM17: 0.048144 | AN17: 0.004221243607 | AO17: 5.28e-05 | AP17: 0.070125 | AQ17: 0.2934461538 | AR17: 0.266475 | AS17: 0.0701778 | AT17: 0.7340801855 | AU17: 19.76 | AV17: 0.9641808669 | AW17: 15.32198778 | AX17: 1.049019753 | AZ17: 96.41808669 | BA17: 0.2075846675 | BB17: 0.3910651139 | BC17: 0.3648092328 | BD17: 0.0257744411 | BE17: 0.004221243607
A18: L | B18: =Lf*1000000 -> 4.7 | C18: uH | D18: Filter Inductance | G18: 9 | H18: 24 | I18: 1 | J18: 1.17 | K18: 1.17 | L18: 1.029166667 | M18: 0.7924555895 | N18: 1.975634829 | O18: 2.157817415 | P18: 0.1821825854 | Q18: 0 | R18: 1.301599432 | S18: 0.008809637624 | T18: 0.2 | U18: 0.2091332214 | V18: 0.5703166502 | W18: 0.0215648097 | X18: 0.0215648097 | Y18: 0.5278619257 | Z18: 0.03705888227 | AA18: 0.03705888227 | AB18: 1.158683485 | AC18: 0.01611056902 | AD18: 0.04864380832 | AE18: 0.2754 | AF18: 0 | AG18: 0.3414006153 | AH18: 0.5929702041 | AI18: 0.001441616018 | AJ18: 0.0097461 | AK18: 0.01121918143 | AL18: 0.0097461 | AM18: 0.054162 | AN18: 0.005082483245 | AO18: 5.28e-05 | AP18: 0.070125 | AQ18: 0.2934461538 | AR18: 0.266475 | AS18: 0.0701778 | AT18: 0.7595450933 | AU18: 22.23 | AV18: 0.9669612822 | AW18: 15.84019648 | AX18: 1.184070506 | AZ18: 96.69612822 | BA18: 0.2091332214 | BB18: 0.4067817967 | BC18: 0.3771475353 | BD18: 0.02909264143 | BE18: 0.005082483245
A19: Rdcr | B19: =Rdcr*1000 -> 5.2 | C19: mW | D19: Inductor DCR at 25°C | G19: 10 | H19: 24 | I19: 1 | J19: 1.3 | K19: 1.3 | L19: 1.143518519 | M19: 0.7925432709 | N19: 1.974966251 | O19: 2.287483126 | P19: 0.3125168744 | Q19: 0 | R19: 1.419521389 | S19: 0.01047821307 | T19: 0.2 | U19: 0.210864536 | V19: 0.5701236484 | W19: 0.02155021661 | X19: 0.02155021661 | Y19: 0.5755952422 | Z19: 0.04406421442 | AA19: 0.04406421442 | AB19: 1.263727488 | AC19: 0.01916408598 | AD19: 0.05404867591 | AE19: 0.2754 | AF19: 0 | AG19: 0.3501232888 | AH19: 0.6465553415 | AI19: 0.00171393862 | AJ19: 0.010829 | AK19: 0.01258072778 | AL19: 0.010829 | AM19: 0.06018 | AN19: 0.006045122923 | AO19: 5.28e-05 | AP19: 0.070125 | AQ19: 0.2934461538 | AR19: 0.266475 | AS19: 0.0701778 | AT19: 0.7864149065 | AU19: 24.7 | AV19: 0.9691437611 | AW19: 16.37336773 | AX19: 1.320313201 | AZ19: 96.91437611 | BA19: 0.210864536 | BB19: 0.4228840166 | BC19: 0.3898420888 | BD19: 0.03244012778 | BE19: 0.006045122923
A20: LTc | B20: =Ltc*1000000 -> 4000 | C20: ppm | D20: Inductor Series Resistance Temp Co | G20: 11 | H20: 24 | I20: 1 | J20: 1.43 | K20: 1.43 | L20: 1.25787037 | M20: 0.7926309569 | N20: 1.974297489 | O20: 2.417148744 | P20: 0.4428512557 | Q20: 0 | R20: 1.539389776 | S20: 0.01232254858 | T20: 0.2 | U20: 0.2127787577 | V20: 0.5699305932 | W20: 0.02153562442 | X20: 0.02153562442 | Y20: 0.6241027189 | Z20: 0.05180405909 | AA20: 0.05180405909 | AB20: 1.370516008 | AC20: 0.02253976955 | AD20: 0.0594535435 | AE20: 0.2754 | AF20: 0 | AG20: 0.3592043006 | AH20: 0.7010041024 | AI20: 0.002014767681 | AJ20: 0.0119119 | AK20: 0.01397154576 | AL20: 0.0119119 | AM20: 0.066198 | AN20: 0.007109162643 | AO20: 5.28e-05 | AP20: 0.070125 | AQ20: 0.2934461538 | AR20: 0.266475 | AS20: 0.0701778 | AT20: 0.8146911502 | AU20: 27.17 | AV20: 0.9708879706 | AW20: 16.92158919 | AX20: 1.45774725 | AZ20: 97.08879706 | BA20: 0.2127787577 | BB20: 0.4393738464 | BC20: 0.4028949806 | BD20: 0.03581688576 | BE20: 0.007109162643
A21: ThetaCa | B21: =ThetaCa -> 20 | C21: °C/W | D21: Core to Ambient Thermal Resistance | G21: 12 | H21: 24 | I21: 1 | J21: 1.56 | K21: 1.56 | L21: 1.372222222 | M21: 0.7927186476 | N21: 1.973628541 | O21: 2.546814271 | P21: 0.5731857294 | Q21: 0 | R21: 1.660783189 | S21: 0.01434264417 | T21: 0.2 | U21: 0.2148760483 | V21: 0.5697374848 | W21: 0.02152103314 | X21: 0.02152103314 | Y21: 0.6732131557 | Z21: 0.06027772175 | AA21: 0.06027772175 | AB21: 1.478674139 | AC21: 0.02623772651 | AD21: 0.06485841109 | AE21: 0.2754 | AF21: 0 | AG21: 0.3686458602 | AH21: 0.7561240589 | AI21: 0.002344066729 | AJ21: 0.0129948 | AK21: 0.01539162172 | AL21: 0.0129948 | AM21: 0.072216 | AN21: 0.008274602405 | AO21: 5.28e-05 | AP21: 0.070125 | AQ21: 0.2934461538 | AR21: 0.266475 | AS21: 0.0701778 | AT21: 0.8443754876 | AU21: 29.64 | AV21: 0.9723013684 | AW21: 17.48495365 | AX21: 1.5963721 | AZ21: 97.23013684 | BA21: 0.2148760483 | BB21: 0.456253482 | BC21: 0.4163084202 | BD21: 0.03922290172 | BE21: 0.008274602405
A22: Cin | B22: =Cin*1000000 -> 120 | C22: μF | D22: Input Capacitance | G22: 13 | H22: 24 | I22: 1 | J22: 1.69 | K22: 1.69 | L22: 1.486574074 | M22: 0.7928063429 | N22: 1.972959409 | O22: 2.676479705 | P22: 0.7035202955 | Q22: 0 | R22: 1.783390237 | S22: 0.01653849983 | T22: 0.2 | U22: 0.2171565854 | V22: 0.569544323 | W22: 0.02150644279 | X22: 0.02150644279 | Y22: 0.7228000448 | Z22: 0.06948450732 | AA22: 0.06948450732 | AB22: 1.587924841 | AC22: 0.03025806361 | AD22: 0.07026327868 | AE22: 0.2754 | AF22: 0 | AG22: 0.3784503007 | AH22: 0.8117730194 | AI22: 0.002701799284 | AJ22: 0.0140777 | AK22: 0.01684094281 | AL22: 0.0140777 | AM22: 0.078234 | AN22: 0.009541442207 | AO22: 5.28e-05 | AP22: 0.070125 | AQ22: 0.2934461538 | AR22: 0.266475 | AS22: 0.0701778 | AT22: 0.8754697211 | AU22: 32.11 | AV22: 0.9734589282 | AW22: 18.06355911 | AX22: 1.736187226 | AZ22: 97.34589282 | BA22: 0.2171565854 | BB22: 0.4735252435 | BC22: 0.4300847407 | BD22: 0.04265816281 | BE22: 0.009541442207
A23: RCinEsr | B23: =RCinEsr*1000 -> 133 | C23: mW | D23: Input Capacitor ESR | G23: 14 | H23: 24 | I23: 1 | J23: 1.82 | K23: 1.82 | L23: 1.600925926 | M23: 0.7928940429 | N23: 1.972290092 | O23: 2.806145046 | P23: 0.8338549539 | Q23: 0 | R23: 1.906976844 | S23: 0.01891011556 | T23: 0.2 | U23: 0.2196205619 | V23: 0.5693511078 | W23: 0.02149185335 | X23: 0.02149185335 | Y23: 0.7727682895 | Z23: 0.07942372029 | AA23: 0.07942372029 | AB23: 1.698059864 | AC23: 0.03460088763 | AD23: 0.07566814627 | AE23: 0.2754 | AF23: 0 | AG23: 0.3886200804 | AH23: 0.8678440995 | AI23: 0.003087928862 | AJ23: 0.0151606 | AK23: 0.01831949692 | AL23: 0.0151606 | AM23: 0.084252 | AN23: 0.01090968205 | AO23: 5.28e-05 | AP23: 0.070125 | AQ23: 0.2934461538 | AR23: 0.266475 | AS23: 0.0701778 | AT23: 0.9079757949 | AU23: 34.58 | AV23: 0.974414551 | AW23: 18.65750882 | AX23: 1.877192137 | AZ23: 97.4414551 | BA23: 0.2196205619 | BB23: 0.4911915773 | BC23: 0.4442264004 | BD23: 0.04612265692 | BE23: 0.01090968205
A24: Cout | B24: =Cout*1000000 -> 60 | C24: μF | D24: Output Capcitance | G24: 15 | H24: 24 | I24: 1 | J24: 1.95 | K24: 1.95 | L24: 1.715277778 | M24: 0.7929817475 | N24: 1.971620591 | O24: 2.935810295 | P24: 0.9641897047 | Q24: 0 | R24: 2.031364233 | S24: 0.02145749136 | T24: 0.2 | U24: 0.2222681866 | V24: 0.5691578394 | W24: 0.02147726484 | X24: 0.02147726484 | Y24: 0.8230452559 | Z24: 0.09009466461 | AA24: 0.09009466461 | AB24: 1.808920152 | AC24: 0.03926630538 | AD24: 0.08107301386 | AE24: 0.2754 | AF24: 0 | AG24: 0.3991577852 | AH24: 0.9242556635 | AI24: 0.003502418979 | AJ24: 0.0162435 | AK24: 0.01982727275 | AL24: 0.0162435 | AM24: 0.09027 | AN24: 0.01237932194 | AO24: 5.28e-05 | AP24: 0.070125 | AQ24: 0.2934461538 | AR24: 0.266475 | AS24: 0.0701778 | AT24: 0.9418957959 | AU24: 37.05 | AV24: 0.9752079812 | AW24: 19.26691138 | AX24: 2.019386371 | AZ24: 97.52079812 | BA24: 0.2222681866 | BB24: 0.5092550579 | BC24: 0.4587359852 | BD24: 0.04961637275 | BE24: 0.01237932194
A25: RCoutEsr | B25: =Cout_ESR*1000 -> 66.3 | C25: mW | D25: Output Capacitor ESR | G25: 16 | H25: 24 | I25: 1 | J25: 2.08 | K25: 2.08 | L25: 1.82962963 | M25: 0.7930694568 | N25: 1.970950904 | O25: 3.065475452 | P25: 1.094524548 | Q25: 0 | R25: 2.156413834 | S25: 0.02418062724 | T25: 0.2 | U25: 0.2250996839 | V25: 0.5689645176 | W25: 0.02146267726 | X25: 0.02146267726 | Y25: 0.8735746448 | Z25: 0.1014966438 | AA25: 0.1014966438 | AB25: 1.920382419 | AC25: 0.04425442363 | AD25: 0.08647788145 | AE25: 0.2754 | AF25: 0 | AG25: 0.4100661299 | AH25: 0.9809444358 | AI25: 0.003945233143 | AJ25: 0.0173264 | AK25: 0.02136425973 | AL25: 0.0173264 | AM25: 0.096288 | AN25: 0.01395036187 | AO25: 5.28e-05 | AP25: 0.070125 | AQ25: 0.2934461538 | AR25: 0.266475 | AS25: 0.0701778 | AT25: 0.9772319564 | AU25: 39.52 | AV25: 0.9758691666 | AW25: 19.89188082 | AX25: 2.162769499 | AZ25: 97.58691666 | BA25: 0.2250996839 | BB25: 0.5277183896 | BC25: 0.4736162099 | BD25: 0.05313929973 | BE25: 0.01395036187
A26: Top Driver | B26: Input Value | C26: Units | D26: Description | G26: 17 | H26: 24 | I26: 1 | J26: 2.21 | K26: 2.21 | L26: 1.943981481 | M26: 0.7931571708 | N26: 1.970281033 | O26: 3.195140517 | P26: 1.224859483 | Q26: 0 | R26: 2.282016786 | S26: 0.02707952318 | T26: 0.2 | U26: 0.2281152939 | V26: 0.5687711424 | W26: 0.02144809061 | X26: 0.02144809061 | Y26: 0.9243122246 | Z26: 0.1136289608 | AA26: 0.1136289608 | AB26: 2.032349814 | AC26: 0.04956534922 | AD26: 0.09188274904 | AE26: 0.2754 | AF26: 0 | AG26: 0.4213479607 | AH26: 1.037860706 | AI26: 0.004416334861 | AJ26: 0.0184093 | AK26: 0.02293044808 | AL26: 0.0184093 | AM26: 0.102306 | AN26: 0.01562280184 | AO26: 5.28e-05 | AP26: 0.070125 | AQ26: 0.2934461538 | AR26: 0.266475 | AS26: 0.0701778 | AT26: 1.013986656 | AU26: 41.99 | AV26: 0.976421101 | AW26: 20.53253667 | AX26: 2.307341123 | AZ26: 97.6421101 | BA26: 0.2281152939 | BB26: 0.5465844088 | BC26: 0.4888699207 | BD26: 0.05669142808 | BE26: 0.01562280184
A27: RdsonDRT | B27: 0.7 | C27: W | D27: Drain to Source Resistance of pullup Top FET Driver | G27: 18 | H27: 24 | I27: 1 | J27: 2.34 | K27: 2.34 | L27: 2.058333333 | M27: 0.7932448894 | N27: 1.969610977 | O27: 3.324805489 | P27: 1.355194511 | Q27: 0 | R27: 2.408086505 | S27: 0.03015417921 | T27: 0.2 | U27: 0.2313152726 | V27: 0.5685777139 | W27: 0.02143350489 | X27: 0.02143350489 | Y27: 0.9752228129 | Z27: 0.1264909181 | AA27: 0.1264909181 | AB27: 2.144745303 | AC27: 0.05519918896 | AD27: 0.09728761663 | AE27: 0.2754 | AF27: 0 | AG27: 0.4330062572 | AH27: 1.094964932 | AI27: 0.004915687633 | AJ27: 0.0194922 | AK27: 0.02452582877 | AL27: 0.0194922 | AM27: 0.108324 | AN27: 0.01739664185 | AO27: 5.28e-05 | AP27: 0.070125 | AQ27: 0.2934461538 | AR27: 0.266475 | AS27: 0.0701778 | AT27: 1.052162423 | AU27: 44.46 | AV27: 0.9768817308 | AW27: 21.18900408 | AX27: 2.453100875 | AZ27: 97.68817308 | BA27: 0.2313152726 | BB27: 0.565856086 | BC27: 0.5045000972 | BD27: 0.06027274877 | BE27: 0.01739664185
A28: RdsonDRT2 | B28: =RdsonDRT2 -> 0.5 | C28: W | D28: Drain to Source Resistance of pulldown Top FET Driver | G28: 19 | H28: 24 | I28: 1 | J28: 2.47 | K28: 2.47 | L28: 2.172685185 | M28: 0.7933326127 | N28: 1.968940736 | O28: 3.454470368 | P28: 1.485529632 | Q28: 0 | R28: 2.53455334 | S28: 0.0334045953 | T28: 0.2 | U28: 0.2346998916 | V28: 0.5683842321 | W28: 0.02141892012 | X28: 0.02141892012 | Y28: 1.026278106 | Z28: 0.1400818178 | AA28: 0.1400818178 | AB28: 2.257506916 | AC28: 0.0611560497 | AD28: 0.1026924842 | AE28: 0.2754 | AF28: 0 | AG28: 0.4450441346 | AH28: 1.152225308 | AI28: 0.005443254959 | AJ28: 0.0205751 | AK28: 0.02615039354 | AL28: 0.0205751 | AM28: 0.114342 | AN28: 0.01927188191 | AO28: 5.28e-05 | AP28: 0.070125 | AQ28: 0.2934461538 | AR28: 0.266475 | AS28: 0.0701778 | AT28: 1.09176194 | AU28: 46.93 | AV28: 0.9772652669 | AW28: 21.86141389 | AX28: 2.600048419 | AZ28: 97.72652669 | BA28: 0.2346998916 | BB28: 0.5855365282 | BC28: 0.5205098546 | BD28: 0.06388325354 | BE28: 0.01927188191
A29: Bottom Driver | B29: Input Value | C29: Units | D29: Description | G29: 20 | H29: 24 | I29: 1 | J29: 2.6 | K29: 2.6 | L29: 2.287037037 | M29: 0.7934203406 | N29: 1.968270311 | O29: 3.584135155 | P29: 1.615864845 | Q29: 0 | R29: 2.66136068 | S29: 0.03683077147 | T29: 0.2 | U29: 0.2382694387 | V29: 0.5681906968 | W29: 0.02140433629 | X29: 0.02140433629 | Y29: 1.077455096 | Z29: 0.1544009614 | AA29: 0.1544009614 | AB29: 2.370584286 | AC29: 0.06743603827 | AD29: 0.1080973518 | AE29: 0.2754 | AF29: 0 | AG29: 0.4574648465 | AH29: 1.209615977 | AI29: 0.005999000331 | AJ29: 0.021658 | AK29: 0.02780413489 | AL29: 0.021658 | AM29: 0.12036 | AN29: 0.021248522 | AO29: 5.28e-05 | AP29: 0.070125 | AQ29: 0.2934461538 | AR29: 0.266475 | AS29: 0.0701778 | AT29: 1.13278804 | AU29: 49.4 | AV29: 0.9775831082 | AW29: 22.54990275 | AX29: 2.74818345 | AZ29: 97.75831082 | BA29: 0.2382694387 | BB29: 0.6056289814 | BC29: 0.5369024465 | BD29: 0.06752293489 | BE29: 0.021248522
A30: RdsonDRB | B30: 0.7 | C30: W | D30: Drain to Source Resistance of pullup Bottom FET Driver | G30: 21 | H30: 24 | I30: 1 | J30: 2.73 | K30: 2.73 | L30: 2.401388889 | M30: 0.7935080732 | N30: 1.9675997 | O30: 3.71379985 | P30: 1.74620015 | Q30: 0 | R30: 2.78846207 | S30: 0.04043270772 | T30: 0.2 | U30: 0.2420242174 | V30: 0.5679971083 | W30: 0.0213897534 | X30: 0.0213897534 | Y30: 1.128734903 | Z30: 0.16944765 | AA30: 0.16944765 | AB30: 2.483936082 | AC30: 0.07403926153 | AD30: 0.1135022194 | AE30: 0.2754 | AF30: 0 | AG30: 0.4702717869 | AH30: 1.267115722 | AI30: 0.006582887242 | AJ30: 0.0227409 | AK30: 0.02948704608 | AL30: 0.0227409 | AM30: 0.126378 | AN30: 0.02332656215 | AO30: 5.28e-05 | AP30: 0.070125 | AQ30: 0.2934461538 | AR30: 0.266475 | AS30: 0.0701778 | AT30: 1.175243716 | AU30: 51.87 | AV30: 0.9778445034 | AW30: 23.25461321 | AX30: 2.897505693 | AZ30: 97.78445034 | BA30: 0.2420242174 | BB30: 0.626136833 | BC30: 0.5536812669 | BD30: 0.07119178608 | BE30: 0.02332656215
A31: RdsonDRB2 | B31: 0.5 | C31: W | D31: Drain to Source Resistance of pulldown Bottom FET Driver | G31: 22 | H31: 24 | I31: 1 | J31: 2.86 | K31: 2.86 | L31: 2.515740741 | M31: 0.7935958105 | N31: 1.966928905 | O31: 3.843464452 | P31: 1.876535548 | Q31: 0 | R31: 2.915819058 | S31: 0.04421040404 | T31: 0.2 | U31: 0.2459645475 | V31: 0.5678034663 | W31: 0.02137517147 | X31: 0.02137517147 | Y31: 1.180101894 | Z31: 0.1852211839 | AA31: 0.1852211839 | AB31: 2.597528094 | AC31: 0.08096582636 | AD31: 0.118907087 | AE31: 0.2754 | AF31: 0 | AG31: 0.4834684935 | AH31: 1.324706979 | AI31: 0.007194879176 | AJ31: 0.0238238 | AK31: 0.03119912111 | AL31: 0.0238238 | AM31: 0.132396 | AN31: 0.02550600233 | AO31: 5.28e-05 | AP31: 0.070125 | AQ31: 0.2934461538 | AR31: 0.266475 | AS31: 0.0701778 | AT31: 1.21913212 | AU31: 54.34 | AV31: 0.9780570345 | AW31: 23.97569385 | AX31: 3.048014905 | AZ31: 97.80570345 | BA31: 0.2459645475 | BB31: 0.6470636146 | BC31: 0.5708498535 | BD31: 0.07488980111 | BE31: 0.02550600233
A32: Deadtime | B32: Input Value | C32: Units | D32: Description | G32: 23 | H32: 24 | I32: 1 | J32: 2.99 | K32: 2.99 | L32: 2.630092593 | M32: 0.7936835524 | N32: 1.966257925 | O32: 3.973128962 | P32: 2.006871038 | Q32: 0 | R32: 3.043399555 | S32: 0.04816386043 | T32: 0.2 | U32: 0.2500907646 | V32: 0.567609771 | W32: 0.0213605905 | X32: 0.0213605905 | Y32: 1.231543025 | Z32: 0.2017208634 | AA32: 0.2017208634 | AB32: 2.711331771 | AC32: 0.08821583964 | AD32: 0.1243119546 | AE32: 0.2754 | AF32: 0 | AG32: 0.49705865 | AH32: 1.382375087 | AI32: 0.007834939616 | AJ32: 0.0249067 | AK32: 0.03294035476 | AL32: 0.0249067 | AM32: 0.138414 | AN32: 0.02778684256 | AO32: 5.28e-05 | AP32: 0.070125 | AQ32: 0.2934461538 | AR32: 0.266475 | AS32: 0.0701778 | AT32: 1.264456566 | AU32: 56.81 | AV32: 0.9782269755 | AW32: 24.71329938 | AX32: 3.199710873 | AZ32: 97.82269755 | BA32: 0.2500907646 | BB32: 0.6684130047 | BC32: 0.58841189 | BD32: 0.07861697476 | BE32: 0.02778684256
A33: Deadtime | B33: =Deadtime*1000000000 -> 14 | C33: ns | D33: Total Deadtime | G33: 24 | H33: 24 | I33: 1 | J33: 3.12 | K33: 3.12 | L33: 2.744444444 | M33: 0.793771299 | N33: 1.965586759 | O33: 4.10279338 | P33: 2.13720662 | Q33: 0 | R33: 3.171176586 | S33: 0.0522930769 | T33: 0.2 | U33: 0.2544032206 | V33: 0.5674160223 | W33: 0.02134601048 | X33: 0.02134601048 | Y33: 1.283047324 | Z33: 0.218945988 | AA33: 0.218945988 | AB33: 2.825323112 | AC33: 0.09578940826 | AD33: 0.1297168222 | AE33: 0.2754 | AF33: 0 | AG33: 0.5110460894 | AH33: 1.440107723 | AI33: 0.008503032042 | AJ33: 0.0259896 | AK33: 0.03471074254 | AL33: 0.0259896 | AM33: 0.144432 | AN33: 0.03016908283 | AO33: 5.28e-05 | AP33: 0.070125 | AQ33: 0.2934461538 | AR33: 0.266475 | AS33: 0.0701778 | AT33: 1.311220534 | AU33: 59.28 | AV33: 0.9783595623 | AW33: 25.4675908 | AX33: 3.352593413 | AZ33: 97.83595623 | BA33: 0.2544032206 | BB33: 0.690188832 | BC33: 0.6063712094 | BD33: 0.08237330254 | BE33: 0.03016908283
A34: IQ | B34: Input Value | C34: Units | D34: Description | G34: 25 | H34: 24 | I34: 1 | J34: 3.25 | K34: 3.25 | L34: 2.858796296 | M34: 0.7938590502 | N34: 1.964915409 | O34: 4.232457705 | P34: 2.267542295 | Q34: 0 | R34: 3.299127316 | S34: 0.05659805345 | T34: 0.2 | U34: 0.2589022837 | V34: 0.5672222203 | W34: 0.02133143143 | X34: 0.02133143143 | Y34: 1.334605506 | Z34: 0.2368958568 | AA34: 0.2368958568 | AB34: 2.939481801 | AC34: 0.1036866391 | AD34: 0.1351216898 | AE34: 0.2754 | AF34: 0 | AG34: 0.5254347971 | AH34: 1.497894451 | AI34: 0.009199119927 | AJ34: 0.0270725 | AK34: 0.03651028073 | AL34: 0.0270725 | AM34: 0.15045 | AN34: 0.03265272314 | AO34: 5.28e-05 | AP34: 0.070125 | AQ34: 0.2934461538 | AR34: 0.266475 | AS34: 0.0701778 | AT34: 1.359427673 | AU34: 61.75 | AV34: 0.9784591982 | AW34: 26.23873548 | AX34: 3.506662376 | AZ34: 97.84591982 | BA34: 0.2589022837 | BB34: 0.7123950779 | BC34: 0.6247317971 | BD34: 0.08615878073 | BE34: 0.03265272314
A35: IQ | B35: =Iq*1000 -> 0.0022 | C35: mA | D35: Quiescent Current Of Controller (Not Switching!) | G35: 26 | H35: 24 | I35: 1 | J35: 3.38 | K35: 3.38 | L35: 2.973148148 | M35: 0.7939468061 | N35: 1.964243874 | O35: 4.362121937 | P35: 2.397878063 | Q35: 0 | R35: 3.42723229 | S35: 0.06107879007 | T35: 0.2 | U35: 0.2635883384 | V35: 0.5670283648 | W35: 0.02131685334 | X35: 0.02131685334 | Y35: 1.386209654 | Z35: 0.2555697683 | AA35: 0.2555697683 | AB35: 3.053790529 | AC35: 0.1119076391 | AD35: 0.1405265574 | AE35: 0.2754 | AF35: 0 | AG35: 0.540228914 | AH35: 1.555726381 | AI35: 0.009923166743 | AJ35: 0.0281554 | AK35: 0.03833896635 | AL35: 0.0281554 | AM35: 0.156468 | AN35: 0.0352377635 | AO35: 5.28e-05 | AP35: 0.070125 | AQ35: 0.2934461538 | AR35: 0.266475 | AS35: 0.0701778 | AT35: 1.409081804 | AU35: 64.22 | AV35: 0.9785296127 | AW35: 27.02690735 | AX35: 3.661917639 | AZ35: 97.85296127 | BA35: 0.2635883384 | BB35: 0.7350358803 | BC35: 0.643497794 | BD35: 0.08997340635 | BE35: 0.0352377635
A36: High-side FET | B36: Input Value | C36: Units | D36: Description | G36: 27 | H36: 24 | I36: 1 | J36: 3.51 | K36: 3.51 | L36: 3.0875 | M36: 0.7940345667 | N36: 1.963572154 | O36: 4.491786077 | P36: 2.528213923 | Q36: 0 | R36: 3.555474835 | S36: 0.06573528676 | T36: 0.2 | U36: 0.2684617855 | V36: 0.566834456 | W36: 0.02130227622 | X36: 0.02130227622 | Y36: 1.437852986 | Z36: 0.2749670207 | AA36: 0.2749670207 | AB36: 3.168234462 | AC36: 0.1204525152 | AD36: 0.1459314249 | AE36: 0.2754 | AF36: 0 | AG36: 0.55543274 | AH36: 1.61359589 | AI36: 0.01067513596 | AJ36: 0.0292383 | AK36: 0.04019679718 | AL36: 0.0292383 | AM36: 0.162486 | AN36: 0.0379242039 | AO36: 5.28e-05 | AP36: 0.070125 | AQ36: 0.2934461538 | AR36: 0.266475 | AS36: 0.0701778 | AT36: 1.460186923 | AU36: 66.69 | AV36: 0.9785739851 | AW36: 27.832287 | AX36: 3.818359111 | AZ36: 97.85739851 | BA36: 0.2684617855 | BB36: 0.7581155371 | BC36: 0.6626735 | BD36: 0.09381717718 | BE36: 0.0379242039
A37: RdsonTop | B37: =Rdson1*1000 -> 12 | C37: mW | D37: Drain-Source Resistance of Top FET | G37: 28 | H37: 24 | I37: 1 | J37: 3.64 | K37: 3.64 | L37: 3.201851852 | M37: 0.7941223319 | N37: 1.96290025 | O37: 4.621450125 | P37: 2.658549875 | Q37: 0 | R37: 3.683840584 | S37: 0.07056754354 | T37: 0.2 | U37: 0.2735230423 | V37: 0.5666404938 | W37: 0.02128770008 | X37: 0.02128770008 | Y37: 1.489529651 | Z37: 0.2950869115 | AA37: 0.2950869115 | AB37: 3.282800816 | AC37: 0.1293213744 | AD37: 0.1513362925 | AE37: 0.2754 | AF37: 0 | AG37: 0.5710507375 | AH37: 1.671496411 | AI37: 0.01145499103 | AJ37: 0.0303212 | AK37: 0.04208377172 | AL37: 0.0303212 | AM37: 0.168504 | AN37: 0.04071204435 | AO37: 5.28e-05 | AP37: 0.070125 | AQ37: 0.2934461538 | AR37: 0.266475 | AS37: 0.0701778 | AT37: 1.512747207 | AU37: 69.16 | AV37: 0.9785950417 | AW37: 28.65506186 | AX37: 3.975986733 | AZ37: 97.85950417 | BA37: 0.2735230423 | BB37: 0.7816385092 | BC37: 0.6822633775 | BD37: 0.09769009172 | BE37: 0.04071204435
A38: RdsonTopTc | B38: =RdsonTopTc*1000000 -> 4000 | C38: ppm | D38: Drain to Source Resistance Temp Co | G38: 29 | H38: 24 | I38: 1 | J38: 3.77 | K38: 3.77 | L38: 3.316203704 | M38: 0.7942101018 | N38: 1.96222816 | O38: 4.75111408 | P38: 2.78888592 | Q38: 0 | R38: 3.812317092 | S38: 0.07557556039 | T38: 0.2 | U38: 0.2787725429 | V38: 0.5664464781 | W38: 0.02127312491 | X38: 0.02127312491 | Y38: 1.541234584 | Z38: 0.3159287379 | AA38: 0.3159287379 | AB38: 3.397478519 | AC38: 0.1385143235 | AD38: 0.1567411601 | AE38: 0.2754 | AF38: 0 | AG38: 0.5870875356 | AH38: 1.729422251 | AI38: 0.01226269542 | AJ38: 0.0314041 | AK38: 0.04399988925 | AL38: 0.0314041 | AM38: 0.174522 | AN38: 0.04360128484 | AO38: 5.28e-05 | AP38: 0.070125 | AQ38: 0.2934461538 | AR38: 0.266475 | AS38: 0.0701778 | AT38: 1.566767015 | AU38: 71.63 | AV38: 0.9785951336 | AW38: 29.49542633 | AX38: 4.134800474 | AZ38: 97.85951336 | BA38: 0.2787725429 | BB38: 0.8056094248 | BC38: 0.7022720556 | BD38: 0.1015921493 | BE38: 0.04360128484
A39: QgTop | B39: =Qg_Q1*1000000000 -> 8 | C39: nC | D39: Gate Charge Of Top FET | G39: 30 | H39: 24 | I39: 1 | J39: 3.9 | K39: 3.9 | L39: 3.430555556 | M39: 0.7942978764 | N39: 1.961555885 | O39: 4.880777942 | P39: 2.919222058 | Q39: 0 | R39: 3.940893527 | S39: 0.08075933731 | T39: 0.2 | U39: 0.2842107377 | V39: 0.5662524091 | W39: 0.02125855073 | X39: 0.02125855073 | Y39: 1.592963372 | Z39: 0.3374917964 | AA39: 0.3374917964 | AB39: 3.512257934 | AC39: 0.1480314695 | AD39: 0.1621460277 | AE39: 0.2754 | AF39: 0 | AG39: 0.6035479333 | AH39: 1.787368456 | AI39: 0.01309821259 | AJ39: 0.032487 | AK39: 0.04594514978 | AL39: 0.032487 | AM39: 0.18054 | AN39: 0.04659192537 | AO39: 5.28e-05 | AP39: 0.070125 | AQ39: 0.2934461538 | AR39: 0.266475 | AS39: 0.0701778 | AT39: 1.622250893 | AU39: 74.1 | AV39: 0.9785762986 | AW39: 30.353582 | AX39: 4.294800336 | AZ39: 97.85762986 | BA39: 0.2842107377 | BB39: 0.8300330831 | BC39: 0.7227043333 | BD39: 0.1055233498 | BE39: 0.04659192537
A40: QgdTop | B40: =Qgd_Q1*1000000000 -> 2.9 | C40: nC | D40: Gate to Drain Charge | G40: 31 | H40: 24 | I40: 1 | J40: 4.03 | K40: 4.03 | L40: 3.544907407 | M40: 0.7943856556 | N40: 1.960883425 | O40: 5.010441713 | P40: 3.049558287 | Q40: 0 | R40: 4.069560417 | S40: 0.08611887432 | T40: 0.2 | U40: 0.2898380942 | V40: 0.5660582867 | W40: 0.02124397753 | X40: 0.02124397753 | Y40: 1.644712154 | Z40: 0.3597753833 | AA40: 0.3597753833 | AB40: 3.627130632 | AC40: 0.1578729195 | AD40: 0.1675508953 | AE40: 0.2754 | AF40: 0 | AG40: 0.6204369043 | AH40: 1.845330692 | AI40: 0.01396150599 | AJ40: 0.0335699 | AK40: 0.04791955405 | AL40: 0.0335699 | AM40: 0.186558 | AN40: 0.04968396595 | AO40: 5.28e-05 | AP40: 0.070125 | AQ40: 0.2934461538 | AR40: 0.266475 | AS40: 0.0701778 | AT40: 1.679203579 | AU40: 76.57 | AV40: 0.9785403109 | AW40: 31.22973774 | AX40: 4.455986348 | AZ40: 97.85403109 | BA40: 0.2898380942 | BB40: 0.8549144584 | BC40: 0.7435651843 | BD40: 0.1094836941 | BE40: 0.04968396595
A41: QgsTop | B41: =Qgs_Q1*1000000000 -> 3.1 | C41: nC | G41: 32 | H41: =Vin -> 24 | I41: =MODE -> 1 | J41: 4.16 | K41: =Iout*G41/100/Number_of_Phases -> 4.16 | L41: =Vout*K41/(Vin*Efficiency) -> 3.659259259 | M41: =(Vout+(Rdson2+Rs+Rdcr)*K41)/(Vin+(Rs+Rdson2-Rdson1)*K41) -> 0.7944734394 | N41: =(Vin-(Rdson1+Rdcr)*K41-Vout)*M41/(Fsw*Lf) -> 1.96021078 | O41: 5.14010539 | P41: 3.17989461 | Q41: =IF(MIN(Vin, -P41/(Coss_Q1+Coss_Q2)*0.00000002)<0, 0, MIN(Vin, -P41/(Coss_Q1+Coss_Q2)*0.00000002)) -> 0 | R41: 4.198309445 | S41: =R41^2*Rdcr -> 0.0916541714 | T41: =Core_Loss_Ch1 -> 0.2 | U41: =(T41+S41*(1+Ltc*(Ta-25)))/(1-S41*Ltc*ThetaCa) -> 0.2956550967 | V41: 0.5658641108 | W41: 0.02122940533 | X41: 0.02122940533 | Y41: 1.696477541 | Z41: 0.3827787941 | AA41: 0.3827787941 | AB41: 3.742089215 | AC41: =Rdson1*AB41^2 -> 0.1680387803 | AD41: =(Vin*K41/2)*Fsw*(Tr_buck+Tf_buck) -> 0.1729557629 | AE41: =(0.5*Coss_Q1*(Vin-Q41)^2-0.5*Coss_Q2*(Vin-Q41)^2+(Qoss_Q2*(Vin-Q41)/Vin)*Vin)*Fsw -> 0.2754 | AF41: =IF(K41>N41/2,0,ABS(K41-N41/2)*Vsd_Q1*Deadtime*Fsw) -> 0 | AG41: =(AF41+AE41+AD41+AC41*(1+RdsonTopTc*Ta-RdsonTopTc*25))/(1-AC41*RdsonTopTc*ThetaJA_Q1) -> 0.6377596008 | AH41: =SQRT((1-M41))*SQRT(K41^2+(N41^2)/12) -> 1.903305152 | AI41: =Rdson2*AH41^2 -> 0.01485253906 | AJ41: =IF(K41<N41/2,Deadtime*Fsw*IF(VfdSky_Q2>0,0,Vsd_Q2)*(K41+N41/2),2*Deadtime*Fsw*IF(VfdSky_Q2>0,0,Vsd_Q2)*K41) -> 0.0346528 | AK41: =(AJ41+AI41*(1+RdsonBotTc*Ta-RdsonBotTc*25))/(1-AI41*RdsonBotTc*ThetaJA_Q2) -> 0.04992310357 | AL41: =2*Deadtime*Fsw*IF(VfdSky_Q2>0,VfdSky_Q2,Vsd_Q2)*K41 -> 0.0346528 | AM41: =IF(QrrSky_Q2>0,QrrSky_Q2,Qrr_Q2*K41/(Iout/Number_of_Phases))*Fsw*Vin -> 0.192576 | AN41: =Rs*R41^2 -> 0.05287740658 | AO41: =Iq*Vin -> 5.28e-05 | AP41: =IF(Ext_VCC=1, (Qg_Q1+Qg_Q2)*Fsw*VCC, (Qg_Q1+Qg_Q2)*Fsw*Vin) -> 0.070125 | AQ41: 0.2934461538 | AR41: =(Qg_Q1+Qg_Q2)*Fsw*(Vin-VCC) -> 0.266475 | AS41: =SUM(AO41:AP41) -> 0.0701778 | AT41: =SUM(U41,X41,AA41,AG41,AK41,AL41,AM41,AS41,AN41) -> 1.737630007 | AU41: =Vout*K41 -> 79.04 | AV41: 0.9784887226 | AW41: =ThetaJA_Q1*BC41 -> 32.12410995 | AX41: =ThetaJA_Q2*BD41 -> 4.618358571 | AZ41: 97.84887226 | BA41: =U41 -> 0.2956550967 | BB41: =AG41+AK41+AM41 -> 0.8802587044 | BC41: =AG41+AM41*0.66 -> 0.7648597608 | BD41: =AK41+AM41*0.33 -> 0.1134731836 | BE41: =AN41 -> 0.05287740658
A42: RGateTop | B42: =Rgate1 -> 1.2 | C42: W | D42: Gate Resistance | G42: 33 | H42: 24 | I42: 1 | J42: =Iout*G42/100 -> 4.29 | K42: 4.29 | L42: 3.773611111 | M42: 0.794561228 | N42: 1.95953795 | O42: 5.269768975 | P42: 3.310231025 | Q42: 0 | R42: 4.327133279 | S42: 0.09736522856 | T42: 0.2 | U42: 0.3016622462 | V42: 0.5656698816 | W42: 0.02121483411 | X42: 0.02121483411 | Y42: 1.748256541 | Z42: 0.4065013241 | AA42: 0.4065013241 | AB42: 3.857127158 | AC42: 0.178529159 | AD42: 0.1783606305 | AE42: 0.2754 | AF42: 0 | AG42: 0.6555213584 | AH42: 1.961288479 | AI42: 0.01577127524 | AJ42: 0.0357357 | AK42: 0.05195580057 | AL42: 0.0357357 | AM42: =IF(QrrSky_Q2>0,QrrSky_Q2,Qrr_Q2*K42/(Iout/Number_of_Phases))*Fsw*Vin -> 0.198594 | AN42: 0.05617224724 | AO42: 5.28e-05 | AP42: 0.070125 | AQ42: 0.2934461538 | AR42: 0.266475 | AS42: 0.0701778 | AT42: 1.797535311 | AU42: 81.51 | AV42: 0.9784228965 | AW42: 33.03692273 | AX42: 4.781917097 | AZ42: 97.84228965 | BA42: 0.3016622462 | BB42: 0.9060711589 | BC42: 0.7865933984 | BD42: 0.1174918206 | BE42: 0.05617224724
A43: GfsTop | B43: =Gfs_Q1 -> 55 | C43: S | D43: Transconductance of Top FET | G43: 34 | H43: 24 | I43: 1 | J43: 4.42 | K43: 4.42 | L43: 3.887962963 | M43: 0.7946490212 | N43: 1.958864936 | O43: 5.399432468 | P43: 3.440567532 | Q43: 0 | R43: 4.456025432 | S43: 0.1032520458 | T43: 0.2 | U43: 0.3078600612 | V43: 0.5654755989 | W43: 0.02120026389 | X43: 0.02120026389 | Y43: 1.800046507 | Z43: 0.4309422678 | AA43: 0.4309422678 | AB43: 3.972238691 | AC43: 0.1893441626 | AD43: 0.1837654981 | AE43: 0.2754 | AF43: 0 | AG43: 0.6737277003 | AH43: 2.019277702 | AI43: 0.01671767799 | AJ43: 0.0368186 | AK43: 0.05401764803 | AL43: 0.0368186 | AM43: 0.204612 | AN43: 0.05956848796 | AO43: 5.28e-05 | AP43: 0.070125 | AQ43: 0.2934461538 | AR43: 0.266475 | AS43: 0.0701778 | AT43: 1.858924829 | AU43: 83.98 | AV43: 0.9783440341 | AW43: 33.96840805 | AX43: 4.946662047 | AZ43: 97.83440341 | BA43: 0.3078600612 | BB43: 0.9323573484 | BC43: 0.8087716203 | BD43: 0.121539608 | BE43: 0.05956848796
A44: VthTop | B44: =Vth_Q1 -> 3.1 | C44: V | D44: Threshold Voltage of Top FET | G44: 35 | H44: 24 | I44: 1 | J44: 4.55 | K44: 4.55 | L44: 4.002314815 | M44: 0.7947368191 | N44: 1.958191736 | O44: 5.529095868 | P44: 3.570904132 | Q44: 0 | R44: 4.584980142 | S44: 0.1093146231 | T44: 0.2 | U44: 0.3142490771 | V44: 0.5652812628 | W44: 0.02118569468 | X44: 0.02118569468 | Y44: 1.851845086 | Z44: 0.4561009194 | AA44: 0.4561009194 | AB44: 4.087418685 | AC44: 0.2004838981 | AD44: 0.1891703657 | AE44: 0.2754 | AF44: 0 | AG44: 0.692384343 | AH44: 2.077270179 | AI44: 0.01769171073 | AJ44: 0.0379015 | AK44: 0.05610864966 | AL44: 0.0379015 | AM44: 0.21063 | AN44: 0.06306612872 | AO44: 5.28e-05 | AP44: 0.070125 | AQ44: 0.2934461538 | AR44: 0.266475 | AS44: 0.0701778 | AT44: 1.921804113 | AU44: 86.45 | AV44: 0.9782531982 | AW44: 34.918806 | AX44: 5.112593571 | AZ44: 97.82531982 | BA44: 0.3142490771 | BB44: 0.9591229926 | BC44: 0.831400143 | BD44: 0.1256165497 | BE44: 0.06306612872
A45: VspTop | B45: =Vsp_Q1 -> 3.336363636 | C45: V | G45: 36 | H45: 24 | I45: 1 | J45: 4.68 | K45: 4.68 | L45: 4.116666667 | M45: 0.7948246216 | N45: 1.957518351 | O45: 5.658759175 | P45: 3.701240825 | Q45: 0 | R45: 4.713992276 | S45: 0.1155529605 | T45: 0.2 | U45: 0.3208298468 | V45: 0.5650868733 | W45: 0.02117112646 | X45: 0.02117112646 | Y45: 1.903650179 | Z45: 0.4819765727 | AA45: 0.4819765727 | AB45: 4.202662574 | AC45: 0.2119484726 | AD45: 0.1945752333 | AE45: 0.2754 | AF45: 0 | AG45: 0.7114972004 | AH45: 2.135263558 | AI45: 0.01869333689 | AJ45: 0.0389844 | AK45: 0.05822880992 | AL45: 0.0389844 | AM45: 0.216648 | AN45: 0.06666516952 | AO45: 5.28e-05 | AP45: 0.070125 | AQ45: 0.2934461538 | AR45: 0.266475 | AS45: 0.0701778 | AT45: 1.986178926 | AU45: 88.92 | AV45: 0.978151332 | AW45: 35.88836498 | AX45: 5.279711852 | AZ45: 97.8151332 | BA45: 0.3208298468 | BB45: 0.9863740103 | BC45: 0.8544848804 | BD45: 0.1297226499 | BE45: 0.06666516952
A46: VsdTop | B46: =Vsd_Q1 -> 0.7 | C46: V | G46: 37 | H46: 24 | I46: 1 | J46: 4.81 | K46: 4.81 | L46: 4.231018519 | M46: 0.7949124288 | N46: 1.95684478 | O46: 5.78842239 | P46: 3.83157761 | Q46: 0 | R46: 4.843057243 | S46: 0.121967058 | T46: 0.2 | U46: 0.3276029405 | V46: 0.5648924304 | W46: 0.02115655926 | X46: 0.02115655926 | Y46: 1.955459911 | Z46: 0.5085685207 | AA46: 0.5085685207 | AB46: 4.317966275 | AC46: 0.223737993 | AD46: 0.1999801009 | AE46: 0.2754 | AF46: 0 | AG46: 0.7310723901 | AH46: 2.193255733 | AI46: 0.01972251991 | AJ46: 0.0400673 | AK46: 0.060378134 | AL46: 0.0400673 | AM46: 0.222666 | AN46: 0.07036561037 | AO46: 5.28e-05 | AP46: 0.070125 | AQ46: 0.2934461538 | AR46: 0.266475 | AS46: 0.0701778 | AT46: 2.052055255 | AU46: 91.39 | AV46: 0.9780392753 | AW46: 36.87734191 | AX46: 5.4480171 | AZ46: 97.80392753 | BA46: 0.3276029405 | BB46: 1.014116524 | BC46: 0.8780319501 | BD46: 0.133857914 | BE46: 0.07036561037
A47: θJATop | B47: =ThetaJA_Q1 -> 42 | C47: °C/W | D47: Junction to Ambient Resistance | G47: 38 | H47: 24 | I47: 1 | J47: 4.94 | K47: 4.94 | L47: 4.34537037 | M47: 0.7950002407 | N47: 1.956171025 | O47: 5.918085513 | P47: 3.961914487 | Q47: 0 | R47: 4.97217093 | S47: 0.1285569155 | T47: 0.2 | U47: 0.334568946 | V47: 0.564697934 | W47: 0.02114199307 | X47: 0.02114199307 | Y47: 2.007272597 | Z47: 0.5358760562 | AA47: 0.5358760562 | AB47: 4.433326126 | AC47: 0.2358525664 | AD47: 0.2053849684 | AE47: 0.2754 | AF47: 0 | AG47: 0.7511162386 | AH47: 2.251244816 | AI47: 0.0207792232 | AJ47: 0.0411502 | AK47: 0.06255662783 | AL47: 0.0411502 | AM47: 0.228684 | AN47: 0.07416745127 | AO47: 5.28e-05 | AP47: 0.070125 | AQ47: 0.2934461538 | AR47: 0.266475 | AS47: 0.0701778 | AT47: 2.119439313 | AU47: 93.86 | AV47: 0.9779177777 | AW47: 37.8860025 | AX47: 5.617509557 | AZ47: 97.79177777 | BA47: 0.334568946 | BB47: 1.042356866 | BC47: 0.9020476786 | BD47: 0.1380223478 | BE47: 0.07416745127
A48: Low-side FET | B48: Input Value | C48: Units | D48: Description | G48: 39 | H48: 24 | I48: 1 | J48: 5.07 | K48: 5.07 | L48: 4.459722222 | M48: 0.7950880572 | N48: 1.955497085 | O48: 6.047748542 | P48: 4.092251458 | Q48: 0 | R48: 5.101329638 | S48: 0.1353225332 | T48: 0.2 | U48: 0.3417284688 | V48: 0.5645033842 | W48: 0.02112742789 | X48: 0.02112742789 | Y48: 2.059086723 | Z48: 0.5638984714 | AA48: 0.5638984714 | AB48: 4.548738836 | AC48: 0.2482923 | AD48: 0.210789836 | AE48: 0.2754 | AF48: 0 | AG48: 0.7716352868 | AH48: 2.309229108 | AI48: 0.0218634102 | AJ48: 0.0422331 | AK48: 0.06476429806 | AL48: 0.0422331 | AM48: 0.234702 | AN48: 0.07807069221 | AO48: 5.28e-05 | AP48: 0.070125 | AQ48: 0.2934461538 | AR48: 0.266475 | AS48: 0.0701778 | AT48: 2.188337545 | AU48: 96.33 | AV48: 0.9777875104 | AW48: 38.91462149 | AX48: 5.788189493 | AZ48: 97.77875104 | BA48: 0.3417284688 | BB48: 1.071101585 | BC48: 0.9265386068 | BD48: 0.1422159581 | BE48: 0.07807069221
A49: RdsonBot | B49: =Rdson2*1000 -> 4.1 | C49: mW | D49: Drain-Source Resistance of Low-side FET | G49: 40 | H49: 24 | I49: 1 | J49: 5.2 | K49: 5.2 | L49: 4.574074074 | M49: 0.7951758784 | N49: 1.954822959 | O49: 6.17741148 | P49: 4.22258852 | Q49: 0 | R49: 5.230530031 | S49: 0.1422639109 | T49: 0.2 | U49: 0.3490821322 | V49: 0.5643087809 | W49: 0.02111286373 | X49: 0.02111286373 | Y49: 2.110900919 | Z49: 0.592635058 | AA49: 0.592635058 | AB49: 4.664201438 | AC49: 0.2610573007 | AD49: 0.2161947036 | AE49: 0.2754 | AF49: 0 | AG49: 0.792636297 | AH49: 2.367207076 | AI49: 0.02297504431 | AJ49: 0.043316 | AK49: 0.06700115209 | AL49: 0.043316 | AM49: 0.24072 | AN49: 0.0820753332 | AO49: 5.28e-05 | AP49: 0.070125 | AQ49: 0.2934461538 | AR49: 0.266475 | AS49: 0.0701778 | AT49: 2.258756636 | AU49: 98.8 | AV49: 0.9776490755 | AW49: 39.96348287 | AX49: 5.96005721 | AZ49: 97.76490755 | BA49: 0.3490821322 | BB49: 1.100357449 | BC49: 0.951511497 | BD49: 0.1464387521 | BE49: 0.0820753332
A50: RdsonBotTc | B50: =RdsonBotTc*1000000 -> 4000 | C50: ppm | D50: Drain To Source Resitance Temp Co | G50: 41 | H50: 24 | I50: 1 | J50: 5.33 | K50: 5.33 | L50: 4.688425926 | M50: 0.7952637043 | N50: 1.954148649 | O50: 6.307074324 | P50: 4.352925676 | Q50: 0 | R50: 5.359769094 | S50: 0.1493810487 | T50: 0.2 | U50: 0.3566305776 | V50: 0.5641141242 | W50: 0.0210983006 | X50: 0.0210983006 | Y50: 2.162713951 | Z50: 0.6220851072 | AA50: 0.6220851072 | AB50: 4.77971125 | AC50: 0.2741476756 | AD50: 0.2215995712 | AE50: 0.2754 | AF50: 0 | AG50: 0.8141262584 | AH50: 2.425177335 | AI50: 0.02411408894 | AJ50: 0.0443989 | AK50: 0.06926719806 | AL50: 0.0443989 | AM50: 0.246738 | AN50: 0.08618137424 | AO50: 5.28e-05 | AP50: 0.070125 | AQ50: 0.2934461538 | AR50: 0.266475 | AS50: 0.0701778 | AT50: 2.330703516 | AU50: 101.27 | AV50: 0.9775030146 | AW50: 41.03288021 | AX50: 6.133113039 | AZ50: 97.75030146 | BA50: 0.3566305776 | BB50: 1.130131456 | BC50: 0.9769733384 | BD50: 0.1506907381 | BE50: 0.08618137424
A51: QgBot | B51: =Qg_Q2*1000000000 -> 25 | C51: nC | D51: Gate Charge Of Top FET | G51: 42 | H51: 24 | I51: 1 | J51: 5.46 | K51: 5.46 | L51: 4.802777778 | M51: 0.7953515348 | N51: 1.953474153 | O51: 6.436737076 | P51: 4.483262924 | Q51: 0 | R51: 5.489044098 | S51: 0.1566739465 | T51: 0.2 | U51: 0.3643744643 | V51: 0.563919414 | W51: 0.0210837385 | X51: 0.0210837385 | Y51: 2.214524694 | Z51: 0.6522479097 | AA51: 0.6522479097 | AB51: 4.895265842 | AC51: 0.287563532 | AD51: 0.2270044388 | AE51: 0.2754 | AF51: 0 | AG51: 0.8361123942 | AH51: 2.483138627 | AI51: 0.02528050751 | AJ51: 0.0454818 | AK51: 0.07156244483 | AL51: 0.0454818 | AM51: 0.252756 | AN51: 0.09038881532 | AO51: 5.28e-05 | AP51: 0.070125 | AQ51: 0.2934461538 | AR51: 0.266475 | AS51: 0.0701778 | AT51: 2.404185367 | AU51: 103.74 | AV51: 0.9773498156 | AW51: 42.12311688 | AX51: 6.307357341 | AZ51: 97.73498156 | BA51: 0.3643744643 | BB51: 1.160430839 | BC51: 1.002931354 | BD51: 0.1549719248 | BE51: 0.09038881532
A52: RGateBot | B52: =Rgate2 -> 1.2 | C52: W | D52: Gate Resistance | G52: 43 | H52: 24 | I52: 1 | J52: 5.59 | K52: 5.59 | L52: 4.91712963 | M52: 0.79543937 | N52: 1.952799472 | O52: 6.566399736 | P52: 4.613600264 | Q52: 0 | R52: 5.618352559 | S52: 0.1641426045 | T52: 0.2 | U52: 0.3723144699 | V52: 0.5637246504 | W52: 0.02106917742 | X52: 0.02106917742 | Y52: 2.26633213 | Z52: 0.6831227558 | AA52: 0.6831227558 | AB52: 5.010863006 | AC52: 0.3013049767 | AD52: 0.2324093064 | AE52: 0.2754 | AF52: 0 | AG52: 0.8586021685 | AH52: 2.54108981 | AI52: 0.02647426343 | AJ52: 0.0465647 | AK52: 0.07388690199 | AL52: 0.0465647 | AM52: 0.258774 | AN52: 0.09469765644 | AO52: 5.28e-05 | AP52: 0.070125 | AQ52: 0.2934461538 | AR52: 0.266475 | AS52: 0.0701778 | AT52: 2.47920963 | AU52: 106.21 | AV52: 0.9771899194 | AW52: 43.23450636 | AX52: 6.482790505 | AZ52: 97.71899194 | BA52: 0.3723144699 | BB52: 1.191263071 | BC52: 1.029393009 | BD52: 0.159282322 | BE52: 0.09469765644
A53: VsdBot | B53: =Vsd_Q2 -> 0.7 | C53: V | D53: Diode Forward Voltage of Bottom FET Body Diode | G53: 44 | H53: 24 | I53: 1 | J53: 5.72 | K53: 5.72 | L53: 5.031481481 | M53: 0.7955272099 | N53: 1.952124606 | O53: 6.696062303 | P53: 4.743937697 | Q53: 0 | R53: 5.747692221 | S53: 0.1717870225 | T53: 0.2 | U53: 0.3804512905 | V53: 0.5635298334 | W53: 0.02105461739 | X53: 0.02105461739 | Y53: 2.318135327 | Z53: 0.7147089352 | AA53: 0.7147089352 | AB53: 5.126500732 | AC53: 0.3153721171 | AD53: 0.237814174 | AE53: 0.2754 | AF53: 0 | AG53: 0.8816032937 | AH53: 2.599029842 | AI53: 0.02769532008 | AJ53: 0.0476476 | AK53: 0.07624057986 | AL53: 0.0476476 | AM53: 0.264792 | AN53: 0.09910789762 | AO53: 5.28e-05 | AP53: 0.070125 | AQ53: 0.2934461538 | AR53: 0.266475 | AS53: 0.0701778 | AT53: 2.555784014 | AU53: 108.68 | AV53: 0.9770237245 | AW53: 44.36737258 | AX53: 6.659412952 | AZ53: 97.70237245 | BA53: 0.3804512905 | BB53: 1.222635874 | BC53: 1.056366014 | BD53: 0.1636219399 | BE53: 0.09910789762
A54: QrrBot | B54: =Qrr_Q2*1000000000 -> 59 | C54: nC | D54: Reverse Recovery Charge of Body Diode | G54: 45 | H54: 24 | I54: 1 | J54: 5.85 | K54: 5.85 | L54: 5.145833333 | M54: 0.7956150544 | N54: 1.951449555 | O54: 6.825724777 | P54: 4.874275223 | Q54: 0 | R54: 5.877061024 | S54: 0.1796072007 | T54: 0.2 | U54: 0.3887856407 | V54: 0.5633349628 | W54: 0.02104005839 | X54: 0.02104005839 | Y54: 2.369933436 | Z54: 0.7470057371 | AA54: 0.7470057371 | AB54: 5.242177189 | AC54: 0.3297650601 | AD54: 0.2432190416 | AE54: 0.2754 | AF54: 0 | AG54: 0.9051237378 | AH54: 2.656957772 | AI54: 0.02894364087 | AJ54: 0.0487305 | AK54: 0.07862348952 | AL54: 0.0487305 | AM54: 0.27081 | AN54: 0.1036195388 | AO54: 5.28e-05 | AP54: 0.070125 | AQ54: 0.2934461538 | AR54: 0.266475 | AS54: 0.0701778 | AT54: 2.633916502 | AU54: 111.15 | AV54: 0.9768515922 | AW54: 45.52205019 | AX54: 6.837225133 | AZ54: 97.68515922 | BA54: 0.3887856407 | BB54: 1.254557227 | BC54: 1.083858338 | BD54: 0.1679907895 | BE54: 0.1036195388
A55: TrrBot | B55: =Trr_Q2*1000000000 -> 40 | C55: ns | D55: Reverse Recovery Time of Body Diode | G55: 46 | H55: 24 | I55: 1 | J55: 5.98 | K55: 5.98 | L55: 5.260185185 | M55: 0.7957029036 | N55: 1.950774318 | O55: 6.955387159 | P55: 5.004612841 | Q55: 0 | R55: 6.006457084 | S55: 0.1876031389 | T55: 0.2 | U55: 0.3973182538 | V55: 0.5631400388 | W55: 0.02102550043 | X55: 0.02102550043 | Y55: 2.421725679 | Z55: 0.7800124503 | AA55: 0.7800124503 | AB55: 5.3578907 | AC55: 0.344483913 | AD55: 0.2486239092 | AE55: 0.2754 | AF55: 0 | AG55: 0.9291717325 | AH55: 2.714872732 | AI55: 0.0302191892 | AJ55: 0.0498134 | AK55: 0.08103564274 | AL55: 0.0498134 | AM55: 0.276828 | AN55: 0.1082325801 | AO55: 5.28e-05 | AP55: 0.070125 | AQ55: 0.2934461538 | AR55: 0.266475 | AS55: 0.0701778 | AT55: 2.71361536 | AU55: 113.62 | AV55: 0.97667385 | AW55: 46.69888492 | AX55: 7.016227527 | AZ55: 97.667385 | BA55: 0.3973182538 | BB55: 1.287035375 | BC55: 1.111878212 | BD55: 0.1723888827 | BE55: 0.1082325801
A56: θJABot | B56: =ThetaJA_Q2 -> 40.7 | C56: °C/W | D56: Junction to Ambient Resistance | G56: 47 | H56: 24 | I56: 1 | J56: 6.11 | K56: 6.11 | L56: 5.374537037 | M56: 0.7957907575 | N56: 1.950098896 | O56: 7.085049448 | P56: 5.134950552 | Q56: 0 | R56: 6.135878677 | S56: 0.1957748371 | T56: 0.2 | U56: 0.4060498818 | V56: 0.5629450613 | W56: 0.02101094352 | X56: 0.02101094352 | Y56: 2.473511344 | Z56: 0.8137283631 | AA56: 0.8137283631 | AB56: 5.473639732 | AC56: 0.3595287829 | AD56: 0.2540287768 | AE56: 0.2754 | AF56: 0 | AG56: 0.9537557815 | AH56: 2.772773923 | AI56: 0.03152192844 | AJ56: 0.0508963 | AK56: 0.08347705204 | AL56: 0.0508963 | AM56: 0.282846 | AN56: 0.1129470214 | AO56: 5.28e-05 | AP56: 0.070125 | AQ56: 0.2934461538 | AR56: 0.266475 | AS56: 0.0701778 | AT56: 2.794889143 | AU56: 116.09 | AV56: 0.9764907957 | AW56: 47.89823394 | AX56: 7.196420644 | AZ56: 97.64907957 | BA56: 0.4060498818 | BB56: 1.320078833 | BC56: 1.140434141 | BD56: 0.176816232 | BE56: 0.1129470214
A57: Bottom Schottky | B57: Input Value | C57: Units | D57: Std Units | G57: 48 | H57: 24 | I57: 1 | J57: 6.24 | K57: 6.24 | L57: 5.488888889 | M57: 0.795878616 | N57: 1.949423289 | O57: 7.214711645 | P57: 5.265288355 | Q57: 0 | R57: 6.265324221 | S57: 0.2041222955 | T57: 0.2 | U57: 0.4149812962 | V57: 0.5627500304 | W57: 0.02099638766 | X57: 0.02099638766 | Y57: 2.525289774 | Z57: 0.8481527632 | AA57: 0.8481527632 | AB57: 5.589422876 | AC57: 0.374899777 | AD57: 0.2594336443 | AE57: 0.2754 | AF57: 0 | AG57: 0.9788846691 | AH57: 2.830660614 | AI57: 0.032851822 | AJ57: 0.0519792 | AK57: 0.08594773067 | AL57: 0.0519792 | AM57: 0.288864 | AN57: 0.1177628628 | AO57: 5.28e-05 | AP57: 0.070125 | AQ57: 0.2934461538 | AR57: 0.266475 | AS57: 0.0701778 | AT57: 2.87774671 | AU57: 118.56 | AV57: 0.9763027 | AW57: 49.12046618 | AX57: 7.377805022 | AZ57: 97.63027 | BA57: 0.4149812962 | BB57: 1.3536964 | BC57: 1.169534909 | BD57: 0.1812728507 | BE57: 0.1177628628
A58: VfdSky | B58: =VfdSky_Q2 -> 0 | C58: V | D58: Diode Forward Voltage | G58: 49 | H58: 24 | I58: 1 | J58: 6.37 | K58: 6.37 | L58: 5.603240741 | M58: 0.7959664792 | N58: 1.948747497 | O58: 7.344373748 | P58: 5.395626252 | Q58: 0 | R58: 6.394792261 | S58: 0.2126455139 | T58: 0.2 | U58: 0.4241132873 | V58: 0.5625549459 | W58: 0.02098183285 | X58: 0.02098183285 | Y58: 2.577060367 | Z58: 0.8832849378 | AA58: 0.8832849378 | AB58: 5.705238839 | AC58: 0.3905970025 | AD58: 0.2648385119 | AE58: 0.2754 | AF58: 0 | AG58: 1.00456747 | AH58: 2.888532129 | AI58: 0.03420883324 | AJ58: 0.0530621 | AK58: 0.08844769262 | AL58: 0.0530621 | AM58: 0.294882 | AN58: 0.1226801042 | AO58: 5.28e-05 | AP58: 0.070125 | AQ58: 0.2934461538 | AR58: 0.266475 | AS58: 0.0701778 | AT58: 2.962197224 | AU58: 121.03 | AV58: 0.9761098094 | AW58: 50.36596276 | AX58: 7.560381232 | AZ58: 97.61098094 | BA58: 0.4241132873 | BB58: 1.387897162 | BC58: 1.19918959 | BD58: 0.1857587526 | BE58: 0.1226801042
A59: QrrSky | B59: =QrrSky_Q2*1000000000 -> 0 | C59: nC | D59: Diode Reverse Recovery Charge | G59: 50 | H59: 24 | I59: 1 | J59: 6.5 | K59: 6.5 | L59: 5.717592593 | M59: 0.7960543471 | N59: 1.948071519 | O59: 7.47403576 | P59: 5.52596424 | Q59: 0 | R59: 6.524281459 | S59: 0.2213444925 | T59: 0.2 | U59: 0.4334466649 | V59: 0.562359808 | W59: 0.02096727911 | X59: 0.02096727911 | Y59: 2.628822564 | Z59: 0.9191241739 | AA59: 0.9191241739 | AB59: 5.821086428 | AC59: 0.4066205664 | AD59: 0.2702433795 | AE59: 0.2754 | AF59: 0 | AG59: 1.030813556 | AH59: 2.946387848 | AI59: 0.03559292554 | AJ59: 0.054145 | AK59: 0.09097695258 | AL59: 0.054145 | AM59: 0.3009 | AN59: 0.1276987457 | AO59: 5.28e-05 | AP59: 0.070125 | AQ59: 0.2934461538 | AR59: 0.266475 | AS59: 0.0701778 | AT59: 3.048250172 | AU59: 123.5 | AV59: 0.9759123483 | AW59: 51.63511735 | AX59: 7.74414987 | AZ59: 97.59123483 | BA59: 0.4334466649 | BB59: 1.422690509 | BC59: 1.229407556 | BD59: 0.1902739526 | BE59: 0.1276987457
A60: Ireverse | B60: =Ireverse -> 0 | C60: mA | D60: Reverse Leakage Current | G60: 51 | H60: 24 | I60: 1 | J60: 6.63 | K60: 6.63 | L60: 5.831944444 | M60: 0.7961422197 | N60: 1.947395356 | O60: 7.603697678 | P60: 5.656302322 | Q60: 0 | R60: 6.653790578 | S60: 0.2302192311 | T60: 0.2 | U60: 0.4429822585 | V60: 0.5621646166 | W60: 0.02095272642 | X60: 0.02095272642 | Y60: 2.680575852 | Z60: 0.9556697576 | AA60: 0.9556697576 | AB60: 5.936964545 | AC60: 0.4229705761 | AD60: 0.2756482471 | AE60: 0.2754 | AF60: 0 | AG60: 1.05763261 | AH60: 3.004227196 | AI60: 0.03700406229 | AJ60: 0.0552279 | AK60: 0.09353552599 | AL60: 0.0552279 | AM60: 0.306918 | AN60: 0.1328187872 | AO60: 5.28e-05 | AP60: 0.070125 | AQ60: 0.2934461538 | AR60: 0.266475 | AS60: 0.0701778 | AT60: 3.135915366 | AU60: 125.97 | AV60: 0.9757105214 | AW60: 52.9283366 | AX60: 7.929111566 | AZ60: 97.57105214 | BA60: 0.4429822585 | BB60: 1.458086136 | BC60: 1.26019849 | BD60: 0.194818466 | BE60: 0.1328187872
A61: Controller | B61: Input Value | C61: Units | D61: Std Units | G61: 52 | H61: 24 | I61: 1 | J61: 6.76 | K61: 6.76 | L61: 5.946296296 | M61: 0.7962300969 | N61: 1.946719008 | O61: 7.733359504 | P61: 5.786640496 | Q61: 0 | R61: 6.783318478 | S61: 0.2392697298 | T61: 0.2 | U61: 0.4527209173 | V61: 0.5619693717 | W61: 0.0209381748 | X61: 0.0209381748 | Y61: 2.732319754 | Z61: 0.9929209747 | AA61: 0.9929209747 | AB61: 6.052872175 | AC61: 0.4396471388 | AD61: 0.2810531147 | AE61: 0.2754 | AF61: 0 | AG61: 1.085034635 | AH61: 3.062049642 | AI61: 0.03844220684 | AJ61: 0.0563108 | AK61: 0.09612342901 | AL61: 0.0563108 | AM61: 0.312936 | AN61: 0.1380402287 | AO61: 5.28e-05 | AP61: 0.070125 | AQ61: 0.2934461538 | AR61: 0.266475 | AS61: 0.0701778 | AT61: 3.225202959 | AU61: 128.44 | AV61: 0.9755045153 | AW61: 54.24604058 | AX61: 8.115266977 | AZ61: 97.55045153 | BA61: 0.4527209173 | BB61: 1.494094064 | BC61: 1.291572395 | BD61: 0.199392309 | BE61: 0.1380402287
A62: θJA | B62: 30 | C62: °C/W | D62: Junction to Ambient Resistance | G62: 53 | H62: 24 | I62: 1 | J62: 6.89 | K62: 6.89 | L62: 6.060648148 | M62: 0.7963179788 | N62: 1.946042475 | O62: 7.863021237 | P62: 5.916978763 | Q62: 0 | R62: 6.912864103 | S62: 0.2484959886 | T62: 0.2 | U62: 0.4626635105 | V62: 0.5617740733 | W62: 0.02092362425 | X62: 0.02092362425 | Y62: 2.784053828 | Z62: 1.030877111 | AA62: 1.030877111 | AB62: 6.168808378 | AC62: 0.4566503616 | AD62: 0.2864579823 | AE62: 0.2754 | AF62: 0 | AG62: 1.113029961 | AH62: 3.119854694 | AI62: 0.03990732257 | AJ62: 0.0573937 | AK62: 0.09874067853 | AL62: 0.0573937 | AM62: 0.318954 | AN62: 0.1433630703 | AO62: 5.28e-05 | AP62: 0.070125 | AQ62: 0.2934461538 | AR62: 0.266475 | AS62: 0.0701778 | AT62: 3.316123455 | AU62: 130.91 | AV62: 0.9752945003 | AW62: 55.58866324 | AX62: 8.30261679 | AZ62: 97.52945003 | BA62: 0.4626635105 | BB62: 1.530724639 | BC62: 1.323539601 | BD62: 0.2039954985 | BE62: 0.1433630703
A63: Theta Ja | B63: 2 | C63: °C/W | D63: Junction to Ambient Resistance | G63: 54 | H63: 24 | I63: 1 | J63: 7.02 | K63: 7.02 | L63: 6.175 | M63: 0.7964058654 | N63: 1.945365756 | O63: 7.992682878 | P63: 6.047317122 | Q63: 0 | R63: 7.042426475 | S63: 0.2578980074 | T63: 0.2 | U63: 0.4728109273 | V63: 0.5615787214 | W63: 0.02090907478 | X63: 0.02090907478 | Y63: 2.835777665 | Z63: 1.06953745 | AA63: 1.06953745 | AB63: 6.284772283 | AC63: 0.4739803518 | AD63: 0.2918628499 | AE63: 0.2754 | AF63: 0 | AG63: 1.141629262 | AH63: 3.177641894 | AI63: 0.04139937284 | AJ63: 0.0584766 | AK63: 0.1013872922 | AL63: 0.0584766 | AM63: 0.324972 | AN63: 0.148787312 | AO63: 5.28e-05 | AP63: 0.070125 | AQ63: 0.2934461538 | AR63: 0.266475 | AS63: 0.0701778 | AT63: 3.408687718 | AU63: 133.38 | AV63: 0.9750806315 | AW63: 56.95665283 | AX63: 8.491161724 | AZ63: 97.50806315 | BA63: 0.4728109273 | BB63: 1.567988554 | BC63: 1.356110782 | BD63: 0.2086280522 | BE63: 0.148787312
G64: 55 | H64: 24 | I64: 1 | J64: 7.15 | K64: 7.15 | L64: 6.289351852 | M64: 0.7964937566 | N64: 1.944688852 | O64: 8.122344426 | P64: 6.177655574 | Q64: 0 | R64: 7.172004687 | S64: 0.2674757864 | T64: 0.2 | U64: 0.4831640774 | V64: 0.561383316 | W64: 0.02089452638 | X64: 0.02089452638 | Y64: 2.887490881 | Z64: 1.108901277 | AA64: 1.108901277 | AB64: 6.400763084 | AC64: 0.4916372167 | AD64: 0.2972677175 | AE64: 0.2754 | AF64: 0 | AG64: 1.170843564 | AH64: 3.235410819 | AI64: 0.042918321 | AJ64: 0.0595595 | AK64: 0.1040632883 | AL64: 0.0595595 | AM64: 0.33099 | AN64: 0.1543129537 | AO64: 5.28e-05 | AP64: 0.070125 | AQ64: 0.2934461538 | AR64: 0.266475 | AS64: 0.0701778 | AT64: 3.502906987 | AU64: 135.85 | AV64: 0.9748630505 | AW64: 58.35047249 | AX64: 8.680902524 | AZ64: 97.48630505 | BA64: 0.4831640774 | BB64: 1.605896852 | BC64: 1.389296964 | BD64: 0.2132899883 | BE64: 0.1543129537
G65: 56 | H65: 24 | I65: 1 | J65: 7.28 | K65: 7.28 | L65: 6.403703704 | M65: 0.7965816525 | N65: 1.944011762 | O65: 8.252005881 | P65: 6.307994119 | Q65: 0 | R65: 7.301597894 | S65: 0.2772293254 | T65: 0.2 | U65: 0.4937238912 | V65: 0.561187857 | W65: 0.02087997906 | X65: 0.02087997906 | Y65: 2.939193123 | Z65: 1.148967876 | AA65: 1.148967876 | AB65: 6.51678003 | AC65: 0.5096210635 | AD65: 0.3026725851 | AE65: 0.2754 | AF65: 0 | AG65: 1.20068426 | AH65: 3.293161073 | AI65: 0.04446413041 | AJ65: 0.0606424 | AK65: 0.106768686 | AL65: 0.0606424 | AM65: 0.337008 | AN65: 0.1599399954 | AO65: 5.28e-05 | AP65: 0.070125 | AQ65: 0.2934461538 | AR65: 0.266475 | AS65: 0.0701778 | AT65: 3.598792888 | AU65: 138.32 | AV65: 0.9746418863 | AW65: 59.77060068 | AX65: 8.871839966 | AZ65: 97.46418863 | BA65: 0.4937238912 | BB65: 1.644460946 | BC65: 1.42310954 | BD65: 0.217981326 | BE65: 0.1599399954
A66: Outputs | G66: 57 | H66: 24 | I66: 1 | J66: 7.41 | K66: 7.41 | L66: 6.518055556 | M66: 0.7966695531 | N66: 1.943334487 | O66: 8.381667243 | P66: 6.438332757 | Q66: 0 | R66: 7.431205313 | S66: 0.2871586245 | T66: 0.2 | U66: 0.5044913197 | V66: 0.5609923446 | W66: 0.02086543283 | X66: 0.02086543283 | Y66: 2.990884058 | Z66: 1.18973653 | AA66: 1.18973653 | AB66: 6.632822422 | AC66: 0.5279319994 | AD66: 0.3080774527 | AE66: 0.2754 | AF66: 0 | AG66: 1.231163121 | AH66: 3.350892288 | AI66: 0.04603676441 | AJ66: 0.0617253 | AK66: 0.109503505 | AL66: 0.0617253 | AM66: 0.343026 | AN66: 0.1656684372 | AO66: 5.28e-05 | AP66: 0.070125 | AQ66: 0.2934461538 | AR66: 0.266475 | AS66: 0.0701778 | AT66: 3.696357446 | AU66: 140.79 | AV66: 0.9744172563 | AW66: 61.21753178 | AX66: 9.063974858 | AZ66: 97.44172563 | BA66: 0.5044913197 | BB66: 1.683692626 | BC66: 1.457560281 | BD66: 0.222702085 | BE66: 0.1656684372
A67: Design | B67: Value | C67: Units | G67: 58 | H67: 24 | I67: 1 | J67: 7.54 | K67: 7.54 | L67: 6.632407407 | M67: 0.7967574584 | N67: 1.942657027 | O67: 8.511328513 | P67: 6.568671487 | Q67: 0 | R67: 7.560826213 | S67: 0.2972636837 | T67: 0.2 | U67: 0.5154673349 | V67: 0.5607967786 | W67: 0.02085088768 | X67: 0.02085088768 | Y67: 3.042563376 | Z67: 1.231206522 | AA67: 1.231206522 | AB67: 6.748889611 | AC67: 0.5465701318 | AD67: 0.3134823203 | AE67: 0.2754 | AF67: 0 | AG67: 1.262292309 | AH67: 3.408604119 | AI67: 0.04763618637 | AJ67: 0.0628082 | AK67: 0.1122677658 | AL67: 0.0628082 | AM67: 0.349044 | AN67: 0.1714982791 | AO67: 5.28e-05 | AP67: 0.070125 | AQ67: 0.2934461538 | AR67: 0.266475 | AS67: 0.0701778 | AT67: 3.795613099 | AU67: 143.26 | AV67: 0.9741892675 | AW67: 62.69177664 | AX67: 9.257308033 | AZ67: 97.41892675 | BA67: 0.5154673349 | BB67: 1.723604075 | BC67: 1.492661349 | BD67: 0.2274522858 | BE67: 0.1714982791
A68: Dmax | B68: =D1_Vinmin -> 0.7916666667 | C68: index | G68: 59 | H68: 24 | I68: 1 | J68: 7.67 | K68: 7.67 | L68: 6.746759259 | M68: 0.7968453683 | N68: 1.941979381 | O68: 8.64098969 | P68: 6.69901031 | Q68: 0 | R68: 7.690459912 | S68: 0.307544503 | T68: 0.2 | U68: 0.5266529302 | V68: 0.5606011591 | W68: 0.02083634363 | X68: 0.02083634363 | Y68: 3.094230788 | Z68: 1.273377134 | AA68: 1.273377134 | AB68: 6.86498099 | AC68: 0.565535568 | AD68: 0.3188871878 | AE68: 0.2754 | AF68: 0 | AG68: 1.294084394 | AH68: 3.466296246 | AI68: 0.04926235961 | AJ68: 0.0638911 | AK68: 0.1150614898 | AL68: 0.0638911 | AM68: 0.355062 | AN68: 0.177429521 | AO68: 5.28e-05 | AP68: 0.070125 | AQ68: 0.2934461538 | AR68: 0.266475 | AS68: 0.0701778 | AT68: 3.896572713 | AU68: 145.73 | AV68: 0.9739580167 | AW68: 64.19386317 | AX68: 9.451840359 | AZ68: 97.39580167 | BA68: 0.5266529302 | BB68: 1.764207883 | BC68: 1.528425314 | BD68: 0.2322319498 | BE68: 0.177429521
A69: Dprime | B69: =1-B68 -> 0.2083333333 | C69: index | G69: 60 | H69: 24 | I69: 1 | J69: 7.8 | K69: 7.8 | L69: 6.861111111 | M69: 0.7969332829 | N69: 1.94130155 | O69: 8.770650775 | P69: 6.829349225 | Q69: 0 | R69: 7.820105774 | S69: 0.3180010824 | T69: 0.2 | U69: 0.5380491203 | V69: 0.5604054861 | W69: 0.02082180068 | X69: 0.02082180068 | Y69: 3.145886022 | Z69: 1.316247648 | AA69: 1.316247648 | AB69: 6.981095993 | AC69: 0.5848284152 | AD69: 0.3242920554 | AE69: 0.2754 | AF69: 0 | AG69: 1.326552366 | AH69: 3.523968366 | AI69: 0.05091524748 | AJ69: 0.064974 | AK69: 0.117884699 | AL69: 0.064974 | AM69: 0.36108 | AN69: 0.1834621629 | AO69: 5.28e-05 | AP69: 0.070125 | AQ69: 0.2934461538 | AR69: 0.266475 | AS69: 0.0701778 | AT69: 3.999249597 | AU69: 148.2 | AV69: 0.9737235919 | AW69: 65.72433697 | AX69: 9.647572728 | AZ69: 97.37235919 | BA69: 0.5380491203 | BB69: 1.805517065 | BC69: 1.564865166 | BD69: 0.237041099 | BE69: 0.1834621629
A70: Ipp | B70: =Iripple_Vinnom -> 1.989528801 | C70: A | G70: 61 | H70: 24 | I70: 1 | J70: 7.93 | K70: 7.93 | L70: 6.975462963 | M70: 0.7970212022 | N70: 1.940623533 | O70: 8.900311766 | P70: 6.959688234 | Q70: 0 | R70: 7.949763202 | S70: 0.3286334219 | T70: 0.2 | U70: 0.5496569416 | V70: 0.5602097596 | W70: 0.02080725882 | X70: 0.02080725882 | Y70: 3.197528822 | Z70: 1.359817346 | AA70: 1.359817346 | AB70: 7.09723409 | AC70: 0.6044487807 | AD70: 0.329696923 | AE70: 0.2754 | AF70: 0 | AG70: 1.359709653 | AH70: 3.581620199 | AI70: 0.05259481331 | AJ70: 0.0660569 | AK70: 0.1207374159 | AL70: 0.0660569 | AM70: 0.367098 | AN70: 0.1895962049 | AO70: 5.28e-05 | AP70: 0.070125 | AQ70: 0.2934461538 | AR70: 0.266475 | AS70: 0.0701778 | AT70: 4.10365752 | AU70: 150.67 | AV70: 0.9734860726 | AW70: 67.28376198 | AX70: 9.844506066 | AZ70: 97.34860726 | BA70: 0.5496569416 | BB70: 1.847545069 | BC70: 1.601994333 | BD70: 0.2418797559 | BE70: 0.1895962049
A71: Top FET | B71: Value | C71: Units | G71: 62 | H71: 24 | I71: 1 | J71: 8.06 | K71: 8.06 | L71: 7.089814815 | M71: 0.7971091262 | N71: 1.939945331 | O71: 9.029972665 | P71: 7.090027335 | Q71: 0 | R71: 8.079431642 | S71: 0.3394415214 | T71: 0.2 | U71: 0.5614774527 | V71: 0.5600139795 | W71: 0.02079271807 | X71: 0.02079271807 | Y71: 3.249158951 | Z71: 1.404085507 | AA71: 1.404085507 | AB71: 7.213394785 | AC71: 0.624396772 | AD71: 0.3351017906 | AE71: 0.2754 | AF71: 0 | AG71: 1.393570135 | AH71: 3.639251479 | AI71: 0.05430102044 | AJ71: 0.0671398 | AK71: 0.1236196642 | AL71: 0.0671398 | AM71: 0.373116 | AN71: 0.195831647 | AO71: 5.28e-05 | AP71: 0.070125 | AQ71: 0.2934461538 | AR71: 0.266475 | AS71: 0.0701778 | AT71: 4.209810724 | AU71: 153.14 | AV71: 0.9732455304 | AW71: 68.87272117 | AX71: 10.04264133 | AZ71: 97.32455304 | BA71: 0.5614774527 | BB71: 1.890305799 | BC71: 1.639826695 | BD71: 0.2467479442 | BE71: 0.195831647
A72: Tr | B72: =(Qgd_Q1+Qgs_Q1/2)*(RdsonDRT+Rgate1)/(VCC-Vsp_Q1)*1000000000 -> 5.884699454 | C72: ns | D72: Turn on of MOSFET -> Rise time of current | G72: 63 | H72: 24 | I72: 1 | J72: 8.19 | K72: 8.19 | L72: 7.204166667 | M72: 0.7971970548 | N72: 1.939266943 | O72: 9.159633472 | P72: 7.220366528 | Q72: 0 | R72: 8.20911057 | S72: 0.3504253811 | T72: 0.2 | U72: 0.5735117341 | V72: 0.5598181459 | W72: 0.02077817843 | X72: 0.02077817843 | Y72: 3.300776183 | Z72: 1.449051414 | AA72: 1.449051414 | AB72: 7.329577615 | AC72: 0.6446724962 | AD72: 0.3405066582 | AE72: 0.2754 | AF72: 0 | AG72: 1.428148162 | AH72: 3.696861958 | AI72: 0.05603383218 | AJ72: 0.0682227 | AK72: 0.1265314678 | AL72: 0.0682227 | AM72: 0.379134 | AN72: 0.2021684891 | AO72: 5.28e-05 | AP72: 0.070125 | AQ72: 0.2934461538 | AR72: 0.266475 | AS72: 0.0701778 | AT72: 4.317723945 | AU72: 155.61 | AV72: 0.9730020297 | AW72: 70.49181726 | AX72: 10.24197949 | AZ72: 97.30020297 | BA72: 0.5735117341 | BB72: 1.933813629 | BC72: 1.678376602 | BD72: 0.2516456878 | BE72: 0.2021684891
A73: Tf | B73: =(Qgd_Q1+Qgs_Q1/2)*(RdsonDRT2+Rgate1)/(Vsp_Q1)*1000000000 -> 2.267438692 | C73: ns | D73: Turn off of MOSFET -> Fall time of current | G73: 64 | H73: =Vin -> 24 | I73: =MODE -> 1 | J73: 8.32 | K73: =Iout*G73/100/Number_of_Phases -> 8.32 | L73: =Vout*K73/(Vin*Efficiency) -> 7.318518519 | M73: =(Vout+(Rdson2+Rs+Rdcr)*K73)/(Vin+(Rs+Rdson2-Rdson1)*K73) -> 0.7972849881 | N73: =(Vin-(Rdson1+Rdcr)*K73-Vout)*M73/(Fsw*Lf) -> 1.93858837 | O73: 9.289294185 | P73: 7.350705815 | Q73: =IF(MIN(Vin, -P73/(Coss_Q1+Coss_Q2)*0.00000002)<0, 0, MIN(Vin, -P73/(Coss_Q1+Coss_Q2)*0.00000002)) -> 0 | R73: 8.338799498 | S73: =R73^2*Rdcr -> 0.3615850008 | T73: =Core_Loss_Ch1 -> 0.2 | U73: =(T73+S73*(1+Ltc*(Ta-25)))/(1-S73*Ltc*ThetaCa) -> 0.5857608889 | V73: 0.5596222587 | W73: 0.0207636399 | X73: 0.0207636399 | Y73: 3.352380306 | Z73: 1.494714344 | AA73: 1.494714344 | AB73: 7.445782144 | AC73: =Rdson1*AB73^2 -> 0.6652760609 | AD73: =(Vin*K73/2)*Fsw*(Tr_buck+Tf_buck) -> 0.3459115258 | AE73: =(0.5*Coss_Q1*(Vin-Q73)^2-0.5*Coss_Q2*(Vin-Q73)^2+(Qoss_Q2*(Vin-Q73)/Vin)*Vin)*Fsw -> 0.2754 | AF73: =IF(K73>N73/2,0,ABS(K73-N73/2)*Vsd_Q1*Deadtime*Fsw) -> 0 | AG73: =(AF73+AE73+AD73+AC73*(1+RdsonTopTc*Ta-RdsonTopTc*25))/(1-AC73*RdsonTopTc*ThetaJA_Q1) -> 1.463458572 | AH73: =SQRT((1-M73))*SQRT(K73^2+(N73^2)/12) -> 3.754451402 | AI73: =Rdson2*AH73^2 -> 0.05779321187 | AJ73: =IF(K73<N73/2,Deadtime*Fsw*IF(VfdSky_Q2>0,0,Vsd_Q2)*(K73+N73/2),2*Deadtime*Fsw*IF(VfdSky_Q2>0,0,Vsd_Q2)*K73) -> 0.0693056 | AK73: =(AJ73+AI73*(1+RdsonBotTc*Ta-RdsonBotTc*25))/(1-AI73*RdsonBotTc*ThetaJA_Q2) -> 0.1294728518 | AL73: =2*Deadtime*Fsw*IF(VfdSky_Q2>0,VfdSky_Q2,Vsd_Q2)*K73 -> 0.0693056 | AM73: =IF(QrrSky_Q2>0,QrrSky_Q2,Qrr_Q2*K73/(Iout/Number_of_Phases))*Fsw*Vin -> 0.385152 | AN73: =Rs*R73^2 -> 0.2086067312 | AO73: =Iq*Vin -> 5.28e-05 | AP73: =IF(Ext_VCC=1, (Qg_Q1+Qg_Q2)*Fsw*VCC, (Qg_Q1+Qg_Q2)*Fsw*Vin) -> 0.070125 | AQ73: =(Vin-VCC)*Fsw*(Qg_Q1+Qg_Q2)+(RdsonDRT+RdsonDRT2)*Fsw*Qg_Q1*VCC/(RdsonDRT+2*Rgate1+RdsonDRT2)+(RdsonDRB+RdsonDRB2)*Fsw*Qg_Q2*VCC/(RdsonDRB+2*Rgate2+RdsonDRB2) -> 0.2934461538 | AR73: =(Qg_Q1+Qg_Q2)*Fsw*(Vin-VCC) -> 0.266475 | AS73: 0.0701778 | AT73: =SUM(U73,X73,AA73,AG73,AK73,AL73,AM73,AS73,AN73) -> 4.427412428 | AU73: =Vout*K73 -> 158.08 | AV73: 0.9727556278 | AW73: =ThetaJA_Q1*BC73 -> 72.14167347 | AX73: =ThetaJA_Q2*BD73 -> 10.44252158 | AZ73: 97.27556278 | BA73: =U73 -> 0.5857608889 | BB73: 1.978083424 | BC73: 1.717658892 | BD73: 0.2565730118 | BE73: 0.2086067312
A74: Part Power | B74: Value | C74: Units | G74: 65 | H74: 24 | I74: 1 | J74: =Iout*G74/100 -> 8.45 | K74: 8.45 | L74: 7.43287037 | M74: 0.7973729261 | N74: 1.937909612 | O74: =K74+N74/2 -> 9.418954806 | P74: =K74-N74/2 -> 7.481045194 | Q74: 0 | R74: =SQRT(K74^2+(N74^2)/12) -> 8.468497966 | S74: 0.3729203806 | T74: 0.2 | U74: 0.5982260429 | V74: =N74/SQRT(12) -> 0.559426318 | W74: =RCoutEsr*V74^2 -> 0.02074910249 | X74: =W74 -> 0.02074910249 | Y74: =SQRT(M74*(1-M74))*SQRT(K74^2+(N74^2)/12) -> 3.40397112 | Z74: =RCinEsr*Y74^2 -> 1.541073579 | AA74: =Z74 -> 1.541073579 | AB74: =SQRT(M74)*SQRT(K74^2+(N74^2)/12) -> 7.562007963 | AC74: 0.6862075732 | AD74: 0.3513163934 | AE74: 0.2754 | AF74: 0 | AG74: 1.499516712 | AH74: 3.812019592 | AI74: 0.05957912282 | AJ74: 0.0703885 | AK74: 0.1324438418 | AL74: 0.0703885 | AM74: 0.39117 | AN74: 0.2151463734 | AO74: 5.28e-05 | AP74: 0.070125 | AQ74: 0.2934461538 | AR74: 0.266475 | AS74: 0.0701778 | AT74: 4.538891951 | AU74: 160.55 | AV74: =AU74/(AU74+AT74) -> 0.9725063758 | AW74: 73.82293429 | AX74: 10.64426863 | AZ74: =AV74*100 -> 97.25063758 | BA74: 0.5982260429 | BB74: =AG74+AK74+AM74 -> 2.023130553 | BC74: =AG74+AM74*0.66 -> 1.757688912 | BD74: =AK74+AM74*0.33 -> 0.2615299418 | BE74: =AN74 -> 0.2151463734
A75: Power Dis | B75: =AS9 -> 0.0701778 | C75: W | G75: 66 | H75: 24 | I75: 1 | J75: 8.58 | K75: 8.58 | L75: 7.547222222 | M75: 0.7974608687 | N75: 1.937230668 | O75: 9.548615334 | P75: 7.611384666 | Q75: 0 | R75: 8.598205543 | S75: 0.3844315205 | T75: 0.2 | U75: 0.6109083448 | V75: 0.5592303237 | W75: 0.02073456619 | X75: 0.02073456619 | Y75: 3.455548438 | Z75: 1.588128396 | AA75: 1.588128396 | AB75: 7.678254688 | AC75: 0.7074671407 | AD75: 0.356721261 | AE75: 0.2754 | AF75: 0 | AG75: 1.536338452 | AH75: 3.869566319 | AI75: 0.06139152834 | AJ75: 0.0714714 | AK75: 0.1354444641 | AL75: 0.0714714 | AM75: 0.397188 | AN75: 0.2217874157 | AO75: 5.28e-05 | AP75: 0.070125 | AQ75: 0.2934461538 | AR75: 0.266475 | AS75: =SUM(AO75:AP75) -> 0.0701778 | AT75: 4.652178838 | AU75: 163.02 | AV75: 0.9722543187 | AW75: 75.53626633 | AX75: 10.84722172 | AZ75: 97.22543187 | BA75: 0.6109083448 | BB75: 2.068970916 | BC75: 1.798482532 | BD75: 0.2665165041 | BE75: 0.2217874157
A76: Temp rise | B76: =B75*B62 -> 2.105334 | C76: °C | G76: 67 | H76: 24 | I76: 1 | J76: 8.71 | K76: 8.71 | L76: 7.661574074 | M76: 0.7975488161 | N76: 1.936551538 | O76: 9.678275769 | P76: 7.741724231 | Q76: 0 | R76: 8.727921821 | S76: 0.3961184205 | T76: 0.2 | U76: 0.6238089667 | V76: 0.5590342759 | W76: 0.02072003102 | X76: 0.02072003102 | Y76: 3.50711208 | Z76: 1.635878074 | AA76: 1.635878074 | AB76: 7.794521958 | AC76: 0.7290548706 | AD76: 0.3621261286 | AE76: 0.2754 | AF76: 0 | AG76: 1.573940211 | AH76: 3.927091388 | AI76: 0.06323039175 | AJ76: 0.0725543 | AK76: 0.1384747458 | AL76: 0.0725543 | AM76: 0.403206 | AN76: 0.228529858 | AO76: 5.28e-05 | AP76: 0.070125 | AQ76: 0.2934461538 | AR76: 0.266475 | AS76: 0.0701778 | AT76: 4.767289987 | AU76: 165.49 | AV76: 0.9719994957 | AW76: 77.28235919 | AX76: 11.05138194 | AZ76: 97.19994957 | BA76: 0.6238089667 | BB76: 2.115620957 | BC76: 1.840056171 | BD76: 0.2715327258 | BE76: 0.228529858
A77: Current (switching) | B77: =(Qg_Q1+Qg_Q2)*Fsw+Iq -> 0.0140272 | C77: A | G77: 68 | H77: 24 | I77: 1 | J77: 8.84 | K77: 8.84 | L77: 7.775925926 | M77: 0.7976367681 | N77: 1.935872223 | O77: 9.807936111 | P77: 7.872063889 | Q77: 0 | R77: 8.85764642 | S77: 0.4079810805 | T77: 0.2 | U77: 0.6369291041 | V77: 0.5588381745 | W77: 0.02070549698 | X77: 0.02070549698 | Y77: 3.558661879 | Z77: 1.684321891 | AA77: 1.684321891 | AB77: 7.910809432 | AC77: 0.7509708705 | AD77: 0.3675309962 | AE77: 0.2754 | AF77: 0 | AG77: 1.612338978 | AH77: 3.984594613 | AI77: 0.06509567636 | AJ77: 0.0736372 | AK77: 0.1415347148 | AL77: 0.0736372 | AM77: 0.409224 | AN77: 0.2353737003 | AO77: 5.28e-05 | AP77: 0.070125 | AQ77: 0.2934461538 | AR77: 0.266475 | AS77: 0.0701778 | AT77: 4.884242885 | AU77: 167.96 | AV77: 0.9717419406 | AW77: 79.06192635 | AX77: 11.25675044 | AZ77: 97.17419406 | BA77: 0.6369291041 | BB77: 2.163097693 | BC77: 1.882426818 | BD77: 0.2765786348 | BE77: 0.2353737003
A78: Qrr Current | B78: =Qrr_Q2*Fsw -> 0.025075 | C78: A | G78: 69 | H78: 24 | I78: 1 | J78: 8.97 | K78: 8.97 | L78: 7.890277778 | M78: 0.7977247248 | N78: 1.935192722 | O78: 9.937596361 | P78: 8.002403639 | Q78: 0 | R78: 8.987378979 | S78: 0.4200195007 | T78: 0.2 | U78: 0.6502699764 | V78: 0.5586420195 | W78: 0.02069096407 | X78: 0.02069096407 | Y78: 3.610197675 | Z78: 1.733459124 | AA78: 1.733459124 | AB78: 8.02711679 | AC78: 0.7732152476 | AD78: 0.3729358637 | AE78: 0.2754 | AF78: 0 | AG78: 1.651552331 | AH78: 4.042075821 | AI78: 0.06698734547 | AJ78: 0.0747201 | AK78: 0.1446243995 | AL78: 0.0747201 | AM78: 0.415242 | AN78: 0.2423189427 | AO78: 5.28e-05 | AP78: 0.070125 | AQ78: 0.2934461538 | AR78: 0.266475 | AS78: 0.0701778 | AT78: 5.003055638 | AU78: 170.43 | AV78: 0.9714816822 | AW78: 80.87570614 | AX78: 11.46332836 | AZ78: 97.14816822 | BA78: 0.6502699764 | BB78: 2.21141873 | BC78: 1.925612051 | BD78: 0.2816542595 | BE78: 0.2423189427
A79: Diode Current | B79: =Deadtime*Fsw*(Iripple_Vinnom/2)*(Vsd_Q2)/Vin -> 0.000172633072 | G79: 70 | H79: 24 | I79: 1 | J79: 9.1 | K79: 9.1 | L79: 8.00462963 | M79: 0.7978126862 | N79: 1.934513036 | O79: 10.06725652 | P79: 8.132743482 | Q79: 0 | R79: 9.117119157 | S79: 0.432233681 | T79: 0.2 | U79: 0.6638328271 | V79: 0.558445811 | W79: 0.02067643229 | X79: 0.02067643229 | Y79: 3.661719316 | Z79: 1.783289051 | AA79: 1.783289051 | AB79: 8.14344373 | AC79: 0.7957881094 | AD79: 0.3783407313 | AE79: 0.2754 | AF79: 0 | AG79: 1.691598466 | AH79: 4.099534845 | AI79: 0.06890536237 | AJ79: 0.075803 | AK79: 0.1477438293 | AL79: 0.075803 | AM79: 0.42126 | AN79: 0.2493655852 | AO79: 5.28e-05 | AP79: 0.070125 | AQ79: 0.2934461538 | AR79: 0.266475 | AS79: 0.0701778 | AT79: 5.12374699 | AU79: 172.9 | AV79: 0.9712187443 | AW79: 82.72446276 | AX79: 11.67111691 | AZ79: 97.12187443 | BA79: 0.6638328271 | BB79: 2.260602295 | BC79: 1.969630066 | BD79: 0.2867596293 | BE79: 0.2493655852
A80: Total | B80: =SUM(B77:B79) -> 0.03927483307 | C80: A | G80: 71 | H80: 24 | I80: 1 | J80: 9.23 | K80: 9.23 | L80: 8.118981481 | M80: 0.7979006522 | N80: 1.933833164 | O80: 10.19691658 | P80: 8.263083418 | Q80: 0 | R80: 9.246866635 | S80: 0.4446236213 | T80: 0.2 | U80: 0.6776189241 | V80: 0.5582495489 | W80: 0.02066190165 | X80: 0.02066190165 | Y80: 3.713226661 | Z80: 1.833810947 | AA80: 1.833810947 | AB80: 8.259789965 | AC80: 0.8186895633 | AD80: 0.3837455989 | AE80: 0.2754 | AF80: 0 | AG80: 1.732496218 | AH80: 4.156971528 | AI80: 0.07084969037 | AJ80: 0.0768859 | AK80: 0.1508930342 | AL80: 0.0768859 | AM80: 0.427278 | AN80: 0.2565136277 | AO80: 5.28e-05 | AP80: 0.070125 | AQ80: 0.2934461538 | AR80: 0.266475 | AS80: 0.0701778 | AT80: 5.246336352 | AU80: 175.37 | AV80: 0.970953146 | AW80: 84.6089873 | AX80: 11.88011731 | AZ80: 97.0953146 | BA80: 0.6776189241 | BB80: 2.310667252 | BC80: 2.014499698 | BD80: 0.2918947742 | BE80: 0.2565136277
G81: 72 | H81: 24 | I81: 1 | J81: 9.36 | K81: 9.36 | L81: 8.233333333 | M81: 0.7979886229 | N81: 1.933153107 | O81: 10.32657655 | P81: 8.393423447 | Q81: 0 | R81: 9.376621108 | S81: 0.4571893217 | T81: 0.2 | U81: 0.6916295601 | V81: 0.5580532332 | W81: 0.02064737216 | X81: 0.02064737216 | Y81: 3.764719571 | Z81: 1.885024089 | AA81: 1.885024089 | AB81: 8.376155228 | AC81: 0.8419197168 | AD81: 0.3891504665 | AE81: 0.2754 | AF81: 0 | AG81: 1.77426509 | AH81: 4.214385722 | AI81: 0.07282029275 | AJ81: 0.0779688 | AK81: 0.1540720448 | AL81: 0.0779688 | AM81: 0.433296 | AN81: 0.2637630702 | AO81: 5.28e-05 | AP81: 0.070125 | AQ81: 0.2934461538 | AR81: 0.266475 | AS81: 0.0701778 | AT81: 5.370843826 | AU81: 177.84 | AV81: 0.9706849021 | AW81: 86.53009888 | AX81: 12.0903308 | AZ81: 97.06849021 | BA81: 0.6916295601 | BB81: 2.361633134 | BC81: 2.06024045 | BD81: 0.2970597248 | BE81: 0.2637630702
G82: 73 | H82: 24 | I82: 1 | J82: 9.49 | K82: 9.49 | L82: 8.347685185 | M82: 0.7980765983 | N82: 1.932472863 | O82: 10.45623643 | P82: 8.523763568 | Q82: 0 | R82: 9.506382292 | S82: 0.4699307823 | T82: 0.2 | U82: 0.7058660528 | V82: 0.5578568639 | W82: 0.02063284381 | X82: 0.02063284381 | Y82: 3.816197918 | Z82: 1.936927751 | AA82: 1.936927751 | AB82: 8.492539261 | AC82: 0.8654786773 | AD82: 0.3945553341 | AE82: 0.2754 | AF82: 0 | AG82: 1.81692528 | AH82: 4.271777285 | AI82: 0.07481713281 | AJ82: 0.0790517 | AK82: 0.1572808928 | AL82: 0.0790517 | AM82: 0.439314 | AN82: 0.2711139128 | AO82: 5.28e-05 | AP82: 0.070125 | AQ82: 0.2934461538 | AR82: 0.266475 | AS82: 0.0701778 | AT82: 5.497290233 | AU82: 180.31 | AV82: 0.9704140229 | AW82: 88.48864583 | AX82: 12.30175867 | AZ82: 97.04140229 | BA82: 0.7058660528 | BB82: 2.413520172 | BC82: 2.10687252 | BD82: 0.3022545128 | BE82: 0.2711139128
G83: 74 | H83: 24 | I83: 1 | J83: 9.62 | K83: 9.62 | L83: 8.462037037 | M83: 0.7981645784 | N83: 1.931792435 | O83: 10.58589622 | P83: 8.654103783 | Q83: 0 | R83: 9.636149914 | S83: 0.4828480029 | T83: 0.2 | U83: 0.7203297452 | V83: 0.5576604411 | W83: 0.02061831661 | X83: 0.02061831661 | Y83: 3.867661578 | Z83: 1.989521209 | AA83: 1.989521209 | AB83: 8.608941826 | AC83: 0.8893665523 | AD83: 0.3999602017 | AE83: 0.2754 | AF83: 0 | AG83: 1.86049771 | AH83: 4.329146083 | AI83: 0.07684017383 | AJ83: 0.0801346 | AK83: 0.1605196103 | AL83: 0.0801346 | AM83: 0.445332 | AN83: 0.2785661555 | AO83: 5.28e-05 | AP83: 0.070125 | AQ83: 0.2934461538 | AR83: 0.266475 | AS83: 0.0701778 | AT83: 5.625697147 | AU83: 182.78 | AV83: 0.9701405147 | AW83: 90.48550686 | AX83: 12.51440223 | AZ83: 97.01405147 | BA83: 0.7203297452 | BB83: 2.46634932 | BC83: 2.15441683 | BD83: 0.3074791703 | BE83: 0.2785661555
G84: 75 | H84: 24 | I84: 1 | J84: 9.75 | K84: 9.75 | L84: 8.576388889 | M84: 0.7982525632 | N84: 1.93111182 | O84: 10.71555591 | P84: 8.78444409 | Q84: 0 | R84: 9.765923718 | S84: 0.4959409836 | T84: 0.2 | U84: 0.7350220062 | V84: 0.5574639646 | W84: 0.02060379057 | X84: 0.02060379057 | Y84: 3.919110435 | Z84: 2.042803738 | AA84: 2.042803738 | AB84: 8.725362692 | AC84: 0.9135834492 | AD84: 0.4053650693 | AE84: 0.2754 | AF84: 0 | AG84: 1.905004057 | AH84: 4.386491989 | AI84: 0.07888937908 | AJ84: 0.0812175 | AK84: 0.1637882302 | AL84: 0.0812175 | AM84: 0.45135 | AN84: 0.2861197982 | AO84: 5.28e-05 | AP84: 0.070125 | AQ84: 0.2934461538 | AR84: 0.266475 | AS84: 0.0701778 | AT84: 5.75608692 | AU84: 185.25 | AV84: 0.9698643796 | AW84: 92.52159241 | AX84: 12.72826282 | AZ84: 96.98643796 | BA84: 0.7350220062 | BB84: 2.520142287 | BC84: 2.202895057 | BD84: 0.3127337302 | BE84: 0.2861197982
G85: 76 | H85: 24 | I85: 1 | J85: 9.88 | K85: 9.88 | L85: 8.690740741 | M85: 0.7983405526 | N85: 1.93043102 | O85: 10.84521551 | P85: 8.91478449 | Q85: 0 | R85: 9.895703461 | S85: 0.5092097244 | T85: 0.2 | U85: 0.7499442304 | V85: 0.5572674346 | W85: 0.02058926568 | X85: 0.02058926568 | Y85: 3.970544375 | Z85: 2.09677461 | AA85: 2.09677461 | AB85: 8.841801643 | AC85: 0.9381294756 | AD85: 0.4107699369 | AE85: 0.2754 | AF85: 0 | AG85: 1.950466786 | AH85: 4.443814881 | AI85: 0.08096471185 | AJ85: 0.0823004 | AK85: 0.1670867862 | AL85: 0.0823004 | AM85: 0.457368 | AN85: 0.293774841 | AO85: 5.28e-05 | AP85: 0.070125 | AQ85: 0.2934461538 | AR85: 0.266475 | AS85: 0.0701778 | AT85: 5.88848272 | AU85: 187.72 | AV85: 0.9695856161 | AW85: 94.59784599 | AX85: 12.94334181 | AZ85: 96.95856161 | BA85: 0.7499442304 | BB85: 2.574921573 | BC85: 2.252329666 | BD85: 0.3180182262 | BE85: 0.293774841
G86: 77 | H86: 24 | I86: 1 | J86: 10.01 | K86: 10.01 | L86: 8.805092593 | M86: 0.7984285467 | N86: 1.929750035 | O86: 10.97487502 | P86: 9.045124983 | Q86: 0 | R86: 10.02548891 | S86: 0.5226542253 | T86: 0.2 | U86: 0.7650978392 | V86: 0.5570708509 | W86: 0.02057474196 | X86: 0.02057474196 | Y86: 4.021963292 | Z86: 2.151433101 | AA86: 2.151433101 | AB86: 8.958258475 | AC86: 0.9630047389 | AD86: 0.4161748045 | AE86: 0.2754 | AF86: 0 | AG86: 1.996909183 | AH86: 4.501114643 | AI86: 0.08306613541 | AJ86: 0.0833833 | AK86: 0.1704153128 | AL86: 0.0833833 | AM86: 0.463386 | AN86: 0.3015312838 | AO86: 5.28e-05 | AP86: 0.070125 | AQ86: 0.2934461538 | AR86: 0.266475 | AS86: 0.0701778 | AT86: 6.022908562 | AU86: 190.19 | AV86: 0.9693042185 | AW86: 96.71524562 | AX86: 13.1596406 | AZ86: 96.93042185 | BA86: 0.7650978392 | BB86: 2.630710496 | BC86: 2.302743943 | BD86: 0.3233326928 | BE86: 0.3015312838
G87: 78 | H87: 24 | I87: 1 | J87: 10.14 | K87: 10.14 | L87: 8.919444444 | M87: 0.7985165455 | N87: 1.929068863 | O87: 11.10453443 | P87: 9.175465568 | Q87: 0 | R87: 10.15527985 | S87: 0.5362744862 | T87: 0.2 | U87: 0.7804842805 | V87: 0.5568742137 | W87: 0.0205602194 | X87: 0.0205602194 | Y87: 4.073367085 | Z87: 2.206778481 | AA87: 2.206778481 | AB87: 9.074732993 | AC87: 0.9882093466 | AD87: 0.4215796721 | AE87: 0.2754 | AF87: 0 | AG87: 2.044355391 | AH87: 4.558391164 | AI87: 0.08519361302 | AJ87: 0.0844662 | AK87: 0.1737738451 | AL87: 0.0844662 | AM87: 0.469404 | AN87: 0.3093891267 | AO87: 5.28e-05 | AP87: 0.070125 | AQ87: 0.2934461538 | AR87: 0.266475 | AS87: 0.0701778 | AT87: 6.159389344 | AU87: 192.66 | AV87: 0.9690201777 | AW87: 98.87480532 | AX87: 13.37716062 | AZ87: 96.90201777 | BA87: 0.7804842805 | BB87: 2.687533236 | BC87: 2.354162031 | BD87: 0.3286771651 | BE87: 0.3093891267
G88: 79 | H88: 24 | I88: 1 | J88: 10.27 | K88: 10.27 | L88: 9.033796296 | M88: 0.798604549 | N88: 1.928387506 | O88: 11.23419375 | P88: 9.305806247 | Q88: 0 | R88: 10.28507607 | S88: 0.5500705073 | T88: 0.2 | U88: 0.7961050292 | V88: 0.5566775228 | W88: 0.02054569801 | X88: 0.02054569801 | Y88: 4.124755654 | Z88: 2.262810025 | AA88: 2.262810025 | AB88: 9.191225011 | AC88: 1.013743406 | AD88: 0.4269845397 | AE88: 0.2754 | AF88: 0 | AG88: 2.09283045 | AH88: 4.61564434 | AI88: 0.08734710795 | AJ88: 0.0855491 | AK88: 0.177162419 | AL88: 0.0855491 | AM88: 0.475422 | AN88: 0.3173483696 | AO88: 5.28e-05 | AP88: 0.070125 | AQ88: 0.2934461538 | AR88: 0.266475 | AS88: 0.0701778 | AT88: 6.29795089 | AU88: 195.13 | AV88: 0.9687334808 | AW88: 101.0775767 | AX88: 13.59590334 | AZ88: 96.87334808 | BA88: 0.7961050292 | BB88: 2.745414869 | BC88: 2.40660897 | BD88: 0.334051679 | BE88: 0.3173483696
G89: 80 | H89: 24 | I89: 1 | J89: 10.4 | K89: 10.4 | L89: 9.148148148 | M89: 0.7986925572 | N89: 1.927705963 | O89: 11.36385298 | P89: 9.436147018 | Q89: 0 | R89: 10.41487738 | S89: 0.5640422885 | T89: 0.2 | U89: 0.811961588 | V89: 0.5564807784 | W89: 0.0205311778 | X89: 0.0205311778 | Y89: 4.176128908 | Z89: 2.319527003 | AA89: 2.319527003 | AB89: 9.307734353 | AC89: 1.039607026 | AD89: 0.4323894072 | AE89: 0.2754 | AF89: 0 | AG89: 2.142360333 | AH89: 4.672874069 | AI89: 0.08952658345 | AJ89: 0.086632 | AK89: 0.1805810712 | AL89: 0.086632 | AM89: 0.48144 | AN89: 0.3254090126 | AO89: 5.28e-05 | AP89: 0.070125 | AQ89: 0.2934461538 | AR89: 0.266475 | AS89: 0.0701778 | AT89: 6.438619985 | AU89: 197.6 | AV89: 0.9684441113 | AW89: 103.3246508 | AX89: 13.81587024 | AZ89: 96.84441113 | BA89: 0.811961588 | BB89: 2.804381404 | BC89: 2.460110733 | BD89: 0.3394562712 | BE89: 0.3254090126
G90: 81 | H90: 24 | I90: 1 | J90: 10.53 | K90: 10.53 | L90: 9.2625 | M90: 0.79878057 | N90: 1.927024235 | O90: 11.49351212 | P90: 9.566487883 | Q90: 0 | R90: 10.54468358 | S90: 0.5781898297 | T90: 0.2 | U90: 0.8280554872 | V90: 0.5562839803 | W90: 0.02051665876 | X90: 0.02051665876 | Y90: 4.227486755 | Z90: 2.376928687 | AA90: 2.376928687 | AB90: 9.424260854 | AC90: 1.065800312 | AD90: 0.4377942748 | AE90: 0.2754 | AF90: 0 | AG90: 2.192971992 | AH90: 4.730080255 | AI90: 0.0917320028 | AJ90: 0.0877149 | AK90: 0.184029839 | AL90: 0.0877149 | AM90: 0.487458 | AN90: 0.3335710556 | AO90: 5.28e-05 | AP90: 0.070125 | AQ90: 0.2934461538 | AR90: 0.266475 | AS90: 0.0701778 | AT90: 6.58142442 | AU90: 200.07 | AV90: 0.9681520491 | AW90: 105.6171594 | AX90: 14.03706284 | AZ90: 96.81520491 | BA90: 0.8280554872 | BB90: 2.864459831 | BC90: 2.514694272 | BD90: 0.344890979 | BE90: 0.3335710556
G91: 82 | H91: 24 | I91: 1 | J91: 10.66 | K91: 10.66 | L91: 9.376851852 | M91: 0.7988685876 | N91: 1.92634232 | O91: 11.62317116 | P91: 9.69682884 | Q91: 0 | R91: 10.6744945 | S91: 0.5925131311 | T91: 0.2 | U91: 0.8443882854 | V91: 0.5560871286 | W91: 0.02050214091 | X91: 0.02050214091 | Y91: 4.278829111 | Z91: 2.435014349 | AA91: 2.435014349 | AB91: 9.540804354 | AC91: 1.092323373 | AD91: 0.4431991424 | AE91: 0.2754 | AF91: 0 | AG91: 2.244693402 | AH91: 4.787262807 | AI91: 0.09396332923 | AJ91: 0.0887978 | AK91: 0.1875087605 | AL91: 0.0887978 | AM91: 0.493476 | AN91: 0.3418344987 | AO91: 5.28e-05 | AP91: 0.070125 | AQ91: 0.2934461538 | AR91: 0.266475 | AS91: 0.0701778 | AT91: 6.726393036 | AU91: 202.54 | AV91: 0.9678572706 | AW91: 107.9562776 | AX91: 14.25948271 | AZ91: 96.78572706 | BA91: 0.8443882854 | BB91: 2.925678162 | BC91: 2.570387562 | BD91: 0.3503558405 | BE91: 0.3418344987
G92: 83 | H92: 24 | I92: 1 | J92: 10.79 | K92: 10.79 | L92: 9.491203704 | M92: 0.7989566098 | N92: 1.92566022 | O92: 11.75283011 | P92: 9.82716989 | Q92: 0 | R92: 10.80430997 | S92: 0.6070121925 | T92: 0.2 | U92: 0.86096157 | V92: 0.5558902232 | W92: 0.02048762424 | X92: 0.02048762424 | Y92: 4.330155893 | Z92: 2.493783258 | AA92: 2.493783258 | AB92: 9.657364701 | AC92: 1.119176316 | AD92: 0.44860401 | AE92: 0.2754 | AF92: 0 | AG92: 2.297553605 | AH92: 4.844421635 | AI92: 0.096220526 | AJ92: 0.0898807 | AK92: 0.1910178745 | AL92: 0.0898807 | AM92: 0.499494 | AN92: 0.3501993418 | AO92: 5.28e-05 | AP92: 0.070125 | AQ92: 0.2934461538 | AR92: 0.266475 | AS92: 0.0701778 | AT92: 6.873555774 | AU92: 205.01 | AV92: 0.9675597488 | AW92: 110.3432251 | AX92: 14.48313141 | AZ92: 96.75597488 | BA92: 0.86096157 | BB92: 2.98806548 | BC92: 2.627219645 | BD92: 0.3558508945 | BE92: 0.3501993418
G93: 84 | H93: 24 | I93: 1 | J93: 10.92 | K93: 10.92 | L93: 9.605555556 | M93: 0.7990446367 | N93: 1.924977934 | O93: 11.88248897 | P93: 9.957511033 | Q93: 0 | R93: 10.93412982 | S93: 0.621687014 | T93: 0.2 | U93: 0.8777769571 | V93: 0.5556932642 | W93: 0.02047310876 | X93: 0.02047310876 | Y93: 4.381467022 | Z93: 2.553234685 | AA93: 2.553234685 | AB93: 9.773941751 | AC93: 1.146359248 | AD93: 0.4540088776 | AE93: 0.2754 | AF93: 0 | AG93: 2.351582764 | AH93: 4.901556656 | AI93: 0.09850355636 | AJ93: 0.0909636 | AK93: 0.1945572208 | AL93: 0.0909636 | AM93: 0.505512 | AN93: 0.358665585 | AO93: 5.28e-05 | AP93: 0.070125 | AQ93: 0.2934461538 | AR93: 0.266475 | AS93: 0.0701778 | AT93: 7.02294372 | AU93: 207.48 | AV93: 0.967259453 | AW93: 112.7792687 | AX93: 14.70801056 | AZ93: 96.7259453 | BA93: 0.8777769571 | BB93: 3.051651985 | BC93: 2.685220684 | BD93: 0.3613761808 | BE93: 0.358665585
G94: 85 | H94: 24 | I94: 1 | J94: 11.05 | K94: 11.05 | L94: 9.719907407 | M94: 0.7991326683 | N94: 1.924295463 | O94: 12.01214773 | P94: 10.08785227 | Q94: 0 | R94: 11.06395391 | S94: 0.6365375956 | T94: 0.2 | U94: 0.8948360928 | V94: 0.5554962516 | W94: 0.02045859447 | X94: 0.02045859447 | Y94: 4.432762423 | Z94: 2.613367898 | AA94: 2.613367898 | AB94: 9.890535368 | AC94: 1.173872278 | AD94: 0.4594137452 | AE94: 0.2754 | AF94: 0 | AG94: 2.406812212 | AH94: 4.958667788 | AI94: 0.1008123835 | AJ94: 0.0920465 | AK94: 0.1981268396 | AL94: 0.0920465 | AM94: 0.51153 | AN94: 0.3672332283 | AO94: 5.28e-05 | AP94: 0.070125 | AQ94: 0.2934461538 | AR94: 0.266475 | AS94: 0.0701778 | AT94: 7.174589165 | AU94: 209.95 | AV94: 0.9669563489 | AW94: 115.2657245 | AX94: 14.9341218 | AZ94: 96.69563489 | BA94: 0.8948360928 | BB94: 3.116469051 | BC94: 2.744422012 | BD94: 0.3669317396 | BE94: 0.3672332283
G95: 86 | H95: 24 | I95: 1 | J95: 11.18 | K95: 11.18 | L95: 9.834259259 | M95: 0.7992207045 | N95: 1.923612805 | O95: 12.1418064 | P95: 10.2181936 | Q95: 0 | R95: 11.19378208 | S95: 0.6515639374 | T95: 0.2 | U95: 0.9121406525 | V95: 0.5552991854 | W95: 0.02044408139 | X95: 0.02044408139 | Y95: 4.484042021 | Z95: 2.674182168 | AA95: 2.674182168 | AB95: 10.00714542 | AC95: 1.201715513 | AD95: 0.4648186128 | AE95: 0.2754 | AF95: 0 | AG95: 2.463274508 | AH95: 5.015754953 | AI95: 0.1031469708 | AJ95: 0.0931294 | AK95: 0.2017267721 | AL95: 0.0931294 | AM95: 0.517548 | AN95: 0.3759022716 | AO95: 5.28e-05 | AP95: 0.070125 | AQ95: 0.2934461538 | AR95: 0.266475 | AS95: 0.0701778 | AT95: 7.328525654 | AU95: 212.42 | AV95: 0.966650399 | AW95: 117.8039599 | AX95: 15.16146681 | AZ95: 96.6650399 | BA95: 0.9121406525 | BB95: 3.18254928 | BC95: 2.804856188 | BD95: 0.3725176121 | BE95: 0.3759022716
G96: 87 | H96: 24 | I96: 1 | J96: 11.31 | K96: 11.31 | L96: 9.948611111 | M96: 0.7993087455 | N96: 1.922929962 | O96: 12.27146498 | P96: 10.34853502 | Q96: 0 | R96: 11.32361419 | S96: 0.6667660392 | T96: 0.2 | U96: 0.9296923424 | V96: 0.5551020655 | W96: 0.0204295695 | X96: 0.0204295695 | Y96: 4.535305746 | Z96: 2.735676762 | AA96: 2.735676762 | AB96: 10.12377178 | AC96: 1.229889061 | AD96: 0.4702234804 | AE96: 0.2754 | AF96: 0 | AG96: 2.521003499 | AH96: 5.072818077 | AI96: 0.1055072813 | AJ96: 0.0942123 | AK96: 0.20535706 | AL96: 0.0942123 | AM96: 0.523566 | AN96: 0.3846727149 | AO96: 5.28e-05 | AP96: 0.070125 | AQ96: 0.2934461538 | AR96: 0.266475 | AS96: 0.0701778 | AT96: 7.484788048 | AU96: 214.89 | AV96: 0.9663415619 | AW96: 120.3953965 | AX96: 15.39004729 | AZ96: 96.63415619 | BA96: 0.9296923424 | BB96: 3.249926559 | BC96: 2.866557059 | BD96: 0.37813384 | BE96: 0.3846727149
G97: 88 | H97: 24 | I97: 1 | J97: 11.44 | K97: 11.44 | L97: 10.06296296 | M97: 0.7993967911 | N97: 1.922246933 | O97: 12.40112347 | P97: 10.47887653 | Q97: 0 | R97: 11.45345011 | S97: 0.6821439011 | T97: 0.2 | U97: 0.9474928993 | V97: 0.554904892 | W97: 0.02041505881 | X97: 0.02041505881 | Y97: 4.586553531 | Z97: 2.797850948 | AA97: 2.797850948 | AB97: 10.24041433 | AC97: 1.258393028 | AD97: 0.475628348 | AE97: 0.2754 | AF97: 0 | AG97: 2.580034379 | AH97: 5.129857088 | AI97: 0.1078932784 | AJ97: 0.0952952 | AK97: 0.209017746 | AL97: 0.0952952 | AM97: 0.529584 | AN97: 0.3935445583 | AO97: 5.28e-05 | AP97: 0.070125 | AQ97: 0.2934461538 | AR97: 0.266475 | AS97: 0.0701778 | AT97: 7.64341259 | AU97: 217.36 | AV97: 0.9660297926 | AW97: 123.0415124 | AX97: 15.61986497 | AZ97: 96.60297926 | BA97: 0.9474928993 | BB97: 3.318636125 | BC97: 2.929559819 | BD97: 0.383780466 | BE97: 0.3935445583
G98: 89 | H98: 24 | I98: 1 | J98: 11.57 | K98: 11.57 | L98: 10.17731481 | M98: 0.7994848414 | N98: 1.921563718 | O98: 12.53078186 | P98: 10.60921814 | Q98: 0 | R98: 11.58328971 | S98: 0.6976975231 | T98: 0.2 | U98: 0.9655440912 | V98: 0.5547076648 | W98: 0.02040054934 | X98: 0.02040054934 | Y98: 4.637785311 | Z98: 2.860703994 | AA98: 2.860703994 | AB98: 10.35707296 | AC98: 1.287227524 | AD98: 0.4810332156 | AE98: 0.2754 | AF98: 0 | AG98: 2.640403755 | AH98: 5.186871917 | AI98: 0.1103049252 | AJ98: 0.0963781 | AK98: 0.2127088734 | AL98: 0.0963781 | AM98: 0.535602 | AN98: 0.4025178018 | AO98: 5.28e-05 | AP98: 0.070125 | AQ98: 0.2934461538 | AR98: 0.266475 | AS98: 0.0701778 | AT98: 7.804436965 | AU98: 219.83 | AV98: 0.9657150426 | AW98: 125.7438451 | AX98: 15.85092161 | AZ98: 96.57150426 | BA98: 0.9655440912 | BB98: 3.388714628 | BC98: 2.993901075 | BD98: 0.3894575334 | BE98: 0.4025178018
G99: 90 | H99: 24 | I99: 1 | J99: 11.7 | K99: 11.7 | L99: 10.29166667 | M99: 0.7995728964 | N99: 1.920880317 | O99: 12.66044016 | P99: 10.73955984 | Q99: 0 | R99: 11.71313288 | S99: 0.7134269052 | T99: 0.2 | U99: 0.9838477179 | V99: 0.5545103839 | W99: 0.02038604108 | X99: 0.02038604108 | Y99: 4.689001021 | Z99: 2.924235167 | AA99: 2.924235167 | AB99: 10.47374756 | AC99: 1.316392655 | AD99: 0.4864380832 | AE99: 0.2754 | AF99: 0 | AG99: 2.702149717 | AH99: 5.243862497 | AI99: 0.1127421849 | AJ99: 0.097461 | AK99: 0.2164304864 | AL99: 0.097461 | AM99: 0.54162 | AN99: 0.4115924453 | AO99: 5.28e-05 | AP99: 0.070125 | AQ99: 0.2934461538 | AR99: 0.266475 | AS99: 0.0701778 | AT99: 7.967900375 | AU99: 222.3 | AV99: 0.9653972596 | AW99: 128.5039945 | AX99: 16.08321901 | AZ99: 96.53972596 | BA99: 0.9838477179 | BB99: 3.460200204 | BC99: 3.059618917 | BD99: 0.3951650864 | BE99: 0.4115924453
G100: 91 | H100: 24 | I100: 1 | J100: 11.83 | K100: 11.83 | L100: 10.40601852 | M100: 0.7996609561 | N100: 1.92019673 | O100: 12.79009836 | P100: 10.86990164 | Q100: 0 | R100: 11.84297948 | S100: 0.7293320474 | T100: 0.2 | U100: 1.002405611 | V100: 0.5543130494 | W100: 0.02037153403 | X100: 0.02037153403 | Y100: 4.740200602 | Z100: 2.988443732 | AA100: 2.988443732 | AB100: 10.59043802 | AC100: 1.345888528 | AD100: 0.4918429507 | AE100: 0.2754 | AF100: 0 | AG100: 2.765311916 | AH100: 5.300828764 | AI100: 0.1152050209 | AJ100: 0.0985439 | AK100: 0.2201826296 | AL100: 0.0985439 | AM100: 0.547638 | AN100: 0.4207684889 | AO100: 5.28e-05 | AP100: 0.070125 | AQ100: 0.2934461538 | AR100: 0.266475 | AS100: 0.0701778 | AT100: 8.133843612 | AU100: 224.77 | AV100: 0.9650763874 | AW100: 131.3236258 | AX100: 16.316759 | AZ100: 96.50763874 | BA100: 1.002405611 | BB100: 3.533132546 | BC100: 3.126752996 | BD100: 0.4009031696 | BE100: 0.4207684889
G101: 92 | H101: 24 | I101: 1 | J101: 11.96 | K101: 11.96 | L101: 10.52037037 | M101: 0.7997490205 | N101: 1.919512957 | O101: 12.91975648 | P101: 11.00024352 | Q101: 0 | R101: 11.97282941 | S101: 0.7454129497 | T101: 0.2 | U101: 1.021219636 | V101: 0.5541156613 | W101: 0.02035702821 | X101: 0.02035702821 | Y101: 4.791383994 | Z101: 3.053328957 | AA101: 3.053328957 | AB101: 10.70714424 | AC101: 1.375715253 | AD101: 0.4972478183 | AE101: 0.2754 | AF101: 0 | AG101: 2.829931636 | AH101: 5.357770656 | AI101: 0.1176933963 | AJ101: 0.0996268 | AK101: 0.2239653489 | AL101: 0.0996268 | AM101: 0.553656 | AN101: 0.4300459325 | AO101: 5.28e-05 | AP101: 0.070125 | AQ101: 0.2934461538 | AR101: 0.266475 | AS101: 0.0701778 | AT101: 8.302309139 | AU101: 227.24 | AV101: 0.9647523659 | AW101: 134.204473 | AX101: 16.55154344 | AZ101: 96.47523659 | BA101: 1.021219636 | BB101: 3.607552985 | BC101: 3.195344596 | BD101: 0.4066718289 | BE101: 0.4300459325
G102: 93 | H102: 24 | I102: 1 | J102: 12.09 | K102: 12.09 | L102: 10.63472222 | M102: 0.7998370895 | N102: 1.918828999 | O102: 13.0494145 | P102: 11.1305855 | Q102: 0 | R102: 12.10268257 | S102: 0.761669612 | T102: 0.2 | U102: 1.04029169 | V102: 0.5539182194 | W102: 0.02034252361 | X102: 0.02034252361 | Y102: 4.842551141 | Z102: 3.118890107 | AA102: 3.118890107 | AB102: 10.82386613 | AC102: 1.405872936 | AD102: 0.5026526859 | AE102: 0.2754 | AF102: 0 | AG102: 2.896051883 | AH102: 5.414688114 | AI102: 0.1202072742 | AJ102: 0.1007097 | AK102: 0.2277786904 | AL102: 0.1007097 | AM102: 0.559674 | AN102: 0.4394247762 | AO102: 5.28e-05 | AP102: 0.070125 | AQ102: 0.2934461538 | AR102: 0.266475 | AS102: 0.0701778 | AT102: 8.473341169 | AU102: 229.71 | AV102: 0.964425131 | AW102: 137.1483424 | AX102: 16.7875742 | AZ102: 96.4425131 | BA102: 1.04029169 | BB102: 3.683504573 | BC102: 3.265436723 | BD102: 0.4124711104 | BE102: 0.4394247762
G103: 94 | H103: 24 | I103: 1 | J103: 12.22 | K103: 12.22 | L103: 10.74907407 | M103: 0.7999251633 | N103: 1.918144854 | O103: 13.17907243 | P103: 11.26092757 | Q103: 0 | R103: 12.23253885 | S103: 0.7781020345 | T103: 0.2 | U103: 1.059623704 | V103: 0.5537207239 | W103: 0.02032802024 | X103: 0.02032802024 | Y103: 4.893701987 | Z103: 3.185126446 | AA103: 3.185126446 | AB103: 10.9406036 | AC103: 1.436361685 | AD103: 0.5080575535 | AE103: 0.2754 | AF103: 0 | AG103: 2.96371747 | AH103: 5.47158108 | AI103: 0.122746618 | AJ103: 0.1017926 | AK103: 0.2316227014 | AL103: 0.1017926 | AM103: 0.565692 | AN103: 0.4489050199 | AO103: 5.28e-05 | AP103: 0.070125 | AQ103: 0.2934461538 | AR103: 0.266475 | AS103: 0.0701778 | AT103: 8.646985761 | AU103: 232.18 | AV103: 0.9640946145 | AW103: 140.157116 | AX103: 17.0248532 | AZ103: 96.40946145 | BA103: 1.059623704 | BB103: 3.761032171 | BC103: 3.33707419 | BD103: 0.4183010614 | BE103: 0.4489050199
G104: 95 | H104: 24 | I104: 1 | J104: 12.35 | K104: 12.35 | L104: 10.86342593 | M104: 0.8000132417 | N104: 1.917460524 | O104: 13.30873026 | P104: 11.39126974 | Q104: 0 | R104: 12.36239815 | S104: 0.7947102171 | T104: 0.2 | U104: 1.079217645 | V104: 0.5535231747 | W104: 0.0203135181 | X104: 0.0203135181 | Y104: 4.944836479 | Z104: 3.252037238 | AA104: 3.252037238 | AB104: 11.05735656 | AC104: 1.467181608 | AD104: 0.5134624211 | AE104: 0.2754 | AF104: 0 | AG104: 3.032975113 | AH104: 5.528449499 | AI104: 0.1253113908 | AJ104: 0.1028755 | AK104: 0.2354974298 | AL104: 0.1028755 | AM104: 0.57171 | AN104: 0.4584866637 | AO104: 5.28e-05 | AP104: 0.070125 | AQ104: 0.2934461538 | AR104: 0.266475 | AS104: 0.0701778 | AT104: 8.823290907 | AU104: 234.65 | AV104: 0.963760744 | AW104: 143.2327559 | AX104: 17.2633824 | AZ104: 96.3760744 | BA104: 1.079217645 | BB104: 3.840182543 | BC104: 3.410303713 | BD104: 0.4241617298 | BE104: 0.4584866637
G105: 96 | H105: 24 | I105: 1 | J105: 12.48 | K105: 12.48 | L105: =Vout*K105/(Vin*Efficiency) -> 10.97777778 | M105: 0.8001013248 | N105: =(Vin-(Rdson1+Rdcr)*K105-Vout)*M105/(Fsw*Lf) -> 1.916776007 | O105: 13.438388 | P105: 11.521612 | Q105: =IF(MIN(Vin, -P105/(Coss_Q1+Coss_Q2)*0.00000002)<0, 0, MIN(Vin, -P105/(Coss_Q1+Coss_Q2)*0.00000002)) -> 0 | R105: 12.49226037 | S105: =R105^2*Rdcr -> 0.8114941598 | T105: 0.2 | U105: =(T105+S105*(1+Ltc*(Ta-25)))/(1-S105*Ltc*ThetaCa) -> 1.099075512 | V105: 0.5533255718 | W105: 0.02029901719 | X105: 0.02029901719 | Y105: 4.995954566 | Z105: 3.319621749 | AA105: 3.319621749 | AB105: 11.17412492 | AC105: =Rdson1*AB105^2 -> 1.498332813 | AD105: 0.5188672887 | AE105: 0.2754 | AF105: 0 | AG105: =(AF105+AE105+AD105+AC105*(1+RdsonTopTc*Ta-RdsonTopTc*25))/(1-AC105*RdsonTopTc*ThetaJA_Q1) -> 3.103873532 | AH105: 5.585293316 | AI105: =Rdson2*AH105^2 -> 0.1279015559 | AJ105: 0.1039584 | AK105: =(AJ105+AI105*(1+RdsonBotTc*Ta-RdsonBotTc*25))/(1-AI105*RdsonBotTc*ThetaJA_Q2) -> 0.239402924 | AL105: 0.1039584 | AM105: 0.577728 | AN105: 0.4681697076 | AO105: 5.28e-05 | AP105: 0.070125 | AQ105: 0.2934461538 | AR105: 0.266475 | AS105: 0.0701778 | AT105: =SUM(U105,X105,AA105,AG105,AK105,AL105,AM105,AS105,AN105) -> 9.002306642 | AU105: 237.12 | AV105: 0.9634234427 | AW105: 146.3773085 | AX105: 17.50316378 | AZ105: 96.34234427 | BA105: 1.099075512 | BB105: 3.921004456 | BC105: 3.485174012 | BD105: 0.430053164 | BE105: 0.4681697076
G106: 97 | H106: 24 | I106: 1 | J106: 12.61 | K106: 12.61 | L106: =Vout*K106/(Vin*Efficiency) -> 11.09212963 | M106: 0.8001894127 | N106: =(Vin-(Rdson1+Rdcr)*K106-Vout)*M106/(Fsw*Lf) -> 1.916091305 | O106: 13.56804565 | P106: 11.65195435 | Q106: =IF(MIN(Vin, -P106/(Coss_Q1+Coss_Q2)*0.00000002)<0, 0, MIN(Vin, -P106/(Coss_Q1+Coss_Q2)*0.00000002)) -> 0 | R106: 12.62212543 | S106: =R106^2*Rdcr -> 0.8284538626 | T106: 0.2 | U106: =(T106+S106*(1+Ltc*(Ta-25)))/(1-S106*Ltc*ThetaCa) -> 1.119199341 | V106: 0.5531279153 | W106: 0.02028451753 | X106: 0.02028451753 | Y106: 5.047056196 | Z106: 3.387879241 | AA106: 3.387879241 | AB106: 11.29090861 | AC106: =Rdson1*AB106^2 -> 1.529815407 | AD106: 0.5242721563 | AE106: 0.2754 | AF106: 0 | AG106: =(AF106+AE106+AD106+AC106*(1+RdsonTopTc*Ta-RdsonTopTc*25))/(1-AC106*RdsonTopTc*ThetaJA_Q1) -> 3.176463557 | AH106: 5.642112481 | AI106: =Rdson2*AH106^2 -> 0.1305170763 | AJ106: 0.1050413 | AK106: =(AJ106+AI106*(1+RdsonBotTc*Ta-RdsonBotTc*25))/(1-AI106*RdsonBotTc*ThetaJA_Q2) -> 0.2433392337 | AL106: 0.1050413 | AM106: 0.583746 | AN106: 0.4779541515 | AO106: 5.28e-05 | AP106: 0.070125 | AQ106: 0.2934461538 | AR106: 0.266475 | AS106: 0.0701778 | AT106: =SUM(U106,X106,AA106,AG106,AK106,AL106,AM106,AS106,AN106) -> 9.184085142 | AU106: 239.59 | AV106: 0.9630826292 | AW106: 149.5929085 | AX106: 17.74419934 | AZ106: 96.30826292 | BA106: 1.119199341 | BB106: 4.00354879 | BC106: 3.561735917 | BD106: 0.4359754137 | BE106: 0.4779541515
G107: 98 | H107: 24 | I107: 1 | J107: 12.74 | K107: 12.74 | L107: =Vout*K107/(Vin*Efficiency) -> 11.20648148 | M107: 0.8002775051 | N107: =(Vin-(Rdson1+Rdcr)*K107-Vout)*M107/(Fsw*Lf) -> 1.915406416 | O107: 13.69770321 | P107: 11.78229679 | Q107: =IF(MIN(Vin, -P107/(Coss_Q1+Coss_Q2)*0.00000002)<0, 0, MIN(Vin, -P107/(Coss_Q1+Coss_Q2)*0.00000002)) -> 0 | R107: 12.75199325 | S107: =R107^2*Rdcr -> 0.8455893254 | T107: 0.2 | U107: =(T107+S107*(1+Ltc*(Ta-25)))/(1-S107*Ltc*ThetaCa) -> 1.139591205 | V107: 0.552930205 | W107: 0.02027001911 | X107: 0.02027001911 | Y107: 5.098141323 | Z107: 3.456808978 | AA107: 3.456808978 | AB107: 11.40770755 | AC107: =Rdson1*AB107^2 -> 1.561629498 | AD107: 0.5296770239 | AE107: 0.2754 | AF107: 0 | AG107: =(AF107+AE107+AD107+AC107*(1+RdsonTopTc*Ta-RdsonTopTc*25))/(1-AC107*RdsonTopTc*ThetaJA_Q1) -> 3.250798238 | AH107: 5.698906941 | AI107: =Rdson2*AH107^2 -> 0.1331579153 | AJ107: 0.1061242 | AK107: =(AJ107+AI107*(1+RdsonBotTc*Ta-RdsonBotTc*25))/(1-AI107*RdsonBotTc*ThetaJA_Q2) -> 0.2473064088 | AL107: 0.1061242 | AM107: 0.589764 | AN107: 0.4878399954 | AO107: 5.28e-05 | AP107: 0.070125 | AQ107: 0.2934461538 | AR107: 0.266475 | AS107: 0.0701778 | AT107: =SUM(U107,X107,AA107,AG107,AK107,AL107,AM107,AS107,AN107) -> 9.368680844 | AU107: 242.06 | AV107: 0.9627382174 | AW107: 152.8817841 | AX107: 17.98649112 | AZ107: 96.27382174 | BA107: 1.139591205 | BB107: 4.087868647 | BC107: 3.640042478 | BD107: 0.4419285288 | BE107: 0.4878399954
G108: 99 | H108: 24 | I108: 1 | J108: 12.87 | K108: 12.87 | L108: =Vout*K108/(Vin*Efficiency) -> 11.32083333 | M108: 0.8003656023 | N108: =(Vin-(Rdson1+Rdcr)*K108-Vout)*M108/(Fsw*Lf) -> 1.914721342 | O108: 13.82736067 | P108: 11.91263933 | Q108: =IF(MIN(Vin, -P108/(Coss_Q1+Coss_Q2)*0.00000002)<0, 0, MIN(Vin, -P108/(Coss_Q1+Coss_Q2)*0.00000002)) -> 0 | R108: 12.88186373 | S108: =R108^2*Rdcr -> 0.8629005484 | T108: 0.2 | U108: =(T108+S108*(1+Ltc*(Ta-25)))/(1-S108*Ltc*ThetaCa) -> 1.16025321 | V108: 0.5527324411 | W108: 0.02025552194 | X108: 0.02025552194 | Y108: 5.149209897 | Z108: 3.526410221 | AA108: 3.526410221 | AB108: 11.52452166 | AC108: =Rdson1*AB108^2 -> 1.593775193 | AD108: 0.5350818915 | AE108: 0.2754 | AF108: 0 | AG108: =(AF108+AE108+AD108+AC108*(1+RdsonTopTc*Ta-RdsonTopTc*25))/(1-AC108*RdsonTopTc*ThetaJA_Q1) -> 3.326932974 | AH108: 5.75567665 | AI108: =Rdson2*AH108^2 -> 0.1358240362 | AJ108: 0.1072071 | AK108: =(AJ108+AI108*(1+RdsonBotTc*Ta-RdsonBotTc*25))/(1-AI108*RdsonBotTc*ThetaJA_Q2) -> 0.2513045005 | AL108: 0.1072071 | AM108: 0.595782 | AN108: 0.4978272395 | AO108: 5.28e-05 | AP108: 0.070125 | AQ108: 0.2934461538 | AR108: 0.266475 | AS108: 0.0701778 | AT108: =SUM(U108,X108,AA108,AG108,AK108,AL108,AM108,AS108,AN108) -> 9.556150566 | AU108: 244.53 | AV108: 0.9623901163 | AW108: 156.2462619 | AX108: 18.23004121 | AZ108: 96.23901163 | BA108: 1.16025321 | BB108: 4.174019474 | BC108: 3.720149094 | BD108: 0.4479125605 | BE108: 0.4978272395
G109: 100 | H109: 24 | I109: 1 | J109: 13 | K109: 13 | L109: =Vout*K109/(Vin*Efficiency) -> 11.43518519 | M109: 0.8004537042 | N109: =(Vin-(Rdson1+Rdcr)*K109-Vout)*M109/(Fsw*Lf) -> 1.914036081 | O109: 13.95701804 | P109: 12.04298196 | Q109: =IF(MIN(Vin, -P109/(Coss_Q1+Coss_Q2)*0.00000002)<0, 0, MIN(Vin, -P109/(Coss_Q1+Coss_Q2)*0.00000002)) -> 0 | R109: 13.0117368 | S109: =R109^2*Rdcr -> 0.8803875315 | T109: 0.2 | U109: =(T109+S109*(1+Ltc*(Ta-25)))/(1-S109*Ltc*ThetaCa) -> 1.181187502 | V109: 0.5525346234 | W109: 0.02024102602 | X109: 0.02024102602 | Y109: 5.200261874 | Z109: 3.596682233 | AA109: 3.596682233 | AB109: 11.64135087 | AC109: =Rdson1*AB109^2 -> 1.626252602 | AD109: 0.5404867591 | AE109: 0.2754 | AF109: 0 | AG109: =(AF109+AE109+AD109+AC109*(1+RdsonTopTc*Ta-RdsonTopTc*25))/(1-AC109*RdsonTopTc*ThetaJA_Q1) -> 3.404925633 | AH109: 5.812421559 | AI109: =Rdson2*AH109^2 -> 0.1385154019 | AJ109: 0.10829 | AK109: =(AJ109+AI109*(1+RdsonBotTc*Ta-RdsonBotTc*25))/(1-AI109*RdsonBotTc*ThetaJA_Q2) -> 0.2553335603 | AL109: 0.10829 | AM109: 0.6018 | AN109: 0.5079158835 | AO109: 5.28e-05 | AP109: 0.070125 | AQ109: 0.2934461538 | AR109: 0.266475 | AS109: 0.0701778 | AT109: =SUM(U109,X109,AA109,AG109,AK109,AL109,AM109,AS109,AN109) -> 9.746553638 | AU109: 247 | AV109: 0.9620382299 | AW109: 159.6887726 | AX109: 18.4748517 | AZ109: 96.20382299 | BA109: 1.181187502 | BB109: 4.262059193 | BC109: 3.802113633 | BD109: 0.4539275603 | BE109: 0.5079158835

Sheet Efficiency Plot Management (hidden)
A2: =IF(PLOT_TYPE=1, "EFF_Ch1", "EFF_Ch2") -> EFF_Ch1

Sheet Input Filter Calculations (hidden)
AD2: AEF comparison Values
D3: =L_infilter*0.000001 -> 6.8e-07 | L3: Lfilter Passive | M3: ='Input Filters'!O9*0.000001 -> 6.8e-07 | AD3: Lfilter | AE3: ='Input Filters'!G9*0.000001 -> 1e-06
L4: Cfilter Passive | M4: ='Input Filters'!O10*0.000001 -> 4.7e-07 | AD4: Cinj | AE4: ='Input Filters'!G10*0.000001 -> 1e-06
L5: Cdamp passive | M5: ='Input Filters'!O11*0.000001 -> 1e-06 | AD5: Cdamp | AE5: ='Input Filters'!G11*0.000001 -> 1e-06
L6: Rdamp passive | M6: ='Input Filters'!O12 -> 0.35 | AD6: Rdamp | AE6: ='Input Filters'!G12 -> 10
A10: Freq (Hz) | B10: (kHz) | W10: AEF | AA10: Passive | AD10: AEFCompare
I11: AEF Numerator | L11: AEF Denominator | Q11: Passive | W11: Magnitude | X11: Phase | AA11: Magnitude | AB11: Phase | AD11: AEF Numerator | AF11: AEF Denominator
C12: jω | D12: -ω^2 | E12: -jω^3 | G12: Gop | Q12: Numerator | R12: Denominator | AM12: Magnitude | AN12: Phase
A13: 1 | B13: =A13/1000 -> 0.001 | C13: =COMPLEX(0,2*Pi*A13) -> 6,2831853i | D13: =COMPLEX(-POWER(2*Pi*A13,2),0) -> -39,4784175141361 | E13: =COMPLEX(0,-POWER(2*Pi*A13,3)) -> -248,050212592082i | G13: =IMSUM(IMPRODUCT(C13,Rcomp_AEF*Csen_AEF),Csen_AEF/Ccomp_AEF) ->  | I13: =IMPRODUCT((RdampSel*CdampSel+RdampSel*CinjSel),C13) ->  | J13: =IMSUM(1,I13) ->  | L13: =IMPRODUCT(G13,L_infilterStd*RdampSel*CinjSel*CdampSel,E13) ->  | M13: =IMPRODUCT(G13,L_infilterStd*CinjSel,D13) ->  | N13: =J13 ->  | O13: =IMSUM(L13:N13) ->  | P13: 0 | Q13: =IMSUM(IMPRODUCT(C13,RdampPssv*CdampPssv),1) -> 1+0,000002199114855i | R13: =IMPRODUCT(RdampPssv*CdampPssv*CfilterPssv*LinfilterPssv,E13) -> -2,77468967805503E-17i | S13: =IMPRODUCT(D13,LinfilterPssv*(CfilterPssv+CdampPssv)) -> -3,94626261471304E-11 | T13: =IMSUM(S13,R13,Q13) -> 0,999999999960537+2,19911485497225E-06i | U13: 1 | V13: =CHOOSE(INFILTER_TYPE,U13,IMDIV(J13,O13)) -> 1 | W13: =20*LOG10(IMABS(V13)) -> 0 | X13: =IMARGUMENT(V13)*180/Pi -> 0 | Z13: =IMDIV(Q13,T13) -> 1,00000000003946-5,9033537744459E-17i | AA13: =20*LOG10(IMABS(Z13)) -> 3.427451255e-10 | AB13: =IMARGUMENT(Z13)*180/Pi -> -3.382372566e-15 | AD13: =IMPRODUCT((RdampCom*CdampCom+RdampCom*CinjCom),C13) -> 0,000125663706i | AE13: =IMSUM(1,AD13) -> 1+0,000125663706i | AF13: =IMPRODUCT(G13,L_infilterStd*RdampSel*CinjSel*CdampSel,E13) ->  | AG13: =IMPRODUCT(G13,LAEFCom*CinjCom,D13) ->  | AH13: =AE13 -> 1+0,000125663706i | AI13: =IMSUM(AF13:AH13) ->  | AK13: =IMDIV(AE13,AI13) ->  | AM13: =20*LOG10(IMABS(AK13)) ->  | AN13: =IMARGUMENT(AK13)*180/Pi -> 
A14: 2 | B14: =A14/1000 -> 0.002 | C14: 12,5663706i | D14: -157,913670056544 | E14: -1984,40170073666i | J14: =IMSUM(1,I14) ->  | N14: =J14 ->  | O14: =IMSUM(L14:N14) ->  | P14: 0 | Q14: 1+0,00000439822971i | R14: -2,21975174244403E-16i | S14: -1,57850504588521E-10 | T14: =IMSUM(S14,R14,Q14) -> 0,999999999842149+4,39822970977802E-06i | U14: 1 | V14: =CHOOSE(INFILTER_TYPE,U14,IMDIV(J14,O14),IMDIV(Q14,T14)) -> 1 | W14: =20*LOG10(IMABS(V14)) -> 0 | X14: 0 | Z14: 1,00000000015785-4,72284395630731E-16i | AA14: =20*LOG10(IMABS(Z14)) -> 1.371067291e-09 | AB14: -2.705990263e-14 | AD14: 0,000251327412i | AE14: =IMSUM(1,AD14) -> 1+0,000251327412i | AH14: =AE14 -> 1+0,000251327412i | AI14: =IMSUM(AF14:AH14) ->  | AK14: =IMDIV(AE14,AI14) ->  | AM14: =20*LOG10(IMABS(AK14)) -> 
A15: 3 | B15: 0.003 | C15: 18,8495559i | D15: -355,305757627225 | E15: -6697,35573998623i | P15: 0 | Q15: 1+0,000006597344565i | R15: -7,4916621307486E-16i | S15: -3,55163635324174E-10 | T15: 0,999999999644836+6,59734456425083E-06i | U15: 1 | V15: 1 | W15: 0 | X15: 0 | Z15: 1,00000000035516-1,59396947052946E-15i | AA15: 3.084879708e-09 | AB15: -9.132772341e-14 | AD15: 0,000376991118i | AE15: 1+0,000376991118i | AH15: 1+0,000376991118i
A16: 4 | B16: 0.004 | C16: 25,1327412i | D16: -631,654680226178 | E16: -15875,2136058933i | P16: 0 | Q16: 1+0,00000879645942i | R16: -1,77580139395522E-15i | S16: -6,31402018354088E-10 | T16: 0,999999999368598+0,0000087964594182242i | U16: 1 | V16: 1 | W16: 0 | X16: 0 | Z16: 1,0000000006314-3,77830227167012E-15i | AA16: 5.484271092e-09 | AB16: -2.16480774e-13 | AD16: 0,000502654824i | AE16: 1+0,000502654824i | AH16: 1+0,000502654824i
A17: 5 | B17: 0.005 | C17: 31,4159265i | D17: -986,960437853402 | E17: -31006,2765740103i | P17: 0 | Q17: 1+0,000010995574275i | R17: -3,46836209756879E-15i | S17: -9,86565653678261E-10 | T17: 0,999999999013434+0,0000109955742715316i | U17: 1 | V17: 1 | W17: 0 | X17: 0 | Z17: 1,00000000098657-7,37945946308484E-15i | AA17: 8.569237588e-09 | AB17: -4.228118824e-13 | AD17: 0,00062831853i | AE17: 1+0,00062831853i | AH17: 1+0,00062831853i
A18: 6 | B18: 0.006 | C18: 37,6991118i | D18: -1421,2230305089 | E18: -53578,8459198898i | P18: 0 | Q18: 1+0,00001319468913i | R18: -5,99332970459887E-15i | S18: -1,4206545412967E-09 | T18: 0,999999998579345+0,0000131946891240067i | U18: 1 | V18: 1 | W18: 0 | X18: 0 | Z18: 1,00000000142066-1,27518015159367E-14i | AA18: 1.233969626e-08 | AB18: -7.306244078e-13 | AD18: 0,000753982236i | AE18: 1+0,000753982236i | AH18: 1+0,000753982236i
A19: 7 | B19: 0.007 | C19: 43,9822971i | D19: -1934,44245819267 | E19: -85081,2229190843i | P19: 0 | Q19: 1+0,000015393803985i | R19: -9,51718559572877E-15i | S19: -1,93366868120939E-09 | T19: 0,999999998066331+0,0000153938039754828i | U19: 1 | V19: 1 | W19: 0 | X19: 0 | Z19: 1,00000000193367-2,02493221373488E-14i | AA19: 1.679564325e-08 | AB19: -1.160200696e-12 | AD19: 0,000879645942i | AE19: 1+0,000879645942i | AH19: 1+0,000879645942i
A20: 8 | B20: 0.008 | C20: 50,2654824i | D20: -2526,61872090471 | E20: -127001,708847146i | P20: 0 | Q20: 1+0,00001759291884i | R20: -1,42064111516417E-14i | S20: -2,52560807341635E-09 | T20: 0,999999997474392+0,0000175929188257936i | U20: 1 | V20: 1 | W20: 0 | X20: 0 | Z20: 1,00000000252561-3,02264148354676E-14i | AA20: 2.193716921e-08 | AB20: -1.731845997e-12 | AD20: 0,001005309648i | AE20: 1+0,001005309648i | AH20: 1+0,001005309648i
A21: 9 | B21: 0.009 | C21: 56,5486677i | D21: -3197,75181864502 | E21: -180828,604979628i | P21: 0 | Q21: 1+0,000019792033695i | R21: -2,02274877530212E-14i | S21: -3,19647271791756E-09 | T21: 0,999999996803527+0,0000197920336747725i | U21: 1 | V21: 1 | W21: 0 | X21: 0 | Z21: 1,00000000319647-4,30372020696133E-14i | AA21: 2.776418541e-08 | AB21: -2.465850036e-12 | AD21: 0,001130973354i | AE21: 1+0,001130973354i | AH21: 1+0,001130973354i
A22: 10 | B22: 0.01 | C22: 62,831853i | D22: -3947,84175141361 | E22: -248050,212592082i | P22: 0 | Q22: 1+0,00002199114855i | R22: -2,77468967805503E-14i | S22: -3,94626261471304E-09 | T22: 0,999999996053737+0,0000219911485222531i | U22: 1 | V22: 1 | W22: 0 | X22: 0 | Z22: 1,00000000394626-5,90359570729332E-14i | AA22: 3.427677865e-08 | AB22: -3.38251117e-12 | AD22: 0,00125663706i | AE22: 1+0,00125663706i | AH22: 1+0,00125663706i
A23: 20 | B23: 0.02 | C23: 125,663706i | D23: -15791,3670056544 | E23: -1984401,70073666i | P23: 0 | Q23: 1+0,0000439822971i | R23: -2,21975174244403E-13i | S23: -1,57850504588521E-08 | T23: 0,99999998421495+0,0000439822968780248i | U23: 1 | V23: 1 | W23: 0 | X23: 0 | Z23: 1,00000001578505-4,72287580174405E-13i | AA23: 1.371072006e-07 | AB23: -2.706008466e-11 | AD23: 0,00251327412i | AE23: 1+0,00251327412i | AH23: 1+0,00251327412i
A24: 30 | B24: 0.03 | C24: 188,495559i | D24: -35530,5757627225 | E24: -6697355,73998623i | P24: 0 | Q24: 1+0,00006597344565i | R24: -7,4916621307486E-13i | S24: -3,55163635324174E-08 | T24: 0,999999964483636+0,0000659734449008338i | U24: 1 | V24: 1 | W24: 0 | X24: 0 | Z24: 1,00000003551637-1,59397081397336E-12i | AA24: 3.084912653e-07 | AB24: -9.132779717e-11 | AD24: 0,00376991118i | AE24: 1+0,00376991118i | AH24: 1+0,00376991118i
A25: 40 | B25: 0.04 | C25: 251,327412i | D25: -63165,4680226178 | E25: -15875213,6058933i | P25: 0 | Q25: 1+0,0000879645942i | R25: -1,77580139395522E-12i | S25: -6,31402018354088E-08 | T25: 0,999999936859798+0,0000879645924241986i | U25: 1 | V25: 1 | W25: 0 | X25: 0 | Z25: 1,00000006314021-3,77830129983406E-12i | AA25: 5.48428878e-07 | AB25: -2.164807048e-10 | AD25: 0,00502654824i | AE25: 1+0,00502654824i | AH25: 1+0,00502654824i
A26: 50 | B26: 0.05 | C26: 314,159265i | D26: -98696,0437853402 | E26: -31006276,5740103i | P26: 0 | Q26: 1+0,00010995574275i | R26: -3,46836209756879E-12i | S26: -9,86565653678261E-08 | T26: 0,999999901343435+0,000109955739281638i | U26: 1 | V26: 1 | W26: 0 | X26: 0 | Z26: 1,00000009865657-7,37949525076775E-12i | AA26: 8.56920037e-07 | AB26: -4.228138916e-10 | AD26: 0,0062831853i | AE26: 1+0,0062831853i | AH26: 1+0,0062831853i
A27: 60 | B27: 0.06 | C27: 376,991118i | D27: -142122,30305089 | E27: -53578845,9198898i | P27: 0 | Q27: 1+0,0001319468913i | R27: -5,99332970459887E-12i | S27: -1,4206545412967E-07 | T27: 0,999999857934546+0,00013194688530667i | U27: 1 | V27: 1 | W27: 0 | X27: 0 | Z27: 1,00000014206547-1,27517683815965E-11i | AA27: 1.233964907e-06 | AB27: -7.306224066e-10 | AD27: 0,00753982236i | AE27: 1+0,00753982236i | AH27: 1+0,00753982236i
A28: 70 | B28: 0.07 | C28: 439,822971i | D28: -193444,245819267 | E28: -85081222,9190843i | P28: 0 | Q28: 1+0,00015393803985i | R28: -9,51718559572877E-12i | S28: -1,93366868120939E-07 | T28: 0,999999806633132+0,000153938030332814i | U28: 1 | V28: 1 | W28: 0 | X28: 0 | Z28: 1,0000001933669-2,02493379799158E-11i | AA28: 1.679563391e-06 | AB28: -1.160201381e-09 | AD28: 0,00879645942i | AE28: 1+0,00879645942i | AH28: 1+0,00879645942i
A29: 80 | B29: 0.08 | C29: 502,654824i | D29: -252661,872090471 | E29: -127001708,847146i | P29: 0 | Q29: 1+0,0001759291884i | R29: -1,42064111516417E-11i | S29: -2,52560807341635E-07 | T29: 0,999999747439193+0,000175929174193589i | U29: 1 | V29: 1 | W29: 0 | X29: 0 | Z29: 1,00000025256087-3,02264211687963E-11i | AA29: 2.193715567e-06 | AB29: -1.731845927e-09 | AD29: 0,01005309648i | AE29: 1+0,01005309648i | AH29: 1+0,01005309648i
A30: 90 | B30: 0.09 | C30: 565,486677i | D30: -319775,181864502 | E30: -180828604,979628i | P30: 0 | Q30: 1+0,00019792033695i | R30: -2,02274877530212E-11i | S30: -3,19647271791756E-07 | T30: 0,999999680352728+0,000197920316722512i | U30: 1 | V30: 1 | W30: 0 | X30: 0 | Z30: 1,00000031964737-4,30372335896138E-11i | AA30: 2.776421334e-06 | AB30: -2.465851061e-09 | AD30: 0,01130973354i | AE30: 1+0,01130973354i | AH30: 1+0,01130973354i
A31: 100 | B31: 0.1 | C31: 628,31853i | D31: -394784,175141361 | E31: -248050212,592082i | P31: 0 | Q31: 1+0,0002199114855i | R31: -2,77468967805503E-11i | S31: -3,94626261471305E-07 | T31: 0,999999605373739+0,000219911457753103i | U31: 1 | V31: 1 | W31: 0 | X31: 0 | Z31: 1,0000003946264-5,90359940073355E-11i | AA31: 3.427680682e-06 | AB31: -3.382511965e-09 | AD31: 0,0125663706i | AE31: 1+0,0125663706i | AH31: 1+0,0125663706i
A32: 200 | B32: 0.2 | C32: 1256,63706i | D32: -1579136,70056544 | E32: -1984401700,73666i | P32: 0 | Q32: 1+0,000439822971i | R32: -2,21975174244403E-10i | S32: -1,57850504588521E-06 | T32: 0,999998421494954+0,000439822749024826i | U32: 1 | V32: 1 | W32: 0 | X32: 0 | Z32: 1,00000157850733-4,72289004721146E-10i | AA32: 1.371072964e-05 | AB32: -2.7060124e-08 | AD32: 0,0251327412i | AE32: 1+0,0251327412i | AH32: 1+0,0251327412i
A33: 300 | B33: 0.3 | C33: 1884,95559i | D33: -3553057,57627225 | E33: -6697355739,98623i | P33: 0 | Q33: 1+0,0006597344565i | R33: -7,4916621307486E-10i | S33: -3,55163635324174E-06 | T33: 0,999996448363647+0,000659733707333787i | U33: 1 | V33: 1 | W33: 0 | X33: 0 | Z33: 1,00000355164792-1,59398129480179E-09i | AA33: 3.084916708e-05 | AB33: -9.132807655e-08 | AD33: 0,0376991118i | AE33: 1+0,0376991118i | AH33: 1+0,0376991118i
A34: 400 | B34: 0.4 | C34: 2513,27412i | D34: -6316546,80226177 | E34: -15875213605,8933i | P34: 0 | Q34: 1+0,000879645942i | R34: -1,77580139395522E-09i | S34: -6,31402018354087E-06 | T34: 0,999993685979816+0,000879644166198606i | U34: 1 | V34: 1 | W34: 0 | X34: 0 | Z34: 1,00000631405673-3,77834562794476E-09i | AA34: 5.484302678e-05 | AB34: -2.164818914e-07 | AD34: 0,0502654824i | AE34: 1+0,0502654824i | AH34: 1+0,0502654824i
A35: 500 | B35: 0.5 | C35: 3141,59265i | D35: -9869604,37853402 | E35: -31006276574,0103i | P35: 0 | Q35: 1+0,0010995574275i | R35: -3,46836209756879E-09i | S35: -9,86565653678261E-06 | T35: 0,999990134343463+0,0010995539591379i | U35: 1 | V35: 1 | W35: 0 | X35: 0 | Z35: 1,00000986574575-7,37963050952798E-09i | AA35: 8.569235607e-05 | AB35: -4.228175116e-07 | AD35: 0,062831853i | AE35: 1+0,062831853i | AH35: 1+0,062831853i
A36: 600 | B36: 0.6 | C36: 3769,91118i | D36: -14212230,305089 | E36: -53578845919,8898i | P36: 0 | Q36: 1+0,001319468913i | R36: -5,99332970459887E-09i | S36: -0,000014206545412967 | T36: 0,999985793454587+0,0013194629196703i | U36: 1 | V36: 1 | W36: 0 | X36: 0 | Z36: 1,00001420673042-1,27521054564846E-08i | AA36: 0.000123397216 | AB36: -7.306314435e-07 | AD36: 0,0753982236i | AE36: 1+0,0753982236i | AH36: 1+0,0753982236i
A37: 700 | B37: 0.7 | C37: 4398,22971i | D37: -19344424,5819267 | E37: -85081222919,0843i | P37: 0 | Q37: 1+0,0015393803985i | R37: -9,51718559572877E-09i | S37: -0,0000193366868120939 | T37: 0,999980663313188+0,0015393708813144i | U37: 1 | V37: 1 | W37: 0 | X37: 0 | Z37: 1,00001933702955-2,02500661951286E-08i | AA37: 0.0001679576807 | AB37: -1.160220894e-06 | AD37: 0,0879645942i | AE37: 1+0,0879645942i | AH37: 1+0,0879645942i
A38: 800 | B38: 0.8 | C38: 5026,54824i | D38: -25266187,2090471 | E38: -127001708847,146i | P38: 0 | Q38: 1+0,001759291884i | R38: -1,42064111516417E-08i | S38: -0,0000252560807341635 | T38: 0,999974743919266+0,00175927767758885i | U38: 1 | V38: 1 | W38: 0 | X38: 0 | Z38: 1,00002525666544-3,02278400042037E-08i | AA38: 0.0002193738383 | AB38: -1.731883916e-06 | AD38: 0,1005309648i | AE38: 1+0,1005309648i | AH38: 1+0,1005309648i
A39: 900 | B39: 0.9 | C39: 5654,86677i | D39: -31977518,1864502 | E39: -180828604979,628i | P39: 0 | Q39: 1+0,0019792033695i | R39: -2,02274877530212E-08i | S39: -0,0000319647271791756 | T39: 0,999968035272821+0,00197918314201225i | U39: 1 | V39: 1 | W39: 0 | X39: 0 | Z39: 1,00003196566377-4,30397908600739E-08i | AA39: 0.0002776457902 | AB39: -2.465919545e-06 | AD39: 0,1130973354i | AE39: 1+0,1130973354i | AH39: 1+0,1130973354i
A40: 1000 | B40: 1 | C40: 6283,1853i | D40: -39478417,5141361 | E40: -248050212592,082i | P40: 0 | Q40: 1+0,002199114855i | R40: -2,77468967805503E-08i | S40: -0,0000394626261471304 | T40: 0,999960537373853+0,00219908710810322i | U40: 1 | V40: 1 | W40: 0 | X40: 0 | Z40: 1,00003946405367-5,90403247598128E-08i | AA40: 0.0003427736513 | AB40: -3.382627941e-06 | AD40: 0,125663706i | AE40: 1+0,125663706i | AH40: 1+0,125663706i
A41: 2000 | B41: 2 | C41: 12566,3706i | D41: -157913670,056544 | E41: -1984401700736,66i | P41: 0 | Q41: 1+0,00439822971i | R41: -2,21975174244403E-07i | S41: -0,000157850504588521 | T41: 0,999842149495412+0,00439800773482576i | U41: 1 | V41: 1 | W41: 0 | X41: 0 | Z41: 1,00015787334724-4,72427600959129E-07i | AA41: 0.00137116224 | AB41: -2.706383503e-05 | AD41: 0,251327412i | AE41: 1+0,251327412i | AH41: 1+0,251327412i
A42: 3000 | B42: 3 | C42: 18849,5559i | D42: -355305757,627225 | E42: -6697355739986,23i | P42: 0 | Q42: 1+0,006597344565i | R42: -7,4916621307486E-07i | S42: -0,000355163635324174 | T42: 0,999644836364676+0,00659659539878692i | U42: 1 | V42: 1 | W42: 0 | X42: 0 | Z42: 1,00035527929582-1,59503405307709E-06i | AA42: 0.003085368714 | AB42: -9.135626254e-05 | AD42: 0,376991118i | AE42: 1+0,376991118i | AH42: 1+0,376991118i
A43: 4000 | B43: 4 | C43: 25132,7412i | D43: -631654680,226177 | E43: -15875213605893,3i | P43: 0 | Q43: 1+0,00879645942i | R43: -1,77580139395522E-06i | S43: -0,000631402018354087 | T43: 0,999368597981646+0,00879468361860604i | U43: 1 | V43: 1 | W43: 0 | X43: 0 | Z43: 1,00063176764934-3,78278365967147E-06i | AA43: 0.00548573147 | AB43: -0.0002166006974 | AD43: 0,502654824i | AE43: 1+0,502654824i | AH43: 1+0,502654824i
A44: 5000 | B44: 5 | C44: 31415,9265i | D44: -986960437,853402 | E44: -31006276574010,3i | P44: 0 | Q44: 1+0,010995574275i | R44: -3,46836209756879E-06i | S44: -0,000986565653678261 | T44: 0,999013434346322+0,0109921059129024i | U44: 1 | V44: 1 | W44: 0 | X44: 0 | Z44: 1,00098745857977-7,39318105431537E-06i | AA44: 0.008572724574 | AB44: -0.0004231801991 | AD44: 0,62831853i | AE44: 1+0,62831853i | AH44: 1+0,62831853i
A45: 6000 | B45: 6 | C45: =COMPLEX(0,2*Pi*A45) -> 37699,1118i | D45: =COMPLEX(-POWER(2*Pi*A45,2),0) -> -1421223030,5089 | E45: =COMPLEX(0,-POWER(2*Pi*A45,3)) -> -53578845919889,8i | G45: =IMSUM(IMPRODUCT(C45,Rcomp_AEF*Csen_AEF),Csen_AEF/Ccomp_AEF) ->  | I45: =IMPRODUCT((RdampSel*CdampSel+RdampSel*CinjSel),C45) ->  | L45: =IMPRODUCT(G45,L_infilterStd*RdampSel*CinjSel*CdampSel,E45) ->  | M45: =IMPRODUCT(G45,L_infilterStd*CinjSel,D45) ->  | P45: 0 | Q45: =IMSUM(IMPRODUCT(C45,RdampPssv*CdampPssv),1) -> 1+0,01319468913i | R45: =IMPRODUCT(RdampPssv*CdampPssv*CfilterPssv*LinfilterPssv,E45) -> -5,99332970459887E-06i | S45: =IMPRODUCT(D45,LinfilterPssv*(CfilterPssv+CdampPssv)) -> -0,0014206545412967 | T45: 0,998579345458703+0,0131886958002954i | U45: 1 | V45: =CHOOSE(INFILTER_TYPE,U45,IMDIV(J45,O45),IMDIV(Q45,T45)) -> 1 | W45: 0 | X45: =IMARGUMENT(V45)*180/Pi -> 0 | Z45: =IMDIV(Q45,T45) -> 1,00142250680344-0,000012785844067251i | AA45: 0.01234695808 | AB45: =IMARGUMENT(Z45)*180/Pi -> -0.0007315342909 | AD45: =IMPRODUCT((RdampCom*CdampCom+RdampCom*CinjCom),C45) -> 0,753982236i | AE45: 1+0,753982236i | AF45: =IMPRODUCT(G45,L_infilterStd*RdampSel*CinjSel*CdampSel,E45) ->  | AG45: =IMPRODUCT(G45,LAEFCom*CinjCom,D45) ->  | AH45: 1+0,753982236i | AN45: =IMARGUMENT(AK45)*180/Pi -> 
A46: 7000 | B46: 7 | C46: 43982,2971i | D46: -1934442458,19267 | E46: -85081222919084,3i | P46: 0 | Q46: 1+0,015393803985i | R46: -9,51718559572877E-06i | S46: -0,00193366868120939 | T46: 0,998066331318791+0,0153842867994043i | U46: 1 | V46: 1 | W46: 0 | X46: 0 | Z46: 1,00193710173868-0,0000203230411399365i | AA46: 0.01680917842 | AB46: -0.001162173238 | AD46: 0,879645942i | AE46: 1+0,879645942i | AH46: 1+0,879645942i
A47: 8000 | B47: 8 | C47: 50265,4824i | D47: -2526618720,90471 | E47: -127001708847146i | P47: 0 | Q47: 1+0,01759291884i | R47: -0,0000142064111516418i | S47: -0,00252560807341635 | T47: 0,997474391926584+0,0175787124288484i | U47: 1 | V47: 1 | W47: 0 | X47: 0 | Z47: 1,00253146769905-0,0000303702348632679i | AA47: 0.0219602689 | AB47: -0.001735692433 | AD47: 1,005309648i | AE47: 1+1,005309648i | AH47: 1+1,005309648i
A48: 9000 | B48: 9 | C48: 56548,6677i | D48: -3197751818,64502 | E48: -180828604979628i | P48: 0 | Q48: 1+0,019792033695i | R48: -0,0000202274877530212i | S48: -0,00319647271791756 | T48: 0,996803527282082+0,019771806207247i | U48: 1 | V48: 1 | W48: 0 | X48: 0 | Z48: 1,00320586412249-0,0000432966329094656i | AA48: 0.02780125032 | AB48: -0.002472786915 | AD48: 1,130973354i | AE48: 1+1,130973354i | AH48: 1+1,130973354i
A49: 10000 | B49: 10 | C49: 62831,853i | D49: -3947841751,41361 | E49: -248050212592082i | P49: 0 | Q49: 1+0,02199114855i | R49: -0,0000277468967805503i | S49: -0,00394626261471305 | T49: 0,996053737385287+0,0219634016532194i | U49: 1 | V49: 1 | W49: 0 | X49: 0 | Z49: 1,0039605858368-0,0000594757476545141i | AA49: 0.03433328159 | AB49: -0.003394266042 | AD49: 1,25663706i | AE49: 1+1,25663706i | AH49: 1+1,25663706i
A50: 11000 | B50: 11 | C50: 69115,0383i | D50: -4776888519,21047 | E50: -330154832960062i | N50: =J50 ->  | O50: =IMSUM(L50:N50) ->  | P50: 0 | Q50: 1+0,024190263405i | R50: -0,0000369311196149125i | S50: -0,00477497776380279 | T50: =IMSUM(S50,R50,Q50) -> 0,995225022236197+0,0241533322853851i | U50: 1 | V50: 1 | W50: 0 | X50: 0 | Z50: 1,00479596336193-0,0000792859658181959i | AA50: 0.04155766053 | AB50: -0.004521068334 | AD50: 1,382300766i | AE50: 1+1,382300766i | AH50: 1+1,382300766i
A51: 12000 | B51: 12 | C51: 75398,2236i | D51: -5684892122,0356 | E51: -428630767359119i | N51: =J51 ->  | O51: =IMSUM(L51:N51) ->  | P51: 0 | Q51: 1+0,02638937826i | R51: -0,000047946637636791i | S51: -0,00568261816518679 | T51: =IMSUM(S51,R51,Q51) -> 0,994317381834813+0,0263414316223632i | U51: 1 | V51: 1 | W51: 0 | X51: 0 | Z51: 1,00571236324959-0,000103111129481765i | AA51: 0.04947582475 | AB51: -0.005874276525 | AD51: 1,507964472i | AE51: 1+1,507964472i | AH51: 1+1,507964472i
A52: 13000 | B52: 13 | C52: 81681,4089i | D52: -6671852559,889 | E52: -544966317064805i | N52: =J52 ->  | O52: =IMSUM(L52:N52) ->  | P52: 0 | Q52: 1+0,028588493115i | R52: -0,0000609599322268691i | S52: -0,00666918381886504 | T52: =IMSUM(S52,R52,Q52) -> 0,993330816181135+0,0285275331827731i | U52: 1 | V52: 1 | W52: 0 | X52: 0 | Z52: 1,00671018846073-0,00013134112988737i | AA52: 0.05808935257 | AB52: -0.007475132835 | AD52: 1,633628178i | AE52: 1+1,633628178i | AH52: 1+1,633628178i
A53: 15000 | B53: 15 | C53: 94247,7795i | D53: -8882643940,68062 | E53: -837169467498278i | N53: =J53 ->  | O53: =IMSUM(L53:N53) ->  | P53: 0 | Q53: 1+0,032986722825i | R53: -0,0000936457766343574i | S53: -0,00887909088310435 | T53: =IMSUM(S53,R53,Q53) -> 0,991120909116896+0,0328930770483656i | U53: 1 | V53: 1 | W53: 0 | X53: 0 | Z53: 1,00895191127968-0,00020260911556929i | AA53: 0.07740952239 | AB53: -0.01150564952 | AD53: 1,88495559i | AE53: 1+1,88495559i | AH53: 1+1,88495559i
A54: 16000 | B54: 16 | C54: 100530,9648i | D54: -10106474883,6188 | E54: -1016013670777170i | N54: =J54 ->  | O54: =IMSUM(L54:N54) ->  | P54: 0 | Q54: 1+0,03518583768i | R54: -0,000113651289213134i | S54: -0,0101024322936654 | T54: =IMSUM(S54,R54,Q54) -> 0,989897567706335+0,0350721863907869i | U54: 1 | V54: 1 | W54: 0 | X54: 0 | Z54: 1,01019680079824-0,000246462681525396i | AA54: 0.08812003465 | AB54: -0.01397873284 | AD54: 2,010619296i | AE54: 1+2,010619296i | AH54: 1+2,010619296i
A55: 17500 | B55: 17.5 | C55: 109955,74275i | D55: -12090265363,7042 | E55: -1329394108110690i | P55: 0 | Q55: 1+0,0384845099625i | R55: -0,000148706024933262i | S55: -0,0120854292575587 | T55: 0,987914570742441+0,0383358039375667i | U55: 1 | V55: 1 | W55: 0 | X55: 0 | Z55: 1,01222071263725-0,000323696833892721i | AA55: 0.105504841 | AB55: -0.01832254723 | AD55: 2,199114855i | AE55: 1+2,199114855i | AH55: 1+2,199114855i
A56: 19000 | B56: 19 | C56: 119380,5207i | D56: -14251708722,6031 | E56: -1701376408169090i | P56: 0 | Q56: 1+0,041783182245i | R56: -0,000190315965017794i | S56: -0,0142460080391141 | T56: 0,985753991960886+0,0415928662799822i | U56: 1 | V56: 1 | W56: 0 | X56: 0 | Z56: 1,01443433812182-0,000415975520938413i | AA56: 0.1244795592 | AB56: -0.02349451268 | AD56: 2,387610414i | AE56: 1+2,387610414i | AH56: 1+2,387610414i
A57: 20000 | B57: 20 | C57: 125663,706i | D57: -15791367005,6544 | E57: -1984401700736660i | P57: 0 | Q57: 1+0,0439822971i | R57: -0,000221975174244403i | S57: -0,0157850504588521 | T57: 0,984214949541148+0,0437603219257556i | U57: 1 | V57: 1 | W57: 0 | X57: 0 | Z57: 1,01601657935512-0,000486596443905099i | AA57: 0.1380168926 | AB57: -0.02744041882 | AD57: 2,51327412i | AE57: 1+2,51327412i | AH57: 1+2,51327412i
A58: 25000 | B58: 25 | C58: 157079,6325i | D58: -24674010946,3351 | E58: -3875784571751290i | P58: 0 | Q58: 1+0,054977871375i | R58: -0,000433545262196099i | S58: -0,0246641413419566 | T58: 0,975335858658043+0,0545443261128039i | U58: 1 | V58: 1 | W58: 0 | X58: 0 | Z58: 1,02523378537434-0,000966656304033977i | AA58: 0.2164620491 | AB58: -0.05402212734 | AD58: 3,14159265i | AE58: 1+3,14159265i | AH58: 1+3,14159265i
A59: 30000 | B59: 30 | C59: 188495,559i | D59: -35530575762,7225 | E59: -6697355739986230i | P59: 0 | Q59: 1+0,06597344565i | R59: -0,00074916621307486i | S59: -0,0355163635324174 | T59: 0,964483636467583+0,0652242794369251i | U59: 1 | V59: 1 | W59: 0 | X59: 0 | Z59: 1,03670887459481-0,00170572482425677i | AA59: 0.3131480821 | AB59: -0.09427019268 | AD59: 3,76991118i | AE59: 1+3,76991118i | AH59: 1+3,76991118i
A60: 35000 | B60: 35 | C60: 219911,4855i | D60: -48361061454,8167 | E60: -10635152864885500i | P60: 0 | Q60: 1+0,076969019925i | R60: -0,00118964819946609i | S60: -0,0483417170302348 | T60: 0,951658282969765+0,0757793717255339i | U60: 1 | V60: 1 | W60: 0 | X60: 0 | Z60: 1,05057619978726-0,00277724104542023i | AA60: 0.4285815074 | AB60: -0.151463378 | AD60: 4,39822971i | AE60: 1+4,39822971i | AH60: 1+4,39822971i
A61: 40000 | B61: 40 | C61: 251327,412i | D61: -63165468022,6178 | E61: -15875213605893300i | P61: 0 | Q61: 1+0,0879645942i | R61: -0,00177580139395522i | S61: -0,0631402018354088 | T61: 0,936859798164591+0,0861887928060448i | U61: 1 | V61: 1 | W61: 0 | X61: 0 | Z61: 1,06700286965865-0,00426861635465528i | AA61: 0.5633812551 | AB61: -0.229214376 | AD61: 5,02654824i | AE61: 1+5,02654824i | AH61: 1+5,02654824i
A62: 45000 | B62: 45 | C62: 282743,3385i | D62: -79943795466,1256 | E62: -22603575622453500i | P62: 0 | Q62: 1+0,098960168475i | R62: -0,00252843596912765i | S62: -0,0799118179479392 | T62: 0,920088182052061+0,0964317325058724i | U62: 1 | V62: 1 | W62: 0 | X62: 0 | Z62: 1,08619356566251-0,00628565719175738i | AA62: 0.7182899496 | AB62: -0.3315593282 | AD62: 5,65486677i | AE62: 1+5,65486677i | AH62: 1+5,65486677i
A63: 50000 | B63: 50 | C63: 314159,265i | D63: -98696043785,3402 | E63: -31006276574010300i | P63: 0 | Q63: 1+0,10995574275i | R63: -0,00346836209756879i | S63: -0,0986565653678261 | T63: 0,901343434632174+0,106487380652431i | U63: 1 | V63: 1 | W63: 0 | X63: 0 | Z63: 1,10839666057698-0,00895831050462997i | AA63: 0.8941878551 | AB63: -0.4630672635 | AD63: 6,2831853i | AE63: 1+6,2831853i | AH63: 1+6,2831853i
A64: 55000 | B64: 55 | C64: 345575,1915i | D64: -119422212980,262 | E64: -41269354120007700i | P64: 0 | Q64: 1+0,120951317025i | R64: -0,00461638995186406i | S64: -0,11937444409507 | T64: 0,88062555590493+0,116334927073136i | U64: 1 | V64: 1 | W64: 0 | X64: 0 | Z64: 1,1339119415625-0,0124482487823856i | AA64: 1.092109959 | AB64: -0.628976062 | AD64: 6,91150383i | AE64: 1+6,91150383i | AH64: 1+6,91150383i
A65: 60000 | B65: 60 | C65: 376991,118i | D65: -142122303050,89 | E65: -53578845919889800i | P65: 0 | Q65: 1+0,1319468913i | R65: -0,00599332970459887i | S65: -0,14206545412967 | T65: 0,85793454587033+0,125953561595401i | U65: 1 | V65: 1 | W65: 0 | X65: 0 | Z65: 1,1631003258263-0,0169590294511739i | AA65: 1.313266769 | AB65: -0.8353638461 | AD65: 7,53982236i | AE65: 1+7,53982236i | AH65: 1+7,53982236i
A66: 65000 | B66: 65 | C66: 408407,0445i | D66: -166796313997,225 | E66: -68120789633100600i | P66: 0 | Q66: 1+0,142942465575i | R66: -0,00761999152835863i | S66: -0,166729595471626 | T66: 0,833270404528374+0,135322474046641i | U66: 1 | V66: 1 | W66: 0 | X66: 0 | Z66: 1,19639605981863-0,0227498889631618i | AA66: 1.559069535 | AB66: -1.089367975 | AD66: 8,16814089i | AE66: 1+8,16814089i | AH66: 1+8,16814089i
A67: 70000 | B67: 70 | C67: 439822,971i | D67: -193444245819,267 | E67: -85081222919084300i | P67: 0 | Q67: 1+0,15393803985i | R67: -0,00951718559572877i | S67: -0,193366868120939 | T67: 0,806633131879061+0,144420854254271i | U67: 1 | V67: 1 | W67: 0 | X67: 0 | Z67: 1,23432201043572-0,0301547238275632i | AA67: 1.831160713 | AB67: -1.399468529 | AD67: 8,79645942i | AE67: 1+8,79645942i | AH67: 1+8,79645942i
A68: 75000 | B68: 75 | C68: 471238,8975i | D68: -222066098517,016 | E68: -104646183437285000i | P68: 0 | Q68: 1+0,164933614125i | R68: -0,0117057220792947i | S68: -0,221977272077609 | T68: 0,778022727922391+0,153227892045705i | U68: 1 | V68: 1 | W68: 0 | X68: 0 | Z68: 1,27750877655212-0,0396085636961541i | AA68: 2.131450634 | AB68: -1.775860031 | AD68: 9,42477795i | AE68: 1+9,42477795i | AH68: 1+9,42477795i
A69: 80000 | B69: 80 | C69: 502654,824i | D69: -252661872090,471 | E69: -127001708847146000i | P69: 0 | Q69: 1+0,1759291884i | R69: -0,0142064111516417i | S69: -0,252560807341635 | T69: 0,747439192658365+0,161722777248358i | U69: 1 | V69: 1 | W69: 0 | X69: 0 | Z69: 1,32671843606306-0,0516850094110243i | AA69: 2.462161357 | AB69: -2.23094524 | AD69: 10,05309648i | AE69: 1+10,05309648i | AH69: 1+10,05309648i
A70: 90000 | B70: 90 | C70: 565486,677i | D70: -319775181864,502 | E70: -180828604979628000i | P70: 0 | Q70: 1+0,19792033695i | R70: -0,0202274877530212i | S70: -0,319647271791756 | T70: 0,680352728208244+0,177692849196979i | U70: 1 | V70: 1 | W70: 0 | X70: 0 | Z70: 1,44709298035524-0,0870397594174791i | AA70: 3.225612215 | AB70: -3.442080077 | AD70: 11,30973354i | AE70: 1+11,30973354i | AH70: 1+11,30973354i
A71: 100000 | B71: 100 | C71: 628318,53i | D71: -394784175141,361 | E71: -248050212592082000i | P71: 0 | Q71: 1+0,2199114855i | R71: -0,0277468967805503i | S71: -0,394626261471305 | T71: 0,605373738528695+0,19216458871945i | U71: 1 | V71: 1 | W71: 0 | X71: 0 | Z71: 1,60541786286688-0,146344269997555i | AA71: 4.147700439 | AB71: -5.208487783 | AD71: 12,5663706i | AE71: 1+12,5663706i | AH71: 1+12,5663706i
A72: 110000 | B72: 110 | C72: 691150,383i | D72: -477688851921,047 | E72: -330154832960062000i | N72: =J72 ->  | O72: =IMSUM(L72:N72) ->  | P72: 1 | Q72: 1+0,24190263405i | R72: -0,0369311196149125i | S72: -0,477497776380279 | T72: =IMSUM(S72,R72,Q72) -> 0,522502223619721+0,204971514435088i | U72: 1 | V72: 1 | W72: 0 | X72: 0 | Z72: 1,81601781079008-0,249432980334241i | AA72: 5.263570496 | AB72: -7.820732309 | AD72: 13,82300766i | AE72: 1+13,82300766i | AH72: 1+13,82300766i
A73: 120000 | B73: 120 | C73: 753982,236i | D73: -568489212203,56 | E73: -428630767359118000i | P73: 2 | Q73: 1+0,2638937826i | R73: -0,0479466376367909i | S73: -0,568261816518679 | T73: 0,431738183481321+0,215947144963209i | U73: 1 | V73: 1 | W73: 0 | X73: 0 | Z73: 2,09725415352119-0,43777055480966i | AA73: 6.618238543 | AB73: -11.79034914 | AD73: 15,07964472i | AE73: 1+15,07964472i | AH73: 1+15,07964472i
A74: 130000 | B74: 130 | C74: 816814,089i | D74: -667185255988,9 | E74: -544966317064805000i | P74: 3 | Q74: 1+0,28588493115i | R74: -0,0609599322268691i | S74: -0,666918381886505 | T74: 0,333081618113495+0,224924998923131i | U74: 1 | V74: 1 | W74: 0 | X74: 0 | Z74: 2,4600564712321-0,802936137717432i | AA74: 8.258533392 | AB74: -18.0761292 | AD74: 16,33628178i | AE74: 1+16,33628178i | AH74: 1+16,33628178i
A75: 150000 | B75: 150 | C75: 942477,795i | D75: -888264394068,062 | E75: -837169467498278000i | P75: 4 | Q75: 1+0,32986722825i | R75: -0,0936457766343574i | S75: -0,887909088310435 | T75: 0,112090911689565+0,236221451615643i | U75: 1 | V75: 1 | W75: 0 | X75: 0 | Z75: 2,77938675294686-2,91445167327342i | AA75: 12.1002459 | AB75: -46.35887228 | AD75: 18,8495559i | AE75: 1+18,8495559i | AH75: 1+18,8495559i
A76: 160000 | B76: 160 | C76: 1005309,648i | D76: -1010647488361,88 | E76: -1016013670777170000i | P76: 5 | Q76: 1+0,3518583768i | R76: -0,113651289213134i | S76: -1,01024322936654 | T76: -0,01024322936654+0,238207087586866i | U76: 1 | V76: 1 | W76: 0 | X76: 0 | Z76: 1,29419724044521-4,25368014631354i | AA76: 12.95979018 | AB76: -73.0774314 | AD76: 20,10619296i | AE76: 1+20,10619296i | AH76: 1+20,10619296i
A77: 175000 | B77: 175 | C77: =COMPLEX(0,2*Pi*A77) -> 1099557,4275i | D77: =COMPLEX(-POWER(2*Pi*A77,2),0) -> -1209026536370,42 | E77: =COMPLEX(0,-POWER(2*Pi*A77,3)) -> -1329394108110690000i | I77: =IMPRODUCT((RdampSel*CdampSel+RdampSel*CinjSel),C77) ->  | L77: =IMPRODUCT(G77,L_infilterStd*RdampSel*CinjSel*CdampSel,E77) ->  | M77: =IMPRODUCT(G77,L_infilterStd*CinjSel,D77) ->  | P77: 6 | Q77: =IMSUM(IMPRODUCT(C77,RdampPssv*CdampPssv),1) -> 1+0,384845099625i | R77: =IMPRODUCT(RdampPssv*CdampPssv*CfilterPssv*LinfilterPssv,E77) -> -0,148706024933262i | S77: =IMPRODUCT(D77,LinfilterPssv*(CfilterPssv+CdampPssv)) -> -1,20854292575587 | T77: -0,20854292575587+0,236139074691738i | U77: 1 | V77: 1 | W77: 0 | X77: 0 | Z77: =IMDIV(Q77,T77) -> -1,18552956082797-3,18780870043445i | AA77: 10.63243437 | AB77: =IMARGUMENT(Z77)*180/Pi -> -110.3999075 | AD77: =IMPRODUCT((RdampCom*CdampCom+RdampCom*CinjCom),C77) -> 21,99114855i | AE77: 1+21,99114855i | AF77: =IMPRODUCT(G77,L_infilterStd*RdampSel*CinjSel*CdampSel,E77) ->  | AG77: =IMPRODUCT(G77,LAEFCom*CinjCom,D77) ->  | AH77: 1+21,99114855i | AN77: =IMARGUMENT(AK77)*180/Pi -> 
A78: 190000 | B78: 190 | C78: 1193805,207i | D78: -1425170872260,31 | E78: -1701376408169090000i | P78: 7 | Q78: 1+0,41783182245i | R78: -0,190315965017794i | S78: -1,42460080391141 | T78: -0,42460080391141+0,227515857432206i | U78: 1 | V78: 1 | W78: 0 | X78: 0 | Z78: -1,42011816933091-1,74500664759685i | AA78: =20*LOG10(IMABS(Z78)) -> 7.043035928 | AB78: -129.1393238 | AD78: 23,87610414i | AE78: =IMSUM(1,AD78) -> 1+23,87610414i | AH78: =AE78 -> 1+23,87610414i | AI78: =IMSUM(AF78:AH78) ->  | AK78: =IMDIV(AE78,AI78) ->  | AM78: =20*LOG10(IMABS(AK78)) -> 
A79: 200000 | B79: 200 | C79: 1256637,06i | D79: -1579136700565,44 | E79: -1984401700736660000i | P79: 0 | Q79: 1+0,439822971i | R79: -0,221975174244403i | S79: -1,57850504588521 | T79: -0,57850504588521+0,217847796755597i | U79: 1 | V79: 1 | W79: 0 | X79: 0 | Z79: -1,26317208366406-1,23594812428182i | AA79: 4.9459583 | AB79: -135.6241223 | AD79: 25,1327412i | AE79: 1+25,1327412i | AH79: 1+25,1327412i
A80: 300000 | B80: 300 | C80: 1884955,59i | D80: -3553057576272,25 | E80: -6697355739986230000i | P80: 0 | Q80: 1+0,6597344565i | R80: -0,74916621307486i | S80: -3,55163635324174 | T80: -2,55163635324174-0,08943175657486i | U80: 1 | V80: 1 | W80: 0 | X80: 0 | Z80: -0,400475408867723-0,244517302172491i | AA80: -6.57243309 | AB80: -148.5931141 | AD80: 37,6991118i | AE80: 1+37,6991118i | AH80: 1+37,6991118i
A81: 400000 | B81: 400 | C81: 2513274,12i | D81: -6316546802261,78 | E81: -15875213605893300000i | P81: 0 | Q81: 1+0,879645942i | R81: -1,77580139395522i | S81: -6,31402018354088 | T81: -5,31402018354088-0,89615545195522i | U81: 1 | V81: 1 | W81: 0 | X81: 0 | Z81: -0,210121191022436-0,130098243366712i | AA81: -12.14126087 | AB81: -148.2359428 | AD81: 50,2654824i | AE81: 1+50,2654824i | AH81: 1+50,2654824i
A82: 500000 | B82: 500 | C82: 3141592,65i | D82: -9869604378534,03 | E82: -31006276574010300000i | P82: 0 | Q82: 1+1,0995574275i | R82: -3,46836209756879i | S82: -9,86565653678262 | T82: -8,86565653678262-2,36880467006879i | U82: 1 | V82: 1 | W82: 0 | X82: 0 | Z82: -0,136208802833546-0,0876308907321328i | AA82: -15.81168415 | AB82: -147.2445124 | AD82: 62,831853i | AE82: 1+62,831853i | AH82: 1+62,831853i
A83: 600000 | B83: 600 | C83: 3769911,18i | D83: -14212230305089 | E83: -53578845919889800000i | G83: =IMSUM(IMPRODUCT(C83,Rcomp_AEF*Csen_AEF),Csen_AEF/Ccomp_AEF) ->  | P83: 0 | Q83: 1+1,319468913i | R83: -5,99332970459887i | S83: -14,206545412967 | T83: -13,206545412967-4,67386079159887i | U83: 1 | V83: =CHOOSE(INFILTER_TYPE,U83,IMDIV(J83,O83),IMDIV(Q83,T83)) -> 1 | W83: 0 | X83: =IMARGUMENT(V83)*180/Pi -> 0 | Z83: -0,0987148424567274-0,0649745603002369i | AA83: -18.5491821 | AB83: -146.646905 | AD83: 75,3982236i | AE83: 1+75,3982236i | AH83: 1+75,3982236i
A84: 700000 | B84: 700 | C84: 4398229,71i | D84: -19344424581926,7 | E84: -85081222919084300000i | P84: 0 | Q84: 1+1,5393803985i | R84: -9,51718559572877i | S84: -19,3366868120939 | T84: -18,3366868120939-7,97780519722877i | U84: 1 | V84: 1 | W84: 0 | X84: 0 | Z84: -0,0765669830392885-0,050638587700621i | AA84: -20.74338888 | AB84: -146.5208154 | AD84: 87,9645942i | AE84: 1+87,9645942i | AH84: 1+87,9645942i
A85: 800000 | B85: 800 | C85: 5026548,24i | D85: -25266187209047,1 | E85: -127001708847146000000i | P85: 0 | Q85: 1+1,759291884i | R85: -14,2064111516417i | S85: -25,2560807341635 | T85: -24,2560807341635-12,4471192676417i | U85: 1 | V85: 1 | W85: 0 | X85: 0 | Z85: -0,0620946151681225-0,040665794855093i | AA85: -22.58891903 | AB85: -146.7791907 | AD85: 100,5309648i | AE85: 1+100,5309648i | AH85: 1+100,5309648i
A86: 900000 | B86: 900 | C86: 5654866,77i | D86: -31977518186450,2 | E86: -180828604979628000000i | P86: 0 | Q86: 1+1,9792033695i | R86: -20,2274877530212i | S86: -31,9647271791756 | T86: -30,9647271791756-18,2482843835212i | U86: 1 | V86: 1 | W86: 0 | X86: 0 | Z86: -0,0519283597315569-0,033315323192724i | AA86: -24.19478124 | AB86: -147.3172642 | AD86: 113,0973354i | AE86: 1+113,0973354i | AH86: 1+113,0973354i
A87: 1000000 | B87: 1000 | C87: 6283185,3i | D87: -39478417514136,1 | E87: -248050212592083000000i | P87: 0 | Q87: 1+2,199114855i | R87: -27,7468967805504i | S87: -39,4626261471305 | T87: -38,4626261471305-25,5477819255504i | U87: 1 | V87: 1 | W87: 0 | X87: 0 | Z87: -0,044391344457259-0,0276895930961649i | AA87: -25.62676805 | AB87: -148.0456906 | AD87: 125,663706i | AE87: 1+125,663706i | AH87: 1+125,663706i
A88: 2000000 | B88: 2000 | C88: 12566370,6i | D88: -157913670056544 | E88: -1,98440170073666E+21i | P88: 0 | Q88: 1+4,39822971i | R88: -221,975174244403i | S88: -157,850504588521 | T88: -156,850504588521-217,576944534403i | U88: 1 | V88: 1 | W88: 0 | X88: 0 | Z88: -0,0154820114155727-0,00656485596685991i | AA88: -35.48535935 | AB88: -157.0215402 | AD88: 251,327412i | AE88: 1+251,327412i | AH88: 1+251,327412i
A89: 3000000 | B89: 3000 | C89: 18849555,9i | D89: -355305757627225 | E89: -6,69735573998623E+21i | P89: 0 | Q89: 1+6,597344565i | R89: -749,16621307486i | S89: -355,163635324174 | T89: -354,163635324174-742,56886850986i | U89: 1 | V89: 1 | W89: 0 | X89: 0 | Z89: -0,00776127767315144-0,00235501700871593i | AA89: -41.81882784 | AB89: -163.1205442 | AD89: 376,991118i | AE89: 1+376,991118i | AH89: 1+376,991118i
A90: 4000000 | B90: 4000 | C90: 25132741,2i | D90: -631654680226178 | E90: -1,58752136058933E+22i | P90: 0 | Q90: 1+8,79645942i | R90: -1775,80139395522i | S90: -631,402018354088 | T90: -630,402018354088-1767,00493453522i | U90: 1 | V90: 1 | W90: 0 | X90: 0 | Z90: -0,00459520096124435-0,00107346840047734i | AA90: -46.52314764 | AB90: -166.8511405 | AD90: 502,654824i | AE90: 1+502,654824i | AH90: 1+502,654824i
A91: 5000000 | B91: 5000 | C91: 31415926,5i | D91: -986960437853403 | E91: -3,10062765740103E+22i | P91: 0 | Q91: 1+10,995574275i | R91: -3468,36209756879i | S91: -986,565653678262 | T91: -985,565653678262-3457,36652329379i | U91: 1 | V91: 1 | W91: 0 | X91: 0 | Z91: -0,00301757308495533-0,000570959537178404i | AA91: -50.25408082 | AB91: -169.2856429 | AD91: 628,31853i | AE91: 1+628,31853i | AH91: 1+628,31853i
A92: 6000000 | B92: 6000 | C92: 37699111,8i | D92: -1421223030508900 | E92: -5,35788459198898E+22i | P92: 0 | Q92: 1+13,19468913i | R92: -5993,32970459887i | S92: -1420,6545412967 | T92: -1419,6545412967-5980,13501546887i | U92: 1 | V92: 1 | W92: 0 | X92: 0 | Z92: -0,00212628728062533-0,000337549802608077i | AA92: -53.33946751 | AB92: -170.9795243 | AD92: 753,982236i | AE92: 1+753,982236i | AH92: 1+753,982236i
A93: 7000000 | B93: 7000 | C93: 43982297,1i | D93: -1934442458192670 | E93: -8,50812229190843E+22i | P93: 0 | Q93: 1+15,393803985i | R93: -9517,18559572877i | S93: -1933,66868120939 | T93: -1932,66868120939-9501,79179174377i | U93: 1 | V93: 1 | W93: 0 | X93: 0 | Z93: -0,00157628762603077-0,000215374297002146i | AA93: -55.96696055 | AB93: -172.2196335 | AD93: 879,645942i | AE93: 1+879,645942i | AH93: 1+879,645942i
A94: 8000000 | B94: 8000 | C94: 50265482,4i | D94: -2526618720904710 | E94: -1,27001708847146E+23i | P94: 0 | Q94: 1+17,59291884i | R94: -14206,4111516417i | S94: -2525,60807341635 | T94: -2524,60807341635-14188,8182328017i | U94: 1 | V94: 1 | W94: 0 | X94: 0 | Z94: -0,00121401992445827-0,000145531817287078i | AA94: -58.25351868 | AB94: -173.1642323 | AD94: 1005,309648i | AE94: 1+1005,309648i | AH94: 1+1005,309648i
A95: 9000000 | B95: 9000 | C95: 56548667,7i | D95: -3197751818645020 | E95: -1,80828604979628E+23i | P95: 0 | Q95: 1+19,792033695i | R95: -20227,4877530212i | S95: -3196,47271791756 | T95: -3195,47271791756-20207,6957193262i | U95: 1 | V95: 1 | W95: 0 | X95: 0 | Z95: -0,000963171180292813-0,000102821581350465i | AA95: -60.27671707 | AB95: -173.9065713 | AD95: 1130,973354i | AE95: 1+1130,973354i | AH95: 1+1130,973354i
A96: 10000000 | B96: 10000 | C96: 62831853i | D96: -3947841751413610 | E96: -2,48050212592082E+23i | P96: 0 | Q96: 1+21,99114855i | R96: -27746,8967805503i | S96: -3946,26261471304 | T96: -3945,26261471304-27724,9056320003i | U96: 1 | V96: 1 | W96: 0 | X96: 0 | Z96: -0,000782478973720499-0,0000752783461022707i | AA96: -62.09053569 | AB96: -174.5047748 | AD96: 1256,63706i | AE96: 1+1256,63706i | AH96: 1+1256,63706i
A97: =Fsw -> 425000 | B97: =A97/1000 -> 425 | C97: 2670353,7525i | D97: -7130789163490,83 | E97: -19041729601014100000i | J97: =IMSUM(1,I97) ->  | N97: =J97 ->  | O97: =IMSUM(L97:N97) ->  | P97: 2 | Q97: 1+0,934623813375i | R97: -2,13000787316944i | S97: -7,12793684782543 | T97: =IMSUM(S97,R97,Q97) -> -6,12793684782543-1,19538405979444i | U97: 1 | V97: 1 | W97: =20*LOG10(IMABS(V97)) -> 0 | X97: 0 | Z97: -0,185866302226031-0,116261348008814i | AA97: -13.18189275 | AB97: -147.973583 | AD97: 53,40707505i | AE97: 1+53,40707505i | AH97: 1+53,40707505i

Sheet Standard Value Calculator (hidden)
A2: Capacitors | B2: Css | C2: Cc1ea | D2: Cc2ea | E2: Cout | F2: Cin | G2: Cres | H2: Cdither | I2: Cc3ea | J2: Cc4ea | K2: Cin_Passive | L2: Cdamp_Pssv | M2: Cinj_AEF | N2: Cdamp_AEF
A3: Inputs | B3: =Css -> 0 | C3: =Cc1ea -> 1.682901424e-09 | D3: =Cc2ea -> 2.415804507e-10 | E3: =Cout -> 6e-05 | F3: =Cin -> 0.00012 | G3: =Cres -> 1.833333333e-07 | H3: =Cdither_init ->  | I3: =Cc3ea -> 0 | J3: =Cc4ea -> 0 | K3: ='Variable Management'!B292*0.000001 ->  | L3: =K3*4 ->  | M3: =Cinj_AEF*0.000001 ->  | N3: ='Variable Management'!B295*0.000001 ->  | Q3: Resistors | R3: inputs | S3: Standard Result
A4: Standard Result | B4: =SUM(B6:B158)/1000000000000 -> 0 | C4: =IF(C3="OPEN","OPEN",SUM(C6:C158)/1000000000000) -> 1.8e-09 | D4: =SUM(D6:D158)/1000000000000 -> 2.2e-10 | E4: =SUM(E6:E158)/1000000000000 -> 5.6e-05 | F4: =SUM(F6:F158)/1000000000000 -> 0.00012 | G4: =SUM(G6:G158)/1000000000000 -> 1.8e-07 | H4: =IF(H3="OPEN","OPEN",SUM(H6:H158)/1000000000000) ->  | I4: 0 | J4: 0 | Q4: Rt | R4: =Rfadj -> 51.1 | S4: =IF(R4>(INT(0.5+100*POWER(10,IF(96*(LOG(R4)-INT(LOG(R4)))-ROUND(96*(LOG(R4)-INT(LOG(R4))),0)<0,ROUND(96*(LOG(R4)-INT(LOG(R4))),0)-1,ROUND(96*(LOG(R4)-INT(LOG(R4))),0))/96))*POWER(10,INT(LOG(R4))-2)+INT(0.5+100*POWER(10,(IF(96*(LOG(R4)-INT(LOG(R4)))-ROUND(96*(LOG(R4)-INT(LOG(R4))),0)<0,ROUND(96*(LOG(R4)-INT(LOG(R4))),0)-1,ROUND(96*(LOG(R4)-INT(LOG(R4))),0))+1)/96))*POWER(10,INT(LOG(R4))-2))/2,INT(0.5+100*POWER(10,(IF(96*(LOG(R4)-INT(LOG(R4)))-ROUND(96*(LOG(R4)-INT(LOG(R4))),0)<0,ROUND(96*(LOG(R4)-INT(LOG(R4))),0)-1,ROUND(96*(LOG(R4)-INT(LOG(R4))),0))+1)/96))*POWER(10,INT(LOG(R4))-2),INT(0.5+100*POWER(10,IF(96*(LOG(R4)-INT(LOG(R4)))-ROUND(96*(LOG(R4)-INT(LOG(R4))),0)<0,ROUND(96*(LOG(R4)-INT(LOG(R4))),0)-1,ROUND(96*(LOG(R4)-INT(LOG(R4))),0))/96))*POWER(10,INT(LOG(R4))-2)) -> 51.1 | T4: Ω
A5: (pF)
A6: 0.47 | B6: =IF(IF((B$3*10^12-$A7)*(B$3*10^12-$A6)*-1<0,0,1)*IF(ABS(B$3*10^12-$A7)>(B$3*10^12-$A6),$A6,$A7)=B7,0,IF((B$3*10^12-$A7)*(B$3*10^12-$A6)*-1<0,0,1)*IF(ABS(B$3*10^12-$A7)>(B$3*10^12-$A6),$A6,$A7)) -> 0 | C6: 0 | D6: 0 | E6: 0 | F6: 0 | G6: 0 | I6: 0 | J6: 0
A7: 0.56 | B7: =IF(IF((B$3*10^12-$A8)*(B$3*10^12-$A7)*-1<0,0,1)*IF(ABS(B$3*10^12-$A8)>(B$3*10^12-$A7),$A7,$A8)=B8,0,IF((B$3*10^12-$A8)*(B$3*10^12-$A7)*-1<0,0,1)*IF(ABS(B$3*10^12-$A8)>(B$3*10^12-$A7),$A7,$A8)) -> 0 | C7: =IF(IF((C$3*10^12-$A8)*(C$3*10^12-$A7)*-1<0,0,1)*IF(ABS(C$3*10^12-$A8)>(C$3*10^12-$A7),$A7,$A8)=C8,0,IF((C$3*10^12-$A8)*(C$3*10^12-$A7)*-1<0,0,1)*IF(ABS(C$3*10^12-$A8)>(C$3*10^12-$A7),$A7,$A8)) -> 0 | D7: =IF(IF((D$3*10^12-$A8)*(D$3*10^12-$A7)*-1<0,0,1)*IF(ABS(D$3*10^12-$A8)>(D$3*10^12-$A7),$A7,$A8)=D8,0,IF((D$3*10^12-$A8)*(D$3*10^12-$A7)*-1<0,0,1)*IF(ABS(D$3*10^12-$A8)>(D$3*10^12-$A7),$A7,$A8)) -> 0 | E7: =IF(IF((E$3*10^12-$A8)*(E$3*10^12-$A7)*-1<0,0,1)*IF(ABS(E$3*10^12-$A8)>(E$3*10^12-$A7),$A7,$A8)=E8,0,IF((E$3*10^12-$A8)*(E$3*10^12-$A7)*-1<0,0,1)*IF(ABS(E$3*10^12-$A8)>(E$3*10^12-$A7),$A7,$A8)) -> 0 | F7: =IF(IF((F$3*10^12-$A8)*(F$3*10^12-$A7)*-1<0,0,1)*IF(ABS(F$3*10^12-$A8)>(F$3*10^12-$A7),$A7,$A8)=F8,0,IF((F$3*10^12-$A8)*(F$3*10^12-$A7)*-1<0,0,1)*IF(ABS(F$3*10^12-$A8)>(F$3*10^12-$A7),$A7,$A8)) -> 0 | G7: =IF(IF((G$3*10^12-$A8)*(G$3*10^12-$A7)*-1<0,0,1)*IF(ABS(G$3*10^12-$A8)>(G$3*10^12-$A7),$A7,$A8)=G8,0,IF((G$3*10^12-$A8)*(G$3*10^12-$A7)*-1<0,0,1)*IF(ABS(G$3*10^12-$A8)>(G$3*10^12-$A7),$A7,$A8)) -> 0 | I7: 0 | J7: 0 | K7: =IF(IF((K$3*10^12-$A8)*(K$3*10^12-$A7)*-1<0,0,1)*IF(ABS(K$3*10^12-$A8)>(K$3*10^12-$A7),$A7,$A8)=K8,0,IF((K$3*10^12-$A8)*(K$3*10^12-$A7)*-1<0,0,1)*IF(ABS(K$3*10^12-$A8)>(K$3*10^12-$A7),$A7,$A8)) ->  | Q7: Rc1ea | R7: =Rcea1 -> 14549.50096 | S7: =IF(R7>(INT(0.5+100*POWER(10,IF(96*(LOG(R7)-INT(LOG(R7)))-ROUND(96*(LOG(R7)-INT(LOG(R7))),0)<0,ROUND(96*(LOG(R7)-INT(LOG(R7))),0)-1,ROUND(96*(LOG(R7)-INT(LOG(R7))),0))/96))*POWER(10,INT(LOG(R7))-2)+INT(0.5+100*POWER(10,(IF(96*(LOG(R7)-INT(LOG(R7)))-ROUND(96*(LOG(R7)-INT(LOG(R7))),0)<0,ROUND(96*(LOG(R7)-INT(LOG(R7))),0)-1,ROUND(96*(LOG(R7)-INT(LOG(R7))),0))+1)/96))*POWER(10,INT(LOG(R7))-2))/2,INT(0.5+100*POWER(10,(IF(96*(LOG(R7)-INT(LOG(R7)))-ROUND(96*(LOG(R7)-INT(LOG(R7))),0)<0,ROUND(96*(LOG(R7)-INT(LOG(R7))),0)-1,ROUND(96*(LOG(R7)-INT(LOG(R7))),0))+1)/96))*POWER(10,INT(LOG(R7))-2),INT(0.5+100*POWER(10,IF(96*(LOG(R7)-INT(LOG(R7)))-ROUND(96*(LOG(R7)-INT(LOG(R7))),0)<0,ROUND(96*(LOG(R7)-INT(LOG(R7))),0)-1,ROUND(96*(LOG(R7)-INT(LOG(R7))),0))/96))*POWER(10,INT(LOG(R7))-2)) -> 14700 | T7: Ω
A8: 0.68 | B8: 0 | C8: 0 | D8: 0 | E8: 0 | F8: 0 | G8: 0 | I8: 0 | J8: 0 | Q8: Rc1ea | R8: =Rcea2 -> 0 | S8: =IF(R8>(INT(0.5+100*POWER(10,IF(96*(LOG(R8)-INT(LOG(R8)))-ROUND(96*(LOG(R8)-INT(LOG(R8))),0)<0,ROUND(96*(LOG(R8)-INT(LOG(R8))),0)-1,ROUND(96*(LOG(R8)-INT(LOG(R8))),0))/96))*POWER(10,INT(LOG(R8))-2)+INT(0.5+100*POWER(10,(IF(96*(LOG(R8)-INT(LOG(R8)))-ROUND(96*(LOG(R8)-INT(LOG(R8))),0)<0,ROUND(96*(LOG(R8)-INT(LOG(R8))),0)-1,ROUND(96*(LOG(R8)-INT(LOG(R8))),0))+1)/96))*POWER(10,INT(LOG(R8))-2))/2,INT(0.5+100*POWER(10,(IF(96*(LOG(R8)-INT(LOG(R8)))-ROUND(96*(LOG(R8)-INT(LOG(R8))),0)<0,ROUND(96*(LOG(R8)-INT(LOG(R8))),0)-1,ROUND(96*(LOG(R8)-INT(LOG(R8))),0))+1)/96))*POWER(10,INT(LOG(R8))-2),INT(0.5+100*POWER(10,IF(96*(LOG(R8)-INT(LOG(R8)))-ROUND(96*(LOG(R8)-INT(LOG(R8))),0)<0,ROUND(96*(LOG(R8)-INT(LOG(R8))),0)-1,ROUND(96*(LOG(R8)-INT(LOG(R8))),0))/96))*POWER(10,INT(LOG(R8))-2)) ->  | T8: Ω
A9: 0.82 | B9: 0 | C9: 0 | D9: 0 | E9: 0 | F9: 0 | G9: 0 | I9: 0 | J9: 0
A10: 1 | B10: 0 | C10: 0 | D10: 0 | E10: 0 | F10: 0 | G10: 0 | I10: 0 | J10: 0 | Q10: Rfb1 | R10: =Rfb1_ -> 287000 | S10: =IF(R10>(INT(0.5+100*POWER(10,IF(96*(LOG(R10)-INT(LOG(R10)))-ROUND(96*(LOG(R10)-INT(LOG(R10))),0)<0,ROUND(96*(LOG(R10)-INT(LOG(R10))),0)-1,ROUND(96*(LOG(R10)-INT(LOG(R10))),0))/96))*POWER(10,INT(LOG(R10))-2)+INT(0.5+100*POWER(10,(IF(96*(LOG(R10)-INT(LOG(R10)))-ROUND(96*(LOG(R10)-INT(LOG(R10))),0)<0,ROUND(96*(LOG(R10)-INT(LOG(R10))),0)-1,ROUND(96*(LOG(R10)-INT(LOG(R10))),0))+1)/96))*POWER(10,INT(LOG(R10))-2))/2,INT(0.5+100*POWER(10,(IF(96*(LOG(R10)-INT(LOG(R10)))-ROUND(96*(LOG(R10)-INT(LOG(R10))),0)<0,ROUND(96*(LOG(R10)-INT(LOG(R10))),0)-1,ROUND(96*(LOG(R10)-INT(LOG(R10))),0))+1)/96))*POWER(10,INT(LOG(R10))-2),INT(0.5+100*POWER(10,IF(96*(LOG(R10)-INT(LOG(R10)))-ROUND(96*(LOG(R10)-INT(LOG(R10))),0)<0,ROUND(96*(LOG(R10)-INT(LOG(R10))),0)-1,ROUND(96*(LOG(R10)-INT(LOG(R10))),0))/96))*POWER(10,INT(LOG(R10))-2)) -> 287000 | T10: Ω
A11: 1.2 | B11: 0 | C11: 0 | D11: 0 | E11: 0 | F11: 0 | G11: 0 | I11: 0 | J11: 0 | M11: =IF(IF((M$3*10^12-$A12)*(M$3*10^12-$A11)*-1<0,0,1)*IF(ABS(M$3*10^12-$A12)>(M$3*10^12-$A11),$A11,$A12)=M12,0,IF((M$3*10^12-$A12)*(M$3*10^12-$A11)*-1<0,0,1)*IF(ABS(M$3*10^12-$A12)>(M$3*10^12-$A11),$A11,$A12)) ->  | Q11: Rfb2 | R11: =Rfb2_ -> 12615.38462 | S11: =IF(R11="OPEN","OPEN",IF(R11>(INT(0.5+100*POWER(10,IF(96*(LOG(R11)-INT(LOG(R11)))-ROUND(96*(LOG(R11)-INT(LOG(R11))),0)<0,ROUND(96*(LOG(R11)-INT(LOG(R11))),0)-1,ROUND(96*(LOG(R11)-INT(LOG(R11))),0))/96))*POWER(10,INT(LOG(R11))-2)+INT(0.5+100*POWER(10,(IF(96*(LOG(R11)-INT(LOG(R11)))-ROUND(96*(LOG(R11)-INT(LOG(R11))),0)<0,ROUND(96*(LOG(R11)-INT(LOG(R11))),0)-1,ROUND(96*(LOG(R11)-INT(LOG(R11))),0))+1)/96))*POWER(10,INT(LOG(R11))-2))/2,INT(0.5+100*POWER(10,(IF(96*(LOG(R11)-INT(LOG(R11)))-ROUND(96*(LOG(R11)-INT(LOG(R11))),0)<0,ROUND(96*(LOG(R11)-INT(LOG(R11))),0)-1,ROUND(96*(LOG(R11)-INT(LOG(R11))),0))+1)/96))*POWER(10,INT(LOG(R11))-2),INT(0.5+100*POWER(10,IF(96*(LOG(R11)-INT(LOG(R11)))-ROUND(96*(LOG(R11)-INT(LOG(R11))),0)<0,ROUND(96*(LOG(R11)-INT(LOG(R11))),0)-1,ROUND(96*(LOG(R11)-INT(LOG(R11))),0))/96))*POWER(10,INT(LOG(R11))-2))) -> 12700 | T11: Ω
A12: 1.5 | B12: 0 | C12: 0 | D12: 0 | E12: 0 | F12: 0 | G12: 0 | I12: 0 | J12: 0 | Q12: Rt1 | R12: ='Variable Management'!B27*1000 -> 51209.80392 | S12: =IF(R12>(INT(0.5+100*POWER(10,IF(96*(LOG(R12)-INT(LOG(R12)))-ROUND(96*(LOG(R12)-INT(LOG(R12))),0)<0,ROUND(96*(LOG(R12)-INT(LOG(R12))),0)-1,ROUND(96*(LOG(R12)-INT(LOG(R12))),0))/96))*POWER(10,INT(LOG(R12))-2)+INT(0.5+100*POWER(10,(IF(96*(LOG(R12)-INT(LOG(R12)))-ROUND(96*(LOG(R12)-INT(LOG(R12))),0)<0,ROUND(96*(LOG(R12)-INT(LOG(R12))),0)-1,ROUND(96*(LOG(R12)-INT(LOG(R12))),0))+1)/96))*POWER(10,INT(LOG(R12))-2))/2,INT(0.5+100*POWER(10,(IF(96*(LOG(R12)-INT(LOG(R12)))-ROUND(96*(LOG(R12)-INT(LOG(R12))),0)<0,ROUND(96*(LOG(R12)-INT(LOG(R12))),0)-1,ROUND(96*(LOG(R12)-INT(LOG(R12))),0))+1)/96))*POWER(10,INT(LOG(R12))-2),INT(0.5+100*POWER(10,IF(96*(LOG(R12)-INT(LOG(R12)))-ROUND(96*(LOG(R12)-INT(LOG(R12))),0)<0,ROUND(96*(LOG(R12)-INT(LOG(R12))),0)-1,ROUND(96*(LOG(R12)-INT(LOG(R12))),0))/96))*POWER(10,INT(LOG(R12))-2)) -> 51100 | T12: Ω
A13: 1.8 | B13: 0 | C13: 0 | D13: 0 | E13: 0 | F13: 0 | G13: 0 | I13: 0 | J13: 0 | Q13: Rd | R13: ='Variable Management'!B28*1000 -> 0 | S13: =IF(R13="OPEN","OPEN",IF(R13>(INT(0.5+100*POWER(10,IF(96*(LOG(R13)-INT(LOG(R13)))-ROUND(96*(LOG(R13)-INT(LOG(R13))),0)<0,ROUND(96*(LOG(R13)-INT(LOG(R13))),0)-1,ROUND(96*(LOG(R13)-INT(LOG(R13))),0))/96))*POWER(10,INT(LOG(R13))-2)+INT(0.5+100*POWER(10,(IF(96*(LOG(R13)-INT(LOG(R13)))-ROUND(96*(LOG(R13)-INT(LOG(R13))),0)<0,ROUND(96*(LOG(R13)-INT(LOG(R13))),0)-1,ROUND(96*(LOG(R13)-INT(LOG(R13))),0))+1)/96))*POWER(10,INT(LOG(R13))-2))/2,INT(0.5+100*POWER(10,(IF(96*(LOG(R13)-INT(LOG(R13)))-ROUND(96*(LOG(R13)-INT(LOG(R13))),0)<0,ROUND(96*(LOG(R13)-INT(LOG(R13))),0)-1,ROUND(96*(LOG(R13)-INT(LOG(R13))),0))+1)/96))*POWER(10,INT(LOG(R13))-2),INT(0.5+100*POWER(10,IF(96*(LOG(R13)-INT(LOG(R13)))-ROUND(96*(LOG(R13)-INT(LOG(R13))),0)<0,ROUND(96*(LOG(R13)-INT(LOG(R13))),0)-1,ROUND(96*(LOG(R13)-INT(LOG(R13))),0))/96))*POWER(10,INT(LOG(R13))-2))) ->  | T13: Ω
